Workbook

Sheet Cover
A2: Cap and Floor Financial Model 2 (CFFM2)
C3: =MID(CELL("filename"),SEARCH("[",CELL("filename"))+1,SEARCH("]",CELL("filename"))-SEARCH("[",CELL("filename"))-1) -> NLCFFM2 (Nemo Link PCR decision).xlsm
C4: DISCLAIMER: The inputs used in this model (with the exception of those imported from the NLCFFM1 used to set cap and floor levels and PCA adjustments at PCR) are purely illustrative and no inference should be made about any future regulatory settlement for Nemo Link beyond PCR.
C5: For guidance on the use of the CFFM2, please refer to the CFFM2 Handbook (CFFM2H)
B7: Model key
E9: Sample | G9: Calculated value
E10: Sample | G10: Formula changes in cells to the right
E11: Sample | G11: Value imported from other sheet
E12: Sample | G12: Value exported to other sheet
E13: Sample | G13: Import from & export to other sheet
E14: Sample | G14: Initial input
E15: Sample | G15: Initial input for non-GB indexed portion (to be left empty if GB-indexed only)
E16: Sample | G16: Updated input
E17: Sample | G17: Notes and instructions
E18: Sample | G18: Cell intentionally blank
B20: Contents
E22: Cover | G22: Model key and content directory
E23: Version Control | G23: Version control and log of changes
E24: Inputs | G24: Inputs
E25: Cost & Revenue | G25: Baseline cost summary and currency conversion of nominal actual costs and revenue
E26: ORA Adjustment | G26: Controllable Opex adjustment
E27: DC Adjustment | G27: Decommissioning costs adjustment
E28: Indexation | G28: Cap and floor inflation indexation
E29: Availability | G29: Availability incentive calculations
E30: Assessment | G30: Revenue assessment relative to cap and floor and non-controllable Opex assessment relative to baseline level
E31: Revenue Adjustment | G31: Cap and floor levels and revenue adjustments
B33: Checks
E35: Partial year cap adjustment factor | G35: =Inputs!I65 -> TRUE
E36: Partial year floor adjustment factor | G36: =Inputs!I73 -> TRUE
E37: ORA start date | G37: =Inputs!I160 -> TRUE
E38: No relevant inputs outside of operational period | G38: =Inputs!I216 -> TRUE
B40: End of sheet

Sheet Version Control
A1: Version Control
B2: Version number | C2: File pathname | D2: Based on version | E2: Author or editor | F2: Date | G2: Description of changes | H2: Rationale for changes | I2: Location of changes | J2: Impact of changes on outputs | K2: Quality assurance performed? By? | L2: Comments on QA performed
B4: 1 | D4: N/a | E4: Andrew Stone & Neill Aitken (NGV) | G4: New model | H4: N/a | I4: N/a | J4: N/a | K4: N/a | L4: N/a
B5: 1.1 | D5: 1 | E5: Martin Namor | F5: 2019-07-05 | G5: CFFM1 and CFFM2 split out of original CFFM | H5: Reviwing and improving CFFM | I5: N/a | J5: No | K5: Nick Clitheroe & Tadeos Shahbazia (GAD) | L5: Multiple high, medium and low priority issues identified
B6: 1.2 | D6: 1.1 | E6: Martin Namor | F6: 2019-09-05 | G6: Multiple structural changes | H6: Addressing main concerns raised by GAD | I6: Multiple sheets | J6: Potential | K6: Nick Clitheroe & Tadeos Shahbazia (GAD), Svitlana Voronkova (ORE) | L6: High and main medium priority issues addressed satisfactorily
B7: 1.3 | D7: 1.2 | E7: Martin Namor | F7: 2019-12-04 | G7: Multiple presentational changes | H7: Addressing medium and minor concerns raised by GAD | I7: Multiple sheets | J7: No | K7: Svitlana Voronkova (ORE) | L7: Remaining medium and low priority issues addressed satisfactorily

Sheet Inputs
A1: Inputs | H1: Licence
E2: Parameter | G2: Units | H2: Terminology | I2: Constant | O2: Annual values
E3: Year commencing | O3: =I20 -> 2018-01-01 | P3: =O4+1 -> 2019-01-01 | Q3: =P4+1 -> 2020-01-01 | R3: 2021-01-01 | S3: 2022-01-01 | T3: 2023-01-01 | U3: 2024-01-01 | V3: 2025-01-01 | W3: 2026-01-01 | X3: 2027-01-01 | Y3: 2028-01-01 | Z3: 2029-01-01 | AA3: 2030-01-01 | AB3: =AA4+1 -> 2031-01-01 | AC3: 2032-01-01 | AD3: 2033-01-01 | AE3: 2034-01-01 | AF3: 2035-01-01 | AG3: 2036-01-01 | AH3: 2037-01-01 | AI3: 2038-01-01 | AJ3: 2039-01-01 | AK3: 2040-01-01 | AL3: 2041-01-01 | AM3: 2042-01-01 | AN3: 2043-01-01 | AO3: 2044-01-01 | AP3: 2045-01-01 | AQ3: 2046-01-01 | AR3: 2047-01-01 | AS3: 2048-01-01 | AT3: 2049-01-01 | AU3: 2050-01-01 | AV3: 2051-01-01 | AW3: 2052-01-01 | AX3: 2053-01-01 | AY3: 2054-01-01 | AZ3: 2055-01-01 | BA3: 2056-01-01 | BB3: 2057-01-01
E4: Year ending | O4: =EOMONTH(O3,11) -> 2018-12-31 | P4: =EOMONTH(P3,11) -> 2019-12-31 | Q4: =EOMONTH(Q3,11) -> 2020-12-31 | R4: 2021-12-31 | S4: 2022-12-31 | T4: 2023-12-31 | U4: 2024-12-31 | V4: 2025-12-31 | W4: 2026-12-31 | X4: 2027-12-31 | Y4: 2028-12-31 | Z4: 2029-12-31 | AA4: 2030-12-31 | AB4: 2031-12-31 | AC4: 2032-12-31 | AD4: 2033-12-31 | AE4: 2034-12-31 | AF4: 2035-12-31 | AG4: 2036-12-31 | AH4: 2037-12-31 | AI4: 2038-12-31 | AJ4: 2039-12-31 | AK4: 2040-12-31 | AL4: 2041-12-31 | AM4: 2042-12-31 | AN4: 2043-12-31 | AO4: 2044-12-31 | AP4: 2045-12-31 | AQ4: 2046-12-31 | AR4: 2047-12-31 | AS4: 2048-12-31 | AT4: 2049-12-31 | AU4: 2050-12-31 | AV4: 2051-12-31 | AW4: 2052-12-31 | AX4: 2053-12-31 | AY4: 2054-12-31 | AZ4: 2055-12-31 | BA4: 2056-12-31 | BB4: 2057-12-31
E5: Operational year | O5: 0 | P5: =+O5+1 -> 1 | Q5: =+P5+1 -> 2 | R5: 3 | S5: 4 | T5: 5 | U5: 6 | V5: 7 | W5: 8 | X5: 9 | Y5: 10 | Z5: 11 | AA5: 12 | AB5: 13 | AC5: 14 | AD5: 15 | AE5: 16 | AF5: 17 | AG5: 18 | AH5: 19 | AI5: 20 | AJ5: 21 | AK5: 22 | AL5: 23 | AM5: 24 | AN5: 25 | AO5: 26 | AP5: 27 | AQ5: 28 | AR5: 29 | AS5: 30 | AT5: 31 | AU5: 32 | AV5: 33 | AW5: 34 | AX5: 35 | AY5: 36 | AZ5: 37 | BA5: 38 | BB5: 39
B7: Items transferred from CFFM1
C9: Base year and currency
E11: Base year price term | I11: £m 13/14 prices
E13: Currency of revenue and cost inputs | I13: €
C15: Model operation
E17: Regime start date | G17: date | I17: 2019-01-31
E18: Start of financial year of regime start date | G18: date | I18: 2019-01-01
E19: End of financial year of regime start date | G19: date | I19: =EOMONTH(I18,11) -> 2019-12-31
E20: Start of preceding financial year | G20: date | I20: =DATE(YEAR(I18)-1,MONTH(I18),DAY(I18)) -> 2018-01-01
E21: Number of operational years | G21: full years | I21: 25
E22: Calendar month number (e.g. Jan=1) of first month of financial year when operations start | G22: value | I22: =MONTH(I18) -> 1
C24: Cap and Floor levels
E26: Preliminary Cap including tax | G26: =base_year -> £m 13/14 prices | H26: PCL | I26: 83.80640211
E27: Preliminary Floor including tax | G27: =base_year -> £m 13/14 prices | H27: PFL | I27: 48.80731676
E29: Cap PCA adjustment | G29: =base_year -> £m 13/14 prices | H29: PCAC | I29: -6.804105366
E30: Floor PCA adjustment | G30: =base_year -> £m 13/14 prices | H30: PCAF | I30: -4.935616346
C32: Baseline cost inputs during operations
E34: Decommissioning (baseline) | G34: =base_year -> £m 13/14 prices | P34: 0.0002996521659 | Q34: 0.0006008025926 | R34: 0.001518791963 | S34: 0.002472123331 | T34: 0.003462488885 | U34: 0.00449166542 | V34: 0.005561518573 | W34: 0.006674007261 | X34: 0.007831188348 | Y34: 0.009035221541 | Z34: 0.01122834798 | AA34: 0.01352467383 | AB34: 0.01592928415 | AC34: 0.01844751826 | AD34: 0.02108498243 | AE34: 0.02384756324 | AF34: 0.02674144163 | AG34: 0.02977310754 | AH34: 0.03294937546 | AI34: 0.03627740055 | AJ34: 0.03790972949 | AK34: 0.03962217661 | AL34: 0.04141874782 | AM34: 0.04330364934 | AN34: 11.32864806 | AO34: 0 | AP34: 0 | AQ34: 0 | AR34: 0 | AS34: 0 | AT34: 0 | AU34: 0 | AV34: 0 | AW34: 0 | AX34: 0 | AY34: 0 | AZ34: 0 | BA34: 0 | BB34: 0
E35: Controllable Opex (baseline) | G35: =base_year -> £m 13/14 prices | P35: 14.38379731 | Q35: 12.9621511 | R35: 12.90028773 | S35: 12.86259372 | T35: 12.81894305 | U35: 13.85613736 | V35: 13.65473761 | W35: 13.69864582 | X35: 13.74794943 | Y35: 13.78094309 | Z35: 14.10606888 | AA35: 13.90061517 | AB35: 13.94591247 | AC35: 14.00341659 | AD35: 14.03784263 | AE35: 14.36442275 | AF35: 14.16279483 | AG35: 14.2065186 | AH35: 14.26247185 | AI35: 14.29536985 | AJ35: 14.60005563 | AK35: 14.39694609 | AL35: 14.44304869 | AM35: 14.52656197 | AN35: 14.56188662 | AO35: 0 | AP35: 0 | AQ35: 0 | AR35: 0 | AS35: 0 | AT35: 0 | AU35: 0 | AV35: 0 | AW35: 0 | AX35: 0 | AY35: 0 | AZ35: 0 | BA35: 0 | BB35: 0
E36: Non-controllable Opex (baseline) | G36: =base_year -> £m 13/14 prices | H36: BNCOA | P36: 1.221798962 | Q36: 1.221798962 | R36: 1.221798962 | S36: 1.221798962 | T36: 1.221798962 | U36: 1.221798962 | V36: 1.221798962 | W36: 1.221798962 | X36: 1.221798962 | Y36: 1.221798962 | Z36: 1.221798962 | AA36: 1.221798962 | AB36: 1.221798962 | AC36: 1.221798962 | AD36: 1.221798962 | AE36: 1.221798962 | AF36: 1.221798962 | AG36: 1.221798962 | AH36: 1.221798962 | AI36: 1.221798962 | AJ36: 1.221798962 | AK36: 1.221798962 | AL36: 1.221798962 | AM36: 1.221798962 | AN36: 1.221798962 | AO36: 0 | AP36: 0 | AQ36: 0 | AR36: 0 | AS36: 0 | AT36: 0 | AU36: 0 | AV36: 0 | AW36: 0 | AX36: 0 | AY36: 0 | AZ36: 0 | BA36: 0 | BB36: 0
C38: Financial returns
E40: Cap return rate | G40: real annual % | I40: 0.0734
E41: Floor return rate | G41: real annual % | I41: 0.0042
E42: Operational discount rate | G42: real annual % | H42: ODR | I42: =(I40 + I41) / 2 -> 0.0388
C44: Base year indices
E46: Base year RPI inflation index value (CHAW) | G46: Jan 1987 = 100 | H46: UK RPI index 2013/14 | I46: 251.7333333
E47: Base year Belgium CPI inflation index value | G47: 2004 = 100 | H47: Belgium CPI index 2013/14 | I47: 122.7016667
E48: Base year average exchange rate (XUMAERS) | G48: GBP / EUR | H48: GBP2013/14 / EUR2013/14 | I48: 1.186008333
B50: Regime timings and design
C52: Model operation
C53: Note: changes to these variables may require structural changes to the model
E55: =E17 -> Regime start date | G55: date | I55: =I17 -> 2019-01-31
E56: =E18 -> Start of financial year of regime start date | G56: date | I56: =I18 -> 2019-01-01
E57: =E19 -> End of financial year of regime start date | G57: date | I57: =I19 -> 2019-12-31
E58: Days in year | G58: days | O58: =O4-O3+1 -> 365 | P58: 365 | Q58: 366 | R58: 365 | S58: 365 | T58: 365 | U58: 366 | V58: 365 | W58: 365 | X58: 365 | Y58: 366 | Z58: 365 | AA58: 365 | AB58: 365 | AC58: 366 | AD58: 365 | AE58: 365 | AF58: 365 | AG58: 366 | AH58: 365 | AI58: 365 | AJ58: 365 | AK58: 366 | AL58: 365 | AM58: 365 | AN58: 365 | AO58: 366 | AP58: 365 | AQ58: 365 | AR58: 365 | AS58: 366 | AT58: 365 | AU58: 365 | AV58: 365 | AW58: 366 | AX58: 365 | AY58: 365 | AZ58: 365 | BA58: 366 | BB58: 365
E60: Regime start date flag | G60: flag | O60: =IF($I$57=O$4,1,0) -> 0 | P60: 1 | Q60: 0 | R60: 0 | S60: 0 | T60: 0 | U60: 0 | V60: 0 | W60: 0 | X60: 0 | Y60: 0 | Z60: 0 | AA60: 0 | AB60: 0 | AC60: 0 | AD60: 0 | AE60: 0 | AF60: 0 | AG60: 0 | AH60: 0 | AI60: 0 | AJ60: 0 | AK60: 0 | AL60: 0 | AM60: 0 | AN60: 0 | AO60: 0 | AP60: 0 | AQ60: 0 | AR60: 0 | AS60: 0 | AT60: 0 | AU60: 0 | AV60: 0 | AW60: 0 | AX60: 0 | AY60: 0 | AZ60: 0 | BA60: 0 | BB60: 0
E61: Regime end date | G61: date | I61: =DATE(YEAR($I$55)+I21,MONTH($I$55),DAY($I$55))-1 -> 2044-01-30
E62: Regime end date flag | G62: flag | O62: =IF(AND($I61<O$4,$I61>=N$4),1,0) -> 0 | P62: =IF(AND($I61<P$4,$I61>=O$4),1,0) -> 0 | Q62: =IF(AND($I61<Q$4,$I61>=P$4),1,0) -> 0 | R62: 0 | S62: 0 | T62: 0 | U62: 0 | V62: 0 | W62: 0 | X62: 0 | Y62: 0 | Z62: 0 | AA62: 0 | AB62: 0 | AC62: 0 | AD62: 0 | AE62: 0 | AF62: 0 | AG62: 0 | AH62: 0 | AI62: 0 | AJ62: 0 | AK62: 0 | AL62: 0 | AM62: 0 | AN62: =IF(AND($I61<AN$4,$I61>=AM$4),1,0) -> 0 | AO62: 1 | AP62: 0 | AQ62: 0 | AR62: 0 | AS62: 0 | AT62: 0 | AU62: 0 | AV62: 0 | AW62: 0 | AX62: 0 | AY62: 0 | AZ62: 0 | BA62: 0 | BB62: 0
E63: Number of days cap term | G63: days | H63: NDC | I63: =+I57-I55+1 -> 335
E64: Partial year cap adjustment factor | G64: flag | H64: PYCt | O64: =+IF(SUM($O60:O60)<1,0,IF(O$5=1,$I$63/365.25,IF(O$5=25,1+(365.25-$I$63)/365.25,IF(O$5>25,0,1)))) -> 0 | P64: =+IF(SUM($O60:P60)<1,0,IF(P$5=1,$I$63/365.25,IF(P$5=25,1+(365.25-$I$63)/365.25,IF(P$5>25,0,1)))) -> 0.9171800137 | Q64: =+IF(SUM($O60:Q60)<1,0,IF(Q$5=1,$I$63/365.25,IF(Q$5=25,1+(365.25-$I$63)/365.25,IF(Q$5>25,0,1)))) -> 1 | R64: =+IF(SUM($O60:R60)<1,0,IF(R$5=1,$I$63/365.25,IF(R$5=25,1+(365.25-$I$63)/365.25,IF(R$5>25,0,1)))) -> 1 | S64: =+IF(SUM($O60:S60)<1,0,IF(S$5=1,$I$63/365.25,IF(S$5=25,1+(365.25-$I$63)/365.25,IF(S$5>25,0,1)))) -> 1 | T64: =+IF(SUM($O60:T60)<1,0,IF(T$5=1,$I$63/365.25,IF(T$5=25,1+(365.25-$I$63)/365.25,IF(T$5>25,0,1)))) -> 1 | U64: =+IF(SUM($O60:U60)<1,0,IF(U$5=1,$I$63/365.25,IF(U$5=25,1+(365.25-$I$63)/365.25,IF(U$5>25,0,1)))) -> 1 | V64: =+IF(SUM($O60:V60)<1,0,IF(V$5=1,$I$63/365.25,IF(V$5=25,1+(365.25-$I$63)/365.25,IF(V$5>25,0,1)))) -> 1 | W64: =+IF(SUM($O60:W60)<1,0,IF(W$5=1,$I$63/365.25,IF(W$5=25,1+(365.25-$I$63)/365.25,IF(W$5>25,0,1)))) -> 1 | X64: =+IF(SUM($O60:X60)<1,0,IF(X$5=1,$I$63/365.25,IF(X$5=25,1+(365.25-$I$63)/365.25,IF(X$5>25,0,1)))) -> 1 | Y64: =+IF(SUM($O60:Y60)<1,0,IF(Y$5=1,$I$63/365.25,IF(Y$5=25,1+(365.25-$I$63)/365.25,IF(Y$5>25,0,1)))) -> 1 | Z64: =+IF(SUM($O60:Z60)<1,0,IF(Z$5=1,$I$63/365.25,IF(Z$5=25,1+(365.25-$I$63)/365.25,IF(Z$5>25,0,1)))) -> 1 | AA64: =+IF(SUM($O60:AA60)<1,0,IF(AA$5=1,$I$63/365.25,IF(AA$5=25,1+(365.25-$I$63)/365.25,IF(AA$5>25,0,1)))) -> 1 | AB64: =+IF(SUM($O60:AB60)<1,0,IF(AB$5=1,$I$63/365.25,IF(AB$5=25,1+(365.25-$I$63)/365.25,IF(AB$5>25,0,1)))) -> 1 | AC64: =+IF(SUM($O60:AC60)<1,0,IF(AC$5=1,$I$63/365.25,IF(AC$5=25,1+(365.25-$I$63)/365.25,IF(AC$5>25,0,1)))) -> 1 | AD64: =+IF(SUM($O60:AD60)<1,0,IF(AD$5=1,$I$63/365.25,IF(AD$5=25,1+(365.25-$I$63)/365.25,IF(AD$5>25,0,1)))) -> 1 | AE64: =+IF(SUM($O60:AE60)<1,0,IF(AE$5=1,$I$63/365.25,IF(AE$5=25,1+(365.25-$I$63)/365.25,IF(AE$5>25,0,1)))) -> 1 | AF64: =+IF(SUM($O60:AF60)<1,0,IF(AF$5=1,$I$63/365.25,IF(AF$5=25,1+(365.25-$I$63)/365.25,IF(AF$5>25,0,1)))) -> 1 | AG64: =+IF(SUM($O60:AG60)<1,0,IF(AG$5=1,$I$63/365.25,IF(AG$5=25,1+(365.25-$I$63)/365.25,IF(AG$5>25,0,1)))) -> 1 | AH64: =+IF(SUM($O60:AH60)<1,0,IF(AH$5=1,$I$63/365.25,IF(AH$5=25,1+(365.25-$I$63)/365.25,IF(AH$5>25,0,1)))) -> 1 | AI64: =+IF(SUM($O60:AI60)<1,0,IF(AI$5=1,$I$63/365.25,IF(AI$5=25,1+(365.25-$I$63)/365.25,IF(AI$5>25,0,1)))) -> 1 | AJ64: =+IF(SUM($O60:AJ60)<1,0,IF(AJ$5=1,$I$63/365.25,IF(AJ$5=25,1+(365.25-$I$63)/365.25,IF(AJ$5>25,0,1)))) -> 1 | AK64: =+IF(SUM($O60:AK60)<1,0,IF(AK$5=1,$I$63/365.25,IF(AK$5=25,1+(365.25-$I$63)/365.25,IF(AK$5>25,0,1)))) -> 1 | AL64: =+IF(SUM($O60:AL60)<1,0,IF(AL$5=1,$I$63/365.25,IF(AL$5=25,1+(365.25-$I$63)/365.25,IF(AL$5>25,0,1)))) -> 1 | AM64: =+IF(SUM($O60:AM60)<1,0,IF(AM$5=1,$I$63/365.25,IF(AM$5=25,1+(365.25-$I$63)/365.25,IF(AM$5>25,0,1)))) -> 1 | AN64: =+IF(SUM($O60:AN60)<1,0,IF(AN$5=1,$I$63/365.25,IF(AN$5=25,1+(365.25-$I$63)/365.25,IF(AN$5>25,0,1)))) -> 1.082819986 | AO64: =+IF(SUM($O60:AO60)<1,0,IF(AO$5=1,$I$63/365.25,IF(AO$5=25,1+(365.25-$I$63)/365.25,IF(AO$5>25,0,1)))) -> 0 | AP64: =+IF(SUM($O60:AP60)<1,0,IF(AP$5=1,$I$63/365.25,IF(AP$5=25,1+(365.25-$I$63)/365.25,IF(AP$5>25,0,1)))) -> 0 | AQ64: =+IF(SUM($O60:AQ60)<1,0,IF(AQ$5=1,$I$63/365.25,IF(AQ$5=25,1+(365.25-$I$63)/365.25,IF(AQ$5>25,0,1)))) -> 0 | AR64: =+IF(SUM($O60:AR60)<1,0,IF(AR$5=1,$I$63/365.25,IF(AR$5=25,1+(365.25-$I$63)/365.25,IF(AR$5>25,0,1)))) -> 0 | AS64: =+IF(SUM($O60:AS60)<1,0,IF(AS$5=1,$I$63/365.25,IF(AS$5=25,1+(365.25-$I$63)/365.25,IF(AS$5>25,0,1)))) -> 0 | AT64: =+IF(SUM($O60:AT60)<1,0,IF(AT$5=1,$I$63/365.25,IF(AT$5=25,1+(365.25-$I$63)/365.25,IF(AT$5>25,0,1)))) -> 0 | AU64: =+IF(SUM($O60:AU60)<1,0,IF(AU$5=1,$I$63/365.25,IF(AU$5=25,1+(365.25-$I$63)/365.25,IF(AU$5>25,0,1)))) -> 0 | AV64: =+IF(SUM($O60:AV60)<1,0,IF(AV$5=1,$I$63/365.25,IF(AV$5=25,1+(365.25-$I$63)/365.25,IF(AV$5>25,0,1)))) -> 0 | AW64: =+IF(SUM($O60:AW60)<1,0,IF(AW$5=1,$I$63/365.25,IF(AW$5=25,1+(365.25-$I$63)/365.25,IF(AW$5>25,0,1)))) -> 0 | AX64: =+IF(SUM($O60:AX60)<1,0,IF(AX$5=1,$I$63/365.25,IF(AX$5=25,1+(365.25-$I$63)/365.25,IF(AX$5>25,0,1)))) -> 0 | AY64: =+IF(SUM($O60:AY60)<1,0,IF(AY$5=1,$I$63/365.25,IF(AY$5=25,1+(365.25-$I$63)/365.25,IF(AY$5>25,0,1)))) -> 0 | AZ64: =+IF(SUM($O60:AZ60)<1,0,IF(AZ$5=1,$I$63/365.25,IF(AZ$5=25,1+(365.25-$I$63)/365.25,IF(AZ$5>25,0,1)))) -> 0 | BA64: =+IF(SUM($O60:BA60)<1,0,IF(BA$5=1,$I$63/365.25,IF(BA$5=25,1+(365.25-$I$63)/365.25,IF(BA$5>25,0,1)))) -> 0 | BB64: =+IF(SUM($O60:BB60)<1,0,IF(BB$5=1,$I$63/365.25,IF(BB$5=25,1+(365.25-$I$63)/365.25,IF(BB$5>25,0,1)))) -> 0
E65: Partial year cap adjustment factor check | G65: check | I65: =SUM(O64:BB64)=$I$75 -> TRUE
E67: Floor start date | G67: date | I67: 2019-01-31
E68: Start of financial year of floor start date | G68: date | I68: =IF(MONTH(I67)<$I$22,DATE(YEAR(I67)-1,$I$22,1),DATE(YEAR(I67),$I$22,1)) -> 2019-01-01
E69: End of financial year of floor start date | G69: date | I69: =EOMONTH(I68,11) -> 2019-12-31
E70: Floor start date flag | G70: flag | O70: =IF(AND($I67<=O$4,$I67>=O$3),1,0) -> 0 | P70: 1 | Q70: =IF(AND($I67<=Q$4,$I67>=Q$3),1,0) -> 0 | R70: =IF(AND($I67<=R$4,$I67>=R$3),1,0) -> 0 | S70: 0 | T70: 0 | U70: 0 | V70: 0 | W70: 0 | X70: 0 | Y70: 0 | Z70: 0 | AA70: 0 | AB70: 0 | AC70: 0 | AD70: 0 | AE70: 0 | AF70: 0 | AG70: 0 | AH70: 0 | AI70: 0 | AJ70: 0 | AK70: 0 | AL70: 0 | AM70: 0 | AN70: 0 | AO70: 0 | AP70: 0 | AQ70: 0 | AR70: 0 | AS70: 0 | AT70: 0 | AU70: 0 | AV70: 0 | AW70: 0 | AX70: 0 | AY70: 0 | AZ70: 0 | BA70: 0 | BB70: 0
E71: Number of days floor term | G71: days | H71: NDF | I71: =+I69-I67+1 -> 335
E72: Partial year floor adjustment factor | G72: flag | H72: PYFt | O72: =IF(O$70=1,$I$71/365.25,IF(SUM($O70:O70)>=1,O64,0)) -> 0 | P72: =IF(P$70=1,$I$71/365.25,IF(SUM($O70:P70)>=1,P64,0)) -> 0.9171800137 | Q72: =IF(Q$70=1,$I$71/365.25,IF(SUM($O70:Q70)>=1,Q64,0)) -> 1 | R72: =IF(R$70=1,$I$71/365.25,IF(SUM($O70:R70)>=1,R64,0)) -> 1 | S72: =IF(S$70=1,$I$71/365.25,IF(SUM($O70:S70)>=1,S64,0)) -> 1 | T72: =IF(T$70=1,$I$71/365.25,IF(SUM($O70:T70)>=1,T64,0)) -> 1 | U72: =IF(U$70=1,$I$71/365.25,IF(SUM($O70:U70)>=1,U64,0)) -> 1 | V72: =IF(V$70=1,$I$71/365.25,IF(SUM($O70:V70)>=1,V64,0)) -> 1 | W72: =IF(W$70=1,$I$71/365.25,IF(SUM($O70:W70)>=1,W64,0)) -> 1 | X72: =IF(X$70=1,$I$71/365.25,IF(SUM($O70:X70)>=1,X64,0)) -> 1 | Y72: =IF(Y$70=1,$I$71/365.25,IF(SUM($O70:Y70)>=1,Y64,0)) -> 1 | Z72: =IF(Z$70=1,$I$71/365.25,IF(SUM($O70:Z70)>=1,Z64,0)) -> 1 | AA72: =IF(AA$70=1,$I$71/365.25,IF(SUM($O70:AA70)>=1,AA64,0)) -> 1 | AB72: =IF(AB$70=1,$I$71/365.25,IF(SUM($O70:AB70)>=1,AB64,0)) -> 1 | AC72: =IF(AC$70=1,$I$71/365.25,IF(SUM($O70:AC70)>=1,AC64,0)) -> 1 | AD72: =IF(AD$70=1,$I$71/365.25,IF(SUM($O70:AD70)>=1,AD64,0)) -> 1 | AE72: =IF(AE$70=1,$I$71/365.25,IF(SUM($O70:AE70)>=1,AE64,0)) -> 1 | AF72: =IF(AF$70=1,$I$71/365.25,IF(SUM($O70:AF70)>=1,AF64,0)) -> 1 | AG72: =IF(AG$70=1,$I$71/365.25,IF(SUM($O70:AG70)>=1,AG64,0)) -> 1 | AH72: =IF(AH$70=1,$I$71/365.25,IF(SUM($O70:AH70)>=1,AH64,0)) -> 1 | AI72: =IF(AI$70=1,$I$71/365.25,IF(SUM($O70:AI70)>=1,AI64,0)) -> 1 | AJ72: =IF(AJ$70=1,$I$71/365.25,IF(SUM($O70:AJ70)>=1,AJ64,0)) -> 1 | AK72: =IF(AK$70=1,$I$71/365.25,IF(SUM($O70:AK70)>=1,AK64,0)) -> 1 | AL72: =IF(AL$70=1,$I$71/365.25,IF(SUM($O70:AL70)>=1,AL64,0)) -> 1 | AM72: =IF(AM$70=1,$I$71/365.25,IF(SUM($O70:AM70)>=1,AM64,0)) -> 1 | AN72: =IF(AN$70=1,$I$71/365.25,IF(SUM($O70:AN70)>=1,AN64,0)) -> 1.082819986 | AO72: =IF(AO$70=1,$I$71/365.25,IF(SUM($O70:AO70)>=1,AO64,0)) -> 0 | AP72: =IF(AP$70=1,$I$71/365.25,IF(SUM($O70:AP70)>=1,AP64,0)) -> 0 | AQ72: =IF(AQ$70=1,$I$71/365.25,IF(SUM($O70:AQ70)>=1,AQ64,0)) -> 0 | AR72: =IF(AR$70=1,$I$71/365.25,IF(SUM($O70:AR70)>=1,AR64,0)) -> 0 | AS72: =IF(AS$70=1,$I$71/365.25,IF(SUM($O70:AS70)>=1,AS64,0)) -> 0 | AT72: =IF(AT$70=1,$I$71/365.25,IF(SUM($O70:AT70)>=1,AT64,0)) -> 0 | AU72: =IF(AU$70=1,$I$71/365.25,IF(SUM($O70:AU70)>=1,AU64,0)) -> 0 | AV72: =IF(AV$70=1,$I$71/365.25,IF(SUM($O70:AV70)>=1,AV64,0)) -> 0 | AW72: =IF(AW$70=1,$I$71/365.25,IF(SUM($O70:AW70)>=1,AW64,0)) -> 0 | AX72: =IF(AX$70=1,$I$71/365.25,IF(SUM($O70:AX70)>=1,AX64,0)) -> 0 | AY72: =IF(AY$70=1,$I$71/365.25,IF(SUM($O70:AY70)>=1,AY64,0)) -> 0 | AZ72: =IF(AZ$70=1,$I$71/365.25,IF(SUM($O70:AZ70)>=1,AZ64,0)) -> 0 | BA72: =IF(BA$70=1,$I$71/365.25,IF(SUM($O70:BA70)>=1,BA64,0)) -> 0 | BB72: =IF(BB$70=1,$I$71/365.25,IF(SUM($O70:BB70)>=1,BB64,0)) -> 0
E73: Partial year floor adjustment factor check | G73: check | I73: =SUM(O72:BB72)=$I$75 -> TRUE
E75: Number of operational years | G75: full years | I75: =I21 -> 25
E76: Assessment period length | G76: full years | I76: 5
E78: GB indexed portion of interconnector | G78: % | I78: 0.5
B80: Variables to be updated
C82: Cost items to be updated up to and beyond PCA stage (actual)
E84: Non-controllable Opex (actual) | G84: =CONCATENATE(CF_currency,"m nominal prices") -> €m nominal prices | P84: 1 | Q84: =P84*1.05 -> 1.05 | R84: =Q84*1.05 -> 1.1025 | S84: 1.157625 | T84: 1.21550625 | U84: 1.276281563 | V84: 1.340095641 | W84: 1.407100423 | X84: 1.477455444 | Y84: 1.551328216 | Z84: 1.628894627 | AA84: 1.710339358 | AB84: 1.795856326 | AC84: 1.885649142 | AD84: 1.979931599 | AE84: 2.078928179 | AF84: 2.182874588 | AG84: 2.292018318 | AH84: 2.406619234 | AI84: 2.526950195 | AJ84: 2.653297705 | AK84: 2.78596259 | AL84: 2.92526072 | AM84: 3.071523756 | AN84: 3.225099944 | AO84: 0 | AP84: 0 | AQ84: 0 | AR84: 0 | AS84: 0 | AT84: 0 | AU84: 0 | AV84: 0 | AW84: 0 | AX84: 0 | AY84: 0 | AZ84: 0 | BA84: 0 | BB84: 0
E85: Non-controllable Opex adjustment following NRA review (actual) | G85: =CONCATENATE(CF_currency,"m nominal prices") -> €m nominal prices | P85: 0 | Q85: 0 | R85: 0 | S85: 0 | T85: 0 | U85: 0 | V85: 0 | W85: 0 | X85: 0 | Y85: 0 | Z85: 0 | AA85: 0 | AB85: 0 | AC85: 0 | AD85: 0 | AE85: 0 | AF85: 0 | AG85: 0 | AH85: 0 | AI85: 0 | AJ85: 0 | AK85: 0 | AL85: 0 | AM85: 0 | AN85: 0 | AO85: 0 | AP85: 0 | AQ85: 0 | AR85: 0 | AS85: 0 | AT85: 0 | AU85: 0 | AV85: 0 | AW85: 0 | AX85: 0 | AY85: 0 | AZ85: 0 | BA85: 0 | BB85: 0
C87: Revenue items to be updated (actual)
E89: Capacity allocation revenue | G89: =CONCATENATE(CF_currency,"m nominal prices") -> €m nominal prices | H89: CARt | P89: 100 | Q89: =P89*1.02 -> 102 | R89: =Q89*1.02 -> 104.04 | S89: 106.1208 | T89: 108.243216 | U89: 110.4080803 | V89: 112.6162419 | W89: 114.8685668 | X89: 117.1659381 | Y89: 119.5092569 | Z89: 121.899442 | AA89: 124.3374308 | AB89: 126.8241795 | AC89: 129.360663 | AD89: 131.9478763 | AE89: 134.5868338 | AF89: 137.2785705 | AG89: 140.0241419 | AH89: 142.8246248 | AI89: 145.6811173 | AJ89: 148.5947396 | AK89: 151.5666344 | AL89: 154.5979671 | AM89: 157.6899264 | AN89: 160.8437249 | AO89: 0 | AP89: 0 | AQ89: 0 | AR89: 0 | AS89: 0 | AT89: 0 | AU89: 0 | AV89: 0 | AW89: 0 | AX89: 0 | AY89: 0 | AZ89: 0 | BA89: 0 | BB89: 0
E90: Ancillary services revenue (GB) | G90: €m nominal prices | H90: ASRGBt | P90: 0 | Q90: 0 | R90: 0 | S90: 0 | T90: 0 | U90: 0 | V90: 0 | W90: 0 | X90: 0 | Y90: 0 | Z90: 0 | AA90: 0 | AB90: 0 | AC90: 0 | AD90: 0 | AE90: 0 | AF90: 0 | AG90: 0 | AH90: 0 | AI90: 0 | AJ90: 0 | AK90: 0 | AL90: 0 | AM90: 0 | AN90: 0 | AO90: 0 | AP90: 0 | AQ90: 0 | AR90: 0 | AS90: 0 | AT90: 0 | AU90: 0 | AV90: 0 | AW90: 0 | AX90: 0 | AY90: 0 | AZ90: 0 | BA90: 0 | BB90: 0
E91: Ancillary services revenue (Belgium) | G91: €m nominal prices | H91: ASRBt | P91: 0 | Q91: 0 | R91: 0 | S91: 0 | T91: 0 | U91: 0 | V91: 0 | W91: 0 | X91: 0 | Y91: 0 | Z91: 0 | AA91: 0 | AB91: 0 | AC91: 0 | AD91: 0 | AE91: 0 | AF91: 0 | AG91: 0 | AH91: 0 | AI91: 0 | AJ91: 0 | AK91: 0 | AL91: 0 | AM91: 0 | AN91: 0 | AO91: 0 | AP91: 0 | AQ91: 0 | AR91: 0 | AS91: 0 | AT91: 0 | AU91: 0 | AV91: 0 | AW91: 0 | AX91: 0 | AY91: 0 | AZ91: 0 | BA91: 0 | BB91: 0
E92: Capacity market revenue | G92: €m nominal prices | H92: CMRt | P92: 0 | Q92: 0 | R92: 0 | S92: 0 | T92: 0 | U92: 0 | V92: 0 | W92: 0 | X92: 0 | Y92: 0 | Z92: 0 | AA92: 0 | AB92: 0 | AC92: 0 | AD92: 0 | AE92: 0 | AF92: 0 | AG92: 0 | AH92: 0 | AI92: 0 | AJ92: 0 | AK92: 0 | AL92: 0 | AM92: 0 | AN92: 0 | AO92: 0 | AP92: 0 | AQ92: 0 | AR92: 0 | AS92: 0 | AT92: 0 | AU92: 0 | AV92: 0 | AW92: 0 | AX92: 0 | AY92: 0 | AZ92: 0 | BA92: 0 | BB92: 0
E93: Receipts from insurance | G93: €m nominal prices | H93: RIt | P93: 0 | Q93: 0 | R93: 0 | S93: 0 | T93: 0 | U93: 0 | V93: 0 | W93: 0 | X93: 0 | Y93: 0 | Z93: 0 | AA93: 0 | AB93: 0 | AC93: 0 | AD93: 0 | AE93: 0 | AF93: 0 | AG93: 0 | AH93: 0 | AI93: 0 | AJ93: 0 | AK93: 0 | AL93: 0 | AM93: 0 | AN93: 0 | AO93: 0 | AP93: 0 | AQ93: 0 | AR93: 0 | AS93: 0 | AT93: 0 | AU93: 0 | AV93: 0 | AW93: 0 | AX93: 0 | AY93: 0 | AZ93: 0 | BA93: 0 | BB93: 0
E94: Constraint payments (GB) | G94: €m nominal prices | H94: CPGBt | P94: 0 | Q94: 0 | R94: 0 | S94: 0 | T94: 0 | U94: 0 | V94: 0 | W94: 0 | X94: 0 | Y94: 0 | Z94: 0 | AA94: 0 | AB94: 0 | AC94: 0 | AD94: 0 | AE94: 0 | AF94: 0 | AG94: 0 | AH94: 0 | AI94: 0 | AJ94: 0 | AK94: 0 | AL94: 0 | AM94: 0 | AN94: 0 | AO94: 0 | AP94: 0 | AQ94: 0 | AR94: 0 | AS94: 0 | AT94: 0 | AU94: 0 | AV94: 0 | AW94: 0 | AX94: 0 | AY94: 0 | AZ94: 0 | BA94: 0 | BB94: 0
E95: Constraint payments (Belgium) | G95: €m nominal prices | H95: CPBt | P95: 0 | Q95: 0 | R95: 0 | S95: 0 | T95: 0 | U95: 0 | V95: 0 | W95: 0 | X95: 0 | Y95: 0 | Z95: 0 | AA95: 0 | AB95: 0 | AC95: 0 | AD95: 0 | AE95: 0 | AF95: 0 | AG95: 0 | AH95: 0 | AI95: 0 | AJ95: 0 | AK95: 0 | AL95: 0 | AM95: 0 | AN95: 0 | AO95: 0 | AP95: 0 | AQ95: 0 | AR95: 0 | AS95: 0 | AT95: 0 | AU95: 0 | AV95: 0 | AW95: 0 | AX95: 0 | AY95: 0 | AZ95: 0 | BA95: 0 | BB95: 0
E96: Additional revenue (net of relevant costs) | G96: €m nominal prices | H96: ADRt | P96: 0 | Q96: 0 | R96: 0 | S96: 0 | T96: 0 | U96: 0 | V96: 0 | W96: 0 | X96: 0 | Y96: 0 | Z96: 0 | AA96: 0 | AB96: 0 | AC96: 0 | AD96: 0 | AE96: 0 | AF96: 0 | AG96: 0 | AH96: 0 | AI96: 0 | AJ96: 0 | AK96: 0 | AL96: 0 | AM96: 0 | AN96: 0 | AO96: 0 | AP96: 0 | AQ96: 0 | AR96: 0 | AS96: 0 | AT96: 0 | AU96: 0 | AV96: 0 | AW96: 0 | AX96: 0 | AY96: 0 | AZ96: 0 | BA96: 0 | BB96: 0
E97: Gross congestion revenues | G97: €m nominal prices | H97: GCRt | P97: =SUM(P89:P96) -> 100 | Q97: 102 | R97: 104.04 | S97: 106.1208 | T97: 108.243216 | U97: 110.4080803 | V97: 112.6162419 | W97: 114.8685668 | X97: 117.1659381 | Y97: 119.5092569 | Z97: =SUM(Z89:Z96) -> 121.899442 | AA97: 124.3374308 | AB97: 126.8241795 | AC97: 129.360663 | AD97: 131.9478763 | AE97: 134.5868338 | AF97: 137.2785705 | AG97: 140.0241419 | AH97: 142.8246248 | AI97: 145.6811173 | AJ97: 148.5947396 | AK97: 151.5666344 | AL97: 154.5979671 | AM97: 157.6899264 | AN97: 160.8437249 | AO97: 0 | AP97: 0 | AQ97: 0 | AR97: 0 | AS97: 0 | AT97: 0 | AU97: 0 | AV97: 0 | AW97: 0 | AX97: 0 | AY97: 0 | AZ97: 0 | BA97: 0 | BB97: 0
E99: Error accounting costs | G99: =CONCATENATE(CF_currency,"m nominal prices") -> €m nominal prices | H99: EACt | P99: 0 | Q99: 0 | R99: 0 | S99: 0 | T99: 0 | U99: 0 | V99: 0 | W99: 0 | X99: 0 | Y99: 0 | Z99: 0 | AA99: 0 | AB99: 0 | AC99: 0 | AD99: 0 | AE99: 0 | AF99: 0 | AG99: 0 | AH99: 0 | AI99: 0 | AJ99: 0 | AK99: 0 | AL99: 0 | AM99: 0 | AN99: 0 | AO99: 0 | AP99: 0 | AQ99: 0 | AR99: 0 | AS99: 0 | AT99: 0 | AU99: 0 | AV99: 0 | AW99: 0 | AX99: 0 | AY99: 0 | AZ99: 0 | BA99: 0 | BB99: 0
E100: Firmness costs | G100: =CONCATENATE(CF_currency,"m nominal prices") -> €m nominal prices | H100: FCt | P100: 0 | Q100: 0 | R100: 0 | S100: 0 | T100: 0 | U100: 0 | V100: 0 | W100: 0 | X100: 0 | Y100: 0 | Z100: 0 | AA100: 0 | AB100: 0 | AC100: 0 | AD100: 0 | AE100: 0 | AF100: 0 | AG100: 0 | AH100: 0 | AI100: 0 | AJ100: 0 | AK100: 0 | AL100: 0 | AM100: 0 | AN100: 0 | AO100: 0 | AP100: 0 | AQ100: 0 | AR100: 0 | AS100: 0 | AT100: 0 | AU100: 0 | AV100: 0 | AW100: 0 | AX100: 0 | AY100: 0 | AZ100: 0 | BA100: 0 | BB100: 0
E101: Trip contract costs | G101: =CONCATENATE(CF_currency,"m nominal prices") -> €m nominal prices | H101: TCCt | P101: 0 | Q101: 0 | R101: 0 | S101: 0 | T101: 0 | U101: 0 | V101: 0 | W101: 0 | X101: 0 | Y101: 0 | Z101: 0 | AA101: 0 | AB101: 0 | AC101: 0 | AD101: 0 | AE101: 0 | AF101: 0 | AG101: 0 | AH101: 0 | AI101: 0 | AJ101: 0 | AK101: 0 | AL101: 0 | AM101: 0 | AN101: 0 | AO101: 0 | AP101: 0 | AQ101: 0 | AR101: 0 | AS101: 0 | AT101: 0 | AU101: 0 | AV101: 0 | AW101: 0 | AX101: 0 | AY101: 0 | AZ101: 0 | BA101: 0 | BB101: 0
E102: Market related costs | G102: =CONCATENATE(CF_currency,"m nominal prices") -> €m nominal prices | H102: MRCt | P102: =SUM(P99:P101) -> 0 | Q102: 0 | R102: 0 | S102: 0 | T102: 0 | U102: 0 | V102: 0 | W102: 0 | X102: 0 | Y102: 0 | Z102: 0 | AA102: 0 | AB102: 0 | AC102: 0 | AD102: 0 | AE102: 0 | AF102: 0 | AG102: 0 | AH102: 0 | AI102: 0 | AJ102: 0 | AK102: 0 | AL102: 0 | AM102: 0 | AN102: 0 | AO102: 0 | AP102: 0 | AQ102: 0 | AR102: 0 | AS102: 0 | AT102: 0 | AU102: 0 | AV102: 0 | AW102: 0 | AX102: 0 | AY102: 0 | AZ102: =SUM(AZ99:AZ101) -> 0 | BA102: =SUM(BA99:BA101) -> 0 | BB102: 0
E104: Income adjusting event | G104: =CONCATENATE(CF_currency,"m nominal prices") -> €m nominal prices | H104: IATt | P104: 0 | Q104: 0 | R104: 0 | S104: 0 | T104: 0 | U104: 0 | V104: 0 | W104: 0 | X104: 0 | Y104: 0 | Z104: 0 | AA104: 0 | AB104: 0 | AC104: 0 | AD104: 0 | AE104: 0 | AF104: 0 | AG104: 0 | AH104: 0 | AI104: 0 | AJ104: 0 | AK104: 0 | AL104: 0 | AM104: 0 | AN104: 0 | AO104: 0 | AP104: 0 | AQ104: 0 | AR104: 0 | AS104: 0 | AT104: 0 | AU104: 0 | AV104: 0 | AW104: 0 | AX104: 0 | AY104: 0 | AZ104: 0 | BA104: 0 | BB104: 0
E106: Notional assessed revenue | G106: =CONCATENATE(CF_currency,"m nominal prices") -> €m nominal prices | H106: NARt | P106: =P97-P102-P104 -> 100 | Q106: 102 | R106: 104.04 | S106: 106.1208 | T106: 108.243216 | U106: 110.4080803 | V106: 112.6162419 | W106: 114.8685668 | X106: 117.1659381 | Y106: 119.5092569 | Z106: =Z97-Z102-Z104 -> 121.899442 | AA106: 124.3374308 | AB106: =AB97-AB102-AB104 -> 126.8241795 | AC106: 129.360663 | AD106: 131.9478763 | AE106: 134.5868338 | AF106: 137.2785705 | AG106: 140.0241419 | AH106: 142.8246248 | AI106: 145.6811173 | AJ106: 148.5947396 | AK106: 151.5666344 | AL106: 154.5979671 | AM106: 157.6899264 | AN106: 160.8437249 | AO106: 0 | AP106: 0 | AQ106: 0 | AR106: 0 | AS106: 0 | AT106: 0 | AU106: 0 | AV106: 0 | AW106: 0 | AX106: 0 | AY106: 0 | AZ106: 0 | BA106: 0 | BB106: 0
E108: Assessed revenue | G108: =CONCATENATE(CF_currency,"m nominal prices") -> €m nominal prices | H108: ARt | P108: =IF(P106>0,P106,0) -> 100 | Q108: 102 | R108: 104.04 | S108: 106.1208 | T108: 108.243216 | U108: 110.4080803 | V108: 112.6162419 | W108: 114.8685668 | X108: 117.1659381 | Y108: 119.5092569 | Z108: =IF(Z106>0,Z106,0) -> 121.899442 | AA108: 124.3374308 | AB108: =IF(AB106>0,AB106,0) -> 126.8241795 | AC108: 129.360663 | AD108: 131.9478763 | AE108: 134.5868338 | AF108: 137.2785705 | AG108: 140.0241419 | AH108: 142.8246248 | AI108: 145.6811173 | AJ108: 148.5947396 | AK108: 151.5666344 | AL108: 154.5979671 | AM108: 157.6899264 | AN108: 160.8437249 | AO108: 0 | AP108: 0 | AQ108: 0 | AR108: 0 | AS108: 0 | AT108: 0 | AU108: 0 | AV108: 0 | AW108: 0 | AX108: 0 | AY108: 0 | AZ108: 0 | BA108: 0 | BB108: 0
E110: Within-period adjustment (assessed) (negative value: payment to consumers; positive value: payment from consumers) | G110: £m nominal prices | H110: WPAt | P110: 0 | Q110: 0 | R110: 0 | S110: 0 | T110: 0 | U110: 0 | V110: 0 | W110: 0 | X110: 0 | Y110: 0 | Z110: 0 | AA110: 0 | AB110: 0 | AC110: 0 | AD110: 0 | AE110: 0 | AF110: 0 | AG110: 0 | AH110: 0 | AI110: 0 | AJ110: 0 | AK110: 0 | AL110: 0 | AM110: 0 | AN110: 0 | AO110: 0 | AP110: 0 | AQ110: 0 | AR110: 0 | AS110: 0 | AT110: 0 | AU110: 0 | AV110: 0 | AW110: 0 | AX110: 0 | AY110: 0 | AZ110: 0 | BA110: 0 | BB110: 0
B112: Adjustment to Cap and Floor levels
C114: Availability incentive
E116: Cap availability incentive ratio | G116: ratio | I116: 1
E117: Cap availability incentive target | G117: % | I117: 0.9705
E118: Cap availability incentive upper limit | G118: scalar | I118: =I116*(1+2%) -> 1.02
E119: Cap availability incentive lower limit | G119: scalar | I119: =I116*(1-2%) -> 0.98
E121: Interconnector rated capacity | G121: MW | H121: RC | I121: 1000
E122: Number of hours in relevant year | G122: hours pa | I122: =365.25*24 -> 8766
E124: Total interconnector outages during active Cap period | G124: MWh | P124: 0 | Q124: 0 | R124: 0 | S124: 0 | T124: 0 | U124: 0 | V124: 0 | W124: 0 | X124: 0 | Y124: 0 | Z124: 0 | AA124: 0 | AB124: 0 | AC124: 0 | AD124: 0 | AE124: 0 | AF124: 0 | AG124: 0 | AH124: 0 | AI124: 0 | AJ124: 0 | AK124: 0 | AL124: 0 | AM124: 0 | AN124: 0 | AO124: 0 | AP124: 0 | AQ124: 0 | AR124: 0 | AS124: 0 | AT124: 0 | AU124: 0 | AV124: 0 | AW124: 0 | AX124: 0 | AY124: 0 | AZ124: 0 | BA124: 0 | BB124: 0
E125: Allowed outages during active Cap period | G125: MWh | P125: 0 | Q125: 0 | R125: 0 | S125: 0 | T125: 0 | U125: 0 | V125: 0 | W125: 0 | X125: 0 | Y125: 0 | Z125: 0 | AA125: 0 | AB125: 0 | AC125: 0 | AD125: 0 | AE125: 0 | AF125: 0 | AG125: 0 | AH125: 0 | AI125: 0 | AJ125: 0 | AK125: 0 | AL125: 0 | AM125: 0 | AN125: 0 | AO125: 0 | AP125: 0 | AQ125: 0 | AR125: 0 | AS125: 0 | AT125: 0 | AU125: 0 | AV125: 0 | AW125: 0 | AX125: 0 | AY125: 0 | AZ125: 0 | BA125: 0 | BB125: 0
E126: Total interconnector outages less allowed outages during active Cap period | G126: MWh | H126: IOt | P126: =P124-P125 -> 0 | Q126: 0 | R126: 0 | S126: 0 | T126: 0 | U126: 0 | V126: 0 | W126: 0 | X126: 0 | Y126: 0 | Z126: 0 | AA126: 0 | AB126: 0 | AC126: 0 | AD126: 0 | AE126: 0 | AF126: 0 | AG126: 0 | AH126: 0 | AI126: 0 | AJ126: 0 | AK126: 0 | AL126: 0 | AM126: 0 | AN126: 0 | AO126: 0 | AP126: 0 | AQ126: 0 | AR126: 0 | AS126: 0 | AT126: 0 | AU126: 0 | AV126: 0 | AW126: 0 | AX126: 0 | AY126: 0 | AZ126: 0 | BA126: 0 | BB126: 0
E127: Total Interconnector outages during active Floor period | G127: MWh | P127: 0 | Q127: 0 | R127: 0 | S127: 0 | T127: 0 | U127: 0 | V127: 0 | W127: 0 | X127: 0 | Y127: 0 | Z127: 0 | AA127: 0 | AB127: 0 | AC127: 0 | AD127: 0 | AE127: 0 | AF127: 0 | AG127: 0 | AH127: 0 | AI127: 0 | AJ127: 0 | AK127: 0 | AL127: 0 | AM127: 0 | AN127: 0 | AO127: 0 | AP127: 0 | AQ127: 0 | AR127: 0 | AS127: 0 | AT127: 0 | AU127: 0 | AV127: 0 | AW127: 0 | AX127: 0 | AY127: 0 | AZ127: 0 | BA127: 0 | BB127: 0
E128: Allowed outages during active Floor period | G128: MWh | P128: 0 | Q128: 0 | R128: 0 | S128: 0 | T128: 0 | U128: 0 | V128: 0 | W128: 0 | X128: 0 | Y128: 0 | Z128: 0 | AA128: 0 | AB128: 0 | AC128: 0 | AD128: 0 | AE128: 0 | AF128: 0 | AG128: 0 | AH128: 0 | AI128: 0 | AJ128: 0 | AK128: 0 | AL128: 0 | AM128: 0 | AN128: 0 | AO128: 0 | AP128: 0 | AQ128: 0 | AR128: 0 | AS128: 0 | AT128: 0 | AU128: 0 | AV128: 0 | AW128: 0 | AX128: 0 | AY128: 0 | AZ128: 0 | BA128: 0 | BB128: 0
E129: Total interconnector outages less allowed outages during active Floor period | G129: MWh | H129: IOt | P129: =P127-P128 -> 0 | Q129: 0 | R129: 0 | S129: 0 | T129: 0 | U129: 0 | V129: 0 | W129: 0 | X129: 0 | Y129: 0 | Z129: 0 | AA129: 0 | AB129: 0 | AC129: 0 | AD129: 0 | AE129: 0 | AF129: 0 | AG129: 0 | AH129: 0 | AI129: 0 | AJ129: 0 | AK129: 0 | AL129: 0 | AM129: 0 | AN129: =AN127-AN128 -> 0 | AO129: 0 | AP129: 0 | AQ129: 0 | AR129: 0 | AS129: 0 | AT129: 0 | AU129: 0 | AV129: 0 | AW129: 0 | AX129: 0 | AY129: 0 | AZ129: 0 | BA129: 0 | BB129: 0
E130: Outages associated with exceptional events | G130: MWh | P130: 0 | Q130: 0 | R130: 0 | S130: 0 | T130: 0 | U130: 0 | V130: 0 | W130: 0 | X130: 0 | Y130: 0 | Z130: 0 | AA130: 0 | AB130: 0 | AC130: 0 | AD130: 0 | AE130: 0 | AF130: 0 | AG130: 0 | AH130: 0 | AI130: 0 | AJ130: 0 | AK130: 0 | AL130: 0 | AM130: 0 | AN130: 0 | AO130: 0 | AP130: 0 | AQ130: 0 | AR130: 0 | AS130: 0 | AT130: 0 | AU130: 0 | AV130: 0 | AW130: 0 | AX130: 0 | AY130: 0 | AZ130: 0 | BA130: 0 | BB130: 0
E132: Floor availability incentive target | G132: % | I132: 0.8
C134: Inflation and exchange rate
E136: =E46 -> Base year RPI inflation index value (CHAW) | G136: =G46 -> Jan 1987 = 100 | H136: =H46 -> UK RPI index 2013/14 | I136: =I46 -> 251.7333333
E137: =E47 -> Base year Belgium CPI inflation index value | G137: =G47 -> 2004 = 100 | H137: Belgium CPI index 2013/14 | I137: =I47 -> 122.7016667
E138: Base year average exchange rate (XUMAERS) | G138: GBP / EUR | H138: GBP2013/14 / EUR2013/14 | I138: =I48 -> 1.186008333
E140: Average UK RPI inflation index value (CHAW) | G140: =G136 -> Jan 1987 = 100 | H140: UK RPI index t | O140: 281.5833333 | P140: 289.2995228 | Q140: 297.9785085 | R140: 306.9178638 | S140: 316.1253997 | T140: 325.6091617 | U140: 335.3774365 | V140: 345.4387596 | W140: 355.8019224 | X140: 366.4759801 | Y140: 377.4702595 | Z140: 388.7943673 | AA140: 400.4581983 | AB140: 412.4719442 | AC140: 424.8461026 | AD140: 437.5914856 | AE140: 450.7192302 | AF140: 464.2408071 | AG140: 478.1680313 | AH140: 492.5130723 | AI140: 507.2884644 | AJ140: 522.5071184 | AK140: 538.1823319 | AL140: 554.3278019 | AM140: 570.9576359 | AN140: 588.086365 | AO140: 605.728956 | AP140: 623.9008247 | AQ140: 642.6178494 | AR140: 661.8963849 | AS140: 681.7532764 | AT140: 702.2058747 | AU140: 723.272051 | AV140: 744.9702125 | AW140: 767.3193189 | AX140: 790.3388984 | AY140: 814.0490654 | AZ140: 838.4705373 | BA140: 863.6246535 | BB140: 889.5333931
E141: Average Belgian CPI inflation index value | G141: =G137 -> 2004 = 100 | H141: Belgium CPI index t | O141: 131.2608333 | P141: 133.8129199 | Q141: 136.4891783 | R141: 139.2189618 | S141: 142.0033411 | T141: 144.8434079 | U141: 147.740276 | V141: 150.6950816 | W141: 153.7089832 | X141: 156.7831629 | Y141: 159.9188261 | Z141: 163.1172026 | AA141: 166.3795467 | AB141: 169.7071376 | AC141: 173.1012804 | AD141: 176.563306 | AE141: 180.0945721 | AF141: 183.6964635 | AG141: 187.3703928 | AH141: 191.1178007 | AI141: 194.9401567 | AJ141: 198.8389598 | AK141: 202.815739 | AL141: 206.8720538 | AM141: 211.0094949 | AN141: 215.2296848 | AO141: 219.5342785 | AP141: 223.924964 | AQ141: 228.4034633 | AR141: 232.9715326 | AS141: 237.6309632 | AT141: 242.3835825 | AU141: 247.2312542 | AV141: 252.1758792 | AW141: 257.2193968 | AX141: 262.3637848 | AY141: 267.6110605 | AZ141: 272.9632817 | BA141: 278.4225473 | BB141: 283.9909982
E143: Average exchange rate (XUMAERS) | G143: =G138 -> GBP / EUR | H143: GBPt/EURt | O143: 1.130441667 | P143: 1.1407 | Q143: 1.1118 | R143: 1.1118 | S143: 1.1118 | T143: 1.1118 | U143: 1.1118 | V143: 1.1118 | W143: 1.1118 | X143: 1.1118 | Y143: 1.1118 | Z143: 1.1118 | AA143: 1.1118 | AB143: 1.1118 | AC143: 1.1118 | AD143: 1.1118 | AE143: 1.1118 | AF143: 1.1118 | AG143: 1.1118 | AH143: 1.1118 | AI143: 1.1118 | AJ143: 1.1118 | AK143: 1.1118 | AL143: 1.1118 | AM143: 1.1118 | AN143: 1.1118 | AO143: 1.1118 | AP143: 1.1118 | AQ143: 1.1118 | AR143: 1.1118 | AS143: 1.1118 | AT143: 1.1118 | AU143: 1.1118 | AV143: 1.1118 | AW143: 1.1118 | AX143: 1.1118 | AY143: 1.1118 | AZ143: 1.1118 | BA143: 1.1118 | BB143: 1.1118
E145: Indexation Factor | H145: PPPIt | O145: =IF($I$78=100%,O140/$I$136,($I$78*(O140/$I$136)+(1-$I$78)*(O141/$I$137)/(O143/$I$138))) -> 1.12045872 | P145: =IF($I$78=100%,P140/$I$136,($I$78*(P140/$I$136)+(1-$I$78)*(P141/$I$137)/(P143/$I$138))) -> 1.141550857 | Q145: 1.185159625 | R145: 1.214781353 | S145: 1.245173071 | T145: 1.276355506 | U145: 1.308349959 | V145: 1.341178322 | W145: 1.374863092 | X145: 1.409427394 | Y145: 1.444894994 | Z145: 1.481290317 | AA145: 1.518638469 | AB145: 1.556965254 | AC145: 1.596297196 | AD145: 1.636661556 | AE145: 1.678086355 | AF145: 1.720600397 | AG145: 1.76423329 | AH145: 1.809015467 | AI145: 1.854978213 | AJ145: 1.902153687 | AK145: 1.950574947 | AL145: 2.000275979 | AM145: 2.051291717 | AN145: 2.103658076 | AO145: 2.157411979 | AP145: 2.212591381 | AQ145: 2.269235307 | AR145: =IF($I$78=100%,AR140/$I$136,($I$78*(AR140/$I$136)+(1-$I$78)*(AR141/$I$137)/(AR143/$I$138))) -> 2.327383874 | AS145: 2.387078328 | AT145: 2.448361075 | AU145: 2.511275712 | AV145: 2.575867064 | AW145: 2.642181218 | AX145: 2.71026556 | AY145: 2.78016881 | AZ145: 2.851941063 | BA145: 2.925633828 | BB145: 3.001300066
C147: PCA adjustment
E149: PCA/PFA adjustment - Ofgem start date | G149: date | I149: 2019-01-31
E150: Later of PCA/PFA start date and Regime start date | G150: date | I150: =MAX(I149,I55) -> 2019-01-31
E151: Later of PCA/PFA start date and Floor start date | G151: date | I151: =MAX(I149,I67) -> 2019-01-31
E152: Apply PCA adjustment factor? | G152: switch | I152: Yes
E153: PCA adjustment factor | G153: flag | O153: =IF(AND($I150<=O$4,$I150>N4),(O$4-$I150+1)/365.25,IF($I150>O$4,0,O$64)) -> 0 | P153: 0.9171800137 | Q153: =IF(AND($I150<=Q$4,$I150>P4),(Q$4-$I150+1)/365.25,IF($I150>Q$4,0,Q$64)) -> 1 | R153: =IF(AND($I150<=R$4,$I150>Q4),(R$4-$I150+1)/365.25,IF($I150>R$4,0,R$64)) -> 1 | S153: 1 | T153: 1 | U153: 1 | V153: 1 | W153: 1 | X153: 1 | Y153: 1 | Z153: 1 | AA153: 1 | AB153: 1 | AC153: 1 | AD153: 1 | AE153: 1 | AF153: 1 | AG153: 1 | AH153: 1 | AI153: 1 | AJ153: 1 | AK153: 1 | AL153: 1 | AM153: 1 | AN153: 1.082819986 | AO153: 0 | AP153: 0 | AQ153: 0 | AR153: 0 | AS153: 0 | AT153: 0 | AU153: 0 | AV153: 0 | AW153: 0 | AX153: 0 | AY153: 0 | AZ153: 0 | BA153: 0 | BB153: 0
E154: PFA adjustment factor | G154: flag | O154: =IF(AND($I151<=O$4,$I151>N$4),(O$4-$I151+1)/365.25,IF($I151>O$4,0,O$72)) -> 0 | P154: 0.9171800137 | Q154: 1 | R154: =IF(AND($I151<=R$4,$I151>Q$4),(R$4-$I151+1)/365.25,IF($I151>R$4,0,R$72)) -> 1 | S154: 1 | T154: 1 | U154: 1 | V154: 1 | W154: 1 | X154: 1 | Y154: 1 | Z154: 1 | AA154: 1 | AB154: 1 | AC154: 1 | AD154: 1 | AE154: 1 | AF154: 1 | AG154: 1 | AH154: 1 | AI154: 1 | AJ154: 1 | AK154: 1 | AL154: 1 | AM154: 1 | AN154: 1.082819986 | AO154: 0 | AP154: 0 | AQ154: 0 | AR154: 0 | AS154: 0 | AT154: 0 | AU154: 0 | AV154: 0 | AW154: 0 | AX154: 0 | AY154: 0 | AZ154: 0 | BA154: 0 | BB154: 0
C156: ORA adjustment
E158: Apply ORA adjustment factor? | G158: switch | I158: Yes
E159: ORA start date | G159: date | I159: 2030-01-01
E160: ORA start date check | G160: check | I160: =I159>DATE(YEAR(I17)+10,MONTH(I17),DAY(I17)) -> TRUE
E161: ORA Cap effective flag | G161: flag | O161: =IF(AND($I159<=O$4,$I159>N$4),(O$4-$I159+1)/365.25,IF($I159>O$4,0,O$64)) -> 0 | P161: 0 | Q161: 0 | R161: =IF(AND($I159<=R$4,$I159>Q$4),(R$4-$I159+1)/365.25,IF($I159>R$4,0,R$64)) -> 0 | S161: 0 | T161: 0 | U161: 0 | V161: 0 | W161: 0 | X161: 0 | Y161: 0 | Z161: 0 | AA161: 0.9993155373 | AB161: 1 | AC161: 1 | AD161: 1 | AE161: 1 | AF161: 1 | AG161: 1 | AH161: 1 | AI161: 1 | AJ161: 1 | AK161: 1 | AL161: 1 | AM161: 1 | AN161: 1.082819986 | AO161: 0 | AP161: 0 | AQ161: 0 | AR161: 0 | AS161: 0 | AT161: 0 | AU161: 0 | AV161: 0 | AW161: 0 | AX161: 0 | AY161: 0 | AZ161: 0 | BA161: 0 | BB161: 0
E162: ORA Floor effective flag | G162: flag | O162: =IF(AND($I159<=O$4,$I159>N$4),(O$4-$I159+1)/365.25,IF($I159>O$4,0,O$72)) -> 0 | P162: 0 | Q162: 0 | R162: =IF(AND($I159<=R$4,$I159>Q$4),(R$4-$I159+1)/365.25,IF($I159>R$4,0,R$72)) -> 0 | S162: 0 | T162: 0 | U162: 0 | V162: 0 | W162: 0 | X162: 0 | Y162: 0 | Z162: 0 | AA162: 0.9993155373 | AB162: 1 | AC162: 1 | AD162: 1 | AE162: 1 | AF162: 1 | AG162: 1 | AH162: 1 | AI162: 1 | AJ162: 1 | AK162: 1 | AL162: 1 | AM162: 1 | AN162: 1.082819986 | AO162: 0 | AP162: 0 | AQ162: 0 | AR162: 0 | AS162: 0 | AT162: 0 | AU162: 0 | AV162: 0 | AW162: 0 | AX162: 0 | AY162: 0 | AZ162: 0 | BA162: 0 | BB162: 0
E164: Revised controllable Opex at date of ORA submission | G164: =base_year -> £m 13/14 prices | P164: 13 | Q164: 13 | R164: 13 | S164: 13 | T164: 13 | U164: 13 | V164: 13 | W164: 13 | X164: 13 | Y164: 13 | Z164: 13 | AA164: 13 | AB164: 13 | AC164: 13 | AD164: 13 | AE164: 13 | AF164: 13 | AG164: 13 | AH164: 13 | AI164: 13 | AJ164: 13 | AK164: 13 | AL164: 13 | AM164: 13 | AN164: 13 | AO164: 0 | AP164: 0 | AQ164: 0 | AR164: 0 | AS164: 0 | AT164: 0 | AU164: 0 | AV164: 0 | AW164: 0 | AX164: 0 | AY164: 0 | AZ164: 0 | BA164: 0 | BB164: 0
E166: Amendment to Cap rate (to be hard-coded in this cell once ORAC adjustment finalised) | G166: =base_year -> £m 13/14 prices | H166: ORAC | I166: ='ORA Adjustment'!I27 -> -1.207815429
E167: Amendment to Floor rate (to be hard-coded in this cell once ORAF adjustment finalised) | G167: =base_year -> £m 13/14 prices | H167: ORAF | I167: ='ORA Adjustment'!I37 -> -1.263126755
C169: DC adjustments
E171: Apply DC adjustment factor? | G171: switch | I171: Yes
D173: Current DC adjustment
E175: Current DC start date | G175: date | I175: 2041-06-01
E176: Current DC Cap and Floor effective flag | G176: flag | P176: =IF(AND($I175<=P$4,$I175>O$4),(P$4-$I175+1)/365.25,IF($I175>P$4,0,P$64)) -> 0 | Q176: 0 | R176: =IF(AND($I175<=R$4,$I175>Q$4),(R$4-$I175+1)/365.25,IF($I175>R$4,0,R$64)) -> 0 | S176: 0 | T176: 0 | U176: 0 | V176: 0 | W176: 0 | X176: 0 | Y176: 0 | Z176: 0 | AA176: 0 | AB176: 0 | AC176: 0 | AD176: 0 | AE176: 0 | AF176: 0 | AG176: 0 | AH176: 0 | AI176: 0 | AJ176: 0 | AK176: =IF(AND($I175<=AK$4,$I175>AJ$4),(AK$4-$I175+1)/365.25,IF($I175>AK$4,0,AK$64)) -> 0 | AL176: 0.5859000684 | AM176: 1 | AN176: 1.082819986 | AO176: 0 | AP176: 0 | AQ176: 0 | AR176: 0 | AS176: 0 | AT176: 0 | AU176: 0 | AV176: 0 | AW176: 0 | AX176: 0 | AY176: 0 | AZ176: 0 | BA176: 0 | BB176: 0
E178: Decommissioning Costs (latest view at submission of DCt adjustment) | G178: =base_year -> £m 13/14 prices | P178: 0.01 | Q178: 0.01 | R178: 0.01 | S178: 0.01 | T178: 0.01 | U178: 0.01 | V178: 0.01 | W178: 0.01 | X178: 0.01 | Y178: 0.01 | Z178: 0.01 | AA178: 0.01 | AB178: 0.01 | AC178: 0.01 | AD178: 0.01 | AE178: 0.01 | AF178: 0.01 | AG178: 0.01 | AH178: 0.01 | AI178: 0.01 | AJ178: 0.01 | AK178: 0.01 | AL178: 0.01 | AM178: 0.01 | AN178: 15 | AO178: 0 | AP178: 0 | AQ178: 0 | AR178: 0 | AS178: 0 | AT178: 0 | AU178: 0 | AV178: 0 | AW178: 0 | AX178: 0 | AY178: 0 | AZ178: 0 | BA178: 0 | BB178: 0
E180: Amendment to Cap rate (to be hard-coded in section below once DCC adjustment finalised) | G180: =base_year -> £m 13/14 prices | H180: DCCt | I180: ='DC Adjustment'!I67 -> -0.4818016523
E181: Amendment to Floor rate (to be hard-coded in section below once DCF adjustment finalised) | G181: =base_year -> £m 13/14 prices | H181: DCFt | I181: ='DC Adjustment'!I80 -> -0.3778553506
D183: Previous DC adjustments
E185: First DCt adjustment
E186: Start date | G186: date | I186: 2038-06-01
E187: Cap value | G187: =base_year -> £m 13/14 prices | I187: 1.269872319
E188: Floor value | G188: =base_year -> £m 13/14 prices | I188: 1.474327566
E190: Second DCt adjustment
E191: Start date | G191: date
E192: Cap value | G192: =base_year -> £m 13/14 prices
E193: Floor value | G193: =base_year -> £m 13/14 prices
E195: Third DCt adjustment
E196: Start date | G196: date
E197: Cap value | G197: =base_year -> £m 13/14 prices
E198: Floor value | G198: =base_year -> £m 13/14 prices
E200: Fourth DCt adjustment
E201: Start date | G201: date
E202: Cap value | G202: =base_year -> £m 13/14 prices
E203: Floor value | G203: =base_year -> £m 13/14 prices
E205: Latest start date | G205: date | I205: =MAX(I201,I196,I191,I186) -> 2038-06-01
E207: DCt adjustment flags - Cap and Floor | H207: start | I207: end
E208: First DCCt adjustment | G208: flag | H208: =IF(I186="","",I186) -> 2038-06-01 | I208: =IF(H208="","",IF(H209="",$I$175-1,H209-1)) -> 2041-05-31 | P208: =IF(OR($H208>P$4,$I208<=O$4),0,IF(AND($H208<=O$4,$I208>=P$4,Q$62=1),($I208-P$3)/365.25,IF(AND($H208<=O$4,$I208>=P$4),1,IF(AND($H208<=O$4,$I208<P$4,P$62=0),($I208-O$4)/365.25,IF(AND($H208<=P$4,$I208>=P$4,Q$62=1),($I208-$H208+1)/365.25,IF(AND($H208<=P$4,$I208>=P$4),(P$4-$H208+1)/365.25,IF(AND($H208<=P$4,$I208<P$4,P$62=0),($I208-$H208+1)/365.25,0))))))) -> 0 | Q208: =IF(OR($H208>Q$4,$I208<=P$4),0,IF(AND($H208<=P$4,$I208>=Q$4,R$62=1),($I208-Q$3)/365.25,IF(AND($H208<=P$4,$I208>=Q$4),1,IF(AND($H208<=P$4,$I208<Q$4,Q$62=0),($I208-P$4)/365.25,IF(AND($H208<=Q$4,$I208>=Q$4,R$62=1),($I208-$H208+1)/365.25,IF(AND($H208<=Q$4,$I208>=Q$4),(Q$4-$H208+1)/365.25,IF(AND($H208<=Q$4,$I208<Q$4,Q$62=0),($I208-$H208+1)/365.25,0))))))) -> 0 | R208: 0 | S208: 0 | T208: 0 | U208: 0 | V208: 0 | W208: 0 | X208: 0 | Y208: 0 | Z208: 0 | AA208: 0 | AB208: 0 | AC208: 0 | AD208: 0 | AE208: 0 | AF208: 0 | AG208: 0 | AH208: 0 | AI208: 0.5859000684 | AJ208: 1 | AK208: 1 | AL208: 0.4134154689 | AM208: 0 | AN208: 0 | AO208: 0 | AP208: 0 | AQ208: 0 | AR208: 0 | AS208: 0 | AT208: 0 | AU208: 0 | AV208: 0 | AW208: 0 | AX208: 0 | AY208: 0 | AZ208: 0 | BA208: 0 | BB208: 0
E209: Second DCCt adjustment | G209: flag | H209: =IF(I191="","",I191) ->  | I209: =IF(H209="","",IF(H210="",$I$175-1,H210-1)) ->  | P209: =IF(OR($H209>P$4,$I209<=O$4),0,IF(AND($H209<=O$4,$I209>=P$4,Q$62=1),($I209-P$3)/365.25,IF(AND($H209<=O$4,$I209>=P$4),1,IF(AND($H209<=O$4,$I209<P$4,P$62=0),($I209-O$4)/365.25,IF(AND($H209<=P$4,$I209>=P$4,Q$62=1),($I209-$H209+1)/365.25,IF(AND($H209<=P$4,$I209>=P$4),(P$4-$H209+1)/365.25,IF(AND($H209<=P$4,$I209<P$4,P$62=0),($I209-$H209+1)/365.25,0))))))) -> 0 | Q209: =IF(OR($H209>Q$4,$I209<=P$4),0,IF(AND($H209<=P$4,$I209>=Q$4,R$62=1),($I209-Q$3)/365.25,IF(AND($H209<=P$4,$I209>=Q$4),1,IF(AND($H209<=P$4,$I209<Q$4,Q$62=0),($I209-P$4)/365.25,IF(AND($H209<=Q$4,$I209>=Q$4,R$62=1),($I209-$H209+1)/365.25,IF(AND($H209<=Q$4,$I209>=Q$4),(Q$4-$H209+1)/365.25,IF(AND($H209<=Q$4,$I209<Q$4,Q$62=0),($I209-$H209+1)/365.25,0))))))) -> 0 | R209: 0 | S209: 0 | T209: 0 | U209: 0 | V209: 0 | W209: 0 | X209: 0 | Y209: 0 | Z209: 0 | AA209: 0 | AB209: 0 | AC209: 0 | AD209: 0 | AE209: 0 | AF209: 0 | AG209: 0 | AH209: 0 | AI209: 0 | AJ209: 0 | AK209: 0 | AL209: 0 | AM209: 0 | AN209: 0 | AO209: 0 | AP209: 0 | AQ209: 0 | AR209: 0 | AS209: 0 | AT209: 0 | AU209: 0 | AV209: 0 | AW209: 0 | AX209: 0 | AY209: 0 | AZ209: 0 | BA209: 0 | BB209: 0
E210: Third DCCt adjustment | G210: flag | H210: =IF(I196="","",I196) ->  | I210: =IF(H210="","",IF(H211="",$I$175-1,H211-1)) ->  | P210: =IF(OR($H210>P$4,$I210<=O$4),0,IF(AND($H210<=O$4,$I210>=P$4,Q$62=1),($I210-P$3)/365.25,IF(AND($H210<=O$4,$I210>=P$4),1,IF(AND($H210<=O$4,$I210<P$4,P$62=0),($I210-O$4)/365.25,IF(AND($H210<=P$4,$I210>=P$4,Q$62=1),($I210-$H210+1)/365.25,IF(AND($H210<=P$4,$I210>=P$4),(P$4-$H210+1)/365.25,IF(AND($H210<=P$4,$I210<P$4,P$62=0),($I210-$H210+1)/365.25,0))))))) -> 0 | Q210: =IF(OR($H210>Q$4,$I210<=P$4),0,IF(AND($H210<=P$4,$I210>=Q$4,R$62=1),($I210-Q$3)/365.25,IF(AND($H210<=P$4,$I210>=Q$4),1,IF(AND($H210<=P$4,$I210<Q$4,Q$62=0),($I210-P$4)/365.25,IF(AND($H210<=Q$4,$I210>=Q$4,R$62=1),($I210-$H210+1)/365.25,IF(AND($H210<=Q$4,$I210>=Q$4),(Q$4-$H210+1)/365.25,IF(AND($H210<=Q$4,$I210<Q$4,Q$62=0),($I210-$H210+1)/365.25,0))))))) -> 0 | R210: 0 | S210: 0 | T210: 0 | U210: 0 | V210: 0 | W210: 0 | X210: 0 | Y210: 0 | Z210: 0 | AA210: 0 | AB210: 0 | AC210: 0 | AD210: 0 | AE210: 0 | AF210: 0 | AG210: 0 | AH210: 0 | AI210: 0 | AJ210: 0 | AK210: 0 | AL210: 0 | AM210: 0 | AN210: 0 | AO210: 0 | AP210: 0 | AQ210: 0 | AR210: 0 | AS210: 0 | AT210: 0 | AU210: 0 | AV210: 0 | AW210: 0 | AX210: 0 | AY210: 0 | AZ210: 0 | BA210: 0 | BB210: 0
E211: Fourth DCCt adjustment | G211: flag | H211: =IF(I201="","",I201) ->  | I211: =IF(H211="","",$I$175-1) ->  | P211: =IF(OR($H211>P$4,$I211<=O$4),0,IF(AND($H211<=O$4,$I211>=P$4,Q$62=1),($I211-P$3)/365.25,IF(AND($H211<=O$4,$I211>=P$4),1,IF(AND($H211<=O$4,$I211<P$4,P$62=0),($I211-O$4)/365.25,IF(AND($H211<=P$4,$I211>=P$4,Q$62=1),($I211-$H211+1)/365.25,IF(AND($H211<=P$4,$I211>=P$4),(P$4-$H211+1)/365.25,IF(AND($H211<=P$4,$I211<P$4,P$62=0),($I211-$H211+1)/365.25,0))))))) -> 0 | Q211: =IF(OR($H211>Q$4,$I211<=P$4),0,IF(AND($H211<=P$4,$I211>=Q$4,R$62=1),($I211-Q$3)/365.25,IF(AND($H211<=P$4,$I211>=Q$4),1,IF(AND($H211<=P$4,$I211<Q$4,Q$62=0),($I211-P$4)/365.25,IF(AND($H211<=Q$4,$I211>=Q$4,R$62=1),($I211-$H211+1)/365.25,IF(AND($H211<=Q$4,$I211>=Q$4),(Q$4-$H211+1)/365.25,IF(AND($H211<=Q$4,$I211<Q$4,Q$62=0),($I211-$H211+1)/365.25,0))))))) -> 0 | R211: 0 | S211: 0 | T211: 0 | U211: 0 | V211: 0 | W211: 0 | X211: 0 | Y211: 0 | Z211: 0 | AA211: 0 | AB211: 0 | AC211: 0 | AD211: 0 | AE211: 0 | AF211: 0 | AG211: 0 | AH211: 0 | AI211: 0 | AJ211: 0 | AK211: 0 | AL211: 0 | AM211: 0 | AN211: 0 | AO211: 0 | AP211: 0 | AQ211: 0 | AR211: 0 | AS211: 0 | AT211: 0 | AU211: 0 | AV211: 0 | AW211: 0 | AX211: 0 | AY211: 0 | AZ211: 0 | BA211: 0 | BB211: 0
C213: Checks
E215: No relevant values input into individual years outside of the operational period | G215: check | O215: =IF(AND(O5>0,O5<=op_years),TRUE,SUM(O34:O36,O84:O85,O89:O96,O99:O101,O104,O110,O124:O125,O127:O128,O130,O164,O178)=0) -> TRUE | P215: TRUE | Q215: TRUE | R215: TRUE | S215: TRUE | T215: TRUE | U215: TRUE | V215: TRUE | W215: TRUE | X215: TRUE | Y215: TRUE | Z215: TRUE | AA215: TRUE | AB215: TRUE | AC215: TRUE | AD215: TRUE | AE215: TRUE | AF215: TRUE | AG215: TRUE | AH215: TRUE | AI215: TRUE | AJ215: TRUE | AK215: TRUE | AL215: TRUE | AM215: TRUE | AN215: TRUE | AO215: TRUE | AP215: TRUE | AQ215: TRUE | AR215: TRUE | AS215: TRUE | AT215: TRUE | AU215: TRUE | AV215: TRUE | AW215: TRUE | AX215: TRUE | AY215: TRUE | AZ215: TRUE | BA215: TRUE | BB215: TRUE
E216: No relevant values input into any year outside of the operational period | G216: check | I216: =SUM(O216:BB216)=0 -> TRUE | O216: =IF(O215=TRUE,0,1) -> 0 | P216: =IF(P215=TRUE,0,1) -> 0 | Q216: 0 | R216: 0 | S216: 0 | T216: 0 | U216: 0 | V216: 0 | W216: 0 | X216: 0 | Y216: 0 | Z216: 0 | AA216: 0 | AB216: 0 | AC216: 0 | AD216: 0 | AE216: 0 | AF216: 0 | AG216: 0 | AH216: 0 | AI216: 0 | AJ216: 0 | AK216: 0 | AL216: 0 | AM216: 0 | AN216: 0 | AO216: 0 | AP216: 0 | AQ216: 0 | AR216: 0 | AS216: 0 | AT216: 0 | AU216: 0 | AV216: 0 | AW216: 0 | AX216: 0 | AY216: 0 | AZ216: 0 | BA216: 0 | BB216: 0
B218: End of sheet

Sheet Data Sources
A1: Data Sources | H1: Licence | I1: Reference row in
E2: Parameter | G2: Units | H2: Terminology | I2: Inputs sheet | K2: Source | L2: Link
B4: Items transferred from CFFM1
C6: Base year and currency
E8: =Inputs!E11 -> Base year price term | I8: =ROW(Inputs!E11) -> 11 | K8: NLCFFM1
E9: =Inputs!E13 -> Currency of revenue and cost inputs | I9: =ROW(Inputs!E13) -> 13 | K9: NLCFFM1
C11: Model operation
E13: =Inputs!E17 -> Regime start date | G13: =Inputs!G17 -> date | I13: =ROW(Inputs!I17) -> 17 | K13: NLCFFM1
E14: =Inputs!E18 -> Start of financial year of regime start date | G14: =Inputs!G18 -> date | I14: =ROW(Inputs!I18) -> 18 | K14: NLCFFM1
E15: =Inputs!E21 -> Number of operational years | G15: =Inputs!G21 -> full years | I15: =ROW(Inputs!I21) -> 21 | K15: NLCFFM1
C17: Cap and Floor levels
E19: =Inputs!E26 -> Preliminary Cap including tax | G19: =Inputs!G26 -> £m 13/14 prices | H19: =Inputs!H26 -> PCL | I19: =ROW(Inputs!E26) -> 26 | K19: NLCFFM1
E20: =Inputs!E27 -> Preliminary Floor including tax | G20: =Inputs!G27 -> £m 13/14 prices | H20: =Inputs!H27 -> PFL | I20: =ROW(Inputs!E27) -> 27 | K20: NLCFFM1
E21: =Inputs!E29 -> Cap PCA adjustment | G21: =Inputs!G29 -> £m 13/14 prices | H21: =Inputs!H29 -> PCAC | I21: =ROW(Inputs!E29) -> 29 | K21: NLCFFM1
E22: =Inputs!E30 -> Floor PCA adjustment | G22: =Inputs!G30 -> £m 13/14 prices | H22: =Inputs!H30 -> PCAF | I22: =ROW(Inputs!E30) -> 30 | K22: NLCFFM1
C24: Baseline cost inputs during operations
E26: =Inputs!E34 -> Decommissioning (baseline) | G26: =Inputs!G34 -> £m 13/14 prices | I26: =ROW(Inputs!E34) -> 34 | K26: NLCFFM1
E27: =Inputs!E35 -> Controllable Opex (baseline) | G27: =Inputs!G35 -> £m 13/14 prices | I27: =ROW(Inputs!E35) -> 35 | K27: NLCFFM1
E28: =Inputs!E36 -> Non-controllable Opex (baseline) | G28: =Inputs!G36 -> £m 13/14 prices | H28: =Inputs!H36 -> BNCOA | I28: =ROW(Inputs!E36) -> 36 | K28: NLCFFM1
C30: Financial returns
E32: =Inputs!E40 -> Cap return rate | G32: =Inputs!G40 -> real annual % | I32: =ROW(Inputs!E40) -> 40 | K32: NLCFFM1
E33: =Inputs!E41 -> Floor return rate | G33: =Inputs!G41 -> real annual % | I33: =ROW(Inputs!E41) -> 41 | K33: NLCFFM1
E34: =Inputs!E42 -> Operational discount rate | G34: =Inputs!G42 -> real annual % | H34: =Inputs!H42 -> ODR | I34: =ROW(Inputs!E42) -> 42 | K34: NLCFFM1
C36: Base year indices
E38: =Inputs!E46 -> Base year RPI inflation index value (CHAW) | G38: =Inputs!G46 -> Jan 1987 = 100 | H38: =Inputs!H46 -> UK RPI index 2013/14 | I38: =ROW(Inputs!E46) -> 46 | K38: NLCFFM1
E39: =Inputs!E47 -> Base year Belgium CPI inflation index value | G39: =Inputs!G47 -> 2004 = 100 | H39: =Inputs!H47 -> Belgium CPI index 2013/14 | I39: =ROW(Inputs!E47) -> 47 | K39: NLCFFM1
E40: =Inputs!E48 -> Base year average exchange rate (XUMAERS) | G40: =Inputs!G48 -> GBP / EUR | H40: =Inputs!H48 -> GBP2013/14 / EUR2013/14 | I40: =ROW(Inputs!E48) -> 48 | K40: NLCFFM1
B42: Regime timings and design
C44: Model operation
E46: =Inputs!E67 -> Floor start date | G46: =Inputs!G67 -> date | I46: =ROW(Inputs!E67) -> 67 | K46: NLCFFM1
E47: =Inputs!E76 -> Assessment period length | G47: =Inputs!G76 -> full years | I47: =ROW(Inputs!E76) -> 76 | K47: NLCFFM1
E48: =Inputs!E78 -> GB indexed portion of interconnector | G48: =Inputs!G78 -> % | I48: =ROW(Inputs!E78) -> 78 | K48: NLCFFM1
B50: Variables to be updated
C52: Cost items to be updated up to and beyond PCA stage (actual)
E54: =Inputs!E84 -> Non-controllable Opex (actual) | G54: =Inputs!G84 -> €m nominal prices | I54: =ROW(Inputs!E84) -> 84 | K54: Illustrative
E55: =Inputs!E85 -> Non-controllable Opex adjustment following NRA review (actual) | G55: =Inputs!G85 -> €m nominal prices | I55: =ROW(Inputs!E85) -> 85 | K55: Illustrative
C57: Revenue items to be updated (actual)
E59: =Inputs!E89 -> Capacity allocation revenue | G59: =Inputs!G89 -> €m nominal prices | H59: =Inputs!H89 -> CARt | I59: =ROW(Inputs!E89) -> 89 | K59: Illustrative
E60: =Inputs!E90 -> Ancillary services revenue (GB) | G60: =Inputs!G90 -> €m nominal prices | H60: =Inputs!H90 -> ASRGBt | I60: =ROW(Inputs!E90) -> 90 | K60: Illustrative
E61: =Inputs!E91 -> Ancillary services revenue (Belgium) | G61: =Inputs!G91 -> €m nominal prices | H61: =Inputs!H91 -> ASRBt | I61: =ROW(Inputs!E91) -> 91 | K61: Illustrative
E62: =Inputs!E92 -> Capacity market revenue | G62: =Inputs!G92 -> €m nominal prices | H62: =Inputs!H92 -> CMRt | I62: =ROW(Inputs!E92) -> 92 | K62: Illustrative
E63: =Inputs!E93 -> Receipts from insurance | G63: =Inputs!G93 -> €m nominal prices | H63: =Inputs!H93 -> RIt | I63: =ROW(Inputs!E93) -> 93 | K63: Illustrative
E64: =Inputs!E94 -> Constraint payments (GB) | G64: =Inputs!G94 -> €m nominal prices | H64: =Inputs!H94 -> CPGBt | I64: =ROW(Inputs!E94) -> 94 | K64: Illustrative
E65: =Inputs!E95 -> Constraint payments (Belgium) | G65: =Inputs!G95 -> €m nominal prices | H65: =Inputs!H95 -> CPBt | I65: =ROW(Inputs!E95) -> 95 | K65: Illustrative
E66: =Inputs!E96 -> Additional revenue (net of relevant costs) | G66: =Inputs!G96 -> €m nominal prices | H66: =Inputs!H96 -> ADRt | I66: =ROW(Inputs!E96) -> 96 | K66: Illustrative
E67: =Inputs!E99 -> Error accounting costs | G67: =Inputs!G99 -> €m nominal prices | H67: =Inputs!H99 -> EACt | I67: =ROW(Inputs!E99) -> 99 | K67: Illustrative
E68: =Inputs!E100 -> Firmness costs | G68: =Inputs!G100 -> €m nominal prices | H68: =Inputs!H100 -> FCt | I68: =ROW(Inputs!E100) -> 100 | K68: Illustrative
E69: =Inputs!E101 -> Trip contract costs | G69: =Inputs!G101 -> €m nominal prices | H69: =Inputs!H101 -> TCCt | I69: =ROW(Inputs!E101) -> 101 | K69: Illustrative
E70: =Inputs!E104 -> Income adjusting event | G70: =Inputs!G104 -> €m nominal prices | H70: =Inputs!H104 -> IATt | I70: =ROW(Inputs!E104) -> 104 | K70: Illustrative
E71: =Inputs!E110 -> Within-period adjustment (assessed) (negative value: payment to consumers; positive value: payment from consumers) | G71: =Inputs!G110 -> £m nominal prices | H71: =Inputs!H110 -> WPAt | I71: =ROW(Inputs!E110) -> 110 | K71: Illustrative
B73: Adjustment to Cap and Floor levels
C75: Availability incentive
E77: =Inputs!E116 -> Cap availability incentive ratio | G77: =Inputs!G116 -> ratio | I77: =ROW(Inputs!E116) -> 116 | K77: Illustrative
E78: =Inputs!E117 -> Cap availability incentive target | G78: =Inputs!G117 -> % | I78: =ROW(Inputs!E117) -> 117 | K78: Illustrative
E79: =Inputs!E118 -> Cap availability incentive upper limit | G79: =Inputs!G118 -> scalar | I79: =ROW(Inputs!E118) -> 118 | K79: Illustrative
E80: =Inputs!E119 -> Cap availability incentive lower limit | G80: =Inputs!G119 -> scalar | I80: =ROW(Inputs!E119) -> 119 | K80: Illustrative
E81: =Inputs!E121 -> Interconnector rated capacity | G81: =Inputs!G121 -> MW | H81: =Inputs!H121 -> RC | I81: =ROW(Inputs!E121) -> 121 | K81: Illustrative
E82: =Inputs!E132 -> Floor availability incentive target | G82: =Inputs!G132 -> % | I82: =ROW(Inputs!E132) -> 132 | K82: Illustrative
C84: Inflation & exchange rate
E86: =Inputs!E140 -> Average UK RPI inflation index value (CHAW) | G86: =Inputs!G140 -> Jan 1987 = 100 | H86: =Inputs!H140 -> UK RPI index t | I86: =ROW(Inputs!E140) -> 140 | K86: Illustrative
E87: =Inputs!E141 -> Average Belgian CPI inflation index value | G87: =Inputs!G141 -> 2004 = 100 | H87: =Inputs!H141 -> Belgium CPI index t | I87: =ROW(Inputs!E141) -> 141 | K87: Illustrative
E88: =Inputs!E143 -> Average exchange rate (XUMAERS) | G88: =Inputs!G143 -> GBP / EUR | H88: =Inputs!H143 -> GBPt/EURt | I88: =ROW(Inputs!E143) -> 143 | K88: Illustrative
C90: PCA adjustment
E92: =Inputs!E149 -> PCA/PFA adjustment - Ofgem start date | G92: =Inputs!G149 -> date | I92: =ROW(Inputs!E149) -> 149 | K92: Illustrative
E93: =Inputs!E152 -> Apply PCA adjustment factor? | G93: =Inputs!G152 -> switch | I93: =ROW(Inputs!E152) -> 152 | K93: Illustrative
C95: ORA adjustment
E97: =Inputs!E158 -> Apply ORA adjustment factor? | G97: =Inputs!G158 -> switch | I97: =ROW(Inputs!E158) -> 158 | K97: Illustrative
E98: =Inputs!E159 -> ORA start date | G98: =Inputs!G159 -> date | I98: =ROW(Inputs!I159) -> 159 | K98: Illustrative
E99: =Inputs!E164 -> Revised controllable Opex at date of ORA submission | G99: =Inputs!G164 -> £m 13/14 prices | I99: =ROW(Inputs!E164) -> 164 | K99: Illustrative
C101: DC adjustments
E103: =Inputs!E171 -> Apply DC adjustment factor? | G103: =Inputs!G171 -> switch | I103: =ROW(Inputs!E171) -> 171 | K103: Illustrative
D105: Current DC adjustment
E107: =Inputs!E175 -> Current DC start date | G107: =Inputs!G175 -> date | I107: =ROW(Inputs!E175) -> 175 | K107: Illustrative
E108: =Inputs!E178 -> Decommissioning Costs (latest view at submission of DCt adjustment) | G108: =Inputs!G178 -> £m 13/14 prices | I108: =ROW(Inputs!E178) -> 178 | K108: Illustrative
D110: Previous DC adjustments
E112: =Inputs!E185 -> First DCt adjustment
E113: =Inputs!E186 -> Start date | G113: =Inputs!G186 -> date | I113: =ROW(Inputs!E186) -> 186 | K113: Illustrative
E114: =Inputs!E187 -> Cap value | G114: =Inputs!G187 -> £m 13/14 prices | I114: =ROW(Inputs!E187) -> 187 | K114: Illustrative
E115: =Inputs!E188 -> Floor value | G115: =Inputs!G188 -> £m 13/14 prices | I115: =ROW(Inputs!E188) -> 188 | K115: Illustrative
E116: =Inputs!E190 -> Second DCt adjustment
E117: =Inputs!E191 -> Start date | G117: =Inputs!G191 -> date | I117: =ROW(Inputs!E191) -> 191 | K117: Illustrative
E118: =Inputs!E192 -> Cap value | G118: =Inputs!G192 -> £m 13/14 prices | I118: =ROW(Inputs!E192) -> 192 | K118: Illustrative
E119: =Inputs!E193 -> Floor value | G119: =Inputs!G193 -> £m 13/14 prices | I119: =ROW(Inputs!E193) -> 193 | K119: Illustrative
E120: =Inputs!E195 -> Third DCt adjustment
E121: =Inputs!E196 -> Start date | G121: =Inputs!G196 -> date | I121: =ROW(Inputs!E196) -> 196 | K121: Illustrative
E122: =Inputs!E197 -> Cap value | G122: =Inputs!G197 -> £m 13/14 prices | I122: =ROW(Inputs!E197) -> 197 | K122: Illustrative
E123: =Inputs!E198 -> Floor value | G123: =Inputs!G198 -> £m 13/14 prices | I123: =ROW(Inputs!E198) -> 198 | K123: Illustrative
E124: =Inputs!E200 -> Fourth DCt adjustment
E125: =Inputs!E201 -> Start date | G125: =Inputs!G201 -> date | I125: =ROW(Inputs!E201) -> 201 | K125: Illustrative
E126: =Inputs!E202 -> Cap value | G126: =Inputs!G202 -> £m 13/14 prices | I126: =ROW(Inputs!E202) -> 202 | K126: Illustrative
E127: =Inputs!E203 -> Floor value | G127: =Inputs!G203 -> £m 13/14 prices | I127: =ROW(Inputs!E203) -> 203 | K127: Illustrative
B129: End of sheet | K129: `

Sheet Costs & Revenue
A1: Costs & Revenue | H1: Licence
E2: Parameter | G2: Units | H2: Terminology | I2: Constant | O2: Annual values
E3: Year commencing | O3: =INDEX(Inputs!$O3:$BB3,MATCH('Costs & Revenue'!O$5,Inputs!$O$5:$BB$5,0)) -> 2018-01-01 | P3: =INDEX(Inputs!$O3:$BB3,MATCH('Costs & Revenue'!P$5,Inputs!$O$5:$BB$5,0)) -> 2019-01-01 | Q3: =INDEX(Inputs!$O3:$BB3,MATCH('Costs & Revenue'!Q$5,Inputs!$O$5:$BB$5,0)) -> 2020-01-01 | R3: =INDEX(Inputs!$O3:$BB3,MATCH('Costs & Revenue'!R$5,Inputs!$O$5:$BB$5,0)) -> 2021-01-01 | S3: =INDEX(Inputs!$O3:$BB3,MATCH('Costs & Revenue'!S$5,Inputs!$O$5:$BB$5,0)) -> 2022-01-01 | T3: =INDEX(Inputs!$O3:$BB3,MATCH('Costs & Revenue'!T$5,Inputs!$O$5:$BB$5,0)) -> 2023-01-01 | U3: =INDEX(Inputs!$O3:$BB3,MATCH('Costs & Revenue'!U$5,Inputs!$O$5:$BB$5,0)) -> 2024-01-01 | V3: =INDEX(Inputs!$O3:$BB3,MATCH('Costs & Revenue'!V$5,Inputs!$O$5:$BB$5,0)) -> 2025-01-01 | W3: =INDEX(Inputs!$O3:$BB3,MATCH('Costs & Revenue'!W$5,Inputs!$O$5:$BB$5,0)) -> 2026-01-01 | X3: =INDEX(Inputs!$O3:$BB3,MATCH('Costs & Revenue'!X$5,Inputs!$O$5:$BB$5,0)) -> 2027-01-01 | Y3: =INDEX(Inputs!$O3:$BB3,MATCH('Costs & Revenue'!Y$5,Inputs!$O$5:$BB$5,0)) -> 2028-01-01 | Z3: =INDEX(Inputs!$O3:$BB3,MATCH('Costs & Revenue'!Z$5,Inputs!$O$5:$BB$5,0)) -> 2029-01-01 | AA3: =INDEX(Inputs!$O3:$BB3,MATCH('Costs & Revenue'!AA$5,Inputs!$O$5:$BB$5,0)) -> 2030-01-01 | AB3: =INDEX(Inputs!$O3:$BB3,MATCH('Costs & Revenue'!AB$5,Inputs!$O$5:$BB$5,0)) -> 2031-01-01 | AC3: =INDEX(Inputs!$O3:$BB3,MATCH('Costs & Revenue'!AC$5,Inputs!$O$5:$BB$5,0)) -> 2032-01-01 | AD3: =INDEX(Inputs!$O3:$BB3,MATCH('Costs & Revenue'!AD$5,Inputs!$O$5:$BB$5,0)) -> 2033-01-01 | AE3: =INDEX(Inputs!$O3:$BB3,MATCH('Costs & Revenue'!AE$5,Inputs!$O$5:$BB$5,0)) -> 2034-01-01 | AF3: =INDEX(Inputs!$O3:$BB3,MATCH('Costs & Revenue'!AF$5,Inputs!$O$5:$BB$5,0)) -> 2035-01-01 | AG3: =INDEX(Inputs!$O3:$BB3,MATCH('Costs & Revenue'!AG$5,Inputs!$O$5:$BB$5,0)) -> 2036-01-01 | AH3: =INDEX(Inputs!$O3:$BB3,MATCH('Costs & Revenue'!AH$5,Inputs!$O$5:$BB$5,0)) -> 2037-01-01 | AI3: =INDEX(Inputs!$O3:$BB3,MATCH('Costs & Revenue'!AI$5,Inputs!$O$5:$BB$5,0)) -> 2038-01-01 | AJ3: =INDEX(Inputs!$O3:$BB3,MATCH('Costs & Revenue'!AJ$5,Inputs!$O$5:$BB$5,0)) -> 2039-01-01 | AK3: =INDEX(Inputs!$O3:$BB3,MATCH('Costs & Revenue'!AK$5,Inputs!$O$5:$BB$5,0)) -> 2040-01-01 | AL3: =INDEX(Inputs!$O3:$BB3,MATCH('Costs & Revenue'!AL$5,Inputs!$O$5:$BB$5,0)) -> 2041-01-01 | AM3: =INDEX(Inputs!$O3:$BB3,MATCH('Costs & Revenue'!AM$5,Inputs!$O$5:$BB$5,0)) -> 2042-01-01 | AN3: =INDEX(Inputs!$O3:$BB3,MATCH('Costs & Revenue'!AN$5,Inputs!$O$5:$BB$5,0)) -> 2043-01-01 | AO3: =INDEX(Inputs!$O3:$BB3,MATCH('Costs & Revenue'!AO$5,Inputs!$O$5:$BB$5,0)) -> 2044-01-01 | AP3: =INDEX(Inputs!$O3:$BB3,MATCH('Costs & Revenue'!AP$5,Inputs!$O$5:$BB$5,0)) -> 2045-01-01 | AQ3: =INDEX(Inputs!$O3:$BB3,MATCH('Costs & Revenue'!AQ$5,Inputs!$O$5:$BB$5,0)) -> 2046-01-01 | AR3: =INDEX(Inputs!$O3:$BB3,MATCH('Costs & Revenue'!AR$5,Inputs!$O$5:$BB$5,0)) -> 2047-01-01 | AS3: =INDEX(Inputs!$O3:$BB3,MATCH('Costs & Revenue'!AS$5,Inputs!$O$5:$BB$5,0)) -> 2048-01-01 | AT3: =INDEX(Inputs!$O3:$BB3,MATCH('Costs & Revenue'!AT$5,Inputs!$O$5:$BB$5,0)) -> 2049-01-01 | AU3: =INDEX(Inputs!$O3:$BB3,MATCH('Costs & Revenue'!AU$5,Inputs!$O$5:$BB$5,0)) -> 2050-01-01 | AV3: =INDEX(Inputs!$O3:$BB3,MATCH('Costs & Revenue'!AV$5,Inputs!$O$5:$BB$5,0)) -> 2051-01-01 | AW3: =INDEX(Inputs!$O3:$BB3,MATCH('Costs & Revenue'!AW$5,Inputs!$O$5:$BB$5,0)) -> 2052-01-01 | AX3: =INDEX(Inputs!$O3:$BB3,MATCH('Costs & Revenue'!AX$5,Inputs!$O$5:$BB$5,0)) -> 2053-01-01 | AY3: =INDEX(Inputs!$O3:$BB3,MATCH('Costs & Revenue'!AY$5,Inputs!$O$5:$BB$5,0)) -> 2054-01-01 | AZ3: =INDEX(Inputs!$O3:$BB3,MATCH('Costs & Revenue'!AZ$5,Inputs!$O$5:$BB$5,0)) -> 2055-01-01 | BA3: =INDEX(Inputs!$O3:$BB3,MATCH('Costs & Revenue'!BA$5,Inputs!$O$5:$BB$5,0)) -> 2056-01-01 | BB3: =INDEX(Inputs!$O3:$BB3,MATCH('Costs & Revenue'!BB$5,Inputs!$O$5:$BB$5,0)) -> 2057-01-01
E4: Year ending | O4: =INDEX(Inputs!$O4:$BB4,MATCH('Costs & Revenue'!O$5,Inputs!$O$5:$BB$5,0)) -> 2018-12-31 | P4: =INDEX(Inputs!$O4:$BB4,MATCH('Costs & Revenue'!P$5,Inputs!$O$5:$BB$5,0)) -> 2019-12-31 | Q4: =INDEX(Inputs!$O4:$BB4,MATCH('Costs & Revenue'!Q$5,Inputs!$O$5:$BB$5,0)) -> 2020-12-31 | R4: =INDEX(Inputs!$O4:$BB4,MATCH('Costs & Revenue'!R$5,Inputs!$O$5:$BB$5,0)) -> 2021-12-31 | S4: =INDEX(Inputs!$O4:$BB4,MATCH('Costs & Revenue'!S$5,Inputs!$O$5:$BB$5,0)) -> 2022-12-31 | T4: =INDEX(Inputs!$O4:$BB4,MATCH('Costs & Revenue'!T$5,Inputs!$O$5:$BB$5,0)) -> 2023-12-31 | U4: =INDEX(Inputs!$O4:$BB4,MATCH('Costs & Revenue'!U$5,Inputs!$O$5:$BB$5,0)) -> 2024-12-31 | V4: =INDEX(Inputs!$O4:$BB4,MATCH('Costs & Revenue'!V$5,Inputs!$O$5:$BB$5,0)) -> 2025-12-31 | W4: =INDEX(Inputs!$O4:$BB4,MATCH('Costs & Revenue'!W$5,Inputs!$O$5:$BB$5,0)) -> 2026-12-31 | X4: =INDEX(Inputs!$O4:$BB4,MATCH('Costs & Revenue'!X$5,Inputs!$O$5:$BB$5,0)) -> 2027-12-31 | Y4: =INDEX(Inputs!$O4:$BB4,MATCH('Costs & Revenue'!Y$5,Inputs!$O$5:$BB$5,0)) -> 2028-12-31 | Z4: =INDEX(Inputs!$O4:$BB4,MATCH('Costs & Revenue'!Z$5,Inputs!$O$5:$BB$5,0)) -> 2029-12-31 | AA4: =INDEX(Inputs!$O4:$BB4,MATCH('Costs & Revenue'!AA$5,Inputs!$O$5:$BB$5,0)) -> 2030-12-31 | AB4: =INDEX(Inputs!$O4:$BB4,MATCH('Costs & Revenue'!AB$5,Inputs!$O$5:$BB$5,0)) -> 2031-12-31 | AC4: =INDEX(Inputs!$O4:$BB4,MATCH('Costs & Revenue'!AC$5,Inputs!$O$5:$BB$5,0)) -> 2032-12-31 | AD4: =INDEX(Inputs!$O4:$BB4,MATCH('Costs & Revenue'!AD$5,Inputs!$O$5:$BB$5,0)) -> 2033-12-31 | AE4: =INDEX(Inputs!$O4:$BB4,MATCH('Costs & Revenue'!AE$5,Inputs!$O$5:$BB$5,0)) -> 2034-12-31 | AF4: =INDEX(Inputs!$O4:$BB4,MATCH('Costs & Revenue'!AF$5,Inputs!$O$5:$BB$5,0)) -> 2035-12-31 | AG4: =INDEX(Inputs!$O4:$BB4,MATCH('Costs & Revenue'!AG$5,Inputs!$O$5:$BB$5,0)) -> 2036-12-31 | AH4: =INDEX(Inputs!$O4:$BB4,MATCH('Costs & Revenue'!AH$5,Inputs!$O$5:$BB$5,0)) -> 2037-12-31 | AI4: =INDEX(Inputs!$O4:$BB4,MATCH('Costs & Revenue'!AI$5,Inputs!$O$5:$BB$5,0)) -> 2038-12-31 | AJ4: =INDEX(Inputs!$O4:$BB4,MATCH('Costs & Revenue'!AJ$5,Inputs!$O$5:$BB$5,0)) -> 2039-12-31 | AK4: =INDEX(Inputs!$O4:$BB4,MATCH('Costs & Revenue'!AK$5,Inputs!$O$5:$BB$5,0)) -> 2040-12-31 | AL4: =INDEX(Inputs!$O4:$BB4,MATCH('Costs & Revenue'!AL$5,Inputs!$O$5:$BB$5,0)) -> 2041-12-31 | AM4: =INDEX(Inputs!$O4:$BB4,MATCH('Costs & Revenue'!AM$5,Inputs!$O$5:$BB$5,0)) -> 2042-12-31 | AN4: =INDEX(Inputs!$O4:$BB4,MATCH('Costs & Revenue'!AN$5,Inputs!$O$5:$BB$5,0)) -> 2043-12-31 | AO4: =INDEX(Inputs!$O4:$BB4,MATCH('Costs & Revenue'!AO$5,Inputs!$O$5:$BB$5,0)) -> 2044-12-31 | AP4: =INDEX(Inputs!$O4:$BB4,MATCH('Costs & Revenue'!AP$5,Inputs!$O$5:$BB$5,0)) -> 2045-12-31 | AQ4: =INDEX(Inputs!$O4:$BB4,MATCH('Costs & Revenue'!AQ$5,Inputs!$O$5:$BB$5,0)) -> 2046-12-31 | AR4: =INDEX(Inputs!$O4:$BB4,MATCH('Costs & Revenue'!AR$5,Inputs!$O$5:$BB$5,0)) -> 2047-12-31 | AS4: =INDEX(Inputs!$O4:$BB4,MATCH('Costs & Revenue'!AS$5,Inputs!$O$5:$BB$5,0)) -> 2048-12-31 | AT4: =INDEX(Inputs!$O4:$BB4,MATCH('Costs & Revenue'!AT$5,Inputs!$O$5:$BB$5,0)) -> 2049-12-31 | AU4: =INDEX(Inputs!$O4:$BB4,MATCH('Costs & Revenue'!AU$5,Inputs!$O$5:$BB$5,0)) -> 2050-12-31 | AV4: =INDEX(Inputs!$O4:$BB4,MATCH('Costs & Revenue'!AV$5,Inputs!$O$5:$BB$5,0)) -> 2051-12-31 | AW4: =INDEX(Inputs!$O4:$BB4,MATCH('Costs & Revenue'!AW$5,Inputs!$O$5:$BB$5,0)) -> 2052-12-31 | AX4: =INDEX(Inputs!$O4:$BB4,MATCH('Costs & Revenue'!AX$5,Inputs!$O$5:$BB$5,0)) -> 2053-12-31 | AY4: =INDEX(Inputs!$O4:$BB4,MATCH('Costs & Revenue'!AY$5,Inputs!$O$5:$BB$5,0)) -> 2054-12-31 | AZ4: =INDEX(Inputs!$O4:$BB4,MATCH('Costs & Revenue'!AZ$5,Inputs!$O$5:$BB$5,0)) -> 2055-12-31 | BA4: =INDEX(Inputs!$O4:$BB4,MATCH('Costs & Revenue'!BA$5,Inputs!$O$5:$BB$5,0)) -> 2056-12-31 | BB4: =INDEX(Inputs!$O4:$BB4,MATCH('Costs & Revenue'!BB$5,Inputs!$O$5:$BB$5,0)) -> 2057-12-31
E5: Operational year | O5: =Inputs!O5 -> 0 | P5: =Inputs!P5 -> 1 | Q5: =Inputs!Q5 -> 2 | R5: =Inputs!R5 -> 3 | S5: =Inputs!S5 -> 4 | T5: =Inputs!T5 -> 5 | U5: =Inputs!U5 -> 6 | V5: =Inputs!V5 -> 7 | W5: =Inputs!W5 -> 8 | X5: =Inputs!X5 -> 9 | Y5: =Inputs!Y5 -> 10 | Z5: =Inputs!Z5 -> 11 | AA5: =Inputs!AA5 -> 12 | AB5: =Inputs!AB5 -> 13 | AC5: =Inputs!AC5 -> 14 | AD5: =Inputs!AD5 -> 15 | AE5: =Inputs!AE5 -> 16 | AF5: =Inputs!AF5 -> 17 | AG5: =Inputs!AG5 -> 18 | AH5: =Inputs!AH5 -> 19 | AI5: =Inputs!AI5 -> 20 | AJ5: =Inputs!AJ5 -> 21 | AK5: =Inputs!AK5 -> 22 | AL5: =Inputs!AL5 -> 23 | AM5: =Inputs!AM5 -> 24 | AN5: =Inputs!AN5 -> 25 | AO5: =Inputs!AO5 -> 26 | AP5: =Inputs!AP5 -> 27 | AQ5: =Inputs!AQ5 -> 28 | AR5: =Inputs!AR5 -> 29 | AS5: =Inputs!AS5 -> 30 | AT5: =Inputs!AT5 -> 31 | AU5: =Inputs!AU5 -> 32 | AV5: =Inputs!AV5 -> 33 | AW5: =Inputs!AW5 -> 34 | AX5: =Inputs!AX5 -> 35 | AY5: =Inputs!AY5 -> 36 | AZ5: =Inputs!AZ5 -> 37 | BA5: =Inputs!BA5 -> 38 | BB5: =Inputs!BB5 -> 39
B7: Costs
C9: Baseline costs
E11: =Inputs!E34 -> Decommissioning (baseline) | G11: =base_year -> £m 13/14 prices | P11: =INDEX(Inputs!$P$34:$BB$34,MATCH('Costs & Revenue'!P$5,Inputs!$P$5:$BB$5,0)) -> 0.0002996521659 | Q11: =INDEX(Inputs!$P$34:$BB$34,MATCH('Costs & Revenue'!Q$5,Inputs!$P$5:$BB$5,0)) -> 0.0006008025926 | R11: =INDEX(Inputs!$P$34:$BB$34,MATCH('Costs & Revenue'!R$5,Inputs!$P$5:$BB$5,0)) -> 0.001518791963 | S11: =INDEX(Inputs!$P$34:$BB$34,MATCH('Costs & Revenue'!S$5,Inputs!$P$5:$BB$5,0)) -> 0.002472123331 | T11: =INDEX(Inputs!$P$34:$BB$34,MATCH('Costs & Revenue'!T$5,Inputs!$P$5:$BB$5,0)) -> 0.003462488885 | U11: =INDEX(Inputs!$P$34:$BB$34,MATCH('Costs & Revenue'!U$5,Inputs!$P$5:$BB$5,0)) -> 0.00449166542 | V11: =INDEX(Inputs!$P$34:$BB$34,MATCH('Costs & Revenue'!V$5,Inputs!$P$5:$BB$5,0)) -> 0.005561518573 | W11: =INDEX(Inputs!$P$34:$BB$34,MATCH('Costs & Revenue'!W$5,Inputs!$P$5:$BB$5,0)) -> 0.006674007261 | X11: =INDEX(Inputs!$P$34:$BB$34,MATCH('Costs & Revenue'!X$5,Inputs!$P$5:$BB$5,0)) -> 0.007831188348 | Y11: =INDEX(Inputs!$P$34:$BB$34,MATCH('Costs & Revenue'!Y$5,Inputs!$P$5:$BB$5,0)) -> 0.009035221541 | Z11: =INDEX(Inputs!$P$34:$BB$34,MATCH('Costs & Revenue'!Z$5,Inputs!$P$5:$BB$5,0)) -> 0.01122834798 | AA11: =INDEX(Inputs!$P$34:$BB$34,MATCH('Costs & Revenue'!AA$5,Inputs!$P$5:$BB$5,0)) -> 0.01352467383 | AB11: =INDEX(Inputs!$P$34:$BB$34,MATCH('Costs & Revenue'!AB$5,Inputs!$P$5:$BB$5,0)) -> 0.01592928415 | AC11: =INDEX(Inputs!$P$34:$BB$34,MATCH('Costs & Revenue'!AC$5,Inputs!$P$5:$BB$5,0)) -> 0.01844751826 | AD11: =INDEX(Inputs!$P$34:$BB$34,MATCH('Costs & Revenue'!AD$5,Inputs!$P$5:$BB$5,0)) -> 0.02108498243 | AE11: =INDEX(Inputs!$P$34:$BB$34,MATCH('Costs & Revenue'!AE$5,Inputs!$P$5:$BB$5,0)) -> 0.02384756324 | AF11: =INDEX(Inputs!$P$34:$BB$34,MATCH('Costs & Revenue'!AF$5,Inputs!$P$5:$BB$5,0)) -> 0.02674144163 | AG11: =INDEX(Inputs!$P$34:$BB$34,MATCH('Costs & Revenue'!AG$5,Inputs!$P$5:$BB$5,0)) -> 0.02977310754 | AH11: =INDEX(Inputs!$P$34:$BB$34,MATCH('Costs & Revenue'!AH$5,Inputs!$P$5:$BB$5,0)) -> 0.03294937546 | AI11: =INDEX(Inputs!$P$34:$BB$34,MATCH('Costs & Revenue'!AI$5,Inputs!$P$5:$BB$5,0)) -> 0.03627740055 | AJ11: =INDEX(Inputs!$P$34:$BB$34,MATCH('Costs & Revenue'!AJ$5,Inputs!$P$5:$BB$5,0)) -> 0.03790972949 | AK11: =INDEX(Inputs!$P$34:$BB$34,MATCH('Costs & Revenue'!AK$5,Inputs!$P$5:$BB$5,0)) -> 0.03962217661 | AL11: =INDEX(Inputs!$P$34:$BB$34,MATCH('Costs & Revenue'!AL$5,Inputs!$P$5:$BB$5,0)) -> 0.04141874782 | AM11: =INDEX(Inputs!$P$34:$BB$34,MATCH('Costs & Revenue'!AM$5,Inputs!$P$5:$BB$5,0)) -> 0.04330364934 | AN11: =INDEX(Inputs!$P$34:$BB$34,MATCH('Costs & Revenue'!AN$5,Inputs!$P$5:$BB$5,0)) -> 11.32864806 | AO11: =INDEX(Inputs!$P$34:$BB$34,MATCH('Costs & Revenue'!AO$5,Inputs!$P$5:$BB$5,0)) -> 0 | AP11: =INDEX(Inputs!$P$34:$BB$34,MATCH('Costs & Revenue'!AP$5,Inputs!$P$5:$BB$5,0)) -> 0 | AQ11: =INDEX(Inputs!$P$34:$BB$34,MATCH('Costs & Revenue'!AQ$5,Inputs!$P$5:$BB$5,0)) -> 0 | AR11: =INDEX(Inputs!$P$34:$BB$34,MATCH('Costs & Revenue'!AR$5,Inputs!$P$5:$BB$5,0)) -> 0 | AS11: =INDEX(Inputs!$P$34:$BB$34,MATCH('Costs & Revenue'!AS$5,Inputs!$P$5:$BB$5,0)) -> 0 | AT11: =INDEX(Inputs!$P$34:$BB$34,MATCH('Costs & Revenue'!AT$5,Inputs!$P$5:$BB$5,0)) -> 0 | AU11: =INDEX(Inputs!$P$34:$BB$34,MATCH('Costs & Revenue'!AU$5,Inputs!$P$5:$BB$5,0)) -> 0 | AV11: =INDEX(Inputs!$P$34:$BB$34,MATCH('Costs & Revenue'!AV$5,Inputs!$P$5:$BB$5,0)) -> 0 | AW11: =INDEX(Inputs!$P$34:$BB$34,MATCH('Costs & Revenue'!AW$5,Inputs!$P$5:$BB$5,0)) -> 0 | AX11: =INDEX(Inputs!$P$34:$BB$34,MATCH('Costs & Revenue'!AX$5,Inputs!$P$5:$BB$5,0)) -> 0 | AY11: =INDEX(Inputs!$P$34:$BB$34,MATCH('Costs & Revenue'!AY$5,Inputs!$P$5:$BB$5,0)) -> 0 | AZ11: =INDEX(Inputs!$P$34:$BB$34,MATCH('Costs & Revenue'!AZ$5,Inputs!$P$5:$BB$5,0)) -> 0 | BA11: =INDEX(Inputs!$P$34:$BB$34,MATCH('Costs & Revenue'!BA$5,Inputs!$P$5:$BB$5,0)) -> 0 | BB11: =INDEX(Inputs!$P$34:$BB$34,MATCH('Costs & Revenue'!BB$5,Inputs!$P$5:$BB$5,0)) -> 0
E12: =Inputs!E35 -> Controllable Opex (baseline) | G12: =base_year -> £m 13/14 prices | P12: =INDEX(Inputs!$P$35:$BB$35,MATCH('Costs & Revenue'!P$5,Inputs!$P$5:$BB$5,0)) -> 14.38379731 | Q12: =INDEX(Inputs!$P$35:$BB$35,MATCH('Costs & Revenue'!Q$5,Inputs!$P$5:$BB$5,0)) -> 12.9621511 | R12: =INDEX(Inputs!$P$35:$BB$35,MATCH('Costs & Revenue'!R$5,Inputs!$P$5:$BB$5,0)) -> 12.90028773 | S12: =INDEX(Inputs!$P$35:$BB$35,MATCH('Costs & Revenue'!S$5,Inputs!$P$5:$BB$5,0)) -> 12.86259372 | T12: =INDEX(Inputs!$P$35:$BB$35,MATCH('Costs & Revenue'!T$5,Inputs!$P$5:$BB$5,0)) -> 12.81894305 | U12: =INDEX(Inputs!$P$35:$BB$35,MATCH('Costs & Revenue'!U$5,Inputs!$P$5:$BB$5,0)) -> 13.85613736 | V12: =INDEX(Inputs!$P$35:$BB$35,MATCH('Costs & Revenue'!V$5,Inputs!$P$5:$BB$5,0)) -> 13.65473761 | W12: =INDEX(Inputs!$P$35:$BB$35,MATCH('Costs & Revenue'!W$5,Inputs!$P$5:$BB$5,0)) -> 13.69864582 | X12: =INDEX(Inputs!$P$35:$BB$35,MATCH('Costs & Revenue'!X$5,Inputs!$P$5:$BB$5,0)) -> 13.74794943 | Y12: =INDEX(Inputs!$P$35:$BB$35,MATCH('Costs & Revenue'!Y$5,Inputs!$P$5:$BB$5,0)) -> 13.78094309 | Z12: =INDEX(Inputs!$P$35:$BB$35,MATCH('Costs & Revenue'!Z$5,Inputs!$P$5:$BB$5,0)) -> 14.10606888 | AA12: =INDEX(Inputs!$P$35:$BB$35,MATCH('Costs & Revenue'!AA$5,Inputs!$P$5:$BB$5,0)) -> 13.90061517 | AB12: =INDEX(Inputs!$P$35:$BB$35,MATCH('Costs & Revenue'!AB$5,Inputs!$P$5:$BB$5,0)) -> 13.94591247 | AC12: =INDEX(Inputs!$P$35:$BB$35,MATCH('Costs & Revenue'!AC$5,Inputs!$P$5:$BB$5,0)) -> 14.00341659 | AD12: =INDEX(Inputs!$P$35:$BB$35,MATCH('Costs & Revenue'!AD$5,Inputs!$P$5:$BB$5,0)) -> 14.03784263 | AE12: =INDEX(Inputs!$P$35:$BB$35,MATCH('Costs & Revenue'!AE$5,Inputs!$P$5:$BB$5,0)) -> 14.36442275 | AF12: =INDEX(Inputs!$P$35:$BB$35,MATCH('Costs & Revenue'!AF$5,Inputs!$P$5:$BB$5,0)) -> 14.16279483 | AG12: =INDEX(Inputs!$P$35:$BB$35,MATCH('Costs & Revenue'!AG$5,Inputs!$P$5:$BB$5,0)) -> 14.2065186 | AH12: =INDEX(Inputs!$P$35:$BB$35,MATCH('Costs & Revenue'!AH$5,Inputs!$P$5:$BB$5,0)) -> 14.26247185 | AI12: =INDEX(Inputs!$P$35:$BB$35,MATCH('Costs & Revenue'!AI$5,Inputs!$P$5:$BB$5,0)) -> 14.29536985 | AJ12: =INDEX(Inputs!$P$35:$BB$35,MATCH('Costs & Revenue'!AJ$5,Inputs!$P$5:$BB$5,0)) -> 14.60005563 | AK12: =INDEX(Inputs!$P$35:$BB$35,MATCH('Costs & Revenue'!AK$5,Inputs!$P$5:$BB$5,0)) -> 14.39694609 | AL12: =INDEX(Inputs!$P$35:$BB$35,MATCH('Costs & Revenue'!AL$5,Inputs!$P$5:$BB$5,0)) -> 14.44304869 | AM12: =INDEX(Inputs!$P$35:$BB$35,MATCH('Costs & Revenue'!AM$5,Inputs!$P$5:$BB$5,0)) -> 14.52656197 | AN12: =INDEX(Inputs!$P$35:$BB$35,MATCH('Costs & Revenue'!AN$5,Inputs!$P$5:$BB$5,0)) -> 14.56188662 | AO12: =INDEX(Inputs!$P$35:$BB$35,MATCH('Costs & Revenue'!AO$5,Inputs!$P$5:$BB$5,0)) -> 0 | AP12: =INDEX(Inputs!$P$35:$BB$35,MATCH('Costs & Revenue'!AP$5,Inputs!$P$5:$BB$5,0)) -> 0 | AQ12: =INDEX(Inputs!$P$35:$BB$35,MATCH('Costs & Revenue'!AQ$5,Inputs!$P$5:$BB$5,0)) -> 0 | AR12: =INDEX(Inputs!$P$35:$BB$35,MATCH('Costs & Revenue'!AR$5,Inputs!$P$5:$BB$5,0)) -> 0 | AS12: =INDEX(Inputs!$P$35:$BB$35,MATCH('Costs & Revenue'!AS$5,Inputs!$P$5:$BB$5,0)) -> 0 | AT12: =INDEX(Inputs!$P$35:$BB$35,MATCH('Costs & Revenue'!AT$5,Inputs!$P$5:$BB$5,0)) -> 0 | AU12: =INDEX(Inputs!$P$35:$BB$35,MATCH('Costs & Revenue'!AU$5,Inputs!$P$5:$BB$5,0)) -> 0 | AV12: =INDEX(Inputs!$P$35:$BB$35,MATCH('Costs & Revenue'!AV$5,Inputs!$P$5:$BB$5,0)) -> 0 | AW12: =INDEX(Inputs!$P$35:$BB$35,MATCH('Costs & Revenue'!AW$5,Inputs!$P$5:$BB$5,0)) -> 0 | AX12: =INDEX(Inputs!$P$35:$BB$35,MATCH('Costs & Revenue'!AX$5,Inputs!$P$5:$BB$5,0)) -> 0 | AY12: =INDEX(Inputs!$P$35:$BB$35,MATCH('Costs & Revenue'!AY$5,Inputs!$P$5:$BB$5,0)) -> 0 | AZ12: =INDEX(Inputs!$P$35:$BB$35,MATCH('Costs & Revenue'!AZ$5,Inputs!$P$5:$BB$5,0)) -> 0 | BA12: =INDEX(Inputs!$P$35:$BB$35,MATCH('Costs & Revenue'!BA$5,Inputs!$P$5:$BB$5,0)) -> 0 | BB12: =INDEX(Inputs!$P$35:$BB$35,MATCH('Costs & Revenue'!BB$5,Inputs!$P$5:$BB$5,0)) -> 0
E13: =Inputs!E36 -> Non-controllable Opex (baseline) | G13: =base_year -> £m 13/14 prices | H13: BNCOA | P13: =INDEX(Inputs!$P$36:$BB$36,MATCH('Costs & Revenue'!P$5,Inputs!$P$5:$BB$5,0)) -> 1.221798962 | Q13: =INDEX(Inputs!$P$36:$BB$36,MATCH('Costs & Revenue'!Q$5,Inputs!$P$5:$BB$5,0)) -> 1.221798962 | R13: =INDEX(Inputs!$P$36:$BB$36,MATCH('Costs & Revenue'!R$5,Inputs!$P$5:$BB$5,0)) -> 1.221798962 | S13: =INDEX(Inputs!$P$36:$BB$36,MATCH('Costs & Revenue'!S$5,Inputs!$P$5:$BB$5,0)) -> 1.221798962 | T13: =INDEX(Inputs!$P$36:$BB$36,MATCH('Costs & Revenue'!T$5,Inputs!$P$5:$BB$5,0)) -> 1.221798962 | U13: =INDEX(Inputs!$P$36:$BB$36,MATCH('Costs & Revenue'!U$5,Inputs!$P$5:$BB$5,0)) -> 1.221798962 | V13: =INDEX(Inputs!$P$36:$BB$36,MATCH('Costs & Revenue'!V$5,Inputs!$P$5:$BB$5,0)) -> 1.221798962 | W13: =INDEX(Inputs!$P$36:$BB$36,MATCH('Costs & Revenue'!W$5,Inputs!$P$5:$BB$5,0)) -> 1.221798962 | X13: =INDEX(Inputs!$P$36:$BB$36,MATCH('Costs & Revenue'!X$5,Inputs!$P$5:$BB$5,0)) -> 1.221798962 | Y13: =INDEX(Inputs!$P$36:$BB$36,MATCH('Costs & Revenue'!Y$5,Inputs!$P$5:$BB$5,0)) -> 1.221798962 | Z13: =INDEX(Inputs!$P$36:$BB$36,MATCH('Costs & Revenue'!Z$5,Inputs!$P$5:$BB$5,0)) -> 1.221798962 | AA13: =INDEX(Inputs!$P$36:$BB$36,MATCH('Costs & Revenue'!AA$5,Inputs!$P$5:$BB$5,0)) -> 1.221798962 | AB13: =INDEX(Inputs!$P$36:$BB$36,MATCH('Costs & Revenue'!AB$5,Inputs!$P$5:$BB$5,0)) -> 1.221798962 | AC13: =INDEX(Inputs!$P$36:$BB$36,MATCH('Costs & Revenue'!AC$5,Inputs!$P$5:$BB$5,0)) -> 1.221798962 | AD13: =INDEX(Inputs!$P$36:$BB$36,MATCH('Costs & Revenue'!AD$5,Inputs!$P$5:$BB$5,0)) -> 1.221798962 | AE13: =INDEX(Inputs!$P$36:$BB$36,MATCH('Costs & Revenue'!AE$5,Inputs!$P$5:$BB$5,0)) -> 1.221798962 | AF13: =INDEX(Inputs!$P$36:$BB$36,MATCH('Costs & Revenue'!AF$5,Inputs!$P$5:$BB$5,0)) -> 1.221798962 | AG13: =INDEX(Inputs!$P$36:$BB$36,MATCH('Costs & Revenue'!AG$5,Inputs!$P$5:$BB$5,0)) -> 1.221798962 | AH13: =INDEX(Inputs!$P$36:$BB$36,MATCH('Costs & Revenue'!AH$5,Inputs!$P$5:$BB$5,0)) -> 1.221798962 | AI13: =INDEX(Inputs!$P$36:$BB$36,MATCH('Costs & Revenue'!AI$5,Inputs!$P$5:$BB$5,0)) -> 1.221798962 | AJ13: =INDEX(Inputs!$P$36:$BB$36,MATCH('Costs & Revenue'!AJ$5,Inputs!$P$5:$BB$5,0)) -> 1.221798962 | AK13: =INDEX(Inputs!$P$36:$BB$36,MATCH('Costs & Revenue'!AK$5,Inputs!$P$5:$BB$5,0)) -> 1.221798962 | AL13: =INDEX(Inputs!$P$36:$BB$36,MATCH('Costs & Revenue'!AL$5,Inputs!$P$5:$BB$5,0)) -> 1.221798962 | AM13: =INDEX(Inputs!$P$36:$BB$36,MATCH('Costs & Revenue'!AM$5,Inputs!$P$5:$BB$5,0)) -> 1.221798962 | AN13: =INDEX(Inputs!$P$36:$BB$36,MATCH('Costs & Revenue'!AN$5,Inputs!$P$5:$BB$5,0)) -> 1.221798962 | AO13: =INDEX(Inputs!$P$36:$BB$36,MATCH('Costs & Revenue'!AO$5,Inputs!$P$5:$BB$5,0)) -> 0 | AP13: =INDEX(Inputs!$P$36:$BB$36,MATCH('Costs & Revenue'!AP$5,Inputs!$P$5:$BB$5,0)) -> 0 | AQ13: =INDEX(Inputs!$P$36:$BB$36,MATCH('Costs & Revenue'!AQ$5,Inputs!$P$5:$BB$5,0)) -> 0 | AR13: =INDEX(Inputs!$P$36:$BB$36,MATCH('Costs & Revenue'!AR$5,Inputs!$P$5:$BB$5,0)) -> 0 | AS13: =INDEX(Inputs!$P$36:$BB$36,MATCH('Costs & Revenue'!AS$5,Inputs!$P$5:$BB$5,0)) -> 0 | AT13: =INDEX(Inputs!$P$36:$BB$36,MATCH('Costs & Revenue'!AT$5,Inputs!$P$5:$BB$5,0)) -> 0 | AU13: =INDEX(Inputs!$P$36:$BB$36,MATCH('Costs & Revenue'!AU$5,Inputs!$P$5:$BB$5,0)) -> 0 | AV13: =INDEX(Inputs!$P$36:$BB$36,MATCH('Costs & Revenue'!AV$5,Inputs!$P$5:$BB$5,0)) -> 0 | AW13: =INDEX(Inputs!$P$36:$BB$36,MATCH('Costs & Revenue'!AW$5,Inputs!$P$5:$BB$5,0)) -> 0 | AX13: =INDEX(Inputs!$P$36:$BB$36,MATCH('Costs & Revenue'!AX$5,Inputs!$P$5:$BB$5,0)) -> 0 | AY13: =INDEX(Inputs!$P$36:$BB$36,MATCH('Costs & Revenue'!AY$5,Inputs!$P$5:$BB$5,0)) -> 0 | AZ13: =INDEX(Inputs!$P$36:$BB$36,MATCH('Costs & Revenue'!AZ$5,Inputs!$P$5:$BB$5,0)) -> 0 | BA13: =INDEX(Inputs!$P$36:$BB$36,MATCH('Costs & Revenue'!BA$5,Inputs!$P$5:$BB$5,0)) -> 0 | BB13: =INDEX(Inputs!$P$36:$BB$36,MATCH('Costs & Revenue'!BB$5,Inputs!$P$5:$BB$5,0)) -> 0
C15: =Inputs!C82 -> Cost items to be updated up to and beyond PCA stage (actual)
E17: =Inputs!E84 -> Non-controllable Opex (actual) | G17: =Inputs!G84 -> €m nominal prices | P17: =INDEX(Inputs!$P$84:$BB$84,MATCH('Costs & Revenue'!P$5,Inputs!$P$5:$BB$5,0)) -> 1 | Q17: =INDEX(Inputs!$P$84:$BB$84,MATCH('Costs & Revenue'!Q$5,Inputs!$P$5:$BB$5,0)) -> 1.05 | R17: =INDEX(Inputs!$P$84:$BB$84,MATCH('Costs & Revenue'!R$5,Inputs!$P$5:$BB$5,0)) -> 1.1025 | S17: =INDEX(Inputs!$P$84:$BB$84,MATCH('Costs & Revenue'!S$5,Inputs!$P$5:$BB$5,0)) -> 1.157625 | T17: =INDEX(Inputs!$P$84:$BB$84,MATCH('Costs & Revenue'!T$5,Inputs!$P$5:$BB$5,0)) -> 1.21550625 | U17: =INDEX(Inputs!$P$84:$BB$84,MATCH('Costs & Revenue'!U$5,Inputs!$P$5:$BB$5,0)) -> 1.276281563 | V17: =INDEX(Inputs!$P$84:$BB$84,MATCH('Costs & Revenue'!V$5,Inputs!$P$5:$BB$5,0)) -> 1.340095641 | W17: =INDEX(Inputs!$P$84:$BB$84,MATCH('Costs & Revenue'!W$5,Inputs!$P$5:$BB$5,0)) -> 1.407100423 | X17: =INDEX(Inputs!$P$84:$BB$84,MATCH('Costs & Revenue'!X$5,Inputs!$P$5:$BB$5,0)) -> 1.477455444 | Y17: =INDEX(Inputs!$P$84:$BB$84,MATCH('Costs & Revenue'!Y$5,Inputs!$P$5:$BB$5,0)) -> 1.551328216 | Z17: =INDEX(Inputs!$P$84:$BB$84,MATCH('Costs & Revenue'!Z$5,Inputs!$P$5:$BB$5,0)) -> 1.628894627 | AA17: =INDEX(Inputs!$P$84:$BB$84,MATCH('Costs & Revenue'!AA$5,Inputs!$P$5:$BB$5,0)) -> 1.710339358 | AB17: =INDEX(Inputs!$P$84:$BB$84,MATCH('Costs & Revenue'!AB$5,Inputs!$P$5:$BB$5,0)) -> 1.795856326 | AC17: =INDEX(Inputs!$P$84:$BB$84,MATCH('Costs & Revenue'!AC$5,Inputs!$P$5:$BB$5,0)) -> 1.885649142 | AD17: =INDEX(Inputs!$P$84:$BB$84,MATCH('Costs & Revenue'!AD$5,Inputs!$P$5:$BB$5,0)) -> 1.979931599 | AE17: =INDEX(Inputs!$P$84:$BB$84,MATCH('Costs & Revenue'!AE$5,Inputs!$P$5:$BB$5,0)) -> 2.078928179 | AF17: =INDEX(Inputs!$P$84:$BB$84,MATCH('Costs & Revenue'!AF$5,Inputs!$P$5:$BB$5,0)) -> 2.182874588 | AG17: =INDEX(Inputs!$P$84:$BB$84,MATCH('Costs & Revenue'!AG$5,Inputs!$P$5:$BB$5,0)) -> 2.292018318 | AH17: =INDEX(Inputs!$P$84:$BB$84,MATCH('Costs & Revenue'!AH$5,Inputs!$P$5:$BB$5,0)) -> 2.406619234 | AI17: =INDEX(Inputs!$P$84:$BB$84,MATCH('Costs & Revenue'!AI$5,Inputs!$P$5:$BB$5,0)) -> 2.526950195 | AJ17: =INDEX(Inputs!$P$84:$BB$84,MATCH('Costs & Revenue'!AJ$5,Inputs!$P$5:$BB$5,0)) -> 2.653297705 | AK17: =INDEX(Inputs!$P$84:$BB$84,MATCH('Costs & Revenue'!AK$5,Inputs!$P$5:$BB$5,0)) -> 2.78596259 | AL17: =INDEX(Inputs!$P$84:$BB$84,MATCH('Costs & Revenue'!AL$5,Inputs!$P$5:$BB$5,0)) -> 2.92526072 | AM17: =INDEX(Inputs!$P$84:$BB$84,MATCH('Costs & Revenue'!AM$5,Inputs!$P$5:$BB$5,0)) -> 3.071523756 | AN17: =INDEX(Inputs!$P$84:$BB$84,MATCH('Costs & Revenue'!AN$5,Inputs!$P$5:$BB$5,0)) -> 3.225099944 | AO17: =INDEX(Inputs!$P$84:$BB$84,MATCH('Costs & Revenue'!AO$5,Inputs!$P$5:$BB$5,0)) -> 0 | AP17: =INDEX(Inputs!$P$84:$BB$84,MATCH('Costs & Revenue'!AP$5,Inputs!$P$5:$BB$5,0)) -> 0 | AQ17: =INDEX(Inputs!$P$84:$BB$84,MATCH('Costs & Revenue'!AQ$5,Inputs!$P$5:$BB$5,0)) -> 0 | AR17: =INDEX(Inputs!$P$84:$BB$84,MATCH('Costs & Revenue'!AR$5,Inputs!$P$5:$BB$5,0)) -> 0 | AS17: =INDEX(Inputs!$P$84:$BB$84,MATCH('Costs & Revenue'!AS$5,Inputs!$P$5:$BB$5,0)) -> 0 | AT17: =INDEX(Inputs!$P$84:$BB$84,MATCH('Costs & Revenue'!AT$5,Inputs!$P$5:$BB$5,0)) -> 0 | AU17: =INDEX(Inputs!$P$84:$BB$84,MATCH('Costs & Revenue'!AU$5,Inputs!$P$5:$BB$5,0)) -> 0 | AV17: =INDEX(Inputs!$P$84:$BB$84,MATCH('Costs & Revenue'!AV$5,Inputs!$P$5:$BB$5,0)) -> 0 | AW17: =INDEX(Inputs!$P$84:$BB$84,MATCH('Costs & Revenue'!AW$5,Inputs!$P$5:$BB$5,0)) -> 0 | AX17: =INDEX(Inputs!$P$84:$BB$84,MATCH('Costs & Revenue'!AX$5,Inputs!$P$5:$BB$5,0)) -> 0 | AY17: =INDEX(Inputs!$P$84:$BB$84,MATCH('Costs & Revenue'!AY$5,Inputs!$P$5:$BB$5,0)) -> 0 | AZ17: =INDEX(Inputs!$P$84:$BB$84,MATCH('Costs & Revenue'!AZ$5,Inputs!$P$5:$BB$5,0)) -> 0 | BA17: =INDEX(Inputs!$P$84:$BB$84,MATCH('Costs & Revenue'!BA$5,Inputs!$P$5:$BB$5,0)) -> 0 | BB17: =INDEX(Inputs!$P$84:$BB$84,MATCH('Costs & Revenue'!BB$5,Inputs!$P$5:$BB$5,0)) -> 0
E19: Average exchange rate (XUMAERS) | G19: GBP / EUR | H19: GBPt/EURt | P19: =INDEX(Inputs!$P$143:$BB$143,MATCH('Costs & Revenue'!P$5,Inputs!$P$5:$BB$5,0)) -> 1.1407 | Q19: =INDEX(Inputs!$P$143:$BB$143,MATCH('Costs & Revenue'!Q$5,Inputs!$P$5:$BB$5,0)) -> 1.1118 | R19: =INDEX(Inputs!$P$143:$BB$143,MATCH('Costs & Revenue'!R$5,Inputs!$P$5:$BB$5,0)) -> 1.1118 | S19: =INDEX(Inputs!$P$143:$BB$143,MATCH('Costs & Revenue'!S$5,Inputs!$P$5:$BB$5,0)) -> 1.1118 | T19: =INDEX(Inputs!$P$143:$BB$143,MATCH('Costs & Revenue'!T$5,Inputs!$P$5:$BB$5,0)) -> 1.1118 | U19: =INDEX(Inputs!$P$143:$BB$143,MATCH('Costs & Revenue'!U$5,Inputs!$P$5:$BB$5,0)) -> 1.1118 | V19: =INDEX(Inputs!$P$143:$BB$143,MATCH('Costs & Revenue'!V$5,Inputs!$P$5:$BB$5,0)) -> 1.1118 | W19: =INDEX(Inputs!$P$143:$BB$143,MATCH('Costs & Revenue'!W$5,Inputs!$P$5:$BB$5,0)) -> 1.1118 | X19: =INDEX(Inputs!$P$143:$BB$143,MATCH('Costs & Revenue'!X$5,Inputs!$P$5:$BB$5,0)) -> 1.1118 | Y19: =INDEX(Inputs!$P$143:$BB$143,MATCH('Costs & Revenue'!Y$5,Inputs!$P$5:$BB$5,0)) -> 1.1118 | Z19: =INDEX(Inputs!$P$143:$BB$143,MATCH('Costs & Revenue'!Z$5,Inputs!$P$5:$BB$5,0)) -> 1.1118 | AA19: =INDEX(Inputs!$P$143:$BB$143,MATCH('Costs & Revenue'!AA$5,Inputs!$P$5:$BB$5,0)) -> 1.1118 | AB19: =INDEX(Inputs!$P$143:$BB$143,MATCH('Costs & Revenue'!AB$5,Inputs!$P$5:$BB$5,0)) -> 1.1118 | AC19: =INDEX(Inputs!$P$143:$BB$143,MATCH('Costs & Revenue'!AC$5,Inputs!$P$5:$BB$5,0)) -> 1.1118 | AD19: =INDEX(Inputs!$P$143:$BB$143,MATCH('Costs & Revenue'!AD$5,Inputs!$P$5:$BB$5,0)) -> 1.1118 | AE19: =INDEX(Inputs!$P$143:$BB$143,MATCH('Costs & Revenue'!AE$5,Inputs!$P$5:$BB$5,0)) -> 1.1118 | AF19: =INDEX(Inputs!$P$143:$BB$143,MATCH('Costs & Revenue'!AF$5,Inputs!$P$5:$BB$5,0)) -> 1.1118 | AG19: =INDEX(Inputs!$P$143:$BB$143,MATCH('Costs & Revenue'!AG$5,Inputs!$P$5:$BB$5,0)) -> 1.1118 | AH19: =INDEX(Inputs!$P$143:$BB$143,MATCH('Costs & Revenue'!AH$5,Inputs!$P$5:$BB$5,0)) -> 1.1118 | AI19: =INDEX(Inputs!$P$143:$BB$143,MATCH('Costs & Revenue'!AI$5,Inputs!$P$5:$BB$5,0)) -> 1.1118 | AJ19: =INDEX(Inputs!$P$143:$BB$143,MATCH('Costs & Revenue'!AJ$5,Inputs!$P$5:$BB$5,0)) -> 1.1118 | AK19: =INDEX(Inputs!$P$143:$BB$143,MATCH('Costs & Revenue'!AK$5,Inputs!$P$5:$BB$5,0)) -> 1.1118 | AL19: =INDEX(Inputs!$P$143:$BB$143,MATCH('Costs & Revenue'!AL$5,Inputs!$P$5:$BB$5,0)) -> 1.1118 | AM19: =INDEX(Inputs!$P$143:$BB$143,MATCH('Costs & Revenue'!AM$5,Inputs!$P$5:$BB$5,0)) -> 1.1118 | AN19: =INDEX(Inputs!$P$143:$BB$143,MATCH('Costs & Revenue'!AN$5,Inputs!$P$5:$BB$5,0)) -> 1.1118 | AO19: =INDEX(Inputs!$P$143:$BB$143,MATCH('Costs & Revenue'!AO$5,Inputs!$P$5:$BB$5,0)) -> 1.1118 | AP19: =INDEX(Inputs!$P$143:$BB$143,MATCH('Costs & Revenue'!AP$5,Inputs!$P$5:$BB$5,0)) -> 1.1118 | AQ19: =INDEX(Inputs!$P$143:$BB$143,MATCH('Costs & Revenue'!AQ$5,Inputs!$P$5:$BB$5,0)) -> 1.1118 | AR19: =INDEX(Inputs!$P$143:$BB$143,MATCH('Costs & Revenue'!AR$5,Inputs!$P$5:$BB$5,0)) -> 1.1118 | AS19: =INDEX(Inputs!$P$143:$BB$143,MATCH('Costs & Revenue'!AS$5,Inputs!$P$5:$BB$5,0)) -> 1.1118 | AT19: =INDEX(Inputs!$P$143:$BB$143,MATCH('Costs & Revenue'!AT$5,Inputs!$P$5:$BB$5,0)) -> 1.1118 | AU19: =INDEX(Inputs!$P$143:$BB$143,MATCH('Costs & Revenue'!AU$5,Inputs!$P$5:$BB$5,0)) -> 1.1118 | AV19: =INDEX(Inputs!$P$143:$BB$143,MATCH('Costs & Revenue'!AV$5,Inputs!$P$5:$BB$5,0)) -> 1.1118 | AW19: =INDEX(Inputs!$P$143:$BB$143,MATCH('Costs & Revenue'!AW$5,Inputs!$P$5:$BB$5,0)) -> 1.1118 | AX19: =INDEX(Inputs!$P$143:$BB$143,MATCH('Costs & Revenue'!AX$5,Inputs!$P$5:$BB$5,0)) -> 1.1118 | AY19: =INDEX(Inputs!$P$143:$BB$143,MATCH('Costs & Revenue'!AY$5,Inputs!$P$5:$BB$5,0)) -> 1.1118 | AZ19: =INDEX(Inputs!$P$143:$BB$143,MATCH('Costs & Revenue'!AZ$5,Inputs!$P$5:$BB$5,0)) -> 1.1118 | BA19: =INDEX(Inputs!$P$143:$BB$143,MATCH('Costs & Revenue'!BA$5,Inputs!$P$5:$BB$5,0)) -> 1.1118 | BB19: =INDEX(Inputs!$P$143:$BB$143,MATCH('Costs & Revenue'!BB$5,Inputs!$P$5:$BB$5,0)) -> 1.1118
E21: =E17 -> Non-controllable Opex (actual) | G21: £m nominal prices | H21: ONCOCt | P21: =IF(CF_currency="€",P17/P$19,P17) -> 0.8766546857 | Q21: 0.944414463 | R21: 0.9916351862 | S21: 1.041216945 | T21: 1.093277793 | U21: 1.147941682 | V21: 1.205338767 | W21: 1.265605705 | X21: 1.32888599 | Y21: 1.39533029 | Z21: 1.465096804 | AA21: 1.538351644 | AB21: 1.615269226 | AC21: 1.696032688 | AD21: 1.780834322 | AE21: 1.869876038 | AF21: 1.96336984 | AG21: 2.061538332 | AH21: 2.164615249 | AI21: 2.272846011 | AJ21: 2.386488312 | AK21: 2.505812727 | AL21: 2.631103364 | AM21: 2.762658532 | AN21: 2.900791459 | AO21: 0 | AP21: 0 | AQ21: 0 | AR21: 0 | AS21: 0 | AT21: 0 | AU21: 0 | AV21: 0 | AW21: 0 | AX21: 0 | AY21: 0 | AZ21: 0 | BA21: 0 | BB21: 0
E23: =Inputs!E85 -> Non-controllable Opex adjustment following NRA review (actual) | G23: =Inputs!G85 -> €m nominal prices | P23: =INDEX(Inputs!$P$85:$BB$85,MATCH('Costs & Revenue'!P$5,Inputs!$P$5:$BB$5,0)) -> 0 | Q23: =INDEX(Inputs!$P$85:$BB$85,MATCH('Costs & Revenue'!Q$5,Inputs!$P$5:$BB$5,0)) -> 0 | R23: =INDEX(Inputs!$P$85:$BB$85,MATCH('Costs & Revenue'!R$5,Inputs!$P$5:$BB$5,0)) -> 0 | S23: =INDEX(Inputs!$P$85:$BB$85,MATCH('Costs & Revenue'!S$5,Inputs!$P$5:$BB$5,0)) -> 0 | T23: =INDEX(Inputs!$P$85:$BB$85,MATCH('Costs & Revenue'!T$5,Inputs!$P$5:$BB$5,0)) -> 0 | U23: =INDEX(Inputs!$P$85:$BB$85,MATCH('Costs & Revenue'!U$5,Inputs!$P$5:$BB$5,0)) -> 0 | V23: =INDEX(Inputs!$P$85:$BB$85,MATCH('Costs & Revenue'!V$5,Inputs!$P$5:$BB$5,0)) -> 0 | W23: =INDEX(Inputs!$P$85:$BB$85,MATCH('Costs & Revenue'!W$5,Inputs!$P$5:$BB$5,0)) -> 0 | X23: =INDEX(Inputs!$P$85:$BB$85,MATCH('Costs & Revenue'!X$5,Inputs!$P$5:$BB$5,0)) -> 0 | Y23: =INDEX(Inputs!$P$85:$BB$85,MATCH('Costs & Revenue'!Y$5,Inputs!$P$5:$BB$5,0)) -> 0 | Z23: =INDEX(Inputs!$P$85:$BB$85,MATCH('Costs & Revenue'!Z$5,Inputs!$P$5:$BB$5,0)) -> 0 | AA23: =INDEX(Inputs!$P$85:$BB$85,MATCH('Costs & Revenue'!AA$5,Inputs!$P$5:$BB$5,0)) -> 0 | AB23: =INDEX(Inputs!$P$85:$BB$85,MATCH('Costs & Revenue'!AB$5,Inputs!$P$5:$BB$5,0)) -> 0 | AC23: =INDEX(Inputs!$P$85:$BB$85,MATCH('Costs & Revenue'!AC$5,Inputs!$P$5:$BB$5,0)) -> 0 | AD23: =INDEX(Inputs!$P$85:$BB$85,MATCH('Costs & Revenue'!AD$5,Inputs!$P$5:$BB$5,0)) -> 0 | AE23: =INDEX(Inputs!$P$85:$BB$85,MATCH('Costs & Revenue'!AE$5,Inputs!$P$5:$BB$5,0)) -> 0 | AF23: =INDEX(Inputs!$P$85:$BB$85,MATCH('Costs & Revenue'!AF$5,Inputs!$P$5:$BB$5,0)) -> 0 | AG23: =INDEX(Inputs!$P$85:$BB$85,MATCH('Costs & Revenue'!AG$5,Inputs!$P$5:$BB$5,0)) -> 0 | AH23: =INDEX(Inputs!$P$85:$BB$85,MATCH('Costs & Revenue'!AH$5,Inputs!$P$5:$BB$5,0)) -> 0 | AI23: =INDEX(Inputs!$P$85:$BB$85,MATCH('Costs & Revenue'!AI$5,Inputs!$P$5:$BB$5,0)) -> 0 | AJ23: =INDEX(Inputs!$P$85:$BB$85,MATCH('Costs & Revenue'!AJ$5,Inputs!$P$5:$BB$5,0)) -> 0 | AK23: =INDEX(Inputs!$P$85:$BB$85,MATCH('Costs & Revenue'!AK$5,Inputs!$P$5:$BB$5,0)) -> 0 | AL23: =INDEX(Inputs!$P$85:$BB$85,MATCH('Costs & Revenue'!AL$5,Inputs!$P$5:$BB$5,0)) -> 0 | AM23: =INDEX(Inputs!$P$85:$BB$85,MATCH('Costs & Revenue'!AM$5,Inputs!$P$5:$BB$5,0)) -> 0 | AN23: =INDEX(Inputs!$P$85:$BB$85,MATCH('Costs & Revenue'!AN$5,Inputs!$P$5:$BB$5,0)) -> 0 | AO23: =INDEX(Inputs!$P$85:$BB$85,MATCH('Costs & Revenue'!AO$5,Inputs!$P$5:$BB$5,0)) -> 0 | AP23: =INDEX(Inputs!$P$85:$BB$85,MATCH('Costs & Revenue'!AP$5,Inputs!$P$5:$BB$5,0)) -> 0 | AQ23: =INDEX(Inputs!$P$85:$BB$85,MATCH('Costs & Revenue'!AQ$5,Inputs!$P$5:$BB$5,0)) -> 0 | AR23: =INDEX(Inputs!$P$85:$BB$85,MATCH('Costs & Revenue'!AR$5,Inputs!$P$5:$BB$5,0)) -> 0 | AS23: =INDEX(Inputs!$P$85:$BB$85,MATCH('Costs & Revenue'!AS$5,Inputs!$P$5:$BB$5,0)) -> 0 | AT23: =INDEX(Inputs!$P$85:$BB$85,MATCH('Costs & Revenue'!AT$5,Inputs!$P$5:$BB$5,0)) -> 0 | AU23: =INDEX(Inputs!$P$85:$BB$85,MATCH('Costs & Revenue'!AU$5,Inputs!$P$5:$BB$5,0)) -> 0 | AV23: =INDEX(Inputs!$P$85:$BB$85,MATCH('Costs & Revenue'!AV$5,Inputs!$P$5:$BB$5,0)) -> 0 | AW23: =INDEX(Inputs!$P$85:$BB$85,MATCH('Costs & Revenue'!AW$5,Inputs!$P$5:$BB$5,0)) -> 0 | AX23: =INDEX(Inputs!$P$85:$BB$85,MATCH('Costs & Revenue'!AX$5,Inputs!$P$5:$BB$5,0)) -> 0 | AY23: =INDEX(Inputs!$P$85:$BB$85,MATCH('Costs & Revenue'!AY$5,Inputs!$P$5:$BB$5,0)) -> 0 | AZ23: =INDEX(Inputs!$P$85:$BB$85,MATCH('Costs & Revenue'!AZ$5,Inputs!$P$5:$BB$5,0)) -> 0 | BA23: =INDEX(Inputs!$P$85:$BB$85,MATCH('Costs & Revenue'!BA$5,Inputs!$P$5:$BB$5,0)) -> 0 | BB23: =INDEX(Inputs!$P$85:$BB$85,MATCH('Costs & Revenue'!BB$5,Inputs!$P$5:$BB$5,0)) -> 0
E25: =E23 -> Non-controllable Opex adjustment following NRA review (actual) | G25: £m nominal prices | P25: =IF(CF_currency="€",P23/P$19,P23) -> 0 | Q25: 0 | R25: 0 | S25: 0 | T25: 0 | U25: 0 | V25: 0 | W25: 0 | X25: 0 | Y25: 0 | Z25: 0 | AA25: 0 | AB25: 0 | AC25: 0 | AD25: 0 | AE25: 0 | AF25: 0 | AG25: 0 | AH25: 0 | AI25: 0 | AJ25: 0 | AK25: 0 | AL25: 0 | AM25: 0 | AN25: 0 | AO25: 0 | AP25: 0 | AQ25: 0 | AR25: 0 | AS25: 0 | AT25: 0 | AU25: 0 | AV25: 0 | AW25: 0 | AX25: 0 | AY25: 0 | AZ25: 0 | BA25: 0 | BB25: 0
B27: Revenue
E29: =Inputs!E108 -> Assessed revenue | G29: =Inputs!G108 -> €m nominal prices | H29: =Inputs!H108 -> ARt | P29: =INDEX(Inputs!$P$108:$BB$108,MATCH('Costs & Revenue'!P$5,Inputs!$P$5:$BB$5,0)) -> 100 | Q29: =INDEX(Inputs!$P$108:$BB$108,MATCH('Costs & Revenue'!Q$5,Inputs!$P$5:$BB$5,0)) -> 102 | R29: =INDEX(Inputs!$P$108:$BB$108,MATCH('Costs & Revenue'!R$5,Inputs!$P$5:$BB$5,0)) -> 104.04 | S29: =INDEX(Inputs!$P$108:$BB$108,MATCH('Costs & Revenue'!S$5,Inputs!$P$5:$BB$5,0)) -> 106.1208 | T29: =INDEX(Inputs!$P$108:$BB$108,MATCH('Costs & Revenue'!T$5,Inputs!$P$5:$BB$5,0)) -> 108.243216 | U29: =INDEX(Inputs!$P$108:$BB$108,MATCH('Costs & Revenue'!U$5,Inputs!$P$5:$BB$5,0)) -> 110.4080803 | V29: =INDEX(Inputs!$P$108:$BB$108,MATCH('Costs & Revenue'!V$5,Inputs!$P$5:$BB$5,0)) -> 112.6162419 | W29: =INDEX(Inputs!$P$108:$BB$108,MATCH('Costs & Revenue'!W$5,Inputs!$P$5:$BB$5,0)) -> 114.8685668 | X29: =INDEX(Inputs!$P$108:$BB$108,MATCH('Costs & Revenue'!X$5,Inputs!$P$5:$BB$5,0)) -> 117.1659381 | Y29: =INDEX(Inputs!$P$108:$BB$108,MATCH('Costs & Revenue'!Y$5,Inputs!$P$5:$BB$5,0)) -> 119.5092569 | Z29: =INDEX(Inputs!$P$108:$BB$108,MATCH('Costs & Revenue'!Z$5,Inputs!$P$5:$BB$5,0)) -> 121.899442 | AA29: =INDEX(Inputs!$P$108:$BB$108,MATCH('Costs & Revenue'!AA$5,Inputs!$P$5:$BB$5,0)) -> 124.3374308 | AB29: =INDEX(Inputs!$P$108:$BB$108,MATCH('Costs & Revenue'!AB$5,Inputs!$P$5:$BB$5,0)) -> 126.8241795 | AC29: =INDEX(Inputs!$P$108:$BB$108,MATCH('Costs & Revenue'!AC$5,Inputs!$P$5:$BB$5,0)) -> 129.360663 | AD29: =INDEX(Inputs!$P$108:$BB$108,MATCH('Costs & Revenue'!AD$5,Inputs!$P$5:$BB$5,0)) -> 131.9478763 | AE29: =INDEX(Inputs!$P$108:$BB$108,MATCH('Costs & Revenue'!AE$5,Inputs!$P$5:$BB$5,0)) -> 134.5868338 | AF29: =INDEX(Inputs!$P$108:$BB$108,MATCH('Costs & Revenue'!AF$5,Inputs!$P$5:$BB$5,0)) -> 137.2785705 | AG29: =INDEX(Inputs!$P$108:$BB$108,MATCH('Costs & Revenue'!AG$5,Inputs!$P$5:$BB$5,0)) -> 140.0241419 | AH29: =INDEX(Inputs!$P$108:$BB$108,MATCH('Costs & Revenue'!AH$5,Inputs!$P$5:$BB$5,0)) -> 142.8246248 | AI29: =INDEX(Inputs!$P$108:$BB$108,MATCH('Costs & Revenue'!AI$5,Inputs!$P$5:$BB$5,0)) -> 145.6811173 | AJ29: =INDEX(Inputs!$P$108:$BB$108,MATCH('Costs & Revenue'!AJ$5,Inputs!$P$5:$BB$5,0)) -> 148.5947396 | AK29: =INDEX(Inputs!$P$108:$BB$108,MATCH('Costs & Revenue'!AK$5,Inputs!$P$5:$BB$5,0)) -> 151.5666344 | AL29: =INDEX(Inputs!$P$108:$BB$108,MATCH('Costs & Revenue'!AL$5,Inputs!$P$5:$BB$5,0)) -> 154.5979671 | AM29: =INDEX(Inputs!$P$108:$BB$108,MATCH('Costs & Revenue'!AM$5,Inputs!$P$5:$BB$5,0)) -> 157.6899264 | AN29: =INDEX(Inputs!$P$108:$BB$108,MATCH('Costs & Revenue'!AN$5,Inputs!$P$5:$BB$5,0)) -> 160.8437249 | AO29: =INDEX(Inputs!$P$108:$BB$108,MATCH('Costs & Revenue'!AO$5,Inputs!$P$5:$BB$5,0)) -> 0 | AP29: =INDEX(Inputs!$P$108:$BB$108,MATCH('Costs & Revenue'!AP$5,Inputs!$P$5:$BB$5,0)) -> 0 | AQ29: =INDEX(Inputs!$P$108:$BB$108,MATCH('Costs & Revenue'!AQ$5,Inputs!$P$5:$BB$5,0)) -> 0 | AR29: =INDEX(Inputs!$P$108:$BB$108,MATCH('Costs & Revenue'!AR$5,Inputs!$P$5:$BB$5,0)) -> 0 | AS29: =INDEX(Inputs!$P$108:$BB$108,MATCH('Costs & Revenue'!AS$5,Inputs!$P$5:$BB$5,0)) -> 0 | AT29: =INDEX(Inputs!$P$108:$BB$108,MATCH('Costs & Revenue'!AT$5,Inputs!$P$5:$BB$5,0)) -> 0 | AU29: =INDEX(Inputs!$P$108:$BB$108,MATCH('Costs & Revenue'!AU$5,Inputs!$P$5:$BB$5,0)) -> 0 | AV29: =INDEX(Inputs!$P$108:$BB$108,MATCH('Costs & Revenue'!AV$5,Inputs!$P$5:$BB$5,0)) -> 0 | AW29: =INDEX(Inputs!$P$108:$BB$108,MATCH('Costs & Revenue'!AW$5,Inputs!$P$5:$BB$5,0)) -> 0 | AX29: =INDEX(Inputs!$P$108:$BB$108,MATCH('Costs & Revenue'!AX$5,Inputs!$P$5:$BB$5,0)) -> 0 | AY29: =INDEX(Inputs!$P$108:$BB$108,MATCH('Costs & Revenue'!AY$5,Inputs!$P$5:$BB$5,0)) -> 0 | AZ29: =INDEX(Inputs!$P$108:$BB$108,MATCH('Costs & Revenue'!AZ$5,Inputs!$P$5:$BB$5,0)) -> 0 | BA29: =INDEX(Inputs!$P$108:$BB$108,MATCH('Costs & Revenue'!BA$5,Inputs!$P$5:$BB$5,0)) -> 0 | BB29: =INDEX(Inputs!$P$108:$BB$108,MATCH('Costs & Revenue'!BB$5,Inputs!$P$5:$BB$5,0)) -> 0
E31: =E29 -> Assessed revenue | G31: £m nominal prices | H31: ARt | P31: =IF(CF_currency="€",P29/P19,P29) -> 87.66546857 | Q31: 91.74311927 | R31: 93.57798165 | S31: 95.44954128 | T31: 97.35853211 | U31: 99.30570275 | V31: 101.2918168 | W31: 103.3176531 | X31: 105.3840062 | Y31: 107.4916863 | Z31: 109.6415201 | AA31: 111.8343505 | AB31: 114.0710375 | AC31: 116.3524582 | AD31: 118.6795074 | AE31: 121.0530975 | AF31: 123.4741595 | AG31: 125.9436427 | AH31: 128.4625155 | AI31: 131.0317658 | AJ31: 133.6524011 | AK31: 136.3254492 | AL31: 139.0519582 | AM31: 141.8329973 | AN31: 144.6696573 | AO31: 0 | AP31: 0 | AQ31: 0 | AR31: 0 | AS31: 0 | AT31: 0 | AU31: 0 | AV31: 0 | AW31: 0 | AX31: 0 | AY31: 0 | AZ31: 0 | BA31: 0 | BB31: 0
B33: End of sheet

Sheet ORA Adjustment
A1: ORA Adjustment | H1: Licence
E2: Parameter | G2: Units | H2: Terminology | I2: Constant | O2: Annual values
E3: Year commencing | O3: =INDEX(Inputs!$O3:$BB3,MATCH('Costs & Revenue'!O$5,Inputs!$O$5:$BB$5,0)) -> 2018-01-01 | P3: =INDEX(Inputs!$O3:$BB3,MATCH('Costs & Revenue'!P$5,Inputs!$O$5:$BB$5,0)) -> 2019-01-01 | Q3: =INDEX(Inputs!$O3:$BB3,MATCH('Costs & Revenue'!Q$5,Inputs!$O$5:$BB$5,0)) -> 2020-01-01 | R3: =INDEX(Inputs!$O3:$BB3,MATCH('Costs & Revenue'!R$5,Inputs!$O$5:$BB$5,0)) -> 2021-01-01 | S3: =INDEX(Inputs!$O3:$BB3,MATCH('Costs & Revenue'!S$5,Inputs!$O$5:$BB$5,0)) -> 2022-01-01 | T3: =INDEX(Inputs!$O3:$BB3,MATCH('Costs & Revenue'!T$5,Inputs!$O$5:$BB$5,0)) -> 2023-01-01 | U3: =INDEX(Inputs!$O3:$BB3,MATCH('Costs & Revenue'!U$5,Inputs!$O$5:$BB$5,0)) -> 2024-01-01 | V3: =INDEX(Inputs!$O3:$BB3,MATCH('Costs & Revenue'!V$5,Inputs!$O$5:$BB$5,0)) -> 2025-01-01 | W3: =INDEX(Inputs!$O3:$BB3,MATCH('Costs & Revenue'!W$5,Inputs!$O$5:$BB$5,0)) -> 2026-01-01 | X3: =INDEX(Inputs!$O3:$BB3,MATCH('Costs & Revenue'!X$5,Inputs!$O$5:$BB$5,0)) -> 2027-01-01 | Y3: =INDEX(Inputs!$O3:$BB3,MATCH('Costs & Revenue'!Y$5,Inputs!$O$5:$BB$5,0)) -> 2028-01-01 | Z3: =INDEX(Inputs!$O3:$BB3,MATCH('Costs & Revenue'!Z$5,Inputs!$O$5:$BB$5,0)) -> 2029-01-01 | AA3: =INDEX(Inputs!$O3:$BB3,MATCH('Costs & Revenue'!AA$5,Inputs!$O$5:$BB$5,0)) -> 2030-01-01 | AB3: =INDEX(Inputs!$O3:$BB3,MATCH('Costs & Revenue'!AB$5,Inputs!$O$5:$BB$5,0)) -> 2031-01-01 | AC3: =INDEX(Inputs!$O3:$BB3,MATCH('Costs & Revenue'!AC$5,Inputs!$O$5:$BB$5,0)) -> 2032-01-01 | AD3: =INDEX(Inputs!$O3:$BB3,MATCH('Costs & Revenue'!AD$5,Inputs!$O$5:$BB$5,0)) -> 2033-01-01 | AE3: =INDEX(Inputs!$O3:$BB3,MATCH('Costs & Revenue'!AE$5,Inputs!$O$5:$BB$5,0)) -> 2034-01-01 | AF3: =INDEX(Inputs!$O3:$BB3,MATCH('Costs & Revenue'!AF$5,Inputs!$O$5:$BB$5,0)) -> 2035-01-01 | AG3: =INDEX(Inputs!$O3:$BB3,MATCH('Costs & Revenue'!AG$5,Inputs!$O$5:$BB$5,0)) -> 2036-01-01 | AH3: =INDEX(Inputs!$O3:$BB3,MATCH('Costs & Revenue'!AH$5,Inputs!$O$5:$BB$5,0)) -> 2037-01-01 | AI3: =INDEX(Inputs!$O3:$BB3,MATCH('Costs & Revenue'!AI$5,Inputs!$O$5:$BB$5,0)) -> 2038-01-01 | AJ3: =INDEX(Inputs!$O3:$BB3,MATCH('Costs & Revenue'!AJ$5,Inputs!$O$5:$BB$5,0)) -> 2039-01-01 | AK3: =INDEX(Inputs!$O3:$BB3,MATCH('Costs & Revenue'!AK$5,Inputs!$O$5:$BB$5,0)) -> 2040-01-01 | AL3: =INDEX(Inputs!$O3:$BB3,MATCH('Costs & Revenue'!AL$5,Inputs!$O$5:$BB$5,0)) -> 2041-01-01 | AM3: =INDEX(Inputs!$O3:$BB3,MATCH('Costs & Revenue'!AM$5,Inputs!$O$5:$BB$5,0)) -> 2042-01-01 | AN3: =INDEX(Inputs!$O3:$BB3,MATCH('Costs & Revenue'!AN$5,Inputs!$O$5:$BB$5,0)) -> 2043-01-01 | AO3: =INDEX(Inputs!$O3:$BB3,MATCH('Costs & Revenue'!AO$5,Inputs!$O$5:$BB$5,0)) -> 2044-01-01 | AP3: =INDEX(Inputs!$O3:$BB3,MATCH('Costs & Revenue'!AP$5,Inputs!$O$5:$BB$5,0)) -> 2045-01-01 | AQ3: =INDEX(Inputs!$O3:$BB3,MATCH('Costs & Revenue'!AQ$5,Inputs!$O$5:$BB$5,0)) -> 2046-01-01 | AR3: =INDEX(Inputs!$O3:$BB3,MATCH('Costs & Revenue'!AR$5,Inputs!$O$5:$BB$5,0)) -> 2047-01-01 | AS3: =INDEX(Inputs!$O3:$BB3,MATCH('Costs & Revenue'!AS$5,Inputs!$O$5:$BB$5,0)) -> 2048-01-01 | AT3: =INDEX(Inputs!$O3:$BB3,MATCH('Costs & Revenue'!AT$5,Inputs!$O$5:$BB$5,0)) -> 2049-01-01 | AU3: =INDEX(Inputs!$O3:$BB3,MATCH('Costs & Revenue'!AU$5,Inputs!$O$5:$BB$5,0)) -> 2050-01-01 | AV3: =INDEX(Inputs!$O3:$BB3,MATCH('Costs & Revenue'!AV$5,Inputs!$O$5:$BB$5,0)) -> 2051-01-01 | AW3: =INDEX(Inputs!$O3:$BB3,MATCH('Costs & Revenue'!AW$5,Inputs!$O$5:$BB$5,0)) -> 2052-01-01 | AX3: =INDEX(Inputs!$O3:$BB3,MATCH('Costs & Revenue'!AX$5,Inputs!$O$5:$BB$5,0)) -> 2053-01-01 | AY3: =INDEX(Inputs!$O3:$BB3,MATCH('Costs & Revenue'!AY$5,Inputs!$O$5:$BB$5,0)) -> 2054-01-01 | AZ3: =INDEX(Inputs!$O3:$BB3,MATCH('Costs & Revenue'!AZ$5,Inputs!$O$5:$BB$5,0)) -> 2055-01-01 | BA3: =INDEX(Inputs!$O3:$BB3,MATCH('Costs & Revenue'!BA$5,Inputs!$O$5:$BB$5,0)) -> 2056-01-01 | BB3: =INDEX(Inputs!$O3:$BB3,MATCH('Costs & Revenue'!BB$5,Inputs!$O$5:$BB$5,0)) -> 2057-01-01
E4: Year ending | O4: =INDEX(Inputs!$O4:$BB4,MATCH('Costs & Revenue'!O$5,Inputs!$O$5:$BB$5,0)) -> 2018-12-31 | P4: =INDEX(Inputs!$O4:$BB4,MATCH('Costs & Revenue'!P$5,Inputs!$O$5:$BB$5,0)) -> 2019-12-31 | Q4: =INDEX(Inputs!$O4:$BB4,MATCH('Costs & Revenue'!Q$5,Inputs!$O$5:$BB$5,0)) -> 2020-12-31 | R4: =INDEX(Inputs!$O4:$BB4,MATCH('Costs & Revenue'!R$5,Inputs!$O$5:$BB$5,0)) -> 2021-12-31 | S4: =INDEX(Inputs!$O4:$BB4,MATCH('Costs & Revenue'!S$5,Inputs!$O$5:$BB$5,0)) -> 2022-12-31 | T4: =INDEX(Inputs!$O4:$BB4,MATCH('Costs & Revenue'!T$5,Inputs!$O$5:$BB$5,0)) -> 2023-12-31 | U4: =INDEX(Inputs!$O4:$BB4,MATCH('Costs & Revenue'!U$5,Inputs!$O$5:$BB$5,0)) -> 2024-12-31 | V4: =INDEX(Inputs!$O4:$BB4,MATCH('Costs & Revenue'!V$5,Inputs!$O$5:$BB$5,0)) -> 2025-12-31 | W4: =INDEX(Inputs!$O4:$BB4,MATCH('Costs & Revenue'!W$5,Inputs!$O$5:$BB$5,0)) -> 2026-12-31 | X4: =INDEX(Inputs!$O4:$BB4,MATCH('Costs & Revenue'!X$5,Inputs!$O$5:$BB$5,0)) -> 2027-12-31 | Y4: =INDEX(Inputs!$O4:$BB4,MATCH('Costs & Revenue'!Y$5,Inputs!$O$5:$BB$5,0)) -> 2028-12-31 | Z4: =INDEX(Inputs!$O4:$BB4,MATCH('Costs & Revenue'!Z$5,Inputs!$O$5:$BB$5,0)) -> 2029-12-31 | AA4: =INDEX(Inputs!$O4:$BB4,MATCH('Costs & Revenue'!AA$5,Inputs!$O$5:$BB$5,0)) -> 2030-12-31 | AB4: =INDEX(Inputs!$O4:$BB4,MATCH('Costs & Revenue'!AB$5,Inputs!$O$5:$BB$5,0)) -> 2031-12-31 | AC4: =INDEX(Inputs!$O4:$BB4,MATCH('Costs & Revenue'!AC$5,Inputs!$O$5:$BB$5,0)) -> 2032-12-31 | AD4: =INDEX(Inputs!$O4:$BB4,MATCH('Costs & Revenue'!AD$5,Inputs!$O$5:$BB$5,0)) -> 2033-12-31 | AE4: =INDEX(Inputs!$O4:$BB4,MATCH('Costs & Revenue'!AE$5,Inputs!$O$5:$BB$5,0)) -> 2034-12-31 | AF4: =INDEX(Inputs!$O4:$BB4,MATCH('Costs & Revenue'!AF$5,Inputs!$O$5:$BB$5,0)) -> 2035-12-31 | AG4: =INDEX(Inputs!$O4:$BB4,MATCH('Costs & Revenue'!AG$5,Inputs!$O$5:$BB$5,0)) -> 2036-12-31 | AH4: =INDEX(Inputs!$O4:$BB4,MATCH('Costs & Revenue'!AH$5,Inputs!$O$5:$BB$5,0)) -> 2037-12-31 | AI4: =INDEX(Inputs!$O4:$BB4,MATCH('Costs & Revenue'!AI$5,Inputs!$O$5:$BB$5,0)) -> 2038-12-31 | AJ4: =INDEX(Inputs!$O4:$BB4,MATCH('Costs & Revenue'!AJ$5,Inputs!$O$5:$BB$5,0)) -> 2039-12-31 | AK4: =INDEX(Inputs!$O4:$BB4,MATCH('Costs & Revenue'!AK$5,Inputs!$O$5:$BB$5,0)) -> 2040-12-31 | AL4: =INDEX(Inputs!$O4:$BB4,MATCH('Costs & Revenue'!AL$5,Inputs!$O$5:$BB$5,0)) -> 2041-12-31 | AM4: =INDEX(Inputs!$O4:$BB4,MATCH('Costs & Revenue'!AM$5,Inputs!$O$5:$BB$5,0)) -> 2042-12-31 | AN4: =INDEX(Inputs!$O4:$BB4,MATCH('Costs & Revenue'!AN$5,Inputs!$O$5:$BB$5,0)) -> 2043-12-31 | AO4: =INDEX(Inputs!$O4:$BB4,MATCH('Costs & Revenue'!AO$5,Inputs!$O$5:$BB$5,0)) -> 2044-12-31 | AP4: =INDEX(Inputs!$O4:$BB4,MATCH('Costs & Revenue'!AP$5,Inputs!$O$5:$BB$5,0)) -> 2045-12-31 | AQ4: =INDEX(Inputs!$O4:$BB4,MATCH('Costs & Revenue'!AQ$5,Inputs!$O$5:$BB$5,0)) -> 2046-12-31 | AR4: =INDEX(Inputs!$O4:$BB4,MATCH('Costs & Revenue'!AR$5,Inputs!$O$5:$BB$5,0)) -> 2047-12-31 | AS4: =INDEX(Inputs!$O4:$BB4,MATCH('Costs & Revenue'!AS$5,Inputs!$O$5:$BB$5,0)) -> 2048-12-31 | AT4: =INDEX(Inputs!$O4:$BB4,MATCH('Costs & Revenue'!AT$5,Inputs!$O$5:$BB$5,0)) -> 2049-12-31 | AU4: =INDEX(Inputs!$O4:$BB4,MATCH('Costs & Revenue'!AU$5,Inputs!$O$5:$BB$5,0)) -> 2050-12-31 | AV4: =INDEX(Inputs!$O4:$BB4,MATCH('Costs & Revenue'!AV$5,Inputs!$O$5:$BB$5,0)) -> 2051-12-31 | AW4: =INDEX(Inputs!$O4:$BB4,MATCH('Costs & Revenue'!AW$5,Inputs!$O$5:$BB$5,0)) -> 2052-12-31 | AX4: =INDEX(Inputs!$O4:$BB4,MATCH('Costs & Revenue'!AX$5,Inputs!$O$5:$BB$5,0)) -> 2053-12-31 | AY4: =INDEX(Inputs!$O4:$BB4,MATCH('Costs & Revenue'!AY$5,Inputs!$O$5:$BB$5,0)) -> 2054-12-31 | AZ4: =INDEX(Inputs!$O4:$BB4,MATCH('Costs & Revenue'!AZ$5,Inputs!$O$5:$BB$5,0)) -> 2055-12-31 | BA4: =INDEX(Inputs!$O4:$BB4,MATCH('Costs & Revenue'!BA$5,Inputs!$O$5:$BB$5,0)) -> 2056-12-31 | BB4: =INDEX(Inputs!$O4:$BB4,MATCH('Costs & Revenue'!BB$5,Inputs!$O$5:$BB$5,0)) -> 2057-12-31
E5: Operational year | O5: =Inputs!O5 -> 0 | P5: =Inputs!P5 -> 1 | Q5: =Inputs!Q5 -> 2 | R5: =Inputs!R5 -> 3 | S5: =Inputs!S5 -> 4 | T5: =Inputs!T5 -> 5 | U5: =Inputs!U5 -> 6 | V5: =Inputs!V5 -> 7 | W5: =Inputs!W5 -> 8 | X5: =Inputs!X5 -> 9 | Y5: =Inputs!Y5 -> 10 | Z5: =Inputs!Z5 -> 11 | AA5: =Inputs!AA5 -> 12 | AB5: =Inputs!AB5 -> 13 | AC5: =Inputs!AC5 -> 14 | AD5: =Inputs!AD5 -> 15 | AE5: =Inputs!AE5 -> 16 | AF5: =Inputs!AF5 -> 17 | AG5: =Inputs!AG5 -> 18 | AH5: =Inputs!AH5 -> 19 | AI5: =Inputs!AI5 -> 20 | AJ5: =Inputs!AJ5 -> 21 | AK5: =Inputs!AK5 -> 22 | AL5: =Inputs!AL5 -> 23 | AM5: =Inputs!AM5 -> 24 | AN5: =Inputs!AN5 -> 25 | AO5: =Inputs!AO5 -> 26 | AP5: =Inputs!AP5 -> 27 | AQ5: =Inputs!AQ5 -> 28 | AR5: =Inputs!AR5 -> 29 | AS5: =Inputs!AS5 -> 30 | AT5: =Inputs!AT5 -> 31 | AU5: =Inputs!AU5 -> 32 | AV5: =Inputs!AV5 -> 33 | AW5: =Inputs!AW5 -> 34 | AX5: =Inputs!AX5 -> 35 | AY5: =Inputs!AY5 -> 36 | AZ5: =Inputs!AZ5 -> 37 | BA5: =Inputs!BA5 -> 38 | BB5: =Inputs!BB5 -> 39
B7: Controllable Opex
C9: Original controllable Opex allowance from PCR stage
E11: Controllable Opex (baseline) | G11: =base_year -> £m 13/14 prices | P11: =INDEX(Inputs!$P$35:$BB$35,MATCH('Costs & Revenue'!P$5,Inputs!$P$5:$BB$5,0)) -> 14.38379731 | Q11: =INDEX(Inputs!$P$35:$BB$35,MATCH('Costs & Revenue'!Q$5,Inputs!$P$5:$BB$5,0)) -> 12.9621511 | R11: =INDEX(Inputs!$P$35:$BB$35,MATCH('Costs & Revenue'!R$5,Inputs!$P$5:$BB$5,0)) -> 12.90028773 | S11: =INDEX(Inputs!$P$35:$BB$35,MATCH('Costs & Revenue'!S$5,Inputs!$P$5:$BB$5,0)) -> 12.86259372 | T11: =INDEX(Inputs!$P$35:$BB$35,MATCH('Costs & Revenue'!T$5,Inputs!$P$5:$BB$5,0)) -> 12.81894305 | U11: =INDEX(Inputs!$P$35:$BB$35,MATCH('Costs & Revenue'!U$5,Inputs!$P$5:$BB$5,0)) -> 13.85613736 | V11: =INDEX(Inputs!$P$35:$BB$35,MATCH('Costs & Revenue'!V$5,Inputs!$P$5:$BB$5,0)) -> 13.65473761 | W11: =INDEX(Inputs!$P$35:$BB$35,MATCH('Costs & Revenue'!W$5,Inputs!$P$5:$BB$5,0)) -> 13.69864582 | X11: =INDEX(Inputs!$P$35:$BB$35,MATCH('Costs & Revenue'!X$5,Inputs!$P$5:$BB$5,0)) -> 13.74794943 | Y11: =INDEX(Inputs!$P$35:$BB$35,MATCH('Costs & Revenue'!Y$5,Inputs!$P$5:$BB$5,0)) -> 13.78094309 | Z11: =INDEX(Inputs!$P$35:$BB$35,MATCH('Costs & Revenue'!Z$5,Inputs!$P$5:$BB$5,0)) -> 14.10606888 | AA11: =INDEX(Inputs!$P$35:$BB$35,MATCH('Costs & Revenue'!AA$5,Inputs!$P$5:$BB$5,0)) -> 13.90061517 | AB11: =INDEX(Inputs!$P$35:$BB$35,MATCH('Costs & Revenue'!AB$5,Inputs!$P$5:$BB$5,0)) -> 13.94591247 | AC11: =INDEX(Inputs!$P$35:$BB$35,MATCH('Costs & Revenue'!AC$5,Inputs!$P$5:$BB$5,0)) -> 14.00341659 | AD11: =INDEX(Inputs!$P$35:$BB$35,MATCH('Costs & Revenue'!AD$5,Inputs!$P$5:$BB$5,0)) -> 14.03784263 | AE11: =INDEX(Inputs!$P$35:$BB$35,MATCH('Costs & Revenue'!AE$5,Inputs!$P$5:$BB$5,0)) -> 14.36442275 | AF11: =INDEX(Inputs!$P$35:$BB$35,MATCH('Costs & Revenue'!AF$5,Inputs!$P$5:$BB$5,0)) -> 14.16279483 | AG11: =INDEX(Inputs!$P$35:$BB$35,MATCH('Costs & Revenue'!AG$5,Inputs!$P$5:$BB$5,0)) -> 14.2065186 | AH11: =INDEX(Inputs!$P$35:$BB$35,MATCH('Costs & Revenue'!AH$5,Inputs!$P$5:$BB$5,0)) -> 14.26247185 | AI11: =INDEX(Inputs!$P$35:$BB$35,MATCH('Costs & Revenue'!AI$5,Inputs!$P$5:$BB$5,0)) -> 14.29536985 | AJ11: =INDEX(Inputs!$P$35:$BB$35,MATCH('Costs & Revenue'!AJ$5,Inputs!$P$5:$BB$5,0)) -> 14.60005563 | AK11: =INDEX(Inputs!$P$35:$BB$35,MATCH('Costs & Revenue'!AK$5,Inputs!$P$5:$BB$5,0)) -> 14.39694609 | AL11: =INDEX(Inputs!$P$35:$BB$35,MATCH('Costs & Revenue'!AL$5,Inputs!$P$5:$BB$5,0)) -> 14.44304869 | AM11: =INDEX(Inputs!$P$35:$BB$35,MATCH('Costs & Revenue'!AM$5,Inputs!$P$5:$BB$5,0)) -> 14.52656197 | AN11: =INDEX(Inputs!$P$35:$BB$35,MATCH('Costs & Revenue'!AN$5,Inputs!$P$5:$BB$5,0)) -> 14.56188662 | AO11: =INDEX(Inputs!$P$35:$BB$35,MATCH('Costs & Revenue'!AO$5,Inputs!$P$5:$BB$5,0)) -> 0 | AP11: =INDEX(Inputs!$P$35:$BB$35,MATCH('Costs & Revenue'!AP$5,Inputs!$P$5:$BB$5,0)) -> 0 | AQ11: =INDEX(Inputs!$P$35:$BB$35,MATCH('Costs & Revenue'!AQ$5,Inputs!$P$5:$BB$5,0)) -> 0 | AR11: =INDEX(Inputs!$P$35:$BB$35,MATCH('Costs & Revenue'!AR$5,Inputs!$P$5:$BB$5,0)) -> 0 | AS11: =INDEX(Inputs!$P$35:$BB$35,MATCH('Costs & Revenue'!AS$5,Inputs!$P$5:$BB$5,0)) -> 0 | AT11: =INDEX(Inputs!$P$35:$BB$35,MATCH('Costs & Revenue'!AT$5,Inputs!$P$5:$BB$5,0)) -> 0 | AU11: =INDEX(Inputs!$P$35:$BB$35,MATCH('Costs & Revenue'!AU$5,Inputs!$P$5:$BB$5,0)) -> 0 | AV11: =INDEX(Inputs!$P$35:$BB$35,MATCH('Costs & Revenue'!AV$5,Inputs!$P$5:$BB$5,0)) -> 0 | AW11: =INDEX(Inputs!$P$35:$BB$35,MATCH('Costs & Revenue'!AW$5,Inputs!$P$5:$BB$5,0)) -> 0 | AX11: =INDEX(Inputs!$P$35:$BB$35,MATCH('Costs & Revenue'!AX$5,Inputs!$P$5:$BB$5,0)) -> 0 | AY11: =INDEX(Inputs!$P$35:$BB$35,MATCH('Costs & Revenue'!AY$5,Inputs!$P$5:$BB$5,0)) -> 0 | AZ11: =INDEX(Inputs!$P$35:$BB$35,MATCH('Costs & Revenue'!AZ$5,Inputs!$P$5:$BB$5,0)) -> 0 | BA11: =INDEX(Inputs!$P$35:$BB$35,MATCH('Costs & Revenue'!BA$5,Inputs!$P$5:$BB$5,0)) -> 0 | BB11: =INDEX(Inputs!$P$35:$BB$35,MATCH('Costs & Revenue'!BB$5,Inputs!$P$5:$BB$5,0)) -> 0
C13: Revised controllable Opex allowance from ORA submission
E15: Controllable Opex (ORA submission) | G15: =base_year -> £m 13/14 prices | P15: =INDEX(Inputs!$P$164:$BB$164,MATCH('Costs & Revenue'!P$5,Inputs!$P$5:$BB$5,0)) -> 13 | Q15: =INDEX(Inputs!$P$164:$BB$164,MATCH('Costs & Revenue'!Q$5,Inputs!$P$5:$BB$5,0)) -> 13 | R15: =INDEX(Inputs!$P$164:$BB$164,MATCH('Costs & Revenue'!R$5,Inputs!$P$5:$BB$5,0)) -> 13 | S15: =INDEX(Inputs!$P$164:$BB$164,MATCH('Costs & Revenue'!S$5,Inputs!$P$5:$BB$5,0)) -> 13 | T15: =INDEX(Inputs!$P$164:$BB$164,MATCH('Costs & Revenue'!T$5,Inputs!$P$5:$BB$5,0)) -> 13 | U15: =INDEX(Inputs!$P$164:$BB$164,MATCH('Costs & Revenue'!U$5,Inputs!$P$5:$BB$5,0)) -> 13 | V15: =INDEX(Inputs!$P$164:$BB$164,MATCH('Costs & Revenue'!V$5,Inputs!$P$5:$BB$5,0)) -> 13 | W15: =INDEX(Inputs!$P$164:$BB$164,MATCH('Costs & Revenue'!W$5,Inputs!$P$5:$BB$5,0)) -> 13 | X15: =INDEX(Inputs!$P$164:$BB$164,MATCH('Costs & Revenue'!X$5,Inputs!$P$5:$BB$5,0)) -> 13 | Y15: =INDEX(Inputs!$P$164:$BB$164,MATCH('Costs & Revenue'!Y$5,Inputs!$P$5:$BB$5,0)) -> 13 | Z15: =INDEX(Inputs!$P$164:$BB$164,MATCH('Costs & Revenue'!Z$5,Inputs!$P$5:$BB$5,0)) -> 13 | AA15: =INDEX(Inputs!$P$164:$BB$164,MATCH('Costs & Revenue'!AA$5,Inputs!$P$5:$BB$5,0)) -> 13 | AB15: =INDEX(Inputs!$P$164:$BB$164,MATCH('Costs & Revenue'!AB$5,Inputs!$P$5:$BB$5,0)) -> 13 | AC15: =INDEX(Inputs!$P$164:$BB$164,MATCH('Costs & Revenue'!AC$5,Inputs!$P$5:$BB$5,0)) -> 13 | AD15: =INDEX(Inputs!$P$164:$BB$164,MATCH('Costs & Revenue'!AD$5,Inputs!$P$5:$BB$5,0)) -> 13 | AE15: =INDEX(Inputs!$P$164:$BB$164,MATCH('Costs & Revenue'!AE$5,Inputs!$P$5:$BB$5,0)) -> 13 | AF15: =INDEX(Inputs!$P$164:$BB$164,MATCH('Costs & Revenue'!AF$5,Inputs!$P$5:$BB$5,0)) -> 13 | AG15: =INDEX(Inputs!$P$164:$BB$164,MATCH('Costs & Revenue'!AG$5,Inputs!$P$5:$BB$5,0)) -> 13 | AH15: =INDEX(Inputs!$P$164:$BB$164,MATCH('Costs & Revenue'!AH$5,Inputs!$P$5:$BB$5,0)) -> 13 | AI15: =INDEX(Inputs!$P$164:$BB$164,MATCH('Costs & Revenue'!AI$5,Inputs!$P$5:$BB$5,0)) -> 13 | AJ15: =INDEX(Inputs!$P$164:$BB$164,MATCH('Costs & Revenue'!AJ$5,Inputs!$P$5:$BB$5,0)) -> 13 | AK15: =INDEX(Inputs!$P$164:$BB$164,MATCH('Costs & Revenue'!AK$5,Inputs!$P$5:$BB$5,0)) -> 13 | AL15: =INDEX(Inputs!$P$164:$BB$164,MATCH('Costs & Revenue'!AL$5,Inputs!$P$5:$BB$5,0)) -> 13 | AM15: =INDEX(Inputs!$P$164:$BB$164,MATCH('Costs & Revenue'!AM$5,Inputs!$P$5:$BB$5,0)) -> 13 | AN15: =INDEX(Inputs!$P$164:$BB$164,MATCH('Costs & Revenue'!AN$5,Inputs!$P$5:$BB$5,0)) -> 13 | AO15: =INDEX(Inputs!$P$164:$BB$164,MATCH('Costs & Revenue'!AO$5,Inputs!$P$5:$BB$5,0)) -> 0 | AP15: =INDEX(Inputs!$P$164:$BB$164,MATCH('Costs & Revenue'!AP$5,Inputs!$P$5:$BB$5,0)) -> 0 | AQ15: =INDEX(Inputs!$P$164:$BB$164,MATCH('Costs & Revenue'!AQ$5,Inputs!$P$5:$BB$5,0)) -> 0 | AR15: =INDEX(Inputs!$P$164:$BB$164,MATCH('Costs & Revenue'!AR$5,Inputs!$P$5:$BB$5,0)) -> 0 | AS15: =INDEX(Inputs!$P$164:$BB$164,MATCH('Costs & Revenue'!AS$5,Inputs!$P$5:$BB$5,0)) -> 0 | AT15: =INDEX(Inputs!$P$164:$BB$164,MATCH('Costs & Revenue'!AT$5,Inputs!$P$5:$BB$5,0)) -> 0 | AU15: =INDEX(Inputs!$P$164:$BB$164,MATCH('Costs & Revenue'!AU$5,Inputs!$P$5:$BB$5,0)) -> 0 | AV15: =INDEX(Inputs!$P$164:$BB$164,MATCH('Costs & Revenue'!AV$5,Inputs!$P$5:$BB$5,0)) -> 0 | AW15: =INDEX(Inputs!$P$164:$BB$164,MATCH('Costs & Revenue'!AW$5,Inputs!$P$5:$BB$5,0)) -> 0 | AX15: =INDEX(Inputs!$P$164:$BB$164,MATCH('Costs & Revenue'!AX$5,Inputs!$P$5:$BB$5,0)) -> 0 | AY15: =INDEX(Inputs!$P$164:$BB$164,MATCH('Costs & Revenue'!AY$5,Inputs!$P$5:$BB$5,0)) -> 0 | AZ15: =INDEX(Inputs!$P$164:$BB$164,MATCH('Costs & Revenue'!AZ$5,Inputs!$P$5:$BB$5,0)) -> 0 | BA15: =INDEX(Inputs!$P$164:$BB$164,MATCH('Costs & Revenue'!BA$5,Inputs!$P$5:$BB$5,0)) -> 0 | BB15: =INDEX(Inputs!$P$164:$BB$164,MATCH('Costs & Revenue'!BB$5,Inputs!$P$5:$BB$5,0)) -> 0
C17: NPV comparisons
E19: =Inputs!E161 -> ORA Cap effective flag | G19: flag | P19: =INDEX(Inputs!$P$161:$BB$161,MATCH('Costs & Revenue'!P$5,Inputs!$P$5:$BB$5,0)) -> 0 | Q19: =INDEX(Inputs!$P$161:$BB$161,MATCH('Costs & Revenue'!Q$5,Inputs!$P$5:$BB$5,0)) -> 0 | R19: =INDEX(Inputs!$P$161:$BB$161,MATCH('Costs & Revenue'!R$5,Inputs!$P$5:$BB$5,0)) -> 0 | S19: =INDEX(Inputs!$P$161:$BB$161,MATCH('Costs & Revenue'!S$5,Inputs!$P$5:$BB$5,0)) -> 0 | T19: =INDEX(Inputs!$P$161:$BB$161,MATCH('Costs & Revenue'!T$5,Inputs!$P$5:$BB$5,0)) -> 0 | U19: =INDEX(Inputs!$P$161:$BB$161,MATCH('Costs & Revenue'!U$5,Inputs!$P$5:$BB$5,0)) -> 0 | V19: =INDEX(Inputs!$P$161:$BB$161,MATCH('Costs & Revenue'!V$5,Inputs!$P$5:$BB$5,0)) -> 0 | W19: =INDEX(Inputs!$P$161:$BB$161,MATCH('Costs & Revenue'!W$5,Inputs!$P$5:$BB$5,0)) -> 0 | X19: =INDEX(Inputs!$P$161:$BB$161,MATCH('Costs & Revenue'!X$5,Inputs!$P$5:$BB$5,0)) -> 0 | Y19: =INDEX(Inputs!$P$161:$BB$161,MATCH('Costs & Revenue'!Y$5,Inputs!$P$5:$BB$5,0)) -> 0 | Z19: =INDEX(Inputs!$P$161:$BB$161,MATCH('Costs & Revenue'!Z$5,Inputs!$P$5:$BB$5,0)) -> 0 | AA19: =INDEX(Inputs!$P$161:$BB$161,MATCH('Costs & Revenue'!AA$5,Inputs!$P$5:$BB$5,0)) -> 0.9993155373 | AB19: =INDEX(Inputs!$P$161:$BB$161,MATCH('Costs & Revenue'!AB$5,Inputs!$P$5:$BB$5,0)) -> 1 | AC19: =INDEX(Inputs!$P$161:$BB$161,MATCH('Costs & Revenue'!AC$5,Inputs!$P$5:$BB$5,0)) -> 1 | AD19: =INDEX(Inputs!$P$161:$BB$161,MATCH('Costs & Revenue'!AD$5,Inputs!$P$5:$BB$5,0)) -> 1 | AE19: =INDEX(Inputs!$P$161:$BB$161,MATCH('Costs & Revenue'!AE$5,Inputs!$P$5:$BB$5,0)) -> 1 | AF19: =INDEX(Inputs!$P$161:$BB$161,MATCH('Costs & Revenue'!AF$5,Inputs!$P$5:$BB$5,0)) -> 1 | AG19: =INDEX(Inputs!$P$161:$BB$161,MATCH('Costs & Revenue'!AG$5,Inputs!$P$5:$BB$5,0)) -> 1 | AH19: =INDEX(Inputs!$P$161:$BB$161,MATCH('Costs & Revenue'!AH$5,Inputs!$P$5:$BB$5,0)) -> 1 | AI19: =INDEX(Inputs!$P$161:$BB$161,MATCH('Costs & Revenue'!AI$5,Inputs!$P$5:$BB$5,0)) -> 1 | AJ19: =INDEX(Inputs!$P$161:$BB$161,MATCH('Costs & Revenue'!AJ$5,Inputs!$P$5:$BB$5,0)) -> 1 | AK19: =INDEX(Inputs!$P$161:$BB$161,MATCH('Costs & Revenue'!AK$5,Inputs!$P$5:$BB$5,0)) -> 1 | AL19: =INDEX(Inputs!$P$161:$BB$161,MATCH('Costs & Revenue'!AL$5,Inputs!$P$5:$BB$5,0)) -> 1 | AM19: =INDEX(Inputs!$P$161:$BB$161,MATCH('Costs & Revenue'!AM$5,Inputs!$P$5:$BB$5,0)) -> 1 | AN19: =INDEX(Inputs!$P$161:$BB$161,MATCH('Costs & Revenue'!AN$5,Inputs!$P$5:$BB$5,0)) -> 1.082819986 | AO19: =INDEX(Inputs!$P$161:$BB$161,MATCH('Costs & Revenue'!AO$5,Inputs!$P$5:$BB$5,0)) -> 0 | AP19: =INDEX(Inputs!$P$161:$BB$161,MATCH('Costs & Revenue'!AP$5,Inputs!$P$5:$BB$5,0)) -> 0 | AQ19: =INDEX(Inputs!$P$161:$BB$161,MATCH('Costs & Revenue'!AQ$5,Inputs!$P$5:$BB$5,0)) -> 0 | AR19: =INDEX(Inputs!$P$161:$BB$161,MATCH('Costs & Revenue'!AR$5,Inputs!$P$5:$BB$5,0)) -> 0 | AS19: =INDEX(Inputs!$P$161:$BB$161,MATCH('Costs & Revenue'!AS$5,Inputs!$P$5:$BB$5,0)) -> 0 | AT19: =INDEX(Inputs!$P$161:$BB$161,MATCH('Costs & Revenue'!AT$5,Inputs!$P$5:$BB$5,0)) -> 0 | AU19: =INDEX(Inputs!$P$161:$BB$161,MATCH('Costs & Revenue'!AU$5,Inputs!$P$5:$BB$5,0)) -> 0 | AV19: =INDEX(Inputs!$P$161:$BB$161,MATCH('Costs & Revenue'!AV$5,Inputs!$P$5:$BB$5,0)) -> 0 | AW19: =INDEX(Inputs!$P$161:$BB$161,MATCH('Costs & Revenue'!AW$5,Inputs!$P$5:$BB$5,0)) -> 0 | AX19: =INDEX(Inputs!$P$161:$BB$161,MATCH('Costs & Revenue'!AX$5,Inputs!$P$5:$BB$5,0)) -> 0 | AY19: =INDEX(Inputs!$P$161:$BB$161,MATCH('Costs & Revenue'!AY$5,Inputs!$P$5:$BB$5,0)) -> 0 | AZ19: =INDEX(Inputs!$P$161:$BB$161,MATCH('Costs & Revenue'!AZ$5,Inputs!$P$5:$BB$5,0)) -> 0 | BA19: =INDEX(Inputs!$P$161:$BB$161,MATCH('Costs & Revenue'!BA$5,Inputs!$P$5:$BB$5,0)) -> 0 | BB19: =INDEX(Inputs!$P$161:$BB$161,MATCH('Costs & Revenue'!BB$5,Inputs!$P$5:$BB$5,0)) -> 0
E20: Cap return rate | I20: =Inputs!I40 -> 0.0734
E21: Discount factor to start of operational period (cap) | G21: scalar | O21: =IF(O5<=Inputs!$I$21,(1+$I20)^-O$5,0) -> 1 | P21: =IF(P5<=Inputs!$I$21,(1+$I20)^-P$5,0) -> 0.9316191541 | Q21: =IF(Q5<=Inputs!$I$21,(1+$I20)^-Q$5,0) -> 0.8679142483 | R21: =IF(R5<=Inputs!$I$21,(1+$I20)^-R$5,0) -> 0.8085655378 | S21: =IF(S5<=Inputs!$I$21,(1+$I20)^-S$5,0) -> 0.7532751423 | T21: =IF(T5<=Inputs!$I$21,(1+$I20)^-T$5,0) -> 0.7017655509 | U21: =IF(U5<=Inputs!$I$21,(1+$I20)^-U$5,0) -> 0.6537782289 | V21: =IF(V5<=Inputs!$I$21,(1+$I20)^-V$5,0) -> 0.6090723206 | W21: =IF(W5<=Inputs!$I$21,(1+$I20)^-W$5,0) -> 0.5674234401 | X21: =IF(X5<=Inputs!$I$21,(1+$I20)^-X$5,0) -> 0.5286225453 | Y21: =IF(Y5<=Inputs!$I$21,(1+$I20)^-Y$5,0) -> 0.4924748884 | Z21: =IF(Z5<=Inputs!$I$21,(1+$I20)^-Z$5,0) -> 0.458799039 | AA21: =IF(AA5<=Inputs!$I$21,(1+$I20)^-AA$5,0) -> 0.4274259726 | AB21: =IF(AB5<=Inputs!$I$21,(1+$I20)^-AB$5,0) -> 0.398198223 | AC21: =IF(AC5<=Inputs!$I$21,(1+$I20)^-AC$5,0) -> 0.3709690917 | AD21: =IF(AD5<=Inputs!$I$21,(1+$I20)^-AD$5,0) -> 0.3456019114 | AE21: =IF(AE5<=Inputs!$I$21,(1+$I20)^-AE$5,0) -> 0.3219693603 | AF21: =IF(AF5<=Inputs!$I$21,(1+$I20)^-AF$5,0) -> 0.2999528231 | AG21: =IF(AG5<=Inputs!$I$21,(1+$I20)^-AG$5,0) -> 0.2794417953 | AH21: =IF(AH5<=Inputs!$I$21,(1+$I20)^-AH$5,0) -> 0.260333329 | AI21: =IF(AI5<=Inputs!$I$21,(1+$I20)^-AI$5,0) -> 0.2425315157 | AJ21: =IF(AJ5<=Inputs!$I$21,(1+$I20)^-AJ$5,0) -> 0.2259470055 | AK21: =IF(AK5<=Inputs!$I$21,(1+$I20)^-AK$5,0) -> 0.2104965582 | AL21: =IF(AL5<=Inputs!$I$21,(1+$I20)^-AL$5,0) -> 0.1961026255 | AM21: =IF(AM5<=Inputs!$I$21,(1+$I20)^-AM$5,0) -> 0.182692962 | AN21: =IF(AN5<=Inputs!$I$21,(1+$I20)^-AN$5,0) -> 0.1702002628 | AO21: =IF(AO5<=Inputs!$I$21,(1+$I20)^-AO$5,0) -> 0 | AP21: =IF(AP5<=Inputs!$I$21,(1+$I20)^-AP$5,0) -> 0 | AQ21: =IF(AQ5<=Inputs!$I$21,(1+$I20)^-AQ$5,0) -> 0 | AR21: =IF(AR5<=Inputs!$I$21,(1+$I20)^-AR$5,0) -> 0 | AS21: =IF(AS5<=Inputs!$I$21,(1+$I20)^-AS$5,0) -> 0 | AT21: =IF(AT5<=Inputs!$I$21,(1+$I20)^-AT$5,0) -> 0 | AU21: =IF(AU5<=Inputs!$I$21,(1+$I20)^-AU$5,0) -> 0 | AV21: =IF(AV5<=Inputs!$I$21,(1+$I20)^-AV$5,0) -> 0 | AW21: =IF(AW5<=Inputs!$I$21,(1+$I20)^-AW$5,0) -> 0 | AX21: =IF(AX5<=Inputs!$I$21,(1+$I20)^-AX$5,0) -> 0 | AY21: =IF(AY5<=Inputs!$I$21,(1+$I20)^-AY$5,0) -> 0 | AZ21: =IF(AZ5<=Inputs!$I$21,(1+$I20)^-AZ$5,0) -> 0 | BA21: =IF(BA5<=Inputs!$I$21,(1+$I20)^-BA$5,0) -> 0 | BB21: =IF(BB5<=Inputs!$I$21,(1+$I20)^-BB$5,0) -> 0
E23: NPV of original allowance | G23: =base_year -> £m 13/14 prices | I23: =SUMPRODUCT($O$21:$BB$21,O11:BB11,$O$19:$BB$19) -> 56.05930653
E24: NPV of revised allowance | G24: =base_year -> £m 13/14 prices | I24: =SUMPRODUCT($O$21:$BB$21,O15:BB15,$O$19:$BB$19) -> 51.29366921
E25: Difference in NPV | G25: =base_year -> £m 13/14 prices | I25: =I24-I23 -> -4.765637314
E27: Amendment to Cap rate | G27: =base_year -> £m 13/14 prices | H27: ORAC | I27: =I25/SUMPRODUCT($O$19:$BB$19,$O$21:$BB$21) -> -1.207815429
E29: =Inputs!E162 -> ORA Floor effective flag | G29: flag | P29: =Inputs!P162 -> 0 | Q29: =Inputs!Q162 -> 0 | R29: =Inputs!R162 -> 0 | S29: =Inputs!S162 -> 0 | T29: =Inputs!T162 -> 0 | U29: =Inputs!U162 -> 0 | V29: =Inputs!V162 -> 0 | W29: =Inputs!W162 -> 0 | X29: =Inputs!X162 -> 0 | Y29: =Inputs!Y162 -> 0 | Z29: =Inputs!Z162 -> 0 | AA29: =Inputs!AA162 -> 0.9993155373 | AB29: =Inputs!AB162 -> 1 | AC29: =Inputs!AC162 -> 1 | AD29: =Inputs!AD162 -> 1 | AE29: =Inputs!AE162 -> 1 | AF29: =Inputs!AF162 -> 1 | AG29: =Inputs!AG162 -> 1 | AH29: =Inputs!AH162 -> 1 | AI29: =Inputs!AI162 -> 1 | AJ29: =Inputs!AJ162 -> 1 | AK29: =Inputs!AK162 -> 1 | AL29: =Inputs!AL162 -> 1 | AM29: =Inputs!AM162 -> 1 | AN29: =Inputs!AN162 -> 1.082819986 | AO29: =Inputs!AO162 -> 0 | AP29: =Inputs!AP162 -> 0 | AQ29: =Inputs!AQ162 -> 0 | AR29: =Inputs!AR162 -> 0 | AS29: =Inputs!AS162 -> 0 | AT29: =Inputs!AT162 -> 0 | AU29: =Inputs!AU162 -> 0 | AV29: =Inputs!AV162 -> 0 | AW29: =Inputs!AW162 -> 0 | AX29: =Inputs!AX162 -> 0 | AY29: =Inputs!AY162 -> 0 | AZ29: =Inputs!AZ162 -> 0 | BA29: =Inputs!BA162 -> 0 | BB29: =Inputs!BB162 -> 0
E30: Floor return rate | I30: =Inputs!I41 -> 0.0042
E31: Discount factor to start of operational period (floor) | G31: scalar | O31: =IF(O5<=Inputs!$I$21,(1+$I30)^-O$5,0) -> 1 | P31: =IF(P5<=Inputs!$I$21,(1+$I30)^-P$5,0) -> 0.9958175662 | Q31: =IF(Q5<=Inputs!$I$21,(1+$I30)^-Q$5,0) -> 0.9916526252 | R31: =IF(R5<=Inputs!$I$21,(1+$I30)^-R$5,0) -> 0.9875051038 | S31: =IF(S5<=Inputs!$I$21,(1+$I30)^-S$5,0) -> 0.9833749291 | T31: =IF(T5<=Inputs!$I$21,(1+$I30)^-T$5,0) -> 0.9792620285 | U31: =IF(U5<=Inputs!$I$21,(1+$I30)^-U$5,0) -> 0.97516633 | V31: =IF(V5<=Inputs!$I$21,(1+$I30)^-V$5,0) -> 0.9710877614 | W31: =IF(W5<=Inputs!$I$21,(1+$I30)^-W$5,0) -> 0.9670262511 | X31: =IF(X5<=Inputs!$I$21,(1+$I30)^-X$5,0) -> 0.9629817278 | Y31: =IF(Y5<=Inputs!$I$21,(1+$I30)^-Y$5,0) -> 0.9589541205 | Z31: =IF(Z5<=Inputs!$I$21,(1+$I30)^-Z$5,0) -> 0.9549433584 | AA31: =IF(AA5<=Inputs!$I$21,(1+$I30)^-AA$5,0) -> 0.9509493711 | AB31: =IF(AB5<=Inputs!$I$21,(1+$I30)^-AB$5,0) -> 0.9469720883 | AC31: =IF(AC5<=Inputs!$I$21,(1+$I30)^-AC$5,0) -> 0.9430114403 | AD31: =IF(AD5<=Inputs!$I$21,(1+$I30)^-AD$5,0) -> 0.9390673574 | AE31: =IF(AE5<=Inputs!$I$21,(1+$I30)^-AE$5,0) -> 0.9351397703 | AF31: =IF(AF5<=Inputs!$I$21,(1+$I30)^-AF$5,0) -> 0.9312286102 | AG31: =IF(AG5<=Inputs!$I$21,(1+$I30)^-AG$5,0) -> 0.9273338082 | AH31: =IF(AH5<=Inputs!$I$21,(1+$I30)^-AH$5,0) -> 0.9234552959 | AI31: =IF(AI5<=Inputs!$I$21,(1+$I30)^-AI$5,0) -> 0.9195930053 | AJ31: =IF(AJ5<=Inputs!$I$21,(1+$I30)^-AJ$5,0) -> 0.9157468684 | AK31: =IF(AK5<=Inputs!$I$21,(1+$I30)^-AK$5,0) -> 0.9119168178 | AL31: =IF(AL5<=Inputs!$I$21,(1+$I30)^-AL$5,0) -> 0.9081027861 | AM31: =IF(AM5<=Inputs!$I$21,(1+$I30)^-AM$5,0) -> 0.9043047063 | AN31: =IF(AN5<=Inputs!$I$21,(1+$I30)^-AN$5,0) -> 0.9005225118 | AO31: =IF(AO5<=Inputs!$I$21,(1+$I30)^-AO$5,0) -> 0 | AP31: =IF(AP5<=Inputs!$I$21,(1+$I30)^-AP$5,0) -> 0 | AQ31: =IF(AQ5<=Inputs!$I$21,(1+$I30)^-AQ$5,0) -> 0 | AR31: =IF(AR5<=Inputs!$I$21,(1+$I30)^-AR$5,0) -> 0 | AS31: =IF(AS5<=Inputs!$I$21,(1+$I30)^-AS$5,0) -> 0 | AT31: =IF(AT5<=Inputs!$I$21,(1+$I30)^-AT$5,0) -> 0 | AU31: =IF(AU5<=Inputs!$I$21,(1+$I30)^-AU$5,0) -> 0 | AV31: =IF(AV5<=Inputs!$I$21,(1+$I30)^-AV$5,0) -> 0 | AW31: =IF(AW5<=Inputs!$I$21,(1+$I30)^-AW$5,0) -> 0 | AX31: =IF(AX5<=Inputs!$I$21,(1+$I30)^-AX$5,0) -> 0 | AY31: =IF(AY5<=Inputs!$I$21,(1+$I30)^-AY$5,0) -> 0 | AZ31: =IF(AZ5<=Inputs!$I$21,(1+$I30)^-AZ$5,0) -> 0 | BA31: =IF(BA5<=Inputs!$I$21,(1+$I30)^-BA$5,0) -> 0 | BB31: =IF(BB5<=Inputs!$I$21,(1+$I30)^-BB$5,0) -> 0
E33: NPV of original allowance | G33: =base_year -> £m 13/14 prices | I33: =SUMPRODUCT($O$31:$BB$31,O11:BB11,$O$29:$BB$29) -> 185.8667244
E34: NPV of revised allowance | G34: =base_year -> £m 13/14 prices | I34: =SUMPRODUCT($O$31:$BB$31,O15:BB15,$O$29:$BB$29) -> 169.4065725
E35: Difference in NPV | G35: =base_year -> £m 13/14 prices | I35: =I34-I33 -> -16.46015186
E37: Amendment to Floor rate | G37: =base_year -> £m 13/14 prices | H37: ORAF | I37: =I35/SUMPRODUCT($O$29:$BB$29,$O$31:$BB$31) -> -1.263126755
B39: End of sheet

Sheet DC Adjustment
A1: DC Adjustment | H1: Licence
E2: Parameter | G2: Units | H2: Terminology | I2: Constant | O2: Annual values
E3: Year commencing | O3: =INDEX(Inputs!$O3:$BB3,MATCH('Costs & Revenue'!O$5,Inputs!$O$5:$BB$5,0)) -> 2018-01-01 | P3: =INDEX(Inputs!$O3:$BB3,MATCH('Costs & Revenue'!P$5,Inputs!$O$5:$BB$5,0)) -> 2019-01-01 | Q3: =INDEX(Inputs!$O3:$BB3,MATCH('Costs & Revenue'!Q$5,Inputs!$O$5:$BB$5,0)) -> 2020-01-01 | R3: =INDEX(Inputs!$O3:$BB3,MATCH('Costs & Revenue'!R$5,Inputs!$O$5:$BB$5,0)) -> 2021-01-01 | S3: =INDEX(Inputs!$O3:$BB3,MATCH('Costs & Revenue'!S$5,Inputs!$O$5:$BB$5,0)) -> 2022-01-01 | T3: =INDEX(Inputs!$O3:$BB3,MATCH('Costs & Revenue'!T$5,Inputs!$O$5:$BB$5,0)) -> 2023-01-01 | U3: =INDEX(Inputs!$O3:$BB3,MATCH('Costs & Revenue'!U$5,Inputs!$O$5:$BB$5,0)) -> 2024-01-01 | V3: =INDEX(Inputs!$O3:$BB3,MATCH('Costs & Revenue'!V$5,Inputs!$O$5:$BB$5,0)) -> 2025-01-01 | W3: =INDEX(Inputs!$O3:$BB3,MATCH('Costs & Revenue'!W$5,Inputs!$O$5:$BB$5,0)) -> 2026-01-01 | X3: =INDEX(Inputs!$O3:$BB3,MATCH('Costs & Revenue'!X$5,Inputs!$O$5:$BB$5,0)) -> 2027-01-01 | Y3: =INDEX(Inputs!$O3:$BB3,MATCH('Costs & Revenue'!Y$5,Inputs!$O$5:$BB$5,0)) -> 2028-01-01 | Z3: =INDEX(Inputs!$O3:$BB3,MATCH('Costs & Revenue'!Z$5,Inputs!$O$5:$BB$5,0)) -> 2029-01-01 | AA3: =INDEX(Inputs!$O3:$BB3,MATCH('Costs & Revenue'!AA$5,Inputs!$O$5:$BB$5,0)) -> 2030-01-01 | AB3: =INDEX(Inputs!$O3:$BB3,MATCH('Costs & Revenue'!AB$5,Inputs!$O$5:$BB$5,0)) -> 2031-01-01 | AC3: =INDEX(Inputs!$O3:$BB3,MATCH('Costs & Revenue'!AC$5,Inputs!$O$5:$BB$5,0)) -> 2032-01-01 | AD3: =INDEX(Inputs!$O3:$BB3,MATCH('Costs & Revenue'!AD$5,Inputs!$O$5:$BB$5,0)) -> 2033-01-01 | AE3: =INDEX(Inputs!$O3:$BB3,MATCH('Costs & Revenue'!AE$5,Inputs!$O$5:$BB$5,0)) -> 2034-01-01 | AF3: =INDEX(Inputs!$O3:$BB3,MATCH('Costs & Revenue'!AF$5,Inputs!$O$5:$BB$5,0)) -> 2035-01-01 | AG3: =INDEX(Inputs!$O3:$BB3,MATCH('Costs & Revenue'!AG$5,Inputs!$O$5:$BB$5,0)) -> 2036-01-01 | AH3: =INDEX(Inputs!$O3:$BB3,MATCH('Costs & Revenue'!AH$5,Inputs!$O$5:$BB$5,0)) -> 2037-01-01 | AI3: =INDEX(Inputs!$O3:$BB3,MATCH('Costs & Revenue'!AI$5,Inputs!$O$5:$BB$5,0)) -> 2038-01-01 | AJ3: =INDEX(Inputs!$O3:$BB3,MATCH('Costs & Revenue'!AJ$5,Inputs!$O$5:$BB$5,0)) -> 2039-01-01 | AK3: =INDEX(Inputs!$O3:$BB3,MATCH('Costs & Revenue'!AK$5,Inputs!$O$5:$BB$5,0)) -> 2040-01-01 | AL3: =INDEX(Inputs!$O3:$BB3,MATCH('Costs & Revenue'!AL$5,Inputs!$O$5:$BB$5,0)) -> 2041-01-01 | AM3: =INDEX(Inputs!$O3:$BB3,MATCH('Costs & Revenue'!AM$5,Inputs!$O$5:$BB$5,0)) -> 2042-01-01 | AN3: =INDEX(Inputs!$O3:$BB3,MATCH('Costs & Revenue'!AN$5,Inputs!$O$5:$BB$5,0)) -> 2043-01-01 | AO3: =INDEX(Inputs!$O3:$BB3,MATCH('Costs & Revenue'!AO$5,Inputs!$O$5:$BB$5,0)) -> 2044-01-01 | AP3: =INDEX(Inputs!$O3:$BB3,MATCH('Costs & Revenue'!AP$5,Inputs!$O$5:$BB$5,0)) -> 2045-01-01 | AQ3: =INDEX(Inputs!$O3:$BB3,MATCH('Costs & Revenue'!AQ$5,Inputs!$O$5:$BB$5,0)) -> 2046-01-01 | AR3: =INDEX(Inputs!$O3:$BB3,MATCH('Costs & Revenue'!AR$5,Inputs!$O$5:$BB$5,0)) -> 2047-01-01 | AS3: =INDEX(Inputs!$O3:$BB3,MATCH('Costs & Revenue'!AS$5,Inputs!$O$5:$BB$5,0)) -> 2048-01-01 | AT3: =INDEX(Inputs!$O3:$BB3,MATCH('Costs & Revenue'!AT$5,Inputs!$O$5:$BB$5,0)) -> 2049-01-01 | AU3: =INDEX(Inputs!$O3:$BB3,MATCH('Costs & Revenue'!AU$5,Inputs!$O$5:$BB$5,0)) -> 2050-01-01 | AV3: =INDEX(Inputs!$O3:$BB3,MATCH('Costs & Revenue'!AV$5,Inputs!$O$5:$BB$5,0)) -> 2051-01-01 | AW3: =INDEX(Inputs!$O3:$BB3,MATCH('Costs & Revenue'!AW$5,Inputs!$O$5:$BB$5,0)) -> 2052-01-01 | AX3: =INDEX(Inputs!$O3:$BB3,MATCH('Costs & Revenue'!AX$5,Inputs!$O$5:$BB$5,0)) -> 2053-01-01 | AY3: =INDEX(Inputs!$O3:$BB3,MATCH('Costs & Revenue'!AY$5,Inputs!$O$5:$BB$5,0)) -> 2054-01-01 | AZ3: =INDEX(Inputs!$O3:$BB3,MATCH('Costs & Revenue'!AZ$5,Inputs!$O$5:$BB$5,0)) -> 2055-01-01 | BA3: =INDEX(Inputs!$O3:$BB3,MATCH('Costs & Revenue'!BA$5,Inputs!$O$5:$BB$5,0)) -> 2056-01-01 | BB3: =INDEX(Inputs!$O3:$BB3,MATCH('Costs & Revenue'!BB$5,Inputs!$O$5:$BB$5,0)) -> 2057-01-01
E4: Year ending | O4: =INDEX(Inputs!$O4:$BB4,MATCH('Costs & Revenue'!O$5,Inputs!$O$5:$BB$5,0)) -> 2018-12-31 | P4: =INDEX(Inputs!$O4:$BB4,MATCH('Costs & Revenue'!P$5,Inputs!$O$5:$BB$5,0)) -> 2019-12-31 | Q4: =INDEX(Inputs!$O4:$BB4,MATCH('Costs & Revenue'!Q$5,Inputs!$O$5:$BB$5,0)) -> 2020-12-31 | R4: =INDEX(Inputs!$O4:$BB4,MATCH('Costs & Revenue'!R$5,Inputs!$O$5:$BB$5,0)) -> 2021-12-31 | S4: =INDEX(Inputs!$O4:$BB4,MATCH('Costs & Revenue'!S$5,Inputs!$O$5:$BB$5,0)) -> 2022-12-31 | T4: =INDEX(Inputs!$O4:$BB4,MATCH('Costs & Revenue'!T$5,Inputs!$O$5:$BB$5,0)) -> 2023-12-31 | U4: =INDEX(Inputs!$O4:$BB4,MATCH('Costs & Revenue'!U$5,Inputs!$O$5:$BB$5,0)) -> 2024-12-31 | V4: =INDEX(Inputs!$O4:$BB4,MATCH('Costs & Revenue'!V$5,Inputs!$O$5:$BB$5,0)) -> 2025-12-31 | W4: =INDEX(Inputs!$O4:$BB4,MATCH('Costs & Revenue'!W$5,Inputs!$O$5:$BB$5,0)) -> 2026-12-31 | X4: =INDEX(Inputs!$O4:$BB4,MATCH('Costs & Revenue'!X$5,Inputs!$O$5:$BB$5,0)) -> 2027-12-31 | Y4: =INDEX(Inputs!$O4:$BB4,MATCH('Costs & Revenue'!Y$5,Inputs!$O$5:$BB$5,0)) -> 2028-12-31 | Z4: =INDEX(Inputs!$O4:$BB4,MATCH('Costs & Revenue'!Z$5,Inputs!$O$5:$BB$5,0)) -> 2029-12-31 | AA4: =INDEX(Inputs!$O4:$BB4,MATCH('Costs & Revenue'!AA$5,Inputs!$O$5:$BB$5,0)) -> 2030-12-31 | AB4: =INDEX(Inputs!$O4:$BB4,MATCH('Costs & Revenue'!AB$5,Inputs!$O$5:$BB$5,0)) -> 2031-12-31 | AC4: =INDEX(Inputs!$O4:$BB4,MATCH('Costs & Revenue'!AC$5,Inputs!$O$5:$BB$5,0)) -> 2032-12-31 | AD4: =INDEX(Inputs!$O4:$BB4,MATCH('Costs & Revenue'!AD$5,Inputs!$O$5:$BB$5,0)) -> 2033-12-31 | AE4: =INDEX(Inputs!$O4:$BB4,MATCH('Costs & Revenue'!AE$5,Inputs!$O$5:$BB$5,0)) -> 2034-12-31 | AF4: =INDEX(Inputs!$O4:$BB4,MATCH('Costs & Revenue'!AF$5,Inputs!$O$5:$BB$5,0)) -> 2035-12-31 | AG4: =INDEX(Inputs!$O4:$BB4,MATCH('Costs & Revenue'!AG$5,Inputs!$O$5:$BB$5,0)) -> 2036-12-31 | AH4: =INDEX(Inputs!$O4:$BB4,MATCH('Costs & Revenue'!AH$5,Inputs!$O$5:$BB$5,0)) -> 2037-12-31 | AI4: =INDEX(Inputs!$O4:$BB4,MATCH('Costs & Revenue'!AI$5,Inputs!$O$5:$BB$5,0)) -> 2038-12-31 | AJ4: =INDEX(Inputs!$O4:$BB4,MATCH('Costs & Revenue'!AJ$5,Inputs!$O$5:$BB$5,0)) -> 2039-12-31 | AK4: =INDEX(Inputs!$O4:$BB4,MATCH('Costs & Revenue'!AK$5,Inputs!$O$5:$BB$5,0)) -> 2040-12-31 | AL4: =INDEX(Inputs!$O4:$BB4,MATCH('Costs & Revenue'!AL$5,Inputs!$O$5:$BB$5,0)) -> 2041-12-31 | AM4: =INDEX(Inputs!$O4:$BB4,MATCH('Costs & Revenue'!AM$5,Inputs!$O$5:$BB$5,0)) -> 2042-12-31 | AN4: =INDEX(Inputs!$O4:$BB4,MATCH('Costs & Revenue'!AN$5,Inputs!$O$5:$BB$5,0)) -> 2043-12-31 | AO4: =INDEX(Inputs!$O4:$BB4,MATCH('Costs & Revenue'!AO$5,Inputs!$O$5:$BB$5,0)) -> 2044-12-31 | AP4: =INDEX(Inputs!$O4:$BB4,MATCH('Costs & Revenue'!AP$5,Inputs!$O$5:$BB$5,0)) -> 2045-12-31 | AQ4: =INDEX(Inputs!$O4:$BB4,MATCH('Costs & Revenue'!AQ$5,Inputs!$O$5:$BB$5,0)) -> 2046-12-31 | AR4: =INDEX(Inputs!$O4:$BB4,MATCH('Costs & Revenue'!AR$5,Inputs!$O$5:$BB$5,0)) -> 2047-12-31 | AS4: =INDEX(Inputs!$O4:$BB4,MATCH('Costs & Revenue'!AS$5,Inputs!$O$5:$BB$5,0)) -> 2048-12-31 | AT4: =INDEX(Inputs!$O4:$BB4,MATCH('Costs & Revenue'!AT$5,Inputs!$O$5:$BB$5,0)) -> 2049-12-31 | AU4: =INDEX(Inputs!$O4:$BB4,MATCH('Costs & Revenue'!AU$5,Inputs!$O$5:$BB$5,0)) -> 2050-12-31 | AV4: =INDEX(Inputs!$O4:$BB4,MATCH('Costs & Revenue'!AV$5,Inputs!$O$5:$BB$5,0)) -> 2051-12-31 | AW4: =INDEX(Inputs!$O4:$BB4,MATCH('Costs & Revenue'!AW$5,Inputs!$O$5:$BB$5,0)) -> 2052-12-31 | AX4: =INDEX(Inputs!$O4:$BB4,MATCH('Costs & Revenue'!AX$5,Inputs!$O$5:$BB$5,0)) -> 2053-12-31 | AY4: =INDEX(Inputs!$O4:$BB4,MATCH('Costs & Revenue'!AY$5,Inputs!$O$5:$BB$5,0)) -> 2054-12-31 | AZ4: =INDEX(Inputs!$O4:$BB4,MATCH('Costs & Revenue'!AZ$5,Inputs!$O$5:$BB$5,0)) -> 2055-12-31 | BA4: =INDEX(Inputs!$O4:$BB4,MATCH('Costs & Revenue'!BA$5,Inputs!$O$5:$BB$5,0)) -> 2056-12-31 | BB4: =INDEX(Inputs!$O4:$BB4,MATCH('Costs & Revenue'!BB$5,Inputs!$O$5:$BB$5,0)) -> 2057-12-31
E5: Operational year | O5: =Inputs!O5 -> 0 | P5: =Inputs!P5 -> 1 | Q5: =Inputs!Q5 -> 2 | R5: =Inputs!R5 -> 3 | S5: =Inputs!S5 -> 4 | T5: =Inputs!T5 -> 5 | U5: =Inputs!U5 -> 6 | V5: =Inputs!V5 -> 7 | W5: =Inputs!W5 -> 8 | X5: =Inputs!X5 -> 9 | Y5: =Inputs!Y5 -> 10 | Z5: =Inputs!Z5 -> 11 | AA5: =Inputs!AA5 -> 12 | AB5: =Inputs!AB5 -> 13 | AC5: =Inputs!AC5 -> 14 | AD5: =Inputs!AD5 -> 15 | AE5: =Inputs!AE5 -> 16 | AF5: =Inputs!AF5 -> 17 | AG5: =Inputs!AG5 -> 18 | AH5: =Inputs!AH5 -> 19 | AI5: =Inputs!AI5 -> 20 | AJ5: =Inputs!AJ5 -> 21 | AK5: =Inputs!AK5 -> 22 | AL5: =Inputs!AL5 -> 23 | AM5: =Inputs!AM5 -> 24 | AN5: =Inputs!AN5 -> 25 | AO5: =Inputs!AO5 -> 26 | AP5: =Inputs!AP5 -> 27 | AQ5: =Inputs!AQ5 -> 28 | AR5: =Inputs!AR5 -> 29 | AS5: =Inputs!AS5 -> 30 | AT5: =Inputs!AT5 -> 31 | AU5: =Inputs!AU5 -> 32 | AV5: =Inputs!AV5 -> 33 | AW5: =Inputs!AW5 -> 34 | AX5: =Inputs!AX5 -> 35 | AY5: =Inputs!AY5 -> 36 | AZ5: =Inputs!AZ5 -> 37 | BA5: =Inputs!BA5 -> 38 | BB5: =Inputs!BB5 -> 39
B7: Decommissioning costs
C9: Original decommissioning costs allowance from PCR stage
E11: Decommissioning costs (baseline) | G11: =base_year -> £m 13/14 prices | P11: =INDEX(Inputs!$P$34:$BB$34,MATCH('Costs & Revenue'!P$5,Inputs!$P$5:$BB$5,0)) -> 0.0002996521659 | Q11: =INDEX(Inputs!$P$34:$BB$34,MATCH('Costs & Revenue'!Q$5,Inputs!$P$5:$BB$5,0)) -> 0.0006008025926 | R11: =INDEX(Inputs!$P$34:$BB$34,MATCH('Costs & Revenue'!R$5,Inputs!$P$5:$BB$5,0)) -> 0.001518791963 | S11: =INDEX(Inputs!$P$34:$BB$34,MATCH('Costs & Revenue'!S$5,Inputs!$P$5:$BB$5,0)) -> 0.002472123331 | T11: =INDEX(Inputs!$P$34:$BB$34,MATCH('Costs & Revenue'!T$5,Inputs!$P$5:$BB$5,0)) -> 0.003462488885 | U11: =INDEX(Inputs!$P$34:$BB$34,MATCH('Costs & Revenue'!U$5,Inputs!$P$5:$BB$5,0)) -> 0.00449166542 | V11: =INDEX(Inputs!$P$34:$BB$34,MATCH('Costs & Revenue'!V$5,Inputs!$P$5:$BB$5,0)) -> 0.005561518573 | W11: =INDEX(Inputs!$P$34:$BB$34,MATCH('Costs & Revenue'!W$5,Inputs!$P$5:$BB$5,0)) -> 0.006674007261 | X11: =INDEX(Inputs!$P$34:$BB$34,MATCH('Costs & Revenue'!X$5,Inputs!$P$5:$BB$5,0)) -> 0.007831188348 | Y11: =INDEX(Inputs!$P$34:$BB$34,MATCH('Costs & Revenue'!Y$5,Inputs!$P$5:$BB$5,0)) -> 0.009035221541 | Z11: =INDEX(Inputs!$P$34:$BB$34,MATCH('Costs & Revenue'!Z$5,Inputs!$P$5:$BB$5,0)) -> 0.01122834798 | AA11: =INDEX(Inputs!$P$34:$BB$34,MATCH('Costs & Revenue'!AA$5,Inputs!$P$5:$BB$5,0)) -> 0.01352467383 | AB11: =INDEX(Inputs!$P$34:$BB$34,MATCH('Costs & Revenue'!AB$5,Inputs!$P$5:$BB$5,0)) -> 0.01592928415 | AC11: =INDEX(Inputs!$P$34:$BB$34,MATCH('Costs & Revenue'!AC$5,Inputs!$P$5:$BB$5,0)) -> 0.01844751826 | AD11: =INDEX(Inputs!$P$34:$BB$34,MATCH('Costs & Revenue'!AD$5,Inputs!$P$5:$BB$5,0)) -> 0.02108498243 | AE11: =INDEX(Inputs!$P$34:$BB$34,MATCH('Costs & Revenue'!AE$5,Inputs!$P$5:$BB$5,0)) -> 0.02384756324 | AF11: =INDEX(Inputs!$P$34:$BB$34,MATCH('Costs & Revenue'!AF$5,Inputs!$P$5:$BB$5,0)) -> 0.02674144163 | AG11: =INDEX(Inputs!$P$34:$BB$34,MATCH('Costs & Revenue'!AG$5,Inputs!$P$5:$BB$5,0)) -> 0.02977310754 | AH11: =INDEX(Inputs!$P$34:$BB$34,MATCH('Costs & Revenue'!AH$5,Inputs!$P$5:$BB$5,0)) -> 0.03294937546 | AI11: =INDEX(Inputs!$P$34:$BB$34,MATCH('Costs & Revenue'!AI$5,Inputs!$P$5:$BB$5,0)) -> 0.03627740055 | AJ11: =INDEX(Inputs!$P$34:$BB$34,MATCH('Costs & Revenue'!AJ$5,Inputs!$P$5:$BB$5,0)) -> 0.03790972949 | AK11: =INDEX(Inputs!$P$34:$BB$34,MATCH('Costs & Revenue'!AK$5,Inputs!$P$5:$BB$5,0)) -> 0.03962217661 | AL11: =INDEX(Inputs!$P$34:$BB$34,MATCH('Costs & Revenue'!AL$5,Inputs!$P$5:$BB$5,0)) -> 0.04141874782 | AM11: =INDEX(Inputs!$P$34:$BB$34,MATCH('Costs & Revenue'!AM$5,Inputs!$P$5:$BB$5,0)) -> 0.04330364934 | AN11: =INDEX(Inputs!$P$34:$BB$34,MATCH('Costs & Revenue'!AN$5,Inputs!$P$5:$BB$5,0)) -> 11.32864806 | AO11: =INDEX(Inputs!$P$34:$BB$34,MATCH('Costs & Revenue'!AO$5,Inputs!$P$5:$BB$5,0)) -> 0 | AP11: =INDEX(Inputs!$P$34:$BB$34,MATCH('Costs & Revenue'!AP$5,Inputs!$P$5:$BB$5,0)) -> 0 | AQ11: =INDEX(Inputs!$P$34:$BB$34,MATCH('Costs & Revenue'!AQ$5,Inputs!$P$5:$BB$5,0)) -> 0 | AR11: =INDEX(Inputs!$P$34:$BB$34,MATCH('Costs & Revenue'!AR$5,Inputs!$P$5:$BB$5,0)) -> 0 | AS11: =INDEX(Inputs!$P$34:$BB$34,MATCH('Costs & Revenue'!AS$5,Inputs!$P$5:$BB$5,0)) -> 0 | AT11: =INDEX(Inputs!$P$34:$BB$34,MATCH('Costs & Revenue'!AT$5,Inputs!$P$5:$BB$5,0)) -> 0 | AU11: =INDEX(Inputs!$P$34:$BB$34,MATCH('Costs & Revenue'!AU$5,Inputs!$P$5:$BB$5,0)) -> 0 | AV11: =INDEX(Inputs!$P$34:$BB$34,MATCH('Costs & Revenue'!AV$5,Inputs!$P$5:$BB$5,0)) -> 0 | AW11: =INDEX(Inputs!$P$34:$BB$34,MATCH('Costs & Revenue'!AW$5,Inputs!$P$5:$BB$5,0)) -> 0 | AX11: =INDEX(Inputs!$P$34:$BB$34,MATCH('Costs & Revenue'!AX$5,Inputs!$P$5:$BB$5,0)) -> 0 | AY11: =INDEX(Inputs!$P$34:$BB$34,MATCH('Costs & Revenue'!AY$5,Inputs!$P$5:$BB$5,0)) -> 0 | AZ11: =INDEX(Inputs!$P$34:$BB$34,MATCH('Costs & Revenue'!AZ$5,Inputs!$P$5:$BB$5,0)) -> 0 | BA11: =INDEX(Inputs!$P$34:$BB$34,MATCH('Costs & Revenue'!BA$5,Inputs!$P$5:$BB$5,0)) -> 0 | BB11: =INDEX(Inputs!$P$34:$BB$34,MATCH('Costs & Revenue'!BB$5,Inputs!$P$5:$BB$5,0)) -> 0
C13: Revised decommissioning costs allowance from latest DC submission
E15: Decommissioning costs (latest DC submission) | G15: =base_year -> £m 13/14 prices | P15: =INDEX(Inputs!$P$178:$BB$178,MATCH('Costs & Revenue'!P$5,Inputs!$P$5:$BB$5,0)) -> 0.01 | Q15: =INDEX(Inputs!$P$178:$BB$178,MATCH('Costs & Revenue'!Q$5,Inputs!$P$5:$BB$5,0)) -> 0.01 | R15: =INDEX(Inputs!$P$178:$BB$178,MATCH('Costs & Revenue'!R$5,Inputs!$P$5:$BB$5,0)) -> 0.01 | S15: =INDEX(Inputs!$P$178:$BB$178,MATCH('Costs & Revenue'!S$5,Inputs!$P$5:$BB$5,0)) -> 0.01 | T15: =INDEX(Inputs!$P$178:$BB$178,MATCH('Costs & Revenue'!T$5,Inputs!$P$5:$BB$5,0)) -> 0.01 | U15: =INDEX(Inputs!$P$178:$BB$178,MATCH('Costs & Revenue'!U$5,Inputs!$P$5:$BB$5,0)) -> 0.01 | V15: =INDEX(Inputs!$P$178:$BB$178,MATCH('Costs & Revenue'!V$5,Inputs!$P$5:$BB$5,0)) -> 0.01 | W15: =INDEX(Inputs!$P$178:$BB$178,MATCH('Costs & Revenue'!W$5,Inputs!$P$5:$BB$5,0)) -> 0.01 | X15: =INDEX(Inputs!$P$178:$BB$178,MATCH('Costs & Revenue'!X$5,Inputs!$P$5:$BB$5,0)) -> 0.01 | Y15: =INDEX(Inputs!$P$178:$BB$178,MATCH('Costs & Revenue'!Y$5,Inputs!$P$5:$BB$5,0)) -> 0.01 | Z15: =INDEX(Inputs!$P$178:$BB$178,MATCH('Costs & Revenue'!Z$5,Inputs!$P$5:$BB$5,0)) -> 0.01 | AA15: =INDEX(Inputs!$P$178:$BB$178,MATCH('Costs & Revenue'!AA$5,Inputs!$P$5:$BB$5,0)) -> 0.01 | AB15: =INDEX(Inputs!$P$178:$BB$178,MATCH('Costs & Revenue'!AB$5,Inputs!$P$5:$BB$5,0)) -> 0.01 | AC15: =INDEX(Inputs!$P$178:$BB$178,MATCH('Costs & Revenue'!AC$5,Inputs!$P$5:$BB$5,0)) -> 0.01 | AD15: =INDEX(Inputs!$P$178:$BB$178,MATCH('Costs & Revenue'!AD$5,Inputs!$P$5:$BB$5,0)) -> 0.01 | AE15: =INDEX(Inputs!$P$178:$BB$178,MATCH('Costs & Revenue'!AE$5,Inputs!$P$5:$BB$5,0)) -> 0.01 | AF15: =INDEX(Inputs!$P$178:$BB$178,MATCH('Costs & Revenue'!AF$5,Inputs!$P$5:$BB$5,0)) -> 0.01 | AG15: =INDEX(Inputs!$P$178:$BB$178,MATCH('Costs & Revenue'!AG$5,Inputs!$P$5:$BB$5,0)) -> 0.01 | AH15: =INDEX(Inputs!$P$178:$BB$178,MATCH('Costs & Revenue'!AH$5,Inputs!$P$5:$BB$5,0)) -> 0.01 | AI15: =INDEX(Inputs!$P$178:$BB$178,MATCH('Costs & Revenue'!AI$5,Inputs!$P$5:$BB$5,0)) -> 0.01 | AJ15: =INDEX(Inputs!$P$178:$BB$178,MATCH('Costs & Revenue'!AJ$5,Inputs!$P$5:$BB$5,0)) -> 0.01 | AK15: =INDEX(Inputs!$P$178:$BB$178,MATCH('Costs & Revenue'!AK$5,Inputs!$P$5:$BB$5,0)) -> 0.01 | AL15: =INDEX(Inputs!$P$178:$BB$178,MATCH('Costs & Revenue'!AL$5,Inputs!$P$5:$BB$5,0)) -> 0.01 | AM15: =INDEX(Inputs!$P$178:$BB$178,MATCH('Costs & Revenue'!AM$5,Inputs!$P$5:$BB$5,0)) -> 0.01 | AN15: =INDEX(Inputs!$P$178:$BB$178,MATCH('Costs & Revenue'!AN$5,Inputs!$P$5:$BB$5,0)) -> 15 | AO15: =INDEX(Inputs!$P$178:$BB$178,MATCH('Costs & Revenue'!AO$5,Inputs!$P$5:$BB$5,0)) -> 0 | AP15: =INDEX(Inputs!$P$178:$BB$178,MATCH('Costs & Revenue'!AP$5,Inputs!$P$5:$BB$5,0)) -> 0 | AQ15: =INDEX(Inputs!$P$178:$BB$178,MATCH('Costs & Revenue'!AQ$5,Inputs!$P$5:$BB$5,0)) -> 0 | AR15: =INDEX(Inputs!$P$178:$BB$178,MATCH('Costs & Revenue'!AR$5,Inputs!$P$5:$BB$5,0)) -> 0 | AS15: =INDEX(Inputs!$P$178:$BB$178,MATCH('Costs & Revenue'!AS$5,Inputs!$P$5:$BB$5,0)) -> 0 | AT15: =INDEX(Inputs!$P$178:$BB$178,MATCH('Costs & Revenue'!AT$5,Inputs!$P$5:$BB$5,0)) -> 0 | AU15: =INDEX(Inputs!$P$178:$BB$178,MATCH('Costs & Revenue'!AU$5,Inputs!$P$5:$BB$5,0)) -> 0 | AV15: =INDEX(Inputs!$P$178:$BB$178,MATCH('Costs & Revenue'!AV$5,Inputs!$P$5:$BB$5,0)) -> 0 | AW15: =INDEX(Inputs!$P$178:$BB$178,MATCH('Costs & Revenue'!AW$5,Inputs!$P$5:$BB$5,0)) -> 0 | AX15: =INDEX(Inputs!$P$178:$BB$178,MATCH('Costs & Revenue'!AX$5,Inputs!$P$5:$BB$5,0)) -> 0 | AY15: =INDEX(Inputs!$P$178:$BB$178,MATCH('Costs & Revenue'!AY$5,Inputs!$P$5:$BB$5,0)) -> 0 | AZ15: =INDEX(Inputs!$P$178:$BB$178,MATCH('Costs & Revenue'!AZ$5,Inputs!$P$5:$BB$5,0)) -> 0 | BA15: =INDEX(Inputs!$P$178:$BB$178,MATCH('Costs & Revenue'!BA$5,Inputs!$P$5:$BB$5,0)) -> 0 | BB15: =INDEX(Inputs!$P$178:$BB$178,MATCH('Costs & Revenue'!BB$5,Inputs!$P$5:$BB$5,0)) -> 0
C17: All DCC adjustments (Cap)
E19: First DCCt adjustment
E20: Value | G20: =base_year -> £m 13/14 prices | I20: =Inputs!I187 -> 1.269872319
E21: Activity flag | G21: flag | P21: =INDEX(Inputs!$P$208:$BB$208,MATCH('Costs & Revenue'!P$5,Inputs!$P$5:$BB$5,0)) -> 0 | Q21: =INDEX(Inputs!$P$208:$BB$208,MATCH('Costs & Revenue'!Q$5,Inputs!$P$5:$BB$5,0)) -> 0 | R21: =INDEX(Inputs!$P$208:$BB$208,MATCH('Costs & Revenue'!R$5,Inputs!$P$5:$BB$5,0)) -> 0 | S21: =INDEX(Inputs!$P$208:$BB$208,MATCH('Costs & Revenue'!S$5,Inputs!$P$5:$BB$5,0)) -> 0 | T21: =INDEX(Inputs!$P$208:$BB$208,MATCH('Costs & Revenue'!T$5,Inputs!$P$5:$BB$5,0)) -> 0 | U21: =INDEX(Inputs!$P$208:$BB$208,MATCH('Costs & Revenue'!U$5,Inputs!$P$5:$BB$5,0)) -> 0 | V21: =INDEX(Inputs!$P$208:$BB$208,MATCH('Costs & Revenue'!V$5,Inputs!$P$5:$BB$5,0)) -> 0 | W21: =INDEX(Inputs!$P$208:$BB$208,MATCH('Costs & Revenue'!W$5,Inputs!$P$5:$BB$5,0)) -> 0 | X21: =INDEX(Inputs!$P$208:$BB$208,MATCH('Costs & Revenue'!X$5,Inputs!$P$5:$BB$5,0)) -> 0 | Y21: =INDEX(Inputs!$P$208:$BB$208,MATCH('Costs & Revenue'!Y$5,Inputs!$P$5:$BB$5,0)) -> 0 | Z21: =INDEX(Inputs!$P$208:$BB$208,MATCH('Costs & Revenue'!Z$5,Inputs!$P$5:$BB$5,0)) -> 0 | AA21: =INDEX(Inputs!$P$208:$BB$208,MATCH('Costs & Revenue'!AA$5,Inputs!$P$5:$BB$5,0)) -> 0 | AB21: =INDEX(Inputs!$P$208:$BB$208,MATCH('Costs & Revenue'!AB$5,Inputs!$P$5:$BB$5,0)) -> 0 | AC21: =INDEX(Inputs!$P$208:$BB$208,MATCH('Costs & Revenue'!AC$5,Inputs!$P$5:$BB$5,0)) -> 0 | AD21: =INDEX(Inputs!$P$208:$BB$208,MATCH('Costs & Revenue'!AD$5,Inputs!$P$5:$BB$5,0)) -> 0 | AE21: =INDEX(Inputs!$P$208:$BB$208,MATCH('Costs & Revenue'!AE$5,Inputs!$P$5:$BB$5,0)) -> 0 | AF21: =INDEX(Inputs!$P$208:$BB$208,MATCH('Costs & Revenue'!AF$5,Inputs!$P$5:$BB$5,0)) -> 0 | AG21: =INDEX(Inputs!$P$208:$BB$208,MATCH('Costs & Revenue'!AG$5,Inputs!$P$5:$BB$5,0)) -> 0 | AH21: =INDEX(Inputs!$P$208:$BB$208,MATCH('Costs & Revenue'!AH$5,Inputs!$P$5:$BB$5,0)) -> 0 | AI21: =INDEX(Inputs!$P$208:$BB$208,MATCH('Costs & Revenue'!AI$5,Inputs!$P$5:$BB$5,0)) -> 0.5859000684 | AJ21: =INDEX(Inputs!$P$208:$BB$208,MATCH('Costs & Revenue'!AJ$5,Inputs!$P$5:$BB$5,0)) -> 1 | AK21: =INDEX(Inputs!$P$208:$BB$208,MATCH('Costs & Revenue'!AK$5,Inputs!$P$5:$BB$5,0)) -> 1 | AL21: =INDEX(Inputs!$P$208:$BB$208,MATCH('Costs & Revenue'!AL$5,Inputs!$P$5:$BB$5,0)) -> 0.4134154689 | AM21: =INDEX(Inputs!$P$208:$BB$208,MATCH('Costs & Revenue'!AM$5,Inputs!$P$5:$BB$5,0)) -> 0 | AN21: =INDEX(Inputs!$P$208:$BB$208,MATCH('Costs & Revenue'!AN$5,Inputs!$P$5:$BB$5,0)) -> 0 | AO21: =INDEX(Inputs!$P$208:$BB$208,MATCH('Costs & Revenue'!AO$5,Inputs!$P$5:$BB$5,0)) -> 0 | AP21: =INDEX(Inputs!$P$208:$BB$208,MATCH('Costs & Revenue'!AP$5,Inputs!$P$5:$BB$5,0)) -> 0 | AQ21: =INDEX(Inputs!$P$208:$BB$208,MATCH('Costs & Revenue'!AQ$5,Inputs!$P$5:$BB$5,0)) -> 0 | AR21: =INDEX(Inputs!$P$208:$BB$208,MATCH('Costs & Revenue'!AR$5,Inputs!$P$5:$BB$5,0)) -> 0 | AS21: =INDEX(Inputs!$P$208:$BB$208,MATCH('Costs & Revenue'!AS$5,Inputs!$P$5:$BB$5,0)) -> 0 | AT21: =INDEX(Inputs!$P$208:$BB$208,MATCH('Costs & Revenue'!AT$5,Inputs!$P$5:$BB$5,0)) -> 0 | AU21: =INDEX(Inputs!$P$208:$BB$208,MATCH('Costs & Revenue'!AU$5,Inputs!$P$5:$BB$5,0)) -> 0 | AV21: =INDEX(Inputs!$P$208:$BB$208,MATCH('Costs & Revenue'!AV$5,Inputs!$P$5:$BB$5,0)) -> 0 | AW21: =INDEX(Inputs!$P$208:$BB$208,MATCH('Costs & Revenue'!AW$5,Inputs!$P$5:$BB$5,0)) -> 0 | AX21: =INDEX(Inputs!$P$208:$BB$208,MATCH('Costs & Revenue'!AX$5,Inputs!$P$5:$BB$5,0)) -> 0 | AY21: =INDEX(Inputs!$P$208:$BB$208,MATCH('Costs & Revenue'!AY$5,Inputs!$P$5:$BB$5,0)) -> 0 | AZ21: =INDEX(Inputs!$P$208:$BB$208,MATCH('Costs & Revenue'!AZ$5,Inputs!$P$5:$BB$5,0)) -> 0 | BA21: =INDEX(Inputs!$P$208:$BB$208,MATCH('Costs & Revenue'!BA$5,Inputs!$P$5:$BB$5,0)) -> 0 | BB21: =INDEX(Inputs!$P$208:$BB$208,MATCH('Costs & Revenue'!BB$5,Inputs!$P$5:$BB$5,0)) -> 0
E23: Second DCCt adjustment
E24: Value | G24: =base_year -> £m 13/14 prices | I24: =Inputs!I192 -> 0
E25: Activity flag | G25: flag | P25: =INDEX(Inputs!$P$209:$BB$209,MATCH('Costs & Revenue'!P$5,Inputs!$P$5:$BB$5,0)) -> 0 | Q25: =INDEX(Inputs!$P$209:$BB$209,MATCH('Costs & Revenue'!Q$5,Inputs!$P$5:$BB$5,0)) -> 0 | R25: =INDEX(Inputs!$P$209:$BB$209,MATCH('Costs & Revenue'!R$5,Inputs!$P$5:$BB$5,0)) -> 0 | S25: =INDEX(Inputs!$P$209:$BB$209,MATCH('Costs & Revenue'!S$5,Inputs!$P$5:$BB$5,0)) -> 0 | T25: =INDEX(Inputs!$P$209:$BB$209,MATCH('Costs & Revenue'!T$5,Inputs!$P$5:$BB$5,0)) -> 0 | U25: =INDEX(Inputs!$P$209:$BB$209,MATCH('Costs & Revenue'!U$5,Inputs!$P$5:$BB$5,0)) -> 0 | V25: =INDEX(Inputs!$P$209:$BB$209,MATCH('Costs & Revenue'!V$5,Inputs!$P$5:$BB$5,0)) -> 0 | W25: =INDEX(Inputs!$P$209:$BB$209,MATCH('Costs & Revenue'!W$5,Inputs!$P$5:$BB$5,0)) -> 0 | X25: =INDEX(Inputs!$P$209:$BB$209,MATCH('Costs & Revenue'!X$5,Inputs!$P$5:$BB$5,0)) -> 0 | Y25: =INDEX(Inputs!$P$209:$BB$209,MATCH('Costs & Revenue'!Y$5,Inputs!$P$5:$BB$5,0)) -> 0 | Z25: =INDEX(Inputs!$P$209:$BB$209,MATCH('Costs & Revenue'!Z$5,Inputs!$P$5:$BB$5,0)) -> 0 | AA25: =INDEX(Inputs!$P$209:$BB$209,MATCH('Costs & Revenue'!AA$5,Inputs!$P$5:$BB$5,0)) -> 0 | AB25: =INDEX(Inputs!$P$209:$BB$209,MATCH('Costs & Revenue'!AB$5,Inputs!$P$5:$BB$5,0)) -> 0 | AC25: =INDEX(Inputs!$P$209:$BB$209,MATCH('Costs & Revenue'!AC$5,Inputs!$P$5:$BB$5,0)) -> 0 | AD25: =INDEX(Inputs!$P$209:$BB$209,MATCH('Costs & Revenue'!AD$5,Inputs!$P$5:$BB$5,0)) -> 0 | AE25: =INDEX(Inputs!$P$209:$BB$209,MATCH('Costs & Revenue'!AE$5,Inputs!$P$5:$BB$5,0)) -> 0 | AF25: =INDEX(Inputs!$P$209:$BB$209,MATCH('Costs & Revenue'!AF$5,Inputs!$P$5:$BB$5,0)) -> 0 | AG25: =INDEX(Inputs!$P$209:$BB$209,MATCH('Costs & Revenue'!AG$5,Inputs!$P$5:$BB$5,0)) -> 0 | AH25: =INDEX(Inputs!$P$209:$BB$209,MATCH('Costs & Revenue'!AH$5,Inputs!$P$5:$BB$5,0)) -> 0 | AI25: =INDEX(Inputs!$P$209:$BB$209,MATCH('Costs & Revenue'!AI$5,Inputs!$P$5:$BB$5,0)) -> 0 | AJ25: =INDEX(Inputs!$P$209:$BB$209,MATCH('Costs & Revenue'!AJ$5,Inputs!$P$5:$BB$5,0)) -> 0 | AK25: =INDEX(Inputs!$P$209:$BB$209,MATCH('Costs & Revenue'!AK$5,Inputs!$P$5:$BB$5,0)) -> 0 | AL25: =INDEX(Inputs!$P$209:$BB$209,MATCH('Costs & Revenue'!AL$5,Inputs!$P$5:$BB$5,0)) -> 0 | AM25: =INDEX(Inputs!$P$209:$BB$209,MATCH('Costs & Revenue'!AM$5,Inputs!$P$5:$BB$5,0)) -> 0 | AN25: =INDEX(Inputs!$P$209:$BB$209,MATCH('Costs & Revenue'!AN$5,Inputs!$P$5:$BB$5,0)) -> 0 | AO25: =INDEX(Inputs!$P$209:$BB$209,MATCH('Costs & Revenue'!AO$5,Inputs!$P$5:$BB$5,0)) -> 0 | AP25: =INDEX(Inputs!$P$209:$BB$209,MATCH('Costs & Revenue'!AP$5,Inputs!$P$5:$BB$5,0)) -> 0 | AQ25: =INDEX(Inputs!$P$209:$BB$209,MATCH('Costs & Revenue'!AQ$5,Inputs!$P$5:$BB$5,0)) -> 0 | AR25: =INDEX(Inputs!$P$209:$BB$209,MATCH('Costs & Revenue'!AR$5,Inputs!$P$5:$BB$5,0)) -> 0 | AS25: =INDEX(Inputs!$P$209:$BB$209,MATCH('Costs & Revenue'!AS$5,Inputs!$P$5:$BB$5,0)) -> 0 | AT25: =INDEX(Inputs!$P$209:$BB$209,MATCH('Costs & Revenue'!AT$5,Inputs!$P$5:$BB$5,0)) -> 0 | AU25: =INDEX(Inputs!$P$209:$BB$209,MATCH('Costs & Revenue'!AU$5,Inputs!$P$5:$BB$5,0)) -> 0 | AV25: =INDEX(Inputs!$P$209:$BB$209,MATCH('Costs & Revenue'!AV$5,Inputs!$P$5:$BB$5,0)) -> 0 | AW25: =INDEX(Inputs!$P$209:$BB$209,MATCH('Costs & Revenue'!AW$5,Inputs!$P$5:$BB$5,0)) -> 0 | AX25: =INDEX(Inputs!$P$209:$BB$209,MATCH('Costs & Revenue'!AX$5,Inputs!$P$5:$BB$5,0)) -> 0 | AY25: =INDEX(Inputs!$P$209:$BB$209,MATCH('Costs & Revenue'!AY$5,Inputs!$P$5:$BB$5,0)) -> 0 | AZ25: =INDEX(Inputs!$P$209:$BB$209,MATCH('Costs & Revenue'!AZ$5,Inputs!$P$5:$BB$5,0)) -> 0 | BA25: =INDEX(Inputs!$P$209:$BB$209,MATCH('Costs & Revenue'!BA$5,Inputs!$P$5:$BB$5,0)) -> 0 | BB25: =INDEX(Inputs!$P$209:$BB$209,MATCH('Costs & Revenue'!BB$5,Inputs!$P$5:$BB$5,0)) -> 0
E27: Third DCCt adjustment
E28: Value | G28: =base_year -> £m 13/14 prices | I28: =Inputs!I197 -> 0
E29: Activity flag | G29: flag | P29: =INDEX(Inputs!$P$210:$BB$210,MATCH('Costs & Revenue'!P$5,Inputs!$P$5:$BB$5,0)) -> 0 | Q29: =INDEX(Inputs!$P$210:$BB$210,MATCH('Costs & Revenue'!Q$5,Inputs!$P$5:$BB$5,0)) -> 0 | R29: =INDEX(Inputs!$P$210:$BB$210,MATCH('Costs & Revenue'!R$5,Inputs!$P$5:$BB$5,0)) -> 0 | S29: =INDEX(Inputs!$P$210:$BB$210,MATCH('Costs & Revenue'!S$5,Inputs!$P$5:$BB$5,0)) -> 0 | T29: =INDEX(Inputs!$P$210:$BB$210,MATCH('Costs & Revenue'!T$5,Inputs!$P$5:$BB$5,0)) -> 0 | U29: =INDEX(Inputs!$P$210:$BB$210,MATCH('Costs & Revenue'!U$5,Inputs!$P$5:$BB$5,0)) -> 0 | V29: =INDEX(Inputs!$P$210:$BB$210,MATCH('Costs & Revenue'!V$5,Inputs!$P$5:$BB$5,0)) -> 0 | W29: =INDEX(Inputs!$P$210:$BB$210,MATCH('Costs & Revenue'!W$5,Inputs!$P$5:$BB$5,0)) -> 0 | X29: =INDEX(Inputs!$P$210:$BB$210,MATCH('Costs & Revenue'!X$5,Inputs!$P$5:$BB$5,0)) -> 0 | Y29: =INDEX(Inputs!$P$210:$BB$210,MATCH('Costs & Revenue'!Y$5,Inputs!$P$5:$BB$5,0)) -> 0 | Z29: =INDEX(Inputs!$P$210:$BB$210,MATCH('Costs & Revenue'!Z$5,Inputs!$P$5:$BB$5,0)) -> 0 | AA29: =INDEX(Inputs!$P$210:$BB$210,MATCH('Costs & Revenue'!AA$5,Inputs!$P$5:$BB$5,0)) -> 0 | AB29: =INDEX(Inputs!$P$210:$BB$210,MATCH('Costs & Revenue'!AB$5,Inputs!$P$5:$BB$5,0)) -> 0 | AC29: =INDEX(Inputs!$P$210:$BB$210,MATCH('Costs & Revenue'!AC$5,Inputs!$P$5:$BB$5,0)) -> 0 | AD29: =INDEX(Inputs!$P$210:$BB$210,MATCH('Costs & Revenue'!AD$5,Inputs!$P$5:$BB$5,0)) -> 0 | AE29: =INDEX(Inputs!$P$210:$BB$210,MATCH('Costs & Revenue'!AE$5,Inputs!$P$5:$BB$5,0)) -> 0 | AF29: =INDEX(Inputs!$P$210:$BB$210,MATCH('Costs & Revenue'!AF$5,Inputs!$P$5:$BB$5,0)) -> 0 | AG29: =INDEX(Inputs!$P$210:$BB$210,MATCH('Costs & Revenue'!AG$5,Inputs!$P$5:$BB$5,0)) -> 0 | AH29: =INDEX(Inputs!$P$210:$BB$210,MATCH('Costs & Revenue'!AH$5,Inputs!$P$5:$BB$5,0)) -> 0 | AI29: =INDEX(Inputs!$P$210:$BB$210,MATCH('Costs & Revenue'!AI$5,Inputs!$P$5:$BB$5,0)) -> 0 | AJ29: =INDEX(Inputs!$P$210:$BB$210,MATCH('Costs & Revenue'!AJ$5,Inputs!$P$5:$BB$5,0)) -> 0 | AK29: =INDEX(Inputs!$P$210:$BB$210,MATCH('Costs & Revenue'!AK$5,Inputs!$P$5:$BB$5,0)) -> 0 | AL29: =INDEX(Inputs!$P$210:$BB$210,MATCH('Costs & Revenue'!AL$5,Inputs!$P$5:$BB$5,0)) -> 0 | AM29: =INDEX(Inputs!$P$210:$BB$210,MATCH('Costs & Revenue'!AM$5,Inputs!$P$5:$BB$5,0)) -> 0 | AN29: =INDEX(Inputs!$P$210:$BB$210,MATCH('Costs & Revenue'!AN$5,Inputs!$P$5:$BB$5,0)) -> 0 | AO29: =INDEX(Inputs!$P$210:$BB$210,MATCH('Costs & Revenue'!AO$5,Inputs!$P$5:$BB$5,0)) -> 0 | AP29: =INDEX(Inputs!$P$210:$BB$210,MATCH('Costs & Revenue'!AP$5,Inputs!$P$5:$BB$5,0)) -> 0 | AQ29: =INDEX(Inputs!$P$210:$BB$210,MATCH('Costs & Revenue'!AQ$5,Inputs!$P$5:$BB$5,0)) -> 0 | AR29: =INDEX(Inputs!$P$210:$BB$210,MATCH('Costs & Revenue'!AR$5,Inputs!$P$5:$BB$5,0)) -> 0 | AS29: =INDEX(Inputs!$P$210:$BB$210,MATCH('Costs & Revenue'!AS$5,Inputs!$P$5:$BB$5,0)) -> 0 | AT29: =INDEX(Inputs!$P$210:$BB$210,MATCH('Costs & Revenue'!AT$5,Inputs!$P$5:$BB$5,0)) -> 0 | AU29: =INDEX(Inputs!$P$210:$BB$210,MATCH('Costs & Revenue'!AU$5,Inputs!$P$5:$BB$5,0)) -> 0 | AV29: =INDEX(Inputs!$P$210:$BB$210,MATCH('Costs & Revenue'!AV$5,Inputs!$P$5:$BB$5,0)) -> 0 | AW29: =INDEX(Inputs!$P$210:$BB$210,MATCH('Costs & Revenue'!AW$5,Inputs!$P$5:$BB$5,0)) -> 0 | AX29: =INDEX(Inputs!$P$210:$BB$210,MATCH('Costs & Revenue'!AX$5,Inputs!$P$5:$BB$5,0)) -> 0 | AY29: =INDEX(Inputs!$P$210:$BB$210,MATCH('Costs & Revenue'!AY$5,Inputs!$P$5:$BB$5,0)) -> 0 | AZ29: =INDEX(Inputs!$P$210:$BB$210,MATCH('Costs & Revenue'!AZ$5,Inputs!$P$5:$BB$5,0)) -> 0 | BA29: =INDEX(Inputs!$P$210:$BB$210,MATCH('Costs & Revenue'!BA$5,Inputs!$P$5:$BB$5,0)) -> 0 | BB29: =INDEX(Inputs!$P$210:$BB$210,MATCH('Costs & Revenue'!BB$5,Inputs!$P$5:$BB$5,0)) -> 0
E31: Fourth DCCt adjustment
E32: Value | G32: =base_year -> £m 13/14 prices | I32: =Inputs!I202 -> 0
E33: Activity flag | G33: flag | P33: =INDEX(Inputs!$P$211:$BB$211,MATCH('Costs & Revenue'!P$5,Inputs!$P$5:$BB$5,0)) -> 0 | Q33: =INDEX(Inputs!$P$211:$BB$211,MATCH('Costs & Revenue'!Q$5,Inputs!$P$5:$BB$5,0)) -> 0 | R33: =INDEX(Inputs!$P$211:$BB$211,MATCH('Costs & Revenue'!R$5,Inputs!$P$5:$BB$5,0)) -> 0 | S33: =INDEX(Inputs!$P$211:$BB$211,MATCH('Costs & Revenue'!S$5,Inputs!$P$5:$BB$5,0)) -> 0 | T33: =INDEX(Inputs!$P$211:$BB$211,MATCH('Costs & Revenue'!T$5,Inputs!$P$5:$BB$5,0)) -> 0 | U33: =INDEX(Inputs!$P$211:$BB$211,MATCH('Costs & Revenue'!U$5,Inputs!$P$5:$BB$5,0)) -> 0 | V33: =INDEX(Inputs!$P$211:$BB$211,MATCH('Costs & Revenue'!V$5,Inputs!$P$5:$BB$5,0)) -> 0 | W33: =INDEX(Inputs!$P$211:$BB$211,MATCH('Costs & Revenue'!W$5,Inputs!$P$5:$BB$5,0)) -> 0 | X33: =INDEX(Inputs!$P$211:$BB$211,MATCH('Costs & Revenue'!X$5,Inputs!$P$5:$BB$5,0)) -> 0 | Y33: =INDEX(Inputs!$P$211:$BB$211,MATCH('Costs & Revenue'!Y$5,Inputs!$P$5:$BB$5,0)) -> 0 | Z33: =INDEX(Inputs!$P$211:$BB$211,MATCH('Costs & Revenue'!Z$5,Inputs!$P$5:$BB$5,0)) -> 0 | AA33: =INDEX(Inputs!$P$211:$BB$211,MATCH('Costs & Revenue'!AA$5,Inputs!$P$5:$BB$5,0)) -> 0 | AB33: =INDEX(Inputs!$P$211:$BB$211,MATCH('Costs & Revenue'!AB$5,Inputs!$P$5:$BB$5,0)) -> 0 | AC33: =INDEX(Inputs!$P$211:$BB$211,MATCH('Costs & Revenue'!AC$5,Inputs!$P$5:$BB$5,0)) -> 0 | AD33: =INDEX(Inputs!$P$211:$BB$211,MATCH('Costs & Revenue'!AD$5,Inputs!$P$5:$BB$5,0)) -> 0 | AE33: =INDEX(Inputs!$P$211:$BB$211,MATCH('Costs & Revenue'!AE$5,Inputs!$P$5:$BB$5,0)) -> 0 | AF33: =INDEX(Inputs!$P$211:$BB$211,MATCH('Costs & Revenue'!AF$5,Inputs!$P$5:$BB$5,0)) -> 0 | AG33: =INDEX(Inputs!$P$211:$BB$211,MATCH('Costs & Revenue'!AG$5,Inputs!$P$5:$BB$5,0)) -> 0 | AH33: =INDEX(Inputs!$P$211:$BB$211,MATCH('Costs & Revenue'!AH$5,Inputs!$P$5:$BB$5,0)) -> 0 | AI33: =INDEX(Inputs!$P$211:$BB$211,MATCH('Costs & Revenue'!AI$5,Inputs!$P$5:$BB$5,0)) -> 0 | AJ33: =INDEX(Inputs!$P$211:$BB$211,MATCH('Costs & Revenue'!AJ$5,Inputs!$P$5:$BB$5,0)) -> 0 | AK33: =INDEX(Inputs!$P$211:$BB$211,MATCH('Costs & Revenue'!AK$5,Inputs!$P$5:$BB$5,0)) -> 0 | AL33: =INDEX(Inputs!$P$211:$BB$211,MATCH('Costs & Revenue'!AL$5,Inputs!$P$5:$BB$5,0)) -> 0 | AM33: =INDEX(Inputs!$P$211:$BB$211,MATCH('Costs & Revenue'!AM$5,Inputs!$P$5:$BB$5,0)) -> 0 | AN33: =INDEX(Inputs!$P$211:$BB$211,MATCH('Costs & Revenue'!AN$5,Inputs!$P$5:$BB$5,0)) -> 0 | AO33: =INDEX(Inputs!$P$211:$BB$211,MATCH('Costs & Revenue'!AO$5,Inputs!$P$5:$BB$5,0)) -> 0 | AP33: =INDEX(Inputs!$P$211:$BB$211,MATCH('Costs & Revenue'!AP$5,Inputs!$P$5:$BB$5,0)) -> 0 | AQ33: =INDEX(Inputs!$P$211:$BB$211,MATCH('Costs & Revenue'!AQ$5,Inputs!$P$5:$BB$5,0)) -> 0 | AR33: =INDEX(Inputs!$P$211:$BB$211,MATCH('Costs & Revenue'!AR$5,Inputs!$P$5:$BB$5,0)) -> 0 | AS33: =INDEX(Inputs!$P$211:$BB$211,MATCH('Costs & Revenue'!AS$5,Inputs!$P$5:$BB$5,0)) -> 0 | AT33: =INDEX(Inputs!$P$211:$BB$211,MATCH('Costs & Revenue'!AT$5,Inputs!$P$5:$BB$5,0)) -> 0 | AU33: =INDEX(Inputs!$P$211:$BB$211,MATCH('Costs & Revenue'!AU$5,Inputs!$P$5:$BB$5,0)) -> 0 | AV33: =INDEX(Inputs!$P$211:$BB$211,MATCH('Costs & Revenue'!AV$5,Inputs!$P$5:$BB$5,0)) -> 0 | AW33: =INDEX(Inputs!$P$211:$BB$211,MATCH('Costs & Revenue'!AW$5,Inputs!$P$5:$BB$5,0)) -> 0 | AX33: =INDEX(Inputs!$P$211:$BB$211,MATCH('Costs & Revenue'!AX$5,Inputs!$P$5:$BB$5,0)) -> 0 | AY33: =INDEX(Inputs!$P$211:$BB$211,MATCH('Costs & Revenue'!AY$5,Inputs!$P$5:$BB$5,0)) -> 0 | AZ33: =INDEX(Inputs!$P$211:$BB$211,MATCH('Costs & Revenue'!AZ$5,Inputs!$P$5:$BB$5,0)) -> 0 | BA33: =INDEX(Inputs!$P$211:$BB$211,MATCH('Costs & Revenue'!BA$5,Inputs!$P$5:$BB$5,0)) -> 0 | BB33: =INDEX(Inputs!$P$211:$BB$211,MATCH('Costs & Revenue'!BB$5,Inputs!$P$5:$BB$5,0)) -> 0
C35: All DCF adjustments (Floor)
E37: First DCFt adjustment
E38: Value | G38: =base_year -> £m 13/14 prices | I38: =Inputs!I188 -> 1.474327566
E39: Activity flag | G39: flag | P39: =INDEX(Inputs!$P$208:$BB$208,MATCH('Costs & Revenue'!P$5,Inputs!$P$5:$BB$5,0)) -> 0 | Q39: =INDEX(Inputs!$P$208:$BB$208,MATCH('Costs & Revenue'!Q$5,Inputs!$P$5:$BB$5,0)) -> 0 | R39: =INDEX(Inputs!$P$208:$BB$208,MATCH('Costs & Revenue'!R$5,Inputs!$P$5:$BB$5,0)) -> 0 | S39: =INDEX(Inputs!$P$208:$BB$208,MATCH('Costs & Revenue'!S$5,Inputs!$P$5:$BB$5,0)) -> 0 | T39: =INDEX(Inputs!$P$208:$BB$208,MATCH('Costs & Revenue'!T$5,Inputs!$P$5:$BB$5,0)) -> 0 | U39: =INDEX(Inputs!$P$208:$BB$208,MATCH('Costs & Revenue'!U$5,Inputs!$P$5:$BB$5,0)) -> 0 | V39: =INDEX(Inputs!$P$208:$BB$208,MATCH('Costs & Revenue'!V$5,Inputs!$P$5:$BB$5,0)) -> 0 | W39: =INDEX(Inputs!$P$208:$BB$208,MATCH('Costs & Revenue'!W$5,Inputs!$P$5:$BB$5,0)) -> 0 | X39: =INDEX(Inputs!$P$208:$BB$208,MATCH('Costs & Revenue'!X$5,Inputs!$P$5:$BB$5,0)) -> 0 | Y39: =INDEX(Inputs!$P$208:$BB$208,MATCH('Costs & Revenue'!Y$5,Inputs!$P$5:$BB$5,0)) -> 0 | Z39: =INDEX(Inputs!$P$208:$BB$208,MATCH('Costs & Revenue'!Z$5,Inputs!$P$5:$BB$5,0)) -> 0 | AA39: =INDEX(Inputs!$P$208:$BB$208,MATCH('Costs & Revenue'!AA$5,Inputs!$P$5:$BB$5,0)) -> 0 | AB39: =INDEX(Inputs!$P$208:$BB$208,MATCH('Costs & Revenue'!AB$5,Inputs!$P$5:$BB$5,0)) -> 0 | AC39: =INDEX(Inputs!$P$208:$BB$208,MATCH('Costs & Revenue'!AC$5,Inputs!$P$5:$BB$5,0)) -> 0 | AD39: =INDEX(Inputs!$P$208:$BB$208,MATCH('Costs & Revenue'!AD$5,Inputs!$P$5:$BB$5,0)) -> 0 | AE39: =INDEX(Inputs!$P$208:$BB$208,MATCH('Costs & Revenue'!AE$5,Inputs!$P$5:$BB$5,0)) -> 0 | AF39: =INDEX(Inputs!$P$208:$BB$208,MATCH('Costs & Revenue'!AF$5,Inputs!$P$5:$BB$5,0)) -> 0 | AG39: =INDEX(Inputs!$P$208:$BB$208,MATCH('Costs & Revenue'!AG$5,Inputs!$P$5:$BB$5,0)) -> 0 | AH39: =INDEX(Inputs!$P$208:$BB$208,MATCH('Costs & Revenue'!AH$5,Inputs!$P$5:$BB$5,0)) -> 0 | AI39: =INDEX(Inputs!$P$208:$BB$208,MATCH('Costs & Revenue'!AI$5,Inputs!$P$5:$BB$5,0)) -> 0.5859000684 | AJ39: =INDEX(Inputs!$P$208:$BB$208,MATCH('Costs & Revenue'!AJ$5,Inputs!$P$5:$BB$5,0)) -> 1 | AK39: =INDEX(Inputs!$P$208:$BB$208,MATCH('Costs & Revenue'!AK$5,Inputs!$P$5:$BB$5,0)) -> 1 | AL39: =INDEX(Inputs!$P$208:$BB$208,MATCH('Costs & Revenue'!AL$5,Inputs!$P$5:$BB$5,0)) -> 0.4134154689 | AM39: =INDEX(Inputs!$P$208:$BB$208,MATCH('Costs & Revenue'!AM$5,Inputs!$P$5:$BB$5,0)) -> 0 | AN39: =INDEX(Inputs!$P$208:$BB$208,MATCH('Costs & Revenue'!AN$5,Inputs!$P$5:$BB$5,0)) -> 0 | AO39: =INDEX(Inputs!$P$208:$BB$208,MATCH('Costs & Revenue'!AO$5,Inputs!$P$5:$BB$5,0)) -> 0 | AP39: =INDEX(Inputs!$P$208:$BB$208,MATCH('Costs & Revenue'!AP$5,Inputs!$P$5:$BB$5,0)) -> 0 | AQ39: =INDEX(Inputs!$P$208:$BB$208,MATCH('Costs & Revenue'!AQ$5,Inputs!$P$5:$BB$5,0)) -> 0 | AR39: =INDEX(Inputs!$P$208:$BB$208,MATCH('Costs & Revenue'!AR$5,Inputs!$P$5:$BB$5,0)) -> 0 | AS39: =INDEX(Inputs!$P$208:$BB$208,MATCH('Costs & Revenue'!AS$5,Inputs!$P$5:$BB$5,0)) -> 0 | AT39: =INDEX(Inputs!$P$208:$BB$208,MATCH('Costs & Revenue'!AT$5,Inputs!$P$5:$BB$5,0)) -> 0 | AU39: =INDEX(Inputs!$P$208:$BB$208,MATCH('Costs & Revenue'!AU$5,Inputs!$P$5:$BB$5,0)) -> 0 | AV39: =INDEX(Inputs!$P$208:$BB$208,MATCH('Costs & Revenue'!AV$5,Inputs!$P$5:$BB$5,0)) -> 0 | AW39: =INDEX(Inputs!$P$208:$BB$208,MATCH('Costs & Revenue'!AW$5,Inputs!$P$5:$BB$5,0)) -> 0 | AX39: =INDEX(Inputs!$P$208:$BB$208,MATCH('Costs & Revenue'!AX$5,Inputs!$P$5:$BB$5,0)) -> 0 | AY39: =INDEX(Inputs!$P$208:$BB$208,MATCH('Costs & Revenue'!AY$5,Inputs!$P$5:$BB$5,0)) -> 0 | AZ39: =INDEX(Inputs!$P$208:$BB$208,MATCH('Costs & Revenue'!AZ$5,Inputs!$P$5:$BB$5,0)) -> 0 | BA39: =INDEX(Inputs!$P$208:$BB$208,MATCH('Costs & Revenue'!BA$5,Inputs!$P$5:$BB$5,0)) -> 0 | BB39: =INDEX(Inputs!$P$208:$BB$208,MATCH('Costs & Revenue'!BB$5,Inputs!$P$5:$BB$5,0)) -> 0
E41: Second DCFt adjustment
E42: Value | G42: =base_year -> £m 13/14 prices | I42: =Inputs!I193 -> 0
E43: Activity flag | G43: flag | P43: =INDEX(Inputs!$P$209:$BB$209,MATCH('Costs & Revenue'!P$5,Inputs!$P$5:$BB$5,0)) -> 0 | Q43: =INDEX(Inputs!$P$209:$BB$209,MATCH('Costs & Revenue'!Q$5,Inputs!$P$5:$BB$5,0)) -> 0 | R43: =INDEX(Inputs!$P$209:$BB$209,MATCH('Costs & Revenue'!R$5,Inputs!$P$5:$BB$5,0)) -> 0 | S43: =INDEX(Inputs!$P$209:$BB$209,MATCH('Costs & Revenue'!S$5,Inputs!$P$5:$BB$5,0)) -> 0 | T43: =INDEX(Inputs!$P$209:$BB$209,MATCH('Costs & Revenue'!T$5,Inputs!$P$5:$BB$5,0)) -> 0 | U43: =INDEX(Inputs!$P$209:$BB$209,MATCH('Costs & Revenue'!U$5,Inputs!$P$5:$BB$5,0)) -> 0 | V43: =INDEX(Inputs!$P$209:$BB$209,MATCH('Costs & Revenue'!V$5,Inputs!$P$5:$BB$5,0)) -> 0 | W43: =INDEX(Inputs!$P$209:$BB$209,MATCH('Costs & Revenue'!W$5,Inputs!$P$5:$BB$5,0)) -> 0 | X43: =INDEX(Inputs!$P$209:$BB$209,MATCH('Costs & Revenue'!X$5,Inputs!$P$5:$BB$5,0)) -> 0 | Y43: =INDEX(Inputs!$P$209:$BB$209,MATCH('Costs & Revenue'!Y$5,Inputs!$P$5:$BB$5,0)) -> 0 | Z43: =INDEX(Inputs!$P$209:$BB$209,MATCH('Costs & Revenue'!Z$5,Inputs!$P$5:$BB$5,0)) -> 0 | AA43: =INDEX(Inputs!$P$209:$BB$209,MATCH('Costs & Revenue'!AA$5,Inputs!$P$5:$BB$5,0)) -> 0 | AB43: =INDEX(Inputs!$P$209:$BB$209,MATCH('Costs & Revenue'!AB$5,Inputs!$P$5:$BB$5,0)) -> 0 | AC43: =INDEX(Inputs!$P$209:$BB$209,MATCH('Costs & Revenue'!AC$5,Inputs!$P$5:$BB$5,0)) -> 0 | AD43: =INDEX(Inputs!$P$209:$BB$209,MATCH('Costs & Revenue'!AD$5,Inputs!$P$5:$BB$5,0)) -> 0 | AE43: =INDEX(Inputs!$P$209:$BB$209,MATCH('Costs & Revenue'!AE$5,Inputs!$P$5:$BB$5,0)) -> 0 | AF43: =INDEX(Inputs!$P$209:$BB$209,MATCH('Costs & Revenue'!AF$5,Inputs!$P$5:$BB$5,0)) -> 0 | AG43: =INDEX(Inputs!$P$209:$BB$209,MATCH('Costs & Revenue'!AG$5,Inputs!$P$5:$BB$5,0)) -> 0 | AH43: =INDEX(Inputs!$P$209:$BB$209,MATCH('Costs & Revenue'!AH$5,Inputs!$P$5:$BB$5,0)) -> 0 | AI43: =INDEX(Inputs!$P$209:$BB$209,MATCH('Costs & Revenue'!AI$5,Inputs!$P$5:$BB$5,0)) -> 0 | AJ43: =INDEX(Inputs!$P$209:$BB$209,MATCH('Costs & Revenue'!AJ$5,Inputs!$P$5:$BB$5,0)) -> 0 | AK43: =INDEX(Inputs!$P$209:$BB$209,MATCH('Costs & Revenue'!AK$5,Inputs!$P$5:$BB$5,0)) -> 0 | AL43: =INDEX(Inputs!$P$209:$BB$209,MATCH('Costs & Revenue'!AL$5,Inputs!$P$5:$BB$5,0)) -> 0 | AM43: =INDEX(Inputs!$P$209:$BB$209,MATCH('Costs & Revenue'!AM$5,Inputs!$P$5:$BB$5,0)) -> 0 | AN43: =INDEX(Inputs!$P$209:$BB$209,MATCH('Costs & Revenue'!AN$5,Inputs!$P$5:$BB$5,0)) -> 0 | AO43: =INDEX(Inputs!$P$209:$BB$209,MATCH('Costs & Revenue'!AO$5,Inputs!$P$5:$BB$5,0)) -> 0 | AP43: =INDEX(Inputs!$P$209:$BB$209,MATCH('Costs & Revenue'!AP$5,Inputs!$P$5:$BB$5,0)) -> 0 | AQ43: =INDEX(Inputs!$P$209:$BB$209,MATCH('Costs & Revenue'!AQ$5,Inputs!$P$5:$BB$5,0)) -> 0 | AR43: =INDEX(Inputs!$P$209:$BB$209,MATCH('Costs & Revenue'!AR$5,Inputs!$P$5:$BB$5,0)) -> 0 | AS43: =INDEX(Inputs!$P$209:$BB$209,MATCH('Costs & Revenue'!AS$5,Inputs!$P$5:$BB$5,0)) -> 0 | AT43: =INDEX(Inputs!$P$209:$BB$209,MATCH('Costs & Revenue'!AT$5,Inputs!$P$5:$BB$5,0)) -> 0 | AU43: =INDEX(Inputs!$P$209:$BB$209,MATCH('Costs & Revenue'!AU$5,Inputs!$P$5:$BB$5,0)) -> 0 | AV43: =INDEX(Inputs!$P$209:$BB$209,MATCH('Costs & Revenue'!AV$5,Inputs!$P$5:$BB$5,0)) -> 0 | AW43: =INDEX(Inputs!$P$209:$BB$209,MATCH('Costs & Revenue'!AW$5,Inputs!$P$5:$BB$5,0)) -> 0 | AX43: =INDEX(Inputs!$P$209:$BB$209,MATCH('Costs & Revenue'!AX$5,Inputs!$P$5:$BB$5,0)) -> 0 | AY43: =INDEX(Inputs!$P$209:$BB$209,MATCH('Costs & Revenue'!AY$5,Inputs!$P$5:$BB$5,0)) -> 0 | AZ43: =INDEX(Inputs!$P$209:$BB$209,MATCH('Costs & Revenue'!AZ$5,Inputs!$P$5:$BB$5,0)) -> 0 | BA43: =INDEX(Inputs!$P$209:$BB$209,MATCH('Costs & Revenue'!BA$5,Inputs!$P$5:$BB$5,0)) -> 0 | BB43: =INDEX(Inputs!$P$209:$BB$209,MATCH('Costs & Revenue'!BB$5,Inputs!$P$5:$BB$5,0)) -> 0
E45: Third DCFt adjustment
E46: Value | G46: =base_year -> £m 13/14 prices | I46: =Inputs!I198 -> 0
E47: Activity flag | G47: flag | P47: =INDEX(Inputs!$P$210:$BB$210,MATCH('Costs & Revenue'!P$5,Inputs!$P$5:$BB$5,0)) -> 0 | Q47: =INDEX(Inputs!$P$210:$BB$210,MATCH('Costs & Revenue'!Q$5,Inputs!$P$5:$BB$5,0)) -> 0 | R47: =INDEX(Inputs!$P$210:$BB$210,MATCH('Costs & Revenue'!R$5,Inputs!$P$5:$BB$5,0)) -> 0 | S47: =INDEX(Inputs!$P$210:$BB$210,MATCH('Costs & Revenue'!S$5,Inputs!$P$5:$BB$5,0)) -> 0 | T47: =INDEX(Inputs!$P$210:$BB$210,MATCH('Costs & Revenue'!T$5,Inputs!$P$5:$BB$5,0)) -> 0 | U47: =INDEX(Inputs!$P$210:$BB$210,MATCH('Costs & Revenue'!U$5,Inputs!$P$5:$BB$5,0)) -> 0 | V47: =INDEX(Inputs!$P$210:$BB$210,MATCH('Costs & Revenue'!V$5,Inputs!$P$5:$BB$5,0)) -> 0 | W47: =INDEX(Inputs!$P$210:$BB$210,MATCH('Costs & Revenue'!W$5,Inputs!$P$5:$BB$5,0)) -> 0 | X47: =INDEX(Inputs!$P$210:$BB$210,MATCH('Costs & Revenue'!X$5,Inputs!$P$5:$BB$5,0)) -> 0 | Y47: =INDEX(Inputs!$P$210:$BB$210,MATCH('Costs & Revenue'!Y$5,Inputs!$P$5:$BB$5,0)) -> 0 | Z47: =INDEX(Inputs!$P$210:$BB$210,MATCH('Costs & Revenue'!Z$5,Inputs!$P$5:$BB$5,0)) -> 0 | AA47: =INDEX(Inputs!$P$210:$BB$210,MATCH('Costs & Revenue'!AA$5,Inputs!$P$5:$BB$5,0)) -> 0 | AB47: =INDEX(Inputs!$P$210:$BB$210,MATCH('Costs & Revenue'!AB$5,Inputs!$P$5:$BB$5,0)) -> 0 | AC47: =INDEX(Inputs!$P$210:$BB$210,MATCH('Costs & Revenue'!AC$5,Inputs!$P$5:$BB$5,0)) -> 0 | AD47: =INDEX(Inputs!$P$210:$BB$210,MATCH('Costs & Revenue'!AD$5,Inputs!$P$5:$BB$5,0)) -> 0 | AE47: =INDEX(Inputs!$P$210:$BB$210,MATCH('Costs & Revenue'!AE$5,Inputs!$P$5:$BB$5,0)) -> 0 | AF47: =INDEX(Inputs!$P$210:$BB$210,MATCH('Costs & Revenue'!AF$5,Inputs!$P$5:$BB$5,0)) -> 0 | AG47: =INDEX(Inputs!$P$210:$BB$210,MATCH('Costs & Revenue'!AG$5,Inputs!$P$5:$BB$5,0)) -> 0 | AH47: =INDEX(Inputs!$P$210:$BB$210,MATCH('Costs & Revenue'!AH$5,Inputs!$P$5:$BB$5,0)) -> 0 | AI47: =INDEX(Inputs!$P$210:$BB$210,MATCH('Costs & Revenue'!AI$5,Inputs!$P$5:$BB$5,0)) -> 0 | AJ47: =INDEX(Inputs!$P$210:$BB$210,MATCH('Costs & Revenue'!AJ$5,Inputs!$P$5:$BB$5,0)) -> 0 | AK47: =INDEX(Inputs!$P$210:$BB$210,MATCH('Costs & Revenue'!AK$5,Inputs!$P$5:$BB$5,0)) -> 0 | AL47: =INDEX(Inputs!$P$210:$BB$210,MATCH('Costs & Revenue'!AL$5,Inputs!$P$5:$BB$5,0)) -> 0 | AM47: =INDEX(Inputs!$P$210:$BB$210,MATCH('Costs & Revenue'!AM$5,Inputs!$P$5:$BB$5,0)) -> 0 | AN47: =INDEX(Inputs!$P$210:$BB$210,MATCH('Costs & Revenue'!AN$5,Inputs!$P$5:$BB$5,0)) -> 0 | AO47: =INDEX(Inputs!$P$210:$BB$210,MATCH('Costs & Revenue'!AO$5,Inputs!$P$5:$BB$5,0)) -> 0 | AP47: =INDEX(Inputs!$P$210:$BB$210,MATCH('Costs & Revenue'!AP$5,Inputs!$P$5:$BB$5,0)) -> 0 | AQ47: =INDEX(Inputs!$P$210:$BB$210,MATCH('Costs & Revenue'!AQ$5,Inputs!$P$5:$BB$5,0)) -> 0 | AR47: =INDEX(Inputs!$P$210:$BB$210,MATCH('Costs & Revenue'!AR$5,Inputs!$P$5:$BB$5,0)) -> 0 | AS47: =INDEX(Inputs!$P$210:$BB$210,MATCH('Costs & Revenue'!AS$5,Inputs!$P$5:$BB$5,0)) -> 0 | AT47: =INDEX(Inputs!$P$210:$BB$210,MATCH('Costs & Revenue'!AT$5,Inputs!$P$5:$BB$5,0)) -> 0 | AU47: =INDEX(Inputs!$P$210:$BB$210,MATCH('Costs & Revenue'!AU$5,Inputs!$P$5:$BB$5,0)) -> 0 | AV47: =INDEX(Inputs!$P$210:$BB$210,MATCH('Costs & Revenue'!AV$5,Inputs!$P$5:$BB$5,0)) -> 0 | AW47: =INDEX(Inputs!$P$210:$BB$210,MATCH('Costs & Revenue'!AW$5,Inputs!$P$5:$BB$5,0)) -> 0 | AX47: =INDEX(Inputs!$P$210:$BB$210,MATCH('Costs & Revenue'!AX$5,Inputs!$P$5:$BB$5,0)) -> 0 | AY47: =INDEX(Inputs!$P$210:$BB$210,MATCH('Costs & Revenue'!AY$5,Inputs!$P$5:$BB$5,0)) -> 0 | AZ47: =INDEX(Inputs!$P$210:$BB$210,MATCH('Costs & Revenue'!AZ$5,Inputs!$P$5:$BB$5,0)) -> 0 | BA47: =INDEX(Inputs!$P$210:$BB$210,MATCH('Costs & Revenue'!BA$5,Inputs!$P$5:$BB$5,0)) -> 0 | BB47: =INDEX(Inputs!$P$210:$BB$210,MATCH('Costs & Revenue'!BB$5,Inputs!$P$5:$BB$5,0)) -> 0
E49: Fourth DCFt adjustment
E50: Value | G50: =base_year -> £m 13/14 prices | I50: =Inputs!I203 -> 0
E51: Activity flag | G51: flag | P51: =INDEX(Inputs!$P$211:$BB$211,MATCH('Costs & Revenue'!P$5,Inputs!$P$5:$BB$5,0)) -> 0 | Q51: =INDEX(Inputs!$P$211:$BB$211,MATCH('Costs & Revenue'!Q$5,Inputs!$P$5:$BB$5,0)) -> 0 | R51: =INDEX(Inputs!$P$211:$BB$211,MATCH('Costs & Revenue'!R$5,Inputs!$P$5:$BB$5,0)) -> 0 | S51: =INDEX(Inputs!$P$211:$BB$211,MATCH('Costs & Revenue'!S$5,Inputs!$P$5:$BB$5,0)) -> 0 | T51: =INDEX(Inputs!$P$211:$BB$211,MATCH('Costs & Revenue'!T$5,Inputs!$P$5:$BB$5,0)) -> 0 | U51: =INDEX(Inputs!$P$211:$BB$211,MATCH('Costs & Revenue'!U$5,Inputs!$P$5:$BB$5,0)) -> 0 | V51: =INDEX(Inputs!$P$211:$BB$211,MATCH('Costs & Revenue'!V$5,Inputs!$P$5:$BB$5,0)) -> 0 | W51: =INDEX(Inputs!$P$211:$BB$211,MATCH('Costs & Revenue'!W$5,Inputs!$P$5:$BB$5,0)) -> 0 | X51: =INDEX(Inputs!$P$211:$BB$211,MATCH('Costs & Revenue'!X$5,Inputs!$P$5:$BB$5,0)) -> 0 | Y51: =INDEX(Inputs!$P$211:$BB$211,MATCH('Costs & Revenue'!Y$5,Inputs!$P$5:$BB$5,0)) -> 0 | Z51: =INDEX(Inputs!$P$211:$BB$211,MATCH('Costs & Revenue'!Z$5,Inputs!$P$5:$BB$5,0)) -> 0 | AA51: =INDEX(Inputs!$P$211:$BB$211,MATCH('Costs & Revenue'!AA$5,Inputs!$P$5:$BB$5,0)) -> 0 | AB51: =INDEX(Inputs!$P$211:$BB$211,MATCH('Costs & Revenue'!AB$5,Inputs!$P$5:$BB$5,0)) -> 0 | AC51: =INDEX(Inputs!$P$211:$BB$211,MATCH('Costs & Revenue'!AC$5,Inputs!$P$5:$BB$5,0)) -> 0 | AD51: =INDEX(Inputs!$P$211:$BB$211,MATCH('Costs & Revenue'!AD$5,Inputs!$P$5:$BB$5,0)) -> 0 | AE51: =INDEX(Inputs!$P$211:$BB$211,MATCH('Costs & Revenue'!AE$5,Inputs!$P$5:$BB$5,0)) -> 0 | AF51: =INDEX(Inputs!$P$211:$BB$211,MATCH('Costs & Revenue'!AF$5,Inputs!$P$5:$BB$5,0)) -> 0 | AG51: =INDEX(Inputs!$P$211:$BB$211,MATCH('Costs & Revenue'!AG$5,Inputs!$P$5:$BB$5,0)) -> 0 | AH51: =INDEX(Inputs!$P$211:$BB$211,MATCH('Costs & Revenue'!AH$5,Inputs!$P$5:$BB$5,0)) -> 0 | AI51: =INDEX(Inputs!$P$211:$BB$211,MATCH('Costs & Revenue'!AI$5,Inputs!$P$5:$BB$5,0)) -> 0 | AJ51: =INDEX(Inputs!$P$211:$BB$211,MATCH('Costs & Revenue'!AJ$5,Inputs!$P$5:$BB$5,0)) -> 0 | AK51: =INDEX(Inputs!$P$211:$BB$211,MATCH('Costs & Revenue'!AK$5,Inputs!$P$5:$BB$5,0)) -> 0 | AL51: =INDEX(Inputs!$P$211:$BB$211,MATCH('Costs & Revenue'!AL$5,Inputs!$P$5:$BB$5,0)) -> 0 | AM51: =INDEX(Inputs!$P$211:$BB$211,MATCH('Costs & Revenue'!AM$5,Inputs!$P$5:$BB$5,0)) -> 0 | AN51: =INDEX(Inputs!$P$211:$BB$211,MATCH('Costs & Revenue'!AN$5,Inputs!$P$5:$BB$5,0)) -> 0 | AO51: =INDEX(Inputs!$P$211:$BB$211,MATCH('Costs & Revenue'!AO$5,Inputs!$P$5:$BB$5,0)) -> 0 | AP51: =INDEX(Inputs!$P$211:$BB$211,MATCH('Costs & Revenue'!AP$5,Inputs!$P$5:$BB$5,0)) -> 0 | AQ51: =INDEX(Inputs!$P$211:$BB$211,MATCH('Costs & Revenue'!AQ$5,Inputs!$P$5:$BB$5,0)) -> 0 | AR51: =INDEX(Inputs!$P$211:$BB$211,MATCH('Costs & Revenue'!AR$5,Inputs!$P$5:$BB$5,0)) -> 0 | AS51: =INDEX(Inputs!$P$211:$BB$211,MATCH('Costs & Revenue'!AS$5,Inputs!$P$5:$BB$5,0)) -> 0 | AT51: =INDEX(Inputs!$P$211:$BB$211,MATCH('Costs & Revenue'!AT$5,Inputs!$P$5:$BB$5,0)) -> 0 | AU51: =INDEX(Inputs!$P$211:$BB$211,MATCH('Costs & Revenue'!AU$5,Inputs!$P$5:$BB$5,0)) -> 0 | AV51: =INDEX(Inputs!$P$211:$BB$211,MATCH('Costs & Revenue'!AV$5,Inputs!$P$5:$BB$5,0)) -> 0 | AW51: =INDEX(Inputs!$P$211:$BB$211,MATCH('Costs & Revenue'!AW$5,Inputs!$P$5:$BB$5,0)) -> 0 | AX51: =INDEX(Inputs!$P$211:$BB$211,MATCH('Costs & Revenue'!AX$5,Inputs!$P$5:$BB$5,0)) -> 0 | AY51: =INDEX(Inputs!$P$211:$BB$211,MATCH('Costs & Revenue'!AY$5,Inputs!$P$5:$BB$5,0)) -> 0 | AZ51: =INDEX(Inputs!$P$211:$BB$211,MATCH('Costs & Revenue'!AZ$5,Inputs!$P$5:$BB$5,0)) -> 0 | BA51: =INDEX(Inputs!$P$211:$BB$211,MATCH('Costs & Revenue'!BA$5,Inputs!$P$5:$BB$5,0)) -> 0 | BB51: =INDEX(Inputs!$P$211:$BB$211,MATCH('Costs & Revenue'!BB$5,Inputs!$P$5:$BB$5,0)) -> 0
C53: NPV comparisons
E55: =Inputs!E176 -> Current DC Cap and Floor effective flag | G55: flag | P55: =Inputs!P176 -> 0 | Q55: =Inputs!Q176 -> 0 | R55: =Inputs!R176 -> 0 | S55: =Inputs!S176 -> 0 | T55: =Inputs!T176 -> 0 | U55: =Inputs!U176 -> 0 | V55: =Inputs!V176 -> 0 | W55: =Inputs!W176 -> 0 | X55: =Inputs!X176 -> 0 | Y55: =Inputs!Y176 -> 0 | Z55: =Inputs!Z176 -> 0 | AA55: =Inputs!AA176 -> 0 | AB55: =Inputs!AB176 -> 0 | AC55: =Inputs!AC176 -> 0 | AD55: =Inputs!AD176 -> 0 | AE55: =Inputs!AE176 -> 0 | AF55: =Inputs!AF176 -> 0 | AG55: =Inputs!AG176 -> 0 | AH55: =Inputs!AH176 -> 0 | AI55: =Inputs!AI176 -> 0 | AJ55: =Inputs!AJ176 -> 0 | AK55: =Inputs!AK176 -> 0 | AL55: =Inputs!AL176 -> 0.5859000684 | AM55: =Inputs!AM176 -> 1 | AN55: =Inputs!AN176 -> 1.082819986 | AO55: =Inputs!AO176 -> 0 | AP55: =Inputs!AP176 -> 0 | AQ55: =Inputs!AQ176 -> 0 | AR55: =Inputs!AR176 -> 0 | AS55: =Inputs!AS176 -> 0 | AT55: =Inputs!AT176 -> 0 | AU55: =Inputs!AU176 -> 0 | AV55: =Inputs!AV176 -> 0 | AW55: =Inputs!AW176 -> 0 | AX55: =Inputs!AX176 -> 0 | AY55: =Inputs!AY176 -> 0 | AZ55: =Inputs!AZ176 -> 0 | BA55: =Inputs!BA176 -> 0 | BB55: =Inputs!BB176 -> 0
E56: Cap real return | G56: real annual % | I56: =Inputs!I40 -> 0.0734
E57: Discount factor to start of operational period (cap) | G57: scalar | O57: =IF(O5<=Inputs!$I$21,(1+$I56)^-O$5,0) -> 1 | P57: =IF(P5<=Inputs!$I$21,(1+$I56)^-P$5,0) -> 0.9316191541 | Q57: =IF(Q5<=Inputs!$I$21,(1+$I56)^-Q$5,0) -> 0.8679142483 | R57: =IF(R5<=Inputs!$I$21,(1+$I56)^-R$5,0) -> 0.8085655378 | S57: =IF(S5<=Inputs!$I$21,(1+$I56)^-S$5,0) -> 0.7532751423 | T57: =IF(T5<=Inputs!$I$21,(1+$I56)^-T$5,0) -> 0.7017655509 | U57: =IF(U5<=Inputs!$I$21,(1+$I56)^-U$5,0) -> 0.6537782289 | V57: =IF(V5<=Inputs!$I$21,(1+$I56)^-V$5,0) -> 0.6090723206 | W57: =IF(W5<=Inputs!$I$21,(1+$I56)^-W$5,0) -> 0.5674234401 | X57: =IF(X5<=Inputs!$I$21,(1+$I56)^-X$5,0) -> 0.5286225453 | Y57: =IF(Y5<=Inputs!$I$21,(1+$I56)^-Y$5,0) -> 0.4924748884 | Z57: =IF(Z5<=Inputs!$I$21,(1+$I56)^-Z$5,0) -> 0.458799039 | AA57: =IF(AA5<=Inputs!$I$21,(1+$I56)^-AA$5,0) -> 0.4274259726 | AB57: =IF(AB5<=Inputs!$I$21,(1+$I56)^-AB$5,0) -> 0.398198223 | AC57: =IF(AC5<=Inputs!$I$21,(1+$I56)^-AC$5,0) -> 0.3709690917 | AD57: =IF(AD5<=Inputs!$I$21,(1+$I56)^-AD$5,0) -> 0.3456019114 | AE57: =IF(AE5<=Inputs!$I$21,(1+$I56)^-AE$5,0) -> 0.3219693603 | AF57: =IF(AF5<=Inputs!$I$21,(1+$I56)^-AF$5,0) -> 0.2999528231 | AG57: =IF(AG5<=Inputs!$I$21,(1+$I56)^-AG$5,0) -> 0.2794417953 | AH57: =IF(AH5<=Inputs!$I$21,(1+$I56)^-AH$5,0) -> 0.260333329 | AI57: =IF(AI5<=Inputs!$I$21,(1+$I56)^-AI$5,0) -> 0.2425315157 | AJ57: =IF(AJ5<=Inputs!$I$21,(1+$I56)^-AJ$5,0) -> 0.2259470055 | AK57: =IF(AK5<=Inputs!$I$21,(1+$I56)^-AK$5,0) -> 0.2104965582 | AL57: =IF(AL5<=Inputs!$I$21,(1+$I56)^-AL$5,0) -> 0.1961026255 | AM57: =IF(AM5<=Inputs!$I$21,(1+$I56)^-AM$5,0) -> 0.182692962 | AN57: =IF(AN5<=Inputs!$I$21,(1+$I56)^-AN$5,0) -> 0.1702002628 | AO57: =IF(AO5<=Inputs!$I$21,(1+$I56)^-AO$5,0) -> 0 | AP57: =IF(AP5<=Inputs!$I$21,(1+$I56)^-AP$5,0) -> 0 | AQ57: =IF(AQ5<=Inputs!$I$21,(1+$I56)^-AQ$5,0) -> 0 | AR57: =IF(AR5<=Inputs!$I$21,(1+$I56)^-AR$5,0) -> 0 | AS57: =IF(AS5<=Inputs!$I$21,(1+$I56)^-AS$5,0) -> 0 | AT57: =IF(AT5<=Inputs!$I$21,(1+$I56)^-AT$5,0) -> 0 | AU57: =IF(AU5<=Inputs!$I$21,(1+$I56)^-AU$5,0) -> 0 | AV57: =IF(AV5<=Inputs!$I$21,(1+$I56)^-AV$5,0) -> 0 | AW57: =IF(AW5<=Inputs!$I$21,(1+$I56)^-AW$5,0) -> 0 | AX57: =IF(AX5<=Inputs!$I$21,(1+$I56)^-AX$5,0) -> 0 | AY57: =IF(AY5<=Inputs!$I$21,(1+$I56)^-AY$5,0) -> 0 | AZ57: =IF(AZ5<=Inputs!$I$21,(1+$I56)^-AZ$5,0) -> 0 | BA57: =IF(BA5<=Inputs!$I$21,(1+$I56)^-BA$5,0) -> 0 | BB57: =IF(BB5<=Inputs!$I$21,(1+$I56)^-BB$5,0) -> 0
E59: NPV of original allowance at Cap rate | G59: =base_year -> £m 13/14 prices | I59: =SUMPRODUCT($O$57:$BB$57,O11:BB11) -> 2.058900634
E60: NPV of first DCCt adjustment | G60: £m 13/14 prices | I60: =SUMPRODUCT($O$57:$BB$57,O21:BB21)*I20 -> 0.8376263909
E61: NPV of second DCCt adjustment | G61: £m 13/14 prices | I61: =SUMPRODUCT($O$57:$BB$57,O25:BB25)*I24 -> 0
E62: NPV of third DCCt adjustment | G62: £m 13/14 prices | I62: =SUMPRODUCT($O$57:$BB$57,O29:BB29)*I28 -> 0
E63: NPV of fourth DCCt adjustment | G63: £m 13/14 prices | I63: =SUMPRODUCT($O$57:$BB$57,O33:BB33)*I32 -> 0
E64: NPV of revised allowance at Cap rate | G64: £m 13/14 prices | I64: =SUMPRODUCT($O$57:$BB$57,O15:BB15) -> 2.664353674
E65: Difference in NPV | G65: £m 13/14 prices | I65: =I64-(I59+I60+I61+I62+I63) -> -0.2321733505
E67: Amendment to Cap rate | G67: =base_year -> £m 13/14 prices | H67: DCCt | I67: =I65/SUMPRODUCT($O$55:$BB$55,$O$57:$BB$57) -> -0.4818016523
E69: Floor real return | G69: real annual % | I69: =Inputs!I41 -> 0.0042
E70: Discount factor to start of operational period (floor) | G70: scalar | O70: =IF(O5<=Inputs!$I$21,(1+$I69)^-O$5,0) -> 1 | P70: =IF(P5<=Inputs!$I$21,(1+$I69)^-P$5,0) -> 0.9958175662 | Q70: =IF(Q5<=Inputs!$I$21,(1+$I69)^-Q$5,0) -> 0.9916526252 | R70: =IF(R5<=Inputs!$I$21,(1+$I69)^-R$5,0) -> 0.9875051038 | S70: =IF(S5<=Inputs!$I$21,(1+$I69)^-S$5,0) -> 0.9833749291 | T70: =IF(T5<=Inputs!$I$21,(1+$I69)^-T$5,0) -> 0.9792620285 | U70: =IF(U5<=Inputs!$I$21,(1+$I69)^-U$5,0) -> 0.97516633 | V70: =IF(V5<=Inputs!$I$21,(1+$I69)^-V$5,0) -> 0.9710877614 | W70: =IF(W5<=Inputs!$I$21,(1+$I69)^-W$5,0) -> 0.9670262511 | X70: =IF(X5<=Inputs!$I$21,(1+$I69)^-X$5,0) -> 0.9629817278 | Y70: =IF(Y5<=Inputs!$I$21,(1+$I69)^-Y$5,0) -> 0.9589541205 | Z70: =IF(Z5<=Inputs!$I$21,(1+$I69)^-Z$5,0) -> 0.9549433584 | AA70: =IF(AA5<=Inputs!$I$21,(1+$I69)^-AA$5,0) -> 0.9509493711 | AB70: =IF(AB5<=Inputs!$I$21,(1+$I69)^-AB$5,0) -> 0.9469720883 | AC70: =IF(AC5<=Inputs!$I$21,(1+$I69)^-AC$5,0) -> 0.9430114403 | AD70: =IF(AD5<=Inputs!$I$21,(1+$I69)^-AD$5,0) -> 0.9390673574 | AE70: =IF(AE5<=Inputs!$I$21,(1+$I69)^-AE$5,0) -> 0.9351397703 | AF70: =IF(AF5<=Inputs!$I$21,(1+$I69)^-AF$5,0) -> 0.9312286102 | AG70: =IF(AG5<=Inputs!$I$21,(1+$I69)^-AG$5,0) -> 0.9273338082 | AH70: =IF(AH5<=Inputs!$I$21,(1+$I69)^-AH$5,0) -> 0.9234552959 | AI70: =IF(AI5<=Inputs!$I$21,(1+$I69)^-AI$5,0) -> 0.9195930053 | AJ70: =IF(AJ5<=Inputs!$I$21,(1+$I69)^-AJ$5,0) -> 0.9157468684 | AK70: =IF(AK5<=Inputs!$I$21,(1+$I69)^-AK$5,0) -> 0.9119168178 | AL70: =IF(AL5<=Inputs!$I$21,(1+$I69)^-AL$5,0) -> 0.9081027861 | AM70: =IF(AM5<=Inputs!$I$21,(1+$I69)^-AM$5,0) -> 0.9043047063 | AN70: =IF(AN5<=Inputs!$I$21,(1+$I69)^-AN$5,0) -> 0.9005225118 | AO70: =IF(AO5<=Inputs!$I$21,(1+$I69)^-AO$5,0) -> 0 | AP70: =IF(AP5<=Inputs!$I$21,(1+$I69)^-AP$5,0) -> 0 | AQ70: =IF(AQ5<=Inputs!$I$21,(1+$I69)^-AQ$5,0) -> 0 | AR70: =IF(AR5<=Inputs!$I$21,(1+$I69)^-AR$5,0) -> 0 | AS70: =IF(AS5<=Inputs!$I$21,(1+$I69)^-AS$5,0) -> 0 | AT70: =IF(AT5<=Inputs!$I$21,(1+$I69)^-AT$5,0) -> 0 | AU70: =IF(AU5<=Inputs!$I$21,(1+$I69)^-AU$5,0) -> 0 | AV70: =IF(AV5<=Inputs!$I$21,(1+$I69)^-AV$5,0) -> 0 | AW70: =IF(AW5<=Inputs!$I$21,(1+$I69)^-AW$5,0) -> 0 | AX70: =IF(AX5<=Inputs!$I$21,(1+$I69)^-AX$5,0) -> 0 | AY70: =IF(AY5<=Inputs!$I$21,(1+$I69)^-AY$5,0) -> 0 | AZ70: =IF(AZ5<=Inputs!$I$21,(1+$I69)^-AZ$5,0) -> 0 | BA70: =IF(BA5<=Inputs!$I$21,(1+$I69)^-BA$5,0) -> 0 | BB70: =IF(BB5<=Inputs!$I$21,(1+$I69)^-BB$5,0) -> 0
E72: NPV of original allowance at Floor rate | G72: =base_year -> £m 13/14 prices | I72: =SUMPRODUCT($O$70:$BB$70,O11:BB11) -> 10.60444404
E73: NPV of first DCFt adjustment | G73: £m 13/14 prices | I73: =SUMPRODUCT($O$70:$BB$70,O39:BB39)*I38 -> 4.042424889
E74: NPV of second DCFt adjustment | G74: £m 13/14 prices | I74: =SUMPRODUCT($O$70:$BB$70,O43:BB43)*I42 -> 0
E75: NPV of third DCFt adjustment | G75: £m 13/14 prices | I75: =SUMPRODUCT($O$70:$BB$70,O47:BB47)*I46 -> 0
E76: NPV of fourth DCFt adjustment | G76: £m 13/14 prices | I76: =SUMPRODUCT($O$70:$BB$70,O51:BB51)*I50 -> 0
E77: NPV of revised allowance at Floor rate | G77: £m 13/14 prices | I77: =SUMPRODUCT($O$70:$BB$70,O15:BB15) -> 13.73568361
E78: Difference in NPV | G78: £m 13/14 prices | I78: =I77-(I72+I73+I74+I75+I76) -> -0.9111853175
E80: Amendment to Floor rate | G80: =base_year -> £m 13/14 prices | H80: DCFt | I80: =I78/SUMPRODUCT($O$55:$BB$55,$O$70:$BB$70) -> -0.3778553506
B82: End of sheet

Sheet Indexation
A1: Indexation | H1: Licence
E2: Parameter | G2: Units | H2: Terminology | I2: Constant | O2: Annual values
E3: Year commencing | O3: =INDEX(Inputs!$O3:$BB3,MATCH('Costs & Revenue'!O$5,Inputs!$O$5:$BB$5,0)) -> 2018-01-01 | P3: =INDEX(Inputs!$O3:$BB3,MATCH('Costs & Revenue'!P$5,Inputs!$O$5:$BB$5,0)) -> 2019-01-01 | Q3: =INDEX(Inputs!$O3:$BB3,MATCH('Costs & Revenue'!Q$5,Inputs!$O$5:$BB$5,0)) -> 2020-01-01 | R3: =INDEX(Inputs!$O3:$BB3,MATCH('Costs & Revenue'!R$5,Inputs!$O$5:$BB$5,0)) -> 2021-01-01 | S3: =INDEX(Inputs!$O3:$BB3,MATCH('Costs & Revenue'!S$5,Inputs!$O$5:$BB$5,0)) -> 2022-01-01 | T3: =INDEX(Inputs!$O3:$BB3,MATCH('Costs & Revenue'!T$5,Inputs!$O$5:$BB$5,0)) -> 2023-01-01 | U3: =INDEX(Inputs!$O3:$BB3,MATCH('Costs & Revenue'!U$5,Inputs!$O$5:$BB$5,0)) -> 2024-01-01 | V3: =INDEX(Inputs!$O3:$BB3,MATCH('Costs & Revenue'!V$5,Inputs!$O$5:$BB$5,0)) -> 2025-01-01 | W3: =INDEX(Inputs!$O3:$BB3,MATCH('Costs & Revenue'!W$5,Inputs!$O$5:$BB$5,0)) -> 2026-01-01 | X3: =INDEX(Inputs!$O3:$BB3,MATCH('Costs & Revenue'!X$5,Inputs!$O$5:$BB$5,0)) -> 2027-01-01 | Y3: =INDEX(Inputs!$O3:$BB3,MATCH('Costs & Revenue'!Y$5,Inputs!$O$5:$BB$5,0)) -> 2028-01-01 | Z3: =INDEX(Inputs!$O3:$BB3,MATCH('Costs & Revenue'!Z$5,Inputs!$O$5:$BB$5,0)) -> 2029-01-01 | AA3: =INDEX(Inputs!$O3:$BB3,MATCH('Costs & Revenue'!AA$5,Inputs!$O$5:$BB$5,0)) -> 2030-01-01 | AB3: =INDEX(Inputs!$O3:$BB3,MATCH('Costs & Revenue'!AB$5,Inputs!$O$5:$BB$5,0)) -> 2031-01-01 | AC3: =INDEX(Inputs!$O3:$BB3,MATCH('Costs & Revenue'!AC$5,Inputs!$O$5:$BB$5,0)) -> 2032-01-01 | AD3: =INDEX(Inputs!$O3:$BB3,MATCH('Costs & Revenue'!AD$5,Inputs!$O$5:$BB$5,0)) -> 2033-01-01 | AE3: =INDEX(Inputs!$O3:$BB3,MATCH('Costs & Revenue'!AE$5,Inputs!$O$5:$BB$5,0)) -> 2034-01-01 | AF3: =INDEX(Inputs!$O3:$BB3,MATCH('Costs & Revenue'!AF$5,Inputs!$O$5:$BB$5,0)) -> 2035-01-01 | AG3: =INDEX(Inputs!$O3:$BB3,MATCH('Costs & Revenue'!AG$5,Inputs!$O$5:$BB$5,0)) -> 2036-01-01 | AH3: =INDEX(Inputs!$O3:$BB3,MATCH('Costs & Revenue'!AH$5,Inputs!$O$5:$BB$5,0)) -> 2037-01-01 | AI3: =INDEX(Inputs!$O3:$BB3,MATCH('Costs & Revenue'!AI$5,Inputs!$O$5:$BB$5,0)) -> 2038-01-01 | AJ3: =INDEX(Inputs!$O3:$BB3,MATCH('Costs & Revenue'!AJ$5,Inputs!$O$5:$BB$5,0)) -> 2039-01-01 | AK3: =INDEX(Inputs!$O3:$BB3,MATCH('Costs & Revenue'!AK$5,Inputs!$O$5:$BB$5,0)) -> 2040-01-01 | AL3: =INDEX(Inputs!$O3:$BB3,MATCH('Costs & Revenue'!AL$5,Inputs!$O$5:$BB$5,0)) -> 2041-01-01 | AM3: =INDEX(Inputs!$O3:$BB3,MATCH('Costs & Revenue'!AM$5,Inputs!$O$5:$BB$5,0)) -> 2042-01-01 | AN3: =INDEX(Inputs!$O3:$BB3,MATCH('Costs & Revenue'!AN$5,Inputs!$O$5:$BB$5,0)) -> 2043-01-01 | AO3: =INDEX(Inputs!$O3:$BB3,MATCH('Costs & Revenue'!AO$5,Inputs!$O$5:$BB$5,0)) -> 2044-01-01 | AP3: =INDEX(Inputs!$O3:$BB3,MATCH('Costs & Revenue'!AP$5,Inputs!$O$5:$BB$5,0)) -> 2045-01-01 | AQ3: =INDEX(Inputs!$O3:$BB3,MATCH('Costs & Revenue'!AQ$5,Inputs!$O$5:$BB$5,0)) -> 2046-01-01 | AR3: =INDEX(Inputs!$O3:$BB3,MATCH('Costs & Revenue'!AR$5,Inputs!$O$5:$BB$5,0)) -> 2047-01-01 | AS3: =INDEX(Inputs!$O3:$BB3,MATCH('Costs & Revenue'!AS$5,Inputs!$O$5:$BB$5,0)) -> 2048-01-01 | AT3: =INDEX(Inputs!$O3:$BB3,MATCH('Costs & Revenue'!AT$5,Inputs!$O$5:$BB$5,0)) -> 2049-01-01 | AU3: =INDEX(Inputs!$O3:$BB3,MATCH('Costs & Revenue'!AU$5,Inputs!$O$5:$BB$5,0)) -> 2050-01-01 | AV3: =INDEX(Inputs!$O3:$BB3,MATCH('Costs & Revenue'!AV$5,Inputs!$O$5:$BB$5,0)) -> 2051-01-01 | AW3: =INDEX(Inputs!$O3:$BB3,MATCH('Costs & Revenue'!AW$5,Inputs!$O$5:$BB$5,0)) -> 2052-01-01 | AX3: =INDEX(Inputs!$O3:$BB3,MATCH('Costs & Revenue'!AX$5,Inputs!$O$5:$BB$5,0)) -> 2053-01-01 | AY3: =INDEX(Inputs!$O3:$BB3,MATCH('Costs & Revenue'!AY$5,Inputs!$O$5:$BB$5,0)) -> 2054-01-01 | AZ3: =INDEX(Inputs!$O3:$BB3,MATCH('Costs & Revenue'!AZ$5,Inputs!$O$5:$BB$5,0)) -> 2055-01-01 | BA3: =INDEX(Inputs!$O3:$BB3,MATCH('Costs & Revenue'!BA$5,Inputs!$O$5:$BB$5,0)) -> 2056-01-01 | BB3: =INDEX(Inputs!$O3:$BB3,MATCH('Costs & Revenue'!BB$5,Inputs!$O$5:$BB$5,0)) -> 2057-01-01
E4: Year ending | O4: =INDEX(Inputs!$O4:$BB4,MATCH('Costs & Revenue'!O$5,Inputs!$O$5:$BB$5,0)) -> 2018-12-31 | P4: =INDEX(Inputs!$O4:$BB4,MATCH('Costs & Revenue'!P$5,Inputs!$O$5:$BB$5,0)) -> 2019-12-31 | Q4: =INDEX(Inputs!$O4:$BB4,MATCH('Costs & Revenue'!Q$5,Inputs!$O$5:$BB$5,0)) -> 2020-12-31 | R4: =INDEX(Inputs!$O4:$BB4,MATCH('Costs & Revenue'!R$5,Inputs!$O$5:$BB$5,0)) -> 2021-12-31 | S4: =INDEX(Inputs!$O4:$BB4,MATCH('Costs & Revenue'!S$5,Inputs!$O$5:$BB$5,0)) -> 2022-12-31 | T4: =INDEX(Inputs!$O4:$BB4,MATCH('Costs & Revenue'!T$5,Inputs!$O$5:$BB$5,0)) -> 2023-12-31 | U4: =INDEX(Inputs!$O4:$BB4,MATCH('Costs & Revenue'!U$5,Inputs!$O$5:$BB$5,0)) -> 2024-12-31 | V4: =INDEX(Inputs!$O4:$BB4,MATCH('Costs & Revenue'!V$5,Inputs!$O$5:$BB$5,0)) -> 2025-12-31 | W4: =INDEX(Inputs!$O4:$BB4,MATCH('Costs & Revenue'!W$5,Inputs!$O$5:$BB$5,0)) -> 2026-12-31 | X4: =INDEX(Inputs!$O4:$BB4,MATCH('Costs & Revenue'!X$5,Inputs!$O$5:$BB$5,0)) -> 2027-12-31 | Y4: =INDEX(Inputs!$O4:$BB4,MATCH('Costs & Revenue'!Y$5,Inputs!$O$5:$BB$5,0)) -> 2028-12-31 | Z4: =INDEX(Inputs!$O4:$BB4,MATCH('Costs & Revenue'!Z$5,Inputs!$O$5:$BB$5,0)) -> 2029-12-31 | AA4: =INDEX(Inputs!$O4:$BB4,MATCH('Costs & Revenue'!AA$5,Inputs!$O$5:$BB$5,0)) -> 2030-12-31 | AB4: =INDEX(Inputs!$O4:$BB4,MATCH('Costs & Revenue'!AB$5,Inputs!$O$5:$BB$5,0)) -> 2031-12-31 | AC4: =INDEX(Inputs!$O4:$BB4,MATCH('Costs & Revenue'!AC$5,Inputs!$O$5:$BB$5,0)) -> 2032-12-31 | AD4: =INDEX(Inputs!$O4:$BB4,MATCH('Costs & Revenue'!AD$5,Inputs!$O$5:$BB$5,0)) -> 2033-12-31 | AE4: =INDEX(Inputs!$O4:$BB4,MATCH('Costs & Revenue'!AE$5,Inputs!$O$5:$BB$5,0)) -> 2034-12-31 | AF4: =INDEX(Inputs!$O4:$BB4,MATCH('Costs & Revenue'!AF$5,Inputs!$O$5:$BB$5,0)) -> 2035-12-31 | AG4: =INDEX(Inputs!$O4:$BB4,MATCH('Costs & Revenue'!AG$5,Inputs!$O$5:$BB$5,0)) -> 2036-12-31 | AH4: =INDEX(Inputs!$O4:$BB4,MATCH('Costs & Revenue'!AH$5,Inputs!$O$5:$BB$5,0)) -> 2037-12-31 | AI4: =INDEX(Inputs!$O4:$BB4,MATCH('Costs & Revenue'!AI$5,Inputs!$O$5:$BB$5,0)) -> 2038-12-31 | AJ4: =INDEX(Inputs!$O4:$BB4,MATCH('Costs & Revenue'!AJ$5,Inputs!$O$5:$BB$5,0)) -> 2039-12-31 | AK4: =INDEX(Inputs!$O4:$BB4,MATCH('Costs & Revenue'!AK$5,Inputs!$O$5:$BB$5,0)) -> 2040-12-31 | AL4: =INDEX(Inputs!$O4:$BB4,MATCH('Costs & Revenue'!AL$5,Inputs!$O$5:$BB$5,0)) -> 2041-12-31 | AM4: =INDEX(Inputs!$O4:$BB4,MATCH('Costs & Revenue'!AM$5,Inputs!$O$5:$BB$5,0)) -> 2042-12-31 | AN4: =INDEX(Inputs!$O4:$BB4,MATCH('Costs & Revenue'!AN$5,Inputs!$O$5:$BB$5,0)) -> 2043-12-31 | AO4: =INDEX(Inputs!$O4:$BB4,MATCH('Costs & Revenue'!AO$5,Inputs!$O$5:$BB$5,0)) -> 2044-12-31 | AP4: =INDEX(Inputs!$O4:$BB4,MATCH('Costs & Revenue'!AP$5,Inputs!$O$5:$BB$5,0)) -> 2045-12-31 | AQ4: =INDEX(Inputs!$O4:$BB4,MATCH('Costs & Revenue'!AQ$5,Inputs!$O$5:$BB$5,0)) -> 2046-12-31 | AR4: =INDEX(Inputs!$O4:$BB4,MATCH('Costs & Revenue'!AR$5,Inputs!$O$5:$BB$5,0)) -> 2047-12-31 | AS4: =INDEX(Inputs!$O4:$BB4,MATCH('Costs & Revenue'!AS$5,Inputs!$O$5:$BB$5,0)) -> 2048-12-31 | AT4: =INDEX(Inputs!$O4:$BB4,MATCH('Costs & Revenue'!AT$5,Inputs!$O$5:$BB$5,0)) -> 2049-12-31 | AU4: =INDEX(Inputs!$O4:$BB4,MATCH('Costs & Revenue'!AU$5,Inputs!$O$5:$BB$5,0)) -> 2050-12-31 | AV4: =INDEX(Inputs!$O4:$BB4,MATCH('Costs & Revenue'!AV$5,Inputs!$O$5:$BB$5,0)) -> 2051-12-31 | AW4: =INDEX(Inputs!$O4:$BB4,MATCH('Costs & Revenue'!AW$5,Inputs!$O$5:$BB$5,0)) -> 2052-12-31 | AX4: =INDEX(Inputs!$O4:$BB4,MATCH('Costs & Revenue'!AX$5,Inputs!$O$5:$BB$5,0)) -> 2053-12-31 | AY4: =INDEX(Inputs!$O4:$BB4,MATCH('Costs & Revenue'!AY$5,Inputs!$O$5:$BB$5,0)) -> 2054-12-31 | AZ4: =INDEX(Inputs!$O4:$BB4,MATCH('Costs & Revenue'!AZ$5,Inputs!$O$5:$BB$5,0)) -> 2055-12-31 | BA4: =INDEX(Inputs!$O4:$BB4,MATCH('Costs & Revenue'!BA$5,Inputs!$O$5:$BB$5,0)) -> 2056-12-31 | BB4: =INDEX(Inputs!$O4:$BB4,MATCH('Costs & Revenue'!BB$5,Inputs!$O$5:$BB$5,0)) -> 2057-12-31
E5: Operational year | O5: =Inputs!O5 -> 0 | P5: =Inputs!P5 -> 1 | Q5: =Inputs!Q5 -> 2 | R5: =Inputs!R5 -> 3 | S5: =Inputs!S5 -> 4 | T5: =Inputs!T5 -> 5 | U5: =Inputs!U5 -> 6 | V5: =Inputs!V5 -> 7 | W5: =Inputs!W5 -> 8 | X5: =Inputs!X5 -> 9 | Y5: =Inputs!Y5 -> 10 | Z5: =Inputs!Z5 -> 11 | AA5: =Inputs!AA5 -> 12 | AB5: =Inputs!AB5 -> 13 | AC5: =Inputs!AC5 -> 14 | AD5: =Inputs!AD5 -> 15 | AE5: =Inputs!AE5 -> 16 | AF5: =Inputs!AF5 -> 17 | AG5: =Inputs!AG5 -> 18 | AH5: =Inputs!AH5 -> 19 | AI5: =Inputs!AI5 -> 20 | AJ5: =Inputs!AJ5 -> 21 | AK5: =Inputs!AK5 -> 22 | AL5: =Inputs!AL5 -> 23 | AM5: =Inputs!AM5 -> 24 | AN5: =Inputs!AN5 -> 25 | AO5: =Inputs!AO5 -> 26 | AP5: =Inputs!AP5 -> 27 | AQ5: =Inputs!AQ5 -> 28 | AR5: =Inputs!AR5 -> 29 | AS5: =Inputs!AS5 -> 30 | AT5: =Inputs!AT5 -> 31 | AU5: =Inputs!AU5 -> 32 | AV5: =Inputs!AV5 -> 33 | AW5: =Inputs!AW5 -> 34 | AX5: =Inputs!AX5 -> 35 | AY5: =Inputs!AY5 -> 36 | AZ5: =Inputs!AZ5 -> 37 | BA5: =Inputs!BA5 -> 38 | BB5: =Inputs!BB5 -> 39
B7: Indexation
C9: PPPI indexation
E11: Indexation factor | G11: scalar | H11: PPPIt | O11: =INDEX(Inputs!$O$145:$BB$145,MATCH(Indexation!O5,Inputs!$O$5:$BB$5,0)) -> 1.12045872 | P11: =INDEX(Inputs!$O$145:$BB$145,MATCH(Indexation!P5,Inputs!$O$5:$BB$5,0)) -> 1.141550857 | Q11: =INDEX(Inputs!$O$145:$BB$145,MATCH(Indexation!Q5,Inputs!$O$5:$BB$5,0)) -> 1.185159625 | R11: =INDEX(Inputs!$O$145:$BB$145,MATCH(Indexation!R5,Inputs!$O$5:$BB$5,0)) -> 1.214781353 | S11: =INDEX(Inputs!$O$145:$BB$145,MATCH(Indexation!S5,Inputs!$O$5:$BB$5,0)) -> 1.245173071 | T11: =INDEX(Inputs!$O$145:$BB$145,MATCH(Indexation!T5,Inputs!$O$5:$BB$5,0)) -> 1.276355506 | U11: =INDEX(Inputs!$O$145:$BB$145,MATCH(Indexation!U5,Inputs!$O$5:$BB$5,0)) -> 1.308349959 | V11: =INDEX(Inputs!$O$145:$BB$145,MATCH(Indexation!V5,Inputs!$O$5:$BB$5,0)) -> 1.341178322 | W11: =INDEX(Inputs!$O$145:$BB$145,MATCH(Indexation!W5,Inputs!$O$5:$BB$5,0)) -> 1.374863092 | X11: =INDEX(Inputs!$O$145:$BB$145,MATCH(Indexation!X5,Inputs!$O$5:$BB$5,0)) -> 1.409427394 | Y11: =INDEX(Inputs!$O$145:$BB$145,MATCH(Indexation!Y5,Inputs!$O$5:$BB$5,0)) -> 1.444894994 | Z11: =INDEX(Inputs!$O$145:$BB$145,MATCH(Indexation!Z5,Inputs!$O$5:$BB$5,0)) -> 1.481290317 | AA11: =INDEX(Inputs!$O$145:$BB$145,MATCH(Indexation!AA5,Inputs!$O$5:$BB$5,0)) -> 1.518638469 | AB11: =INDEX(Inputs!$O$145:$BB$145,MATCH(Indexation!AB5,Inputs!$O$5:$BB$5,0)) -> 1.556965254 | AC11: =INDEX(Inputs!$O$145:$BB$145,MATCH(Indexation!AC5,Inputs!$O$5:$BB$5,0)) -> 1.596297196 | AD11: =INDEX(Inputs!$O$145:$BB$145,MATCH(Indexation!AD5,Inputs!$O$5:$BB$5,0)) -> 1.636661556 | AE11: =INDEX(Inputs!$O$145:$BB$145,MATCH(Indexation!AE5,Inputs!$O$5:$BB$5,0)) -> 1.678086355 | AF11: =INDEX(Inputs!$O$145:$BB$145,MATCH(Indexation!AF5,Inputs!$O$5:$BB$5,0)) -> 1.720600397 | AG11: =INDEX(Inputs!$O$145:$BB$145,MATCH(Indexation!AG5,Inputs!$O$5:$BB$5,0)) -> 1.76423329 | AH11: =INDEX(Inputs!$O$145:$BB$145,MATCH(Indexation!AH5,Inputs!$O$5:$BB$5,0)) -> 1.809015467 | AI11: =INDEX(Inputs!$O$145:$BB$145,MATCH(Indexation!AI5,Inputs!$O$5:$BB$5,0)) -> 1.854978213 | AJ11: =INDEX(Inputs!$O$145:$BB$145,MATCH(Indexation!AJ5,Inputs!$O$5:$BB$5,0)) -> 1.902153687 | AK11: =INDEX(Inputs!$O$145:$BB$145,MATCH(Indexation!AK5,Inputs!$O$5:$BB$5,0)) -> 1.950574947 | AL11: =INDEX(Inputs!$O$145:$BB$145,MATCH(Indexation!AL5,Inputs!$O$5:$BB$5,0)) -> 2.000275979 | AM11: =INDEX(Inputs!$O$145:$BB$145,MATCH(Indexation!AM5,Inputs!$O$5:$BB$5,0)) -> 2.051291717 | AN11: =INDEX(Inputs!$O$145:$BB$145,MATCH(Indexation!AN5,Inputs!$O$5:$BB$5,0)) -> 2.103658076 | AO11: =INDEX(Inputs!$O$145:$BB$145,MATCH(Indexation!AO5,Inputs!$O$5:$BB$5,0)) -> 2.157411979 | AP11: =INDEX(Inputs!$O$145:$BB$145,MATCH(Indexation!AP5,Inputs!$O$5:$BB$5,0)) -> 2.212591381 | AQ11: =INDEX(Inputs!$O$145:$BB$145,MATCH(Indexation!AQ5,Inputs!$O$5:$BB$5,0)) -> 2.269235307 | AR11: =INDEX(Inputs!$O$145:$BB$145,MATCH(Indexation!AR5,Inputs!$O$5:$BB$5,0)) -> 2.327383874 | AS11: =INDEX(Inputs!$O$145:$BB$145,MATCH(Indexation!AS5,Inputs!$O$5:$BB$5,0)) -> 2.387078328 | AT11: =INDEX(Inputs!$O$145:$BB$145,MATCH(Indexation!AT5,Inputs!$O$5:$BB$5,0)) -> 2.448361075 | AU11: =INDEX(Inputs!$O$145:$BB$145,MATCH(Indexation!AU5,Inputs!$O$5:$BB$5,0)) -> 2.511275712 | AV11: =INDEX(Inputs!$O$145:$BB$145,MATCH(Indexation!AV5,Inputs!$O$5:$BB$5,0)) -> 2.575867064 | AW11: =INDEX(Inputs!$O$145:$BB$145,MATCH(Indexation!AW5,Inputs!$O$5:$BB$5,0)) -> 2.642181218 | AX11: =INDEX(Inputs!$O$145:$BB$145,MATCH(Indexation!AX5,Inputs!$O$5:$BB$5,0)) -> 2.71026556 | AY11: =INDEX(Inputs!$O$145:$BB$145,MATCH(Indexation!AY5,Inputs!$O$5:$BB$5,0)) -> 2.78016881 | AZ11: =INDEX(Inputs!$O$145:$BB$145,MATCH(Indexation!AZ5,Inputs!$O$5:$BB$5,0)) -> 2.851941063 | BA11: =INDEX(Inputs!$O$145:$BB$145,MATCH(Indexation!BA5,Inputs!$O$5:$BB$5,0)) -> 2.925633828 | BB11: =INDEX(Inputs!$O$145:$BB$145,MATCH(Indexation!BB5,Inputs!$O$5:$BB$5,0)) -> 3.001300066
C13: Indexed annuity (pre-availability incentive)
E15: Preliminary Cap | G15: =base_year -> £m 13/14 prices | H15: PCL | I15: =Prel_Cap -> 83.80640211
E16: Preliminary Floor | G16: £m 13/14 prices | H16: PFL | I16: =Prel_Floor -> 48.80731676
E17: PCA adjustment to Cap | G17: £m 13/14 prices | H17: PCAC | I17: =PCAC_Adj -> -6.804105366
E18: PCA adjustment to Floor | G18: £m 13/14 prices | H18: PCAF | I18: =PCAF_Adj -> -4.935616346
E19: ORA adjustment to Cap | G19: £m 13/14 prices | H19: ORAC | I19: =ORAC_Adj -> -1.207815429
E20: ORA adjustment to Floor | G20: £m 13/14 prices | H20: ORAF | I20: =ORAF_Adj -> -1.263126755
E21: Latest DC adjustment to Cap | G21: £m 13/14 prices | H21: DCCt | I21: =DCC_Adj_Latest -> -0.4818016523
E22: Latest DC adjustment to Floor | G22: £m 13/14 prices | H22: DCFt | I22: =DCF_Adj_Latest -> -0.3778553506
E23: First DC adjustment to Cap | G23: £m 13/14 prices | H23: DCCt | I23: =DCC_Adj_1st -> 1.269872319
E24: First DC adjustment to Floor | G24: £m 13/14 prices | H24: DCFt | I24: =DCF_Adj_1st -> 1.474327566
E25: Second DC adjustment to Cap | G25: £m 13/14 prices | H25: DCCt | I25: =DCC_Adj_2nd -> 0
E26: Second DC adjustment to Floor | G26: £m 13/14 prices | H26: DCFt | I26: =DCF_Adj_2nd -> 0
E27: Third DC adjustment to Cap | G27: £m 13/14 prices | H27: DCCt | I27: =DCC_Adj_3rd -> 0
E28: Third DC adjustment to Floor | G28: £m 13/14 prices | H28: DCFt | I28: =DCF_Adj_3rd -> 0
E29: Fourth DC adjustment to Cap | G29: £m 13/14 prices | H29: DCCt | I29: =DCC_Adj_4th -> 0
E30: Fourth DC adjustment to Floor | G30: £m 13/14 prices | H30: DCFt | I30: =DCF_Adj_4th -> 0
E32: Preliminary Cap (pre-availability incentive) | G32: £m nominal prices | P32: =IF(P$5<=op_years,$I15 * P$11,0) -> 95.66927015 | Q32: 99.32396413 | R32: 101.8064545 | S32: 104.3534751 | T32: 106.9667628 | U32: 109.6481028 | V32: 112.3993297 | W32: 115.2223292 | X32: 118.119039 | Y32: 121.0914509 | Z32: 124.1416119 | AA32: 127.2716262 | AB32: 130.4836562 | AC32: 133.7799247 | AD32: 137.1627165 | AE32: 140.6343798 | AF32: 144.1973288 | AG32: 147.8540445 | AH32: 151.6070777 | AI32: 155.45905 | AJ32: 159.4126568 | AK32: 163.4706684 | AL32: 167.635933 | AM32: 171.9113785 | AN32: 176.3000147 | AO32: 0 | AP32: 0 | AQ32: 0 | AR32: 0 | AS32: 0 | AT32: 0 | AU32: 0 | AV32: 0 | AW32: 0 | AX32: 0 | AY32: 0 | AZ32: 0 | BA32: 0 | BB32: 0
E33: Preliminary Floor (pre-availability incentive) | G33: £m nominal prices | P33: =IF(P$5<=op_years,$I16 * P$11,0) -> 55.71603427 | Q33: 57.84446125 | R33: 59.29021828 | S33: 60.7735565 | T33: 62.29548749 | U33: 63.85705089 | V33: 65.45931518 | W33: 67.10337845 | X33: 68.79036929 | Y33: 70.52144765 | Z33: 72.29780571 | AA33: 74.1206688 | AB33: 75.99129636 | AC33: 77.91098289 | AD33: 79.88105898 | AE33: 81.90289228 | AF33: 83.97788861 | AG33: 86.10749302 | AH33: 88.29319092 | AI33: 90.53650922 | AJ33: 92.83901752 | AK33: 95.20232932 | AL33: 97.62810331 | AM33: 100.1180446 | AN33: 102.6739061 | AO33: 0 | AP33: 0 | AQ33: 0 | AR33: 0 | AS33: 0 | AT33: 0 | AU33: 0 | AV33: 0 | AW33: 0 | AX33: 0 | AY33: 0 | AZ33: 0 | BA33: 0 | BB33: 0
E35: Apply PCA adjustment factor? | G35: flag | I35: =IF(Inputs!I152="Yes",1,0) -> 1
E36: PCAC adjustment factor | G36: flag | P36: =INDEX(Inputs!$P$153:$BB$153,MATCH('Costs & Revenue'!P$5,Inputs!$P$5:$BB$5,0)) -> 0.9171800137 | Q36: =INDEX(Inputs!$P$153:$BB$153,MATCH('Costs & Revenue'!Q$5,Inputs!$P$5:$BB$5,0)) -> 1 | R36: =INDEX(Inputs!$P$153:$BB$153,MATCH('Costs & Revenue'!R$5,Inputs!$P$5:$BB$5,0)) -> 1 | S36: =INDEX(Inputs!$P$153:$BB$153,MATCH('Costs & Revenue'!S$5,Inputs!$P$5:$BB$5,0)) -> 1 | T36: =INDEX(Inputs!$P$153:$BB$153,MATCH('Costs & Revenue'!T$5,Inputs!$P$5:$BB$5,0)) -> 1 | U36: =INDEX(Inputs!$P$153:$BB$153,MATCH('Costs & Revenue'!U$5,Inputs!$P$5:$BB$5,0)) -> 1 | V36: =INDEX(Inputs!$P$153:$BB$153,MATCH('Costs & Revenue'!V$5,Inputs!$P$5:$BB$5,0)) -> 1 | W36: =INDEX(Inputs!$P$153:$BB$153,MATCH('Costs & Revenue'!W$5,Inputs!$P$5:$BB$5,0)) -> 1 | X36: =INDEX(Inputs!$P$153:$BB$153,MATCH('Costs & Revenue'!X$5,Inputs!$P$5:$BB$5,0)) -> 1 | Y36: =INDEX(Inputs!$P$153:$BB$153,MATCH('Costs & Revenue'!Y$5,Inputs!$P$5:$BB$5,0)) -> 1 | Z36: =INDEX(Inputs!$P$153:$BB$153,MATCH('Costs & Revenue'!Z$5,Inputs!$P$5:$BB$5,0)) -> 1 | AA36: =INDEX(Inputs!$P$153:$BB$153,MATCH('Costs & Revenue'!AA$5,Inputs!$P$5:$BB$5,0)) -> 1 | AB36: =INDEX(Inputs!$P$153:$BB$153,MATCH('Costs & Revenue'!AB$5,Inputs!$P$5:$BB$5,0)) -> 1 | AC36: =INDEX(Inputs!$P$153:$BB$153,MATCH('Costs & Revenue'!AC$5,Inputs!$P$5:$BB$5,0)) -> 1 | AD36: =INDEX(Inputs!$P$153:$BB$153,MATCH('Costs & Revenue'!AD$5,Inputs!$P$5:$BB$5,0)) -> 1 | AE36: =INDEX(Inputs!$P$153:$BB$153,MATCH('Costs & Revenue'!AE$5,Inputs!$P$5:$BB$5,0)) -> 1 | AF36: =INDEX(Inputs!$P$153:$BB$153,MATCH('Costs & Revenue'!AF$5,Inputs!$P$5:$BB$5,0)) -> 1 | AG36: =INDEX(Inputs!$P$153:$BB$153,MATCH('Costs & Revenue'!AG$5,Inputs!$P$5:$BB$5,0)) -> 1 | AH36: =INDEX(Inputs!$P$153:$BB$153,MATCH('Costs & Revenue'!AH$5,Inputs!$P$5:$BB$5,0)) -> 1 | AI36: =INDEX(Inputs!$P$153:$BB$153,MATCH('Costs & Revenue'!AI$5,Inputs!$P$5:$BB$5,0)) -> 1 | AJ36: =INDEX(Inputs!$P$153:$BB$153,MATCH('Costs & Revenue'!AJ$5,Inputs!$P$5:$BB$5,0)) -> 1 | AK36: =INDEX(Inputs!$P$153:$BB$153,MATCH('Costs & Revenue'!AK$5,Inputs!$P$5:$BB$5,0)) -> 1 | AL36: =INDEX(Inputs!$P$153:$BB$153,MATCH('Costs & Revenue'!AL$5,Inputs!$P$5:$BB$5,0)) -> 1 | AM36: =INDEX(Inputs!$P$153:$BB$153,MATCH('Costs & Revenue'!AM$5,Inputs!$P$5:$BB$5,0)) -> 1 | AN36: =INDEX(Inputs!$P$153:$BB$153,MATCH('Costs & Revenue'!AN$5,Inputs!$P$5:$BB$5,0)) -> 1.082819986 | AO36: =INDEX(Inputs!$P$153:$BB$153,MATCH('Costs & Revenue'!AO$5,Inputs!$P$5:$BB$5,0)) -> 0 | AP36: =INDEX(Inputs!$P$153:$BB$153,MATCH('Costs & Revenue'!AP$5,Inputs!$P$5:$BB$5,0)) -> 0 | AQ36: =INDEX(Inputs!$P$153:$BB$153,MATCH('Costs & Revenue'!AQ$5,Inputs!$P$5:$BB$5,0)) -> 0 | AR36: =INDEX(Inputs!$P$153:$BB$153,MATCH('Costs & Revenue'!AR$5,Inputs!$P$5:$BB$5,0)) -> 0 | AS36: =INDEX(Inputs!$P$153:$BB$153,MATCH('Costs & Revenue'!AS$5,Inputs!$P$5:$BB$5,0)) -> 0 | AT36: =INDEX(Inputs!$P$153:$BB$153,MATCH('Costs & Revenue'!AT$5,Inputs!$P$5:$BB$5,0)) -> 0 | AU36: =INDEX(Inputs!$P$153:$BB$153,MATCH('Costs & Revenue'!AU$5,Inputs!$P$5:$BB$5,0)) -> 0 | AV36: =INDEX(Inputs!$P$153:$BB$153,MATCH('Costs & Revenue'!AV$5,Inputs!$P$5:$BB$5,0)) -> 0 | AW36: =INDEX(Inputs!$P$153:$BB$153,MATCH('Costs & Revenue'!AW$5,Inputs!$P$5:$BB$5,0)) -> 0 | AX36: =INDEX(Inputs!$P$153:$BB$153,MATCH('Costs & Revenue'!AX$5,Inputs!$P$5:$BB$5,0)) -> 0 | AY36: =INDEX(Inputs!$P$153:$BB$153,MATCH('Costs & Revenue'!AY$5,Inputs!$P$5:$BB$5,0)) -> 0 | AZ36: =INDEX(Inputs!$P$153:$BB$153,MATCH('Costs & Revenue'!AZ$5,Inputs!$P$5:$BB$5,0)) -> 0 | BA36: =INDEX(Inputs!$P$153:$BB$153,MATCH('Costs & Revenue'!BA$5,Inputs!$P$5:$BB$5,0)) -> 0 | BB36: =INDEX(Inputs!$P$153:$BB$153,MATCH('Costs & Revenue'!BB$5,Inputs!$P$5:$BB$5,0)) -> 0
E37: PCAF adjustment factor | G37: flag | P37: =INDEX(Inputs!$P$154:$BB$154,MATCH('Costs & Revenue'!P$5,Inputs!$P$5:$BB$5,0)) -> 0.9171800137 | Q37: =INDEX(Inputs!$P$154:$BB$154,MATCH('Costs & Revenue'!Q$5,Inputs!$P$5:$BB$5,0)) -> 1 | R37: =INDEX(Inputs!$P$154:$BB$154,MATCH('Costs & Revenue'!R$5,Inputs!$P$5:$BB$5,0)) -> 1 | S37: =INDEX(Inputs!$P$154:$BB$154,MATCH('Costs & Revenue'!S$5,Inputs!$P$5:$BB$5,0)) -> 1 | T37: =INDEX(Inputs!$P$154:$BB$154,MATCH('Costs & Revenue'!T$5,Inputs!$P$5:$BB$5,0)) -> 1 | U37: =INDEX(Inputs!$P$154:$BB$154,MATCH('Costs & Revenue'!U$5,Inputs!$P$5:$BB$5,0)) -> 1 | V37: =INDEX(Inputs!$P$154:$BB$154,MATCH('Costs & Revenue'!V$5,Inputs!$P$5:$BB$5,0)) -> 1 | W37: =INDEX(Inputs!$P$154:$BB$154,MATCH('Costs & Revenue'!W$5,Inputs!$P$5:$BB$5,0)) -> 1 | X37: =INDEX(Inputs!$P$154:$BB$154,MATCH('Costs & Revenue'!X$5,Inputs!$P$5:$BB$5,0)) -> 1 | Y37: =INDEX(Inputs!$P$154:$BB$154,MATCH('Costs & Revenue'!Y$5,Inputs!$P$5:$BB$5,0)) -> 1 | Z37: =INDEX(Inputs!$P$154:$BB$154,MATCH('Costs & Revenue'!Z$5,Inputs!$P$5:$BB$5,0)) -> 1 | AA37: =INDEX(Inputs!$P$154:$BB$154,MATCH('Costs & Revenue'!AA$5,Inputs!$P$5:$BB$5,0)) -> 1 | AB37: =INDEX(Inputs!$P$154:$BB$154,MATCH('Costs & Revenue'!AB$5,Inputs!$P$5:$BB$5,0)) -> 1 | AC37: =INDEX(Inputs!$P$154:$BB$154,MATCH('Costs & Revenue'!AC$5,Inputs!$P$5:$BB$5,0)) -> 1 | AD37: =INDEX(Inputs!$P$154:$BB$154,MATCH('Costs & Revenue'!AD$5,Inputs!$P$5:$BB$5,0)) -> 1 | AE37: =INDEX(Inputs!$P$154:$BB$154,MATCH('Costs & Revenue'!AE$5,Inputs!$P$5:$BB$5,0)) -> 1 | AF37: =INDEX(Inputs!$P$154:$BB$154,MATCH('Costs & Revenue'!AF$5,Inputs!$P$5:$BB$5,0)) -> 1 | AG37: =INDEX(Inputs!$P$154:$BB$154,MATCH('Costs & Revenue'!AG$5,Inputs!$P$5:$BB$5,0)) -> 1 | AH37: =INDEX(Inputs!$P$154:$BB$154,MATCH('Costs & Revenue'!AH$5,Inputs!$P$5:$BB$5,0)) -> 1 | AI37: =INDEX(Inputs!$P$154:$BB$154,MATCH('Costs & Revenue'!AI$5,Inputs!$P$5:$BB$5,0)) -> 1 | AJ37: =INDEX(Inputs!$P$154:$BB$154,MATCH('Costs & Revenue'!AJ$5,Inputs!$P$5:$BB$5,0)) -> 1 | AK37: =INDEX(Inputs!$P$154:$BB$154,MATCH('Costs & Revenue'!AK$5,Inputs!$P$5:$BB$5,0)) -> 1 | AL37: =INDEX(Inputs!$P$154:$BB$154,MATCH('Costs & Revenue'!AL$5,Inputs!$P$5:$BB$5,0)) -> 1 | AM37: =INDEX(Inputs!$P$154:$BB$154,MATCH('Costs & Revenue'!AM$5,Inputs!$P$5:$BB$5,0)) -> 1 | AN37: =INDEX(Inputs!$P$154:$BB$154,MATCH('Costs & Revenue'!AN$5,Inputs!$P$5:$BB$5,0)) -> 1.082819986 | AO37: =INDEX(Inputs!$P$154:$BB$154,MATCH('Costs & Revenue'!AO$5,Inputs!$P$5:$BB$5,0)) -> 0 | AP37: =INDEX(Inputs!$P$154:$BB$154,MATCH('Costs & Revenue'!AP$5,Inputs!$P$5:$BB$5,0)) -> 0 | AQ37: =INDEX(Inputs!$P$154:$BB$154,MATCH('Costs & Revenue'!AQ$5,Inputs!$P$5:$BB$5,0)) -> 0 | AR37: =INDEX(Inputs!$P$154:$BB$154,MATCH('Costs & Revenue'!AR$5,Inputs!$P$5:$BB$5,0)) -> 0 | AS37: =INDEX(Inputs!$P$154:$BB$154,MATCH('Costs & Revenue'!AS$5,Inputs!$P$5:$BB$5,0)) -> 0 | AT37: =INDEX(Inputs!$P$154:$BB$154,MATCH('Costs & Revenue'!AT$5,Inputs!$P$5:$BB$5,0)) -> 0 | AU37: =INDEX(Inputs!$P$154:$BB$154,MATCH('Costs & Revenue'!AU$5,Inputs!$P$5:$BB$5,0)) -> 0 | AV37: =INDEX(Inputs!$P$154:$BB$154,MATCH('Costs & Revenue'!AV$5,Inputs!$P$5:$BB$5,0)) -> 0 | AW37: =INDEX(Inputs!$P$154:$BB$154,MATCH('Costs & Revenue'!AW$5,Inputs!$P$5:$BB$5,0)) -> 0 | AX37: =INDEX(Inputs!$P$154:$BB$154,MATCH('Costs & Revenue'!AX$5,Inputs!$P$5:$BB$5,0)) -> 0 | AY37: =INDEX(Inputs!$P$154:$BB$154,MATCH('Costs & Revenue'!AY$5,Inputs!$P$5:$BB$5,0)) -> 0 | AZ37: =INDEX(Inputs!$P$154:$BB$154,MATCH('Costs & Revenue'!AZ$5,Inputs!$P$5:$BB$5,0)) -> 0 | BA37: =INDEX(Inputs!$P$154:$BB$154,MATCH('Costs & Revenue'!BA$5,Inputs!$P$5:$BB$5,0)) -> 0 | BB37: =INDEX(Inputs!$P$154:$BB$154,MATCH('Costs & Revenue'!BB$5,Inputs!$P$5:$BB$5,0)) -> 0
E39: Apply ORA adjustment factor? | G39: flag | I39: =IF(Inputs!I158="Yes",1,0) -> 1
E40: ORAC adjustment factor | G40: flag | P40: =INDEX(Inputs!$P$161:$BB$161,MATCH('Costs & Revenue'!P$5,Inputs!$P$5:$BB$5,0)) -> 0 | Q40: =INDEX(Inputs!$P$161:$BB$161,MATCH('Costs & Revenue'!Q$5,Inputs!$P$5:$BB$5,0)) -> 0 | R40: =INDEX(Inputs!$P$161:$BB$161,MATCH('Costs & Revenue'!R$5,Inputs!$P$5:$BB$5,0)) -> 0 | S40: =INDEX(Inputs!$P$161:$BB$161,MATCH('Costs & Revenue'!S$5,Inputs!$P$5:$BB$5,0)) -> 0 | T40: =INDEX(Inputs!$P$161:$BB$161,MATCH('Costs & Revenue'!T$5,Inputs!$P$5:$BB$5,0)) -> 0 | U40: =INDEX(Inputs!$P$161:$BB$161,MATCH('Costs & Revenue'!U$5,Inputs!$P$5:$BB$5,0)) -> 0 | V40: =INDEX(Inputs!$P$161:$BB$161,MATCH('Costs & Revenue'!V$5,Inputs!$P$5:$BB$5,0)) -> 0 | W40: =INDEX(Inputs!$P$161:$BB$161,MATCH('Costs & Revenue'!W$5,Inputs!$P$5:$BB$5,0)) -> 0 | X40: =INDEX(Inputs!$P$161:$BB$161,MATCH('Costs & Revenue'!X$5,Inputs!$P$5:$BB$5,0)) -> 0 | Y40: =INDEX(Inputs!$P$161:$BB$161,MATCH('Costs & Revenue'!Y$5,Inputs!$P$5:$BB$5,0)) -> 0 | Z40: =INDEX(Inputs!$P$161:$BB$161,MATCH('Costs & Revenue'!Z$5,Inputs!$P$5:$BB$5,0)) -> 0 | AA40: =INDEX(Inputs!$P$161:$BB$161,MATCH('Costs & Revenue'!AA$5,Inputs!$P$5:$BB$5,0)) -> 0.9993155373 | AB40: =INDEX(Inputs!$P$161:$BB$161,MATCH('Costs & Revenue'!AB$5,Inputs!$P$5:$BB$5,0)) -> 1 | AC40: =INDEX(Inputs!$P$161:$BB$161,MATCH('Costs & Revenue'!AC$5,Inputs!$P$5:$BB$5,0)) -> 1 | AD40: =INDEX(Inputs!$P$161:$BB$161,MATCH('Costs & Revenue'!AD$5,Inputs!$P$5:$BB$5,0)) -> 1 | AE40: =INDEX(Inputs!$P$161:$BB$161,MATCH('Costs & Revenue'!AE$5,Inputs!$P$5:$BB$5,0)) -> 1 | AF40: =INDEX(Inputs!$P$161:$BB$161,MATCH('Costs & Revenue'!AF$5,Inputs!$P$5:$BB$5,0)) -> 1 | AG40: =INDEX(Inputs!$P$161:$BB$161,MATCH('Costs & Revenue'!AG$5,Inputs!$P$5:$BB$5,0)) -> 1 | AH40: =INDEX(Inputs!$P$161:$BB$161,MATCH('Costs & Revenue'!AH$5,Inputs!$P$5:$BB$5,0)) -> 1 | AI40: =INDEX(Inputs!$P$161:$BB$161,MATCH('Costs & Revenue'!AI$5,Inputs!$P$5:$BB$5,0)) -> 1 | AJ40: =INDEX(Inputs!$P$161:$BB$161,MATCH('Costs & Revenue'!AJ$5,Inputs!$P$5:$BB$5,0)) -> 1 | AK40: =INDEX(Inputs!$P$161:$BB$161,MATCH('Costs & Revenue'!AK$5,Inputs!$P$5:$BB$5,0)) -> 1 | AL40: =INDEX(Inputs!$P$161:$BB$161,MATCH('Costs & Revenue'!AL$5,Inputs!$P$5:$BB$5,0)) -> 1 | AM40: =INDEX(Inputs!$P$161:$BB$161,MATCH('Costs & Revenue'!AM$5,Inputs!$P$5:$BB$5,0)) -> 1 | AN40: =INDEX(Inputs!$P$161:$BB$161,MATCH('Costs & Revenue'!AN$5,Inputs!$P$5:$BB$5,0)) -> 1.082819986 | AO40: =INDEX(Inputs!$P$161:$BB$161,MATCH('Costs & Revenue'!AO$5,Inputs!$P$5:$BB$5,0)) -> 0 | AP40: =INDEX(Inputs!$P$161:$BB$161,MATCH('Costs & Revenue'!AP$5,Inputs!$P$5:$BB$5,0)) -> 0 | AQ40: =INDEX(Inputs!$P$161:$BB$161,MATCH('Costs & Revenue'!AQ$5,Inputs!$P$5:$BB$5,0)) -> 0 | AR40: =INDEX(Inputs!$P$161:$BB$161,MATCH('Costs & Revenue'!AR$5,Inputs!$P$5:$BB$5,0)) -> 0 | AS40: =INDEX(Inputs!$P$161:$BB$161,MATCH('Costs & Revenue'!AS$5,Inputs!$P$5:$BB$5,0)) -> 0 | AT40: =INDEX(Inputs!$P$161:$BB$161,MATCH('Costs & Revenue'!AT$5,Inputs!$P$5:$BB$5,0)) -> 0 | AU40: =INDEX(Inputs!$P$161:$BB$161,MATCH('Costs & Revenue'!AU$5,Inputs!$P$5:$BB$5,0)) -> 0 | AV40: =INDEX(Inputs!$P$161:$BB$161,MATCH('Costs & Revenue'!AV$5,Inputs!$P$5:$BB$5,0)) -> 0 | AW40: =INDEX(Inputs!$P$161:$BB$161,MATCH('Costs & Revenue'!AW$5,Inputs!$P$5:$BB$5,0)) -> 0 | AX40: =INDEX(Inputs!$P$161:$BB$161,MATCH('Costs & Revenue'!AX$5,Inputs!$P$5:$BB$5,0)) -> 0 | AY40: =INDEX(Inputs!$P$161:$BB$161,MATCH('Costs & Revenue'!AY$5,Inputs!$P$5:$BB$5,0)) -> 0 | AZ40: =INDEX(Inputs!$P$161:$BB$161,MATCH('Costs & Revenue'!AZ$5,Inputs!$P$5:$BB$5,0)) -> 0 | BA40: =INDEX(Inputs!$P$161:$BB$161,MATCH('Costs & Revenue'!BA$5,Inputs!$P$5:$BB$5,0)) -> 0 | BB40: =INDEX(Inputs!$P$161:$BB$161,MATCH('Costs & Revenue'!BB$5,Inputs!$P$5:$BB$5,0)) -> 0
E41: ORAF adjustment factor | G41: flag | P41: =INDEX(Inputs!$P$162:$BB$162,MATCH('Costs & Revenue'!P$5,Inputs!$P$5:$BB$5,0)) -> 0 | Q41: =INDEX(Inputs!$P$162:$BB$162,MATCH('Costs & Revenue'!Q$5,Inputs!$P$5:$BB$5,0)) -> 0 | R41: =INDEX(Inputs!$P$162:$BB$162,MATCH('Costs & Revenue'!R$5,Inputs!$P$5:$BB$5,0)) -> 0 | S41: =INDEX(Inputs!$P$162:$BB$162,MATCH('Costs & Revenue'!S$5,Inputs!$P$5:$BB$5,0)) -> 0 | T41: =INDEX(Inputs!$P$162:$BB$162,MATCH('Costs & Revenue'!T$5,Inputs!$P$5:$BB$5,0)) -> 0 | U41: =INDEX(Inputs!$P$162:$BB$162,MATCH('Costs & Revenue'!U$5,Inputs!$P$5:$BB$5,0)) -> 0 | V41: =INDEX(Inputs!$P$162:$BB$162,MATCH('Costs & Revenue'!V$5,Inputs!$P$5:$BB$5,0)) -> 0 | W41: =INDEX(Inputs!$P$162:$BB$162,MATCH('Costs & Revenue'!W$5,Inputs!$P$5:$BB$5,0)) -> 0 | X41: =INDEX(Inputs!$P$162:$BB$162,MATCH('Costs & Revenue'!X$5,Inputs!$P$5:$BB$5,0)) -> 0 | Y41: =INDEX(Inputs!$P$162:$BB$162,MATCH('Costs & Revenue'!Y$5,Inputs!$P$5:$BB$5,0)) -> 0 | Z41: =INDEX(Inputs!$P$162:$BB$162,MATCH('Costs & Revenue'!Z$5,Inputs!$P$5:$BB$5,0)) -> 0 | AA41: =INDEX(Inputs!$P$162:$BB$162,MATCH('Costs & Revenue'!AA$5,Inputs!$P$5:$BB$5,0)) -> 0.9993155373 | AB41: =INDEX(Inputs!$P$162:$BB$162,MATCH('Costs & Revenue'!AB$5,Inputs!$P$5:$BB$5,0)) -> 1 | AC41: =INDEX(Inputs!$P$162:$BB$162,MATCH('Costs & Revenue'!AC$5,Inputs!$P$5:$BB$5,0)) -> 1 | AD41: =INDEX(Inputs!$P$162:$BB$162,MATCH('Costs & Revenue'!AD$5,Inputs!$P$5:$BB$5,0)) -> 1 | AE41: =INDEX(Inputs!$P$162:$BB$162,MATCH('Costs & Revenue'!AE$5,Inputs!$P$5:$BB$5,0)) -> 1 | AF41: =INDEX(Inputs!$P$162:$BB$162,MATCH('Costs & Revenue'!AF$5,Inputs!$P$5:$BB$5,0)) -> 1 | AG41: =INDEX(Inputs!$P$162:$BB$162,MATCH('Costs & Revenue'!AG$5,Inputs!$P$5:$BB$5,0)) -> 1 | AH41: =INDEX(Inputs!$P$162:$BB$162,MATCH('Costs & Revenue'!AH$5,Inputs!$P$5:$BB$5,0)) -> 1 | AI41: =INDEX(Inputs!$P$162:$BB$162,MATCH('Costs & Revenue'!AI$5,Inputs!$P$5:$BB$5,0)) -> 1 | AJ41: =INDEX(Inputs!$P$162:$BB$162,MATCH('Costs & Revenue'!AJ$5,Inputs!$P$5:$BB$5,0)) -> 1 | AK41: =INDEX(Inputs!$P$162:$BB$162,MATCH('Costs & Revenue'!AK$5,Inputs!$P$5:$BB$5,0)) -> 1 | AL41: =INDEX(Inputs!$P$162:$BB$162,MATCH('Costs & Revenue'!AL$5,Inputs!$P$5:$BB$5,0)) -> 1 | AM41: =INDEX(Inputs!$P$162:$BB$162,MATCH('Costs & Revenue'!AM$5,Inputs!$P$5:$BB$5,0)) -> 1 | AN41: =INDEX(Inputs!$P$162:$BB$162,MATCH('Costs & Revenue'!AN$5,Inputs!$P$5:$BB$5,0)) -> 1.082819986 | AO41: =INDEX(Inputs!$P$162:$BB$162,MATCH('Costs & Revenue'!AO$5,Inputs!$P$5:$BB$5,0)) -> 0 | AP41: =INDEX(Inputs!$P$162:$BB$162,MATCH('Costs & Revenue'!AP$5,Inputs!$P$5:$BB$5,0)) -> 0 | AQ41: =INDEX(Inputs!$P$162:$BB$162,MATCH('Costs & Revenue'!AQ$5,Inputs!$P$5:$BB$5,0)) -> 0 | AR41: =INDEX(Inputs!$P$162:$BB$162,MATCH('Costs & Revenue'!AR$5,Inputs!$P$5:$BB$5,0)) -> 0 | AS41: =INDEX(Inputs!$P$162:$BB$162,MATCH('Costs & Revenue'!AS$5,Inputs!$P$5:$BB$5,0)) -> 0 | AT41: =INDEX(Inputs!$P$162:$BB$162,MATCH('Costs & Revenue'!AT$5,Inputs!$P$5:$BB$5,0)) -> 0 | AU41: =INDEX(Inputs!$P$162:$BB$162,MATCH('Costs & Revenue'!AU$5,Inputs!$P$5:$BB$5,0)) -> 0 | AV41: =INDEX(Inputs!$P$162:$BB$162,MATCH('Costs & Revenue'!AV$5,Inputs!$P$5:$BB$5,0)) -> 0 | AW41: =INDEX(Inputs!$P$162:$BB$162,MATCH('Costs & Revenue'!AW$5,Inputs!$P$5:$BB$5,0)) -> 0 | AX41: =INDEX(Inputs!$P$162:$BB$162,MATCH('Costs & Revenue'!AX$5,Inputs!$P$5:$BB$5,0)) -> 0 | AY41: =INDEX(Inputs!$P$162:$BB$162,MATCH('Costs & Revenue'!AY$5,Inputs!$P$5:$BB$5,0)) -> 0 | AZ41: =INDEX(Inputs!$P$162:$BB$162,MATCH('Costs & Revenue'!AZ$5,Inputs!$P$5:$BB$5,0)) -> 0 | BA41: =INDEX(Inputs!$P$162:$BB$162,MATCH('Costs & Revenue'!BA$5,Inputs!$P$5:$BB$5,0)) -> 0 | BB41: =INDEX(Inputs!$P$162:$BB$162,MATCH('Costs & Revenue'!BB$5,Inputs!$P$5:$BB$5,0)) -> 0
E43: Apply DC adjustment factor? | G43: flag | I43: =IF(Inputs!I171="Yes",1,0) -> 1
E44: Latest DCC and DCF adjustment factor | G44: flag | P44: =INDEX(Inputs!$P$176:$BB$176,MATCH('Costs & Revenue'!P$5,Inputs!$P$5:$BB$5,0)) -> 0 | Q44: =INDEX(Inputs!$P$176:$BB$176,MATCH('Costs & Revenue'!Q$5,Inputs!$P$5:$BB$5,0)) -> 0 | R44: =INDEX(Inputs!$P$176:$BB$176,MATCH('Costs & Revenue'!R$5,Inputs!$P$5:$BB$5,0)) -> 0 | S44: =INDEX(Inputs!$P$176:$BB$176,MATCH('Costs & Revenue'!S$5,Inputs!$P$5:$BB$5,0)) -> 0 | T44: =INDEX(Inputs!$P$176:$BB$176,MATCH('Costs & Revenue'!T$5,Inputs!$P$5:$BB$5,0)) -> 0 | U44: =INDEX(Inputs!$P$176:$BB$176,MATCH('Costs & Revenue'!U$5,Inputs!$P$5:$BB$5,0)) -> 0 | V44: =INDEX(Inputs!$P$176:$BB$176,MATCH('Costs & Revenue'!V$5,Inputs!$P$5:$BB$5,0)) -> 0 | W44: =INDEX(Inputs!$P$176:$BB$176,MATCH('Costs & Revenue'!W$5,Inputs!$P$5:$BB$5,0)) -> 0 | X44: =INDEX(Inputs!$P$176:$BB$176,MATCH('Costs & Revenue'!X$5,Inputs!$P$5:$BB$5,0)) -> 0 | Y44: =INDEX(Inputs!$P$176:$BB$176,MATCH('Costs & Revenue'!Y$5,Inputs!$P$5:$BB$5,0)) -> 0 | Z44: =INDEX(Inputs!$P$176:$BB$176,MATCH('Costs & Revenue'!Z$5,Inputs!$P$5:$BB$5,0)) -> 0 | AA44: =INDEX(Inputs!$P$176:$BB$176,MATCH('Costs & Revenue'!AA$5,Inputs!$P$5:$BB$5,0)) -> 0 | AB44: =INDEX(Inputs!$P$176:$BB$176,MATCH('Costs & Revenue'!AB$5,Inputs!$P$5:$BB$5,0)) -> 0 | AC44: =INDEX(Inputs!$P$176:$BB$176,MATCH('Costs & Revenue'!AC$5,Inputs!$P$5:$BB$5,0)) -> 0 | AD44: =INDEX(Inputs!$P$176:$BB$176,MATCH('Costs & Revenue'!AD$5,Inputs!$P$5:$BB$5,0)) -> 0 | AE44: =INDEX(Inputs!$P$176:$BB$176,MATCH('Costs & Revenue'!AE$5,Inputs!$P$5:$BB$5,0)) -> 0 | AF44: =INDEX(Inputs!$P$176:$BB$176,MATCH('Costs & Revenue'!AF$5,Inputs!$P$5:$BB$5,0)) -> 0 | AG44: =INDEX(Inputs!$P$176:$BB$176,MATCH('Costs & Revenue'!AG$5,Inputs!$P$5:$BB$5,0)) -> 0 | AH44: =INDEX(Inputs!$P$176:$BB$176,MATCH('Costs & Revenue'!AH$5,Inputs!$P$5:$BB$5,0)) -> 0 | AI44: =INDEX(Inputs!$P$176:$BB$176,MATCH('Costs & Revenue'!AI$5,Inputs!$P$5:$BB$5,0)) -> 0 | AJ44: =INDEX(Inputs!$P$176:$BB$176,MATCH('Costs & Revenue'!AJ$5,Inputs!$P$5:$BB$5,0)) -> 0 | AK44: =INDEX(Inputs!$P$176:$BB$176,MATCH('Costs & Revenue'!AK$5,Inputs!$P$5:$BB$5,0)) -> 0 | AL44: =INDEX(Inputs!$P$176:$BB$176,MATCH('Costs & Revenue'!AL$5,Inputs!$P$5:$BB$5,0)) -> 0.5859000684 | AM44: =INDEX(Inputs!$P$176:$BB$176,MATCH('Costs & Revenue'!AM$5,Inputs!$P$5:$BB$5,0)) -> 1 | AN44: =INDEX(Inputs!$P$176:$BB$176,MATCH('Costs & Revenue'!AN$5,Inputs!$P$5:$BB$5,0)) -> 1.082819986 | AO44: =INDEX(Inputs!$P$176:$BB$176,MATCH('Costs & Revenue'!AO$5,Inputs!$P$5:$BB$5,0)) -> 0 | AP44: =INDEX(Inputs!$P$176:$BB$176,MATCH('Costs & Revenue'!AP$5,Inputs!$P$5:$BB$5,0)) -> 0 | AQ44: =INDEX(Inputs!$P$176:$BB$176,MATCH('Costs & Revenue'!AQ$5,Inputs!$P$5:$BB$5,0)) -> 0 | AR44: =INDEX(Inputs!$P$176:$BB$176,MATCH('Costs & Revenue'!AR$5,Inputs!$P$5:$BB$5,0)) -> 0 | AS44: =INDEX(Inputs!$P$176:$BB$176,MATCH('Costs & Revenue'!AS$5,Inputs!$P$5:$BB$5,0)) -> 0 | AT44: =INDEX(Inputs!$P$176:$BB$176,MATCH('Costs & Revenue'!AT$5,Inputs!$P$5:$BB$5,0)) -> 0 | AU44: =INDEX(Inputs!$P$176:$BB$176,MATCH('Costs & Revenue'!AU$5,Inputs!$P$5:$BB$5,0)) -> 0 | AV44: =INDEX(Inputs!$P$176:$BB$176,MATCH('Costs & Revenue'!AV$5,Inputs!$P$5:$BB$5,0)) -> 0 | AW44: =INDEX(Inputs!$P$176:$BB$176,MATCH('Costs & Revenue'!AW$5,Inputs!$P$5:$BB$5,0)) -> 0 | AX44: =INDEX(Inputs!$P$176:$BB$176,MATCH('Costs & Revenue'!AX$5,Inputs!$P$5:$BB$5,0)) -> 0 | AY44: =INDEX(Inputs!$P$176:$BB$176,MATCH('Costs & Revenue'!AY$5,Inputs!$P$5:$BB$5,0)) -> 0 | AZ44: =INDEX(Inputs!$P$176:$BB$176,MATCH('Costs & Revenue'!AZ$5,Inputs!$P$5:$BB$5,0)) -> 0 | BA44: =INDEX(Inputs!$P$176:$BB$176,MATCH('Costs & Revenue'!BA$5,Inputs!$P$5:$BB$5,0)) -> 0 | BB44: =INDEX(Inputs!$P$176:$BB$176,MATCH('Costs & Revenue'!BB$5,Inputs!$P$5:$BB$5,0)) -> 0
E45: First DCC and DCF adjustment factor | G45: flag | P45: =INDEX(Inputs!$P$208:$BB$208,MATCH('Costs & Revenue'!P$5,Inputs!$P$5:$BB$5,0)) -> 0 | Q45: =INDEX(Inputs!$P$208:$BB$208,MATCH('Costs & Revenue'!Q$5,Inputs!$P$5:$BB$5,0)) -> 0 | R45: =INDEX(Inputs!$P$208:$BB$208,MATCH('Costs & Revenue'!R$5,Inputs!$P$5:$BB$5,0)) -> 0 | S45: =INDEX(Inputs!$P$208:$BB$208,MATCH('Costs & Revenue'!S$5,Inputs!$P$5:$BB$5,0)) -> 0 | T45: =INDEX(Inputs!$P$208:$BB$208,MATCH('Costs & Revenue'!T$5,Inputs!$P$5:$BB$5,0)) -> 0 | U45: =INDEX(Inputs!$P$208:$BB$208,MATCH('Costs & Revenue'!U$5,Inputs!$P$5:$BB$5,0)) -> 0 | V45: =INDEX(Inputs!$P$208:$BB$208,MATCH('Costs & Revenue'!V$5,Inputs!$P$5:$BB$5,0)) -> 0 | W45: =INDEX(Inputs!$P$208:$BB$208,MATCH('Costs & Revenue'!W$5,Inputs!$P$5:$BB$5,0)) -> 0 | X45: =INDEX(Inputs!$P$208:$BB$208,MATCH('Costs & Revenue'!X$5,Inputs!$P$5:$BB$5,0)) -> 0 | Y45: =INDEX(Inputs!$P$208:$BB$208,MATCH('Costs & Revenue'!Y$5,Inputs!$P$5:$BB$5,0)) -> 0 | Z45: =INDEX(Inputs!$P$208:$BB$208,MATCH('Costs & Revenue'!Z$5,Inputs!$P$5:$BB$5,0)) -> 0 | AA45: =INDEX(Inputs!$P$208:$BB$208,MATCH('Costs & Revenue'!AA$5,Inputs!$P$5:$BB$5,0)) -> 0 | AB45: =INDEX(Inputs!$P$208:$BB$208,MATCH('Costs & Revenue'!AB$5,Inputs!$P$5:$BB$5,0)) -> 0 | AC45: =INDEX(Inputs!$P$208:$BB$208,MATCH('Costs & Revenue'!AC$5,Inputs!$P$5:$BB$5,0)) -> 0 | AD45: =INDEX(Inputs!$P$208:$BB$208,MATCH('Costs & Revenue'!AD$5,Inputs!$P$5:$BB$5,0)) -> 0 | AE45: =INDEX(Inputs!$P$208:$BB$208,MATCH('Costs & Revenue'!AE$5,Inputs!$P$5:$BB$5,0)) -> 0 | AF45: =INDEX(Inputs!$P$208:$BB$208,MATCH('Costs & Revenue'!AF$5,Inputs!$P$5:$BB$5,0)) -> 0 | AG45: =INDEX(Inputs!$P$208:$BB$208,MATCH('Costs & Revenue'!AG$5,Inputs!$P$5:$BB$5,0)) -> 0 | AH45: =INDEX(Inputs!$P$208:$BB$208,MATCH('Costs & Revenue'!AH$5,Inputs!$P$5:$BB$5,0)) -> 0 | AI45: =INDEX(Inputs!$P$208:$BB$208,MATCH('Costs & Revenue'!AI$5,Inputs!$P$5:$BB$5,0)) -> 0.5859000684 | AJ45: =INDEX(Inputs!$P$208:$BB$208,MATCH('Costs & Revenue'!AJ$5,Inputs!$P$5:$BB$5,0)) -> 1 | AK45: =INDEX(Inputs!$P$208:$BB$208,MATCH('Costs & Revenue'!AK$5,Inputs!$P$5:$BB$5,0)) -> 1 | AL45: =INDEX(Inputs!$P$208:$BB$208,MATCH('Costs & Revenue'!AL$5,Inputs!$P$5:$BB$5,0)) -> 0.4134154689 | AM45: =INDEX(Inputs!$P$208:$BB$208,MATCH('Costs & Revenue'!AM$5,Inputs!$P$5:$BB$5,0)) -> 0 | AN45: =INDEX(Inputs!$P$208:$BB$208,MATCH('Costs & Revenue'!AN$5,Inputs!$P$5:$BB$5,0)) -> 0 | AO45: =INDEX(Inputs!$P$208:$BB$208,MATCH('Costs & Revenue'!AO$5,Inputs!$P$5:$BB$5,0)) -> 0 | AP45: =INDEX(Inputs!$P$208:$BB$208,MATCH('Costs & Revenue'!AP$5,Inputs!$P$5:$BB$5,0)) -> 0 | AQ45: =INDEX(Inputs!$P$208:$BB$208,MATCH('Costs & Revenue'!AQ$5,Inputs!$P$5:$BB$5,0)) -> 0 | AR45: =INDEX(Inputs!$P$208:$BB$208,MATCH('Costs & Revenue'!AR$5,Inputs!$P$5:$BB$5,0)) -> 0 | AS45: =INDEX(Inputs!$P$208:$BB$208,MATCH('Costs & Revenue'!AS$5,Inputs!$P$5:$BB$5,0)) -> 0 | AT45: =INDEX(Inputs!$P$208:$BB$208,MATCH('Costs & Revenue'!AT$5,Inputs!$P$5:$BB$5,0)) -> 0 | AU45: =INDEX(Inputs!$P$208:$BB$208,MATCH('Costs & Revenue'!AU$5,Inputs!$P$5:$BB$5,0)) -> 0 | AV45: =INDEX(Inputs!$P$208:$BB$208,MATCH('Costs & Revenue'!AV$5,Inputs!$P$5:$BB$5,0)) -> 0 | AW45: =INDEX(Inputs!$P$208:$BB$208,MATCH('Costs & Revenue'!AW$5,Inputs!$P$5:$BB$5,0)) -> 0 | AX45: =INDEX(Inputs!$P$208:$BB$208,MATCH('Costs & Revenue'!AX$5,Inputs!$P$5:$BB$5,0)) -> 0 | AY45: =INDEX(Inputs!$P$208:$BB$208,MATCH('Costs & Revenue'!AY$5,Inputs!$P$5:$BB$5,0)) -> 0 | AZ45: =INDEX(Inputs!$P$208:$BB$208,MATCH('Costs & Revenue'!AZ$5,Inputs!$P$5:$BB$5,0)) -> 0 | BA45: =INDEX(Inputs!$P$208:$BB$208,MATCH('Costs & Revenue'!BA$5,Inputs!$P$5:$BB$5,0)) -> 0 | BB45: =INDEX(Inputs!$P$208:$BB$208,MATCH('Costs & Revenue'!BB$5,Inputs!$P$5:$BB$5,0)) -> 0
E46: Second DCC and DCF adjustment factor | G46: flag | P46: =INDEX(Inputs!$P$209:$BB$209,MATCH('Costs & Revenue'!P$5,Inputs!$P$5:$BB$5,0)) -> 0 | Q46: =INDEX(Inputs!$P$209:$BB$209,MATCH('Costs & Revenue'!Q$5,Inputs!$P$5:$BB$5,0)) -> 0 | R46: =INDEX(Inputs!$P$209:$BB$209,MATCH('Costs & Revenue'!R$5,Inputs!$P$5:$BB$5,0)) -> 0 | S46: =INDEX(Inputs!$P$209:$BB$209,MATCH('Costs & Revenue'!S$5,Inputs!$P$5:$BB$5,0)) -> 0 | T46: =INDEX(Inputs!$P$209:$BB$209,MATCH('Costs & Revenue'!T$5,Inputs!$P$5:$BB$5,0)) -> 0 | U46: =INDEX(Inputs!$P$209:$BB$209,MATCH('Costs & Revenue'!U$5,Inputs!$P$5:$BB$5,0)) -> 0 | V46: =INDEX(Inputs!$P$209:$BB$209,MATCH('Costs & Revenue'!V$5,Inputs!$P$5:$BB$5,0)) -> 0 | W46: =INDEX(Inputs!$P$209:$BB$209,MATCH('Costs & Revenue'!W$5,Inputs!$P$5:$BB$5,0)) -> 0 | X46: =INDEX(Inputs!$P$209:$BB$209,MATCH('Costs & Revenue'!X$5,Inputs!$P$5:$BB$5,0)) -> 0 | Y46: =INDEX(Inputs!$P$209:$BB$209,MATCH('Costs & Revenue'!Y$5,Inputs!$P$5:$BB$5,0)) -> 0 | Z46: =INDEX(Inputs!$P$209:$BB$209,MATCH('Costs & Revenue'!Z$5,Inputs!$P$5:$BB$5,0)) -> 0 | AA46: =INDEX(Inputs!$P$209:$BB$209,MATCH('Costs & Revenue'!AA$5,Inputs!$P$5:$BB$5,0)) -> 0 | AB46: =INDEX(Inputs!$P$209:$BB$209,MATCH('Costs & Revenue'!AB$5,Inputs!$P$5:$BB$5,0)) -> 0 | AC46: =INDEX(Inputs!$P$209:$BB$209,MATCH('Costs & Revenue'!AC$5,Inputs!$P$5:$BB$5,0)) -> 0 | AD46: =INDEX(Inputs!$P$209:$BB$209,MATCH('Costs & Revenue'!AD$5,Inputs!$P$5:$BB$5,0)) -> 0 | AE46: =INDEX(Inputs!$P$209:$BB$209,MATCH('Costs & Revenue'!AE$5,Inputs!$P$5:$BB$5,0)) -> 0 | AF46: =INDEX(Inputs!$P$209:$BB$209,MATCH('Costs & Revenue'!AF$5,Inputs!$P$5:$BB$5,0)) -> 0 | AG46: =INDEX(Inputs!$P$209:$BB$209,MATCH('Costs & Revenue'!AG$5,Inputs!$P$5:$BB$5,0)) -> 0 | AH46: =INDEX(Inputs!$P$209:$BB$209,MATCH('Costs & Revenue'!AH$5,Inputs!$P$5:$BB$5,0)) -> 0 | AI46: =INDEX(Inputs!$P$209:$BB$209,MATCH('Costs & Revenue'!AI$5,Inputs!$P$5:$BB$5,0)) -> 0 | AJ46: =INDEX(Inputs!$P$209:$BB$209,MATCH('Costs & Revenue'!AJ$5,Inputs!$P$5:$BB$5,0)) -> 0 | AK46: =INDEX(Inputs!$P$209:$BB$209,MATCH('Costs & Revenue'!AK$5,Inputs!$P$5:$BB$5,0)) -> 0 | AL46: =INDEX(Inputs!$P$209:$BB$209,MATCH('Costs & Revenue'!AL$5,Inputs!$P$5:$BB$5,0)) -> 0 | AM46: =INDEX(Inputs!$P$209:$BB$209,MATCH('Costs & Revenue'!AM$5,Inputs!$P$5:$BB$5,0)) -> 0 | AN46: =INDEX(Inputs!$P$209:$BB$209,MATCH('Costs & Revenue'!AN$5,Inputs!$P$5:$BB$5,0)) -> 0 | AO46: =INDEX(Inputs!$P$209:$BB$209,MATCH('Costs & Revenue'!AO$5,Inputs!$P$5:$BB$5,0)) -> 0 | AP46: =INDEX(Inputs!$P$209:$BB$209,MATCH('Costs & Revenue'!AP$5,Inputs!$P$5:$BB$5,0)) -> 0 | AQ46: =INDEX(Inputs!$P$209:$BB$209,MATCH('Costs & Revenue'!AQ$5,Inputs!$P$5:$BB$5,0)) -> 0 | AR46: =INDEX(Inputs!$P$209:$BB$209,MATCH('Costs & Revenue'!AR$5,Inputs!$P$5:$BB$5,0)) -> 0 | AS46: =INDEX(Inputs!$P$209:$BB$209,MATCH('Costs & Revenue'!AS$5,Inputs!$P$5:$BB$5,0)) -> 0 | AT46: =INDEX(Inputs!$P$209:$BB$209,MATCH('Costs & Revenue'!AT$5,Inputs!$P$5:$BB$5,0)) -> 0 | AU46: =INDEX(Inputs!$P$209:$BB$209,MATCH('Costs & Revenue'!AU$5,Inputs!$P$5:$BB$5,0)) -> 0 | AV46: =INDEX(Inputs!$P$209:$BB$209,MATCH('Costs & Revenue'!AV$5,Inputs!$P$5:$BB$5,0)) -> 0 | AW46: =INDEX(Inputs!$P$209:$BB$209,MATCH('Costs & Revenue'!AW$5,Inputs!$P$5:$BB$5,0)) -> 0 | AX46: =INDEX(Inputs!$P$209:$BB$209,MATCH('Costs & Revenue'!AX$5,Inputs!$P$5:$BB$5,0)) -> 0 | AY46: =INDEX(Inputs!$P$209:$BB$209,MATCH('Costs & Revenue'!AY$5,Inputs!$P$5:$BB$5,0)) -> 0 | AZ46: =INDEX(Inputs!$P$209:$BB$209,MATCH('Costs & Revenue'!AZ$5,Inputs!$P$5:$BB$5,0)) -> 0 | BA46: =INDEX(Inputs!$P$209:$BB$209,MATCH('Costs & Revenue'!BA$5,Inputs!$P$5:$BB$5,0)) -> 0 | BB46: =INDEX(Inputs!$P$209:$BB$209,MATCH('Costs & Revenue'!BB$5,Inputs!$P$5:$BB$5,0)) -> 0
E47: Third DCC and DCF adjustment factor | G47: flag | P47: =INDEX(Inputs!$P$210:$BB$210,MATCH('Costs & Revenue'!P$5,Inputs!$P$5:$BB$5,0)) -> 0 | Q47: =INDEX(Inputs!$P$210:$BB$210,MATCH('Costs & Revenue'!Q$5,Inputs!$P$5:$BB$5,0)) -> 0 | R47: =INDEX(Inputs!$P$210:$BB$210,MATCH('Costs & Revenue'!R$5,Inputs!$P$5:$BB$5,0)) -> 0 | S47: =INDEX(Inputs!$P$210:$BB$210,MATCH('Costs & Revenue'!S$5,Inputs!$P$5:$BB$5,0)) -> 0 | T47: =INDEX(Inputs!$P$210:$BB$210,MATCH('Costs & Revenue'!T$5,Inputs!$P$5:$BB$5,0)) -> 0 | U47: =INDEX(Inputs!$P$210:$BB$210,MATCH('Costs & Revenue'!U$5,Inputs!$P$5:$BB$5,0)) -> 0 | V47: =INDEX(Inputs!$P$210:$BB$210,MATCH('Costs & Revenue'!V$5,Inputs!$P$5:$BB$5,0)) -> 0 | W47: =INDEX(Inputs!$P$210:$BB$210,MATCH('Costs & Revenue'!W$5,Inputs!$P$5:$BB$5,0)) -> 0 | X47: =INDEX(Inputs!$P$210:$BB$210,MATCH('Costs & Revenue'!X$5,Inputs!$P$5:$BB$5,0)) -> 0 | Y47: =INDEX(Inputs!$P$210:$BB$210,MATCH('Costs & Revenue'!Y$5,Inputs!$P$5:$BB$5,0)) -> 0 | Z47: =INDEX(Inputs!$P$210:$BB$210,MATCH('Costs & Revenue'!Z$5,Inputs!$P$5:$BB$5,0)) -> 0 | AA47: =INDEX(Inputs!$P$210:$BB$210,MATCH('Costs & Revenue'!AA$5,Inputs!$P$5:$BB$5,0)) -> 0 | AB47: =INDEX(Inputs!$P$210:$BB$210,MATCH('Costs & Revenue'!AB$5,Inputs!$P$5:$BB$5,0)) -> 0 | AC47: =INDEX(Inputs!$P$210:$BB$210,MATCH('Costs & Revenue'!AC$5,Inputs!$P$5:$BB$5,0)) -> 0 | AD47: =INDEX(Inputs!$P$210:$BB$210,MATCH('Costs & Revenue'!AD$5,Inputs!$P$5:$BB$5,0)) -> 0 | AE47: =INDEX(Inputs!$P$210:$BB$210,MATCH('Costs & Revenue'!AE$5,Inputs!$P$5:$BB$5,0)) -> 0 | AF47: =INDEX(Inputs!$P$210:$BB$210,MATCH('Costs & Revenue'!AF$5,Inputs!$P$5:$BB$5,0)) -> 0 | AG47: =INDEX(Inputs!$P$210:$BB$210,MATCH('Costs & Revenue'!AG$5,Inputs!$P$5:$BB$5,0)) -> 0 | AH47: =INDEX(Inputs!$P$210:$BB$210,MATCH('Costs & Revenue'!AH$5,Inputs!$P$5:$BB$5,0)) -> 0 | AI47: =INDEX(Inputs!$P$210:$BB$210,MATCH('Costs & Revenue'!AI$5,Inputs!$P$5:$BB$5,0)) -> 0 | AJ47: =INDEX(Inputs!$P$210:$BB$210,MATCH('Costs & Revenue'!AJ$5,Inputs!$P$5:$BB$5,0)) -> 0 | AK47: =INDEX(Inputs!$P$210:$BB$210,MATCH('Costs & Revenue'!AK$5,Inputs!$P$5:$BB$5,0)) -> 0 | AL47: =INDEX(Inputs!$P$210:$BB$210,MATCH('Costs & Revenue'!AL$5,Inputs!$P$5:$BB$5,0)) -> 0 | AM47: =INDEX(Inputs!$P$210:$BB$210,MATCH('Costs & Revenue'!AM$5,Inputs!$P$5:$BB$5,0)) -> 0 | AN47: =INDEX(Inputs!$P$210:$BB$210,MATCH('Costs & Revenue'!AN$5,Inputs!$P$5:$BB$5,0)) -> 0 | AO47: =INDEX(Inputs!$P$210:$BB$210,MATCH('Costs & Revenue'!AO$5,Inputs!$P$5:$BB$5,0)) -> 0 | AP47: =INDEX(Inputs!$P$210:$BB$210,MATCH('Costs & Revenue'!AP$5,Inputs!$P$5:$BB$5,0)) -> 0 | AQ47: =INDEX(Inputs!$P$210:$BB$210,MATCH('Costs & Revenue'!AQ$5,Inputs!$P$5:$BB$5,0)) -> 0 | AR47: =INDEX(Inputs!$P$210:$BB$210,MATCH('Costs & Revenue'!AR$5,Inputs!$P$5:$BB$5,0)) -> 0 | AS47: =INDEX(Inputs!$P$210:$BB$210,MATCH('Costs & Revenue'!AS$5,Inputs!$P$5:$BB$5,0)) -> 0 | AT47: =INDEX(Inputs!$P$210:$BB$210,MATCH('Costs & Revenue'!AT$5,Inputs!$P$5:$BB$5,0)) -> 0 | AU47: =INDEX(Inputs!$P$210:$BB$210,MATCH('Costs & Revenue'!AU$5,Inputs!$P$5:$BB$5,0)) -> 0 | AV47: =INDEX(Inputs!$P$210:$BB$210,MATCH('Costs & Revenue'!AV$5,Inputs!$P$5:$BB$5,0)) -> 0 | AW47: =INDEX(Inputs!$P$210:$BB$210,MATCH('Costs & Revenue'!AW$5,Inputs!$P$5:$BB$5,0)) -> 0 | AX47: =INDEX(Inputs!$P$210:$BB$210,MATCH('Costs & Revenue'!AX$5,Inputs!$P$5:$BB$5,0)) -> 0 | AY47: =INDEX(Inputs!$P$210:$BB$210,MATCH('Costs & Revenue'!AY$5,Inputs!$P$5:$BB$5,0)) -> 0 | AZ47: =INDEX(Inputs!$P$210:$BB$210,MATCH('Costs & Revenue'!AZ$5,Inputs!$P$5:$BB$5,0)) -> 0 | BA47: =INDEX(Inputs!$P$210:$BB$210,MATCH('Costs & Revenue'!BA$5,Inputs!$P$5:$BB$5,0)) -> 0 | BB47: =INDEX(Inputs!$P$210:$BB$210,MATCH('Costs & Revenue'!BB$5,Inputs!$P$5:$BB$5,0)) -> 0
E48: Fourth DCC and DCF adjustment factor | G48: flag | P48: =INDEX(Inputs!$P$211:$BB$211,MATCH('Costs & Revenue'!P$5,Inputs!$P$5:$BB$5,0)) -> 0 | Q48: =INDEX(Inputs!$P$211:$BB$211,MATCH('Costs & Revenue'!Q$5,Inputs!$P$5:$BB$5,0)) -> 0 | R48: =INDEX(Inputs!$P$211:$BB$211,MATCH('Costs & Revenue'!R$5,Inputs!$P$5:$BB$5,0)) -> 0 | S48: =INDEX(Inputs!$P$211:$BB$211,MATCH('Costs & Revenue'!S$5,Inputs!$P$5:$BB$5,0)) -> 0 | T48: =INDEX(Inputs!$P$211:$BB$211,MATCH('Costs & Revenue'!T$5,Inputs!$P$5:$BB$5,0)) -> 0 | U48: =INDEX(Inputs!$P$211:$BB$211,MATCH('Costs & Revenue'!U$5,Inputs!$P$5:$BB$5,0)) -> 0 | V48: =INDEX(Inputs!$P$211:$BB$211,MATCH('Costs & Revenue'!V$5,Inputs!$P$5:$BB$5,0)) -> 0 | W48: =INDEX(Inputs!$P$211:$BB$211,MATCH('Costs & Revenue'!W$5,Inputs!$P$5:$BB$5,0)) -> 0 | X48: =INDEX(Inputs!$P$211:$BB$211,MATCH('Costs & Revenue'!X$5,Inputs!$P$5:$BB$5,0)) -> 0 | Y48: =INDEX(Inputs!$P$211:$BB$211,MATCH('Costs & Revenue'!Y$5,Inputs!$P$5:$BB$5,0)) -> 0 | Z48: =INDEX(Inputs!$P$211:$BB$211,MATCH('Costs & Revenue'!Z$5,Inputs!$P$5:$BB$5,0)) -> 0 | AA48: =INDEX(Inputs!$P$211:$BB$211,MATCH('Costs & Revenue'!AA$5,Inputs!$P$5:$BB$5,0)) -> 0 | AB48: =INDEX(Inputs!$P$211:$BB$211,MATCH('Costs & Revenue'!AB$5,Inputs!$P$5:$BB$5,0)) -> 0 | AC48: =INDEX(Inputs!$P$211:$BB$211,MATCH('Costs & Revenue'!AC$5,Inputs!$P$5:$BB$5,0)) -> 0 | AD48: =INDEX(Inputs!$P$211:$BB$211,MATCH('Costs & Revenue'!AD$5,Inputs!$P$5:$BB$5,0)) -> 0 | AE48: =INDEX(Inputs!$P$211:$BB$211,MATCH('Costs & Revenue'!AE$5,Inputs!$P$5:$BB$5,0)) -> 0 | AF48: =INDEX(Inputs!$P$211:$BB$211,MATCH('Costs & Revenue'!AF$5,Inputs!$P$5:$BB$5,0)) -> 0 | AG48: =INDEX(Inputs!$P$211:$BB$211,MATCH('Costs & Revenue'!AG$5,Inputs!$P$5:$BB$5,0)) -> 0 | AH48: =INDEX(Inputs!$P$211:$BB$211,MATCH('Costs & Revenue'!AH$5,Inputs!$P$5:$BB$5,0)) -> 0 | AI48: =INDEX(Inputs!$P$211:$BB$211,MATCH('Costs & Revenue'!AI$5,Inputs!$P$5:$BB$5,0)) -> 0 | AJ48: =INDEX(Inputs!$P$211:$BB$211,MATCH('Costs & Revenue'!AJ$5,Inputs!$P$5:$BB$5,0)) -> 0 | AK48: =INDEX(Inputs!$P$211:$BB$211,MATCH('Costs & Revenue'!AK$5,Inputs!$P$5:$BB$5,0)) -> 0 | AL48: =INDEX(Inputs!$P$211:$BB$211,MATCH('Costs & Revenue'!AL$5,Inputs!$P$5:$BB$5,0)) -> 0 | AM48: =INDEX(Inputs!$P$211:$BB$211,MATCH('Costs & Revenue'!AM$5,Inputs!$P$5:$BB$5,0)) -> 0 | AN48: =INDEX(Inputs!$P$211:$BB$211,MATCH('Costs & Revenue'!AN$5,Inputs!$P$5:$BB$5,0)) -> 0 | AO48: =INDEX(Inputs!$P$211:$BB$211,MATCH('Costs & Revenue'!AO$5,Inputs!$P$5:$BB$5,0)) -> 0 | AP48: =INDEX(Inputs!$P$211:$BB$211,MATCH('Costs & Revenue'!AP$5,Inputs!$P$5:$BB$5,0)) -> 0 | AQ48: =INDEX(Inputs!$P$211:$BB$211,MATCH('Costs & Revenue'!AQ$5,Inputs!$P$5:$BB$5,0)) -> 0 | AR48: =INDEX(Inputs!$P$211:$BB$211,MATCH('Costs & Revenue'!AR$5,Inputs!$P$5:$BB$5,0)) -> 0 | AS48: =INDEX(Inputs!$P$211:$BB$211,MATCH('Costs & Revenue'!AS$5,Inputs!$P$5:$BB$5,0)) -> 0 | AT48: =INDEX(Inputs!$P$211:$BB$211,MATCH('Costs & Revenue'!AT$5,Inputs!$P$5:$BB$5,0)) -> 0 | AU48: =INDEX(Inputs!$P$211:$BB$211,MATCH('Costs & Revenue'!AU$5,Inputs!$P$5:$BB$5,0)) -> 0 | AV48: =INDEX(Inputs!$P$211:$BB$211,MATCH('Costs & Revenue'!AV$5,Inputs!$P$5:$BB$5,0)) -> 0 | AW48: =INDEX(Inputs!$P$211:$BB$211,MATCH('Costs & Revenue'!AW$5,Inputs!$P$5:$BB$5,0)) -> 0 | AX48: =INDEX(Inputs!$P$211:$BB$211,MATCH('Costs & Revenue'!AX$5,Inputs!$P$5:$BB$5,0)) -> 0 | AY48: =INDEX(Inputs!$P$211:$BB$211,MATCH('Costs & Revenue'!AY$5,Inputs!$P$5:$BB$5,0)) -> 0 | AZ48: =INDEX(Inputs!$P$211:$BB$211,MATCH('Costs & Revenue'!AZ$5,Inputs!$P$5:$BB$5,0)) -> 0 | BA48: =INDEX(Inputs!$P$211:$BB$211,MATCH('Costs & Revenue'!BA$5,Inputs!$P$5:$BB$5,0)) -> 0 | BB48: =INDEX(Inputs!$P$211:$BB$211,MATCH('Costs & Revenue'!BB$5,Inputs!$P$5:$BB$5,0)) -> 0
E50: Partial year Cap adjustment factor | G50: flag | H50: PYCt | P50: =INDEX(Inputs!$P$64:$BB$64,MATCH('Costs & Revenue'!P$5,Inputs!$P$5:$BB$5,0)) -> 0.9171800137 | Q50: =INDEX(Inputs!$P$64:$BB$64,MATCH('Costs & Revenue'!Q$5,Inputs!$P$5:$BB$5,0)) -> 1 | R50: =INDEX(Inputs!$P$64:$BB$64,MATCH('Costs & Revenue'!R$5,Inputs!$P$5:$BB$5,0)) -> 1 | S50: =INDEX(Inputs!$P$64:$BB$64,MATCH('Costs & Revenue'!S$5,Inputs!$P$5:$BB$5,0)) -> 1 | T50: =INDEX(Inputs!$P$64:$BB$64,MATCH('Costs & Revenue'!T$5,Inputs!$P$5:$BB$5,0)) -> 1 | U50: =INDEX(Inputs!$P$64:$BB$64,MATCH('Costs & Revenue'!U$5,Inputs!$P$5:$BB$5,0)) -> 1 | V50: =INDEX(Inputs!$P$64:$BB$64,MATCH('Costs & Revenue'!V$5,Inputs!$P$5:$BB$5,0)) -> 1 | W50: =INDEX(Inputs!$P$64:$BB$64,MATCH('Costs & Revenue'!W$5,Inputs!$P$5:$BB$5,0)) -> 1 | X50: =INDEX(Inputs!$P$64:$BB$64,MATCH('Costs & Revenue'!X$5,Inputs!$P$5:$BB$5,0)) -> 1 | Y50: =INDEX(Inputs!$P$64:$BB$64,MATCH('Costs & Revenue'!Y$5,Inputs!$P$5:$BB$5,0)) -> 1 | Z50: =INDEX(Inputs!$P$64:$BB$64,MATCH('Costs & Revenue'!Z$5,Inputs!$P$5:$BB$5,0)) -> 1 | AA50: =INDEX(Inputs!$P$64:$BB$64,MATCH('Costs & Revenue'!AA$5,Inputs!$P$5:$BB$5,0)) -> 1 | AB50: =INDEX(Inputs!$P$64:$BB$64,MATCH('Costs & Revenue'!AB$5,Inputs!$P$5:$BB$5,0)) -> 1 | AC50: =INDEX(Inputs!$P$64:$BB$64,MATCH('Costs & Revenue'!AC$5,Inputs!$P$5:$BB$5,0)) -> 1 | AD50: =INDEX(Inputs!$P$64:$BB$64,MATCH('Costs & Revenue'!AD$5,Inputs!$P$5:$BB$5,0)) -> 1 | AE50: =INDEX(Inputs!$P$64:$BB$64,MATCH('Costs & Revenue'!AE$5,Inputs!$P$5:$BB$5,0)) -> 1 | AF50: =INDEX(Inputs!$P$64:$BB$64,MATCH('Costs & Revenue'!AF$5,Inputs!$P$5:$BB$5,0)) -> 1 | AG50: =INDEX(Inputs!$P$64:$BB$64,MATCH('Costs & Revenue'!AG$5,Inputs!$P$5:$BB$5,0)) -> 1 | AH50: =INDEX(Inputs!$P$64:$BB$64,MATCH('Costs & Revenue'!AH$5,Inputs!$P$5:$BB$5,0)) -> 1 | AI50: =INDEX(Inputs!$P$64:$BB$64,MATCH('Costs & Revenue'!AI$5,Inputs!$P$5:$BB$5,0)) -> 1 | AJ50: =INDEX(Inputs!$P$64:$BB$64,MATCH('Costs & Revenue'!AJ$5,Inputs!$P$5:$BB$5,0)) -> 1 | AK50: =INDEX(Inputs!$P$64:$BB$64,MATCH('Costs & Revenue'!AK$5,Inputs!$P$5:$BB$5,0)) -> 1 | AL50: =INDEX(Inputs!$P$64:$BB$64,MATCH('Costs & Revenue'!AL$5,Inputs!$P$5:$BB$5,0)) -> 1 | AM50: =INDEX(Inputs!$P$64:$BB$64,MATCH('Costs & Revenue'!AM$5,Inputs!$P$5:$BB$5,0)) -> 1 | AN50: =INDEX(Inputs!$P$64:$BB$64,MATCH('Costs & Revenue'!AN$5,Inputs!$P$5:$BB$5,0)) -> 1.082819986 | AO50: =INDEX(Inputs!$P$64:$BB$64,MATCH('Costs & Revenue'!AO$5,Inputs!$P$5:$BB$5,0)) -> 0 | AP50: =INDEX(Inputs!$P$64:$BB$64,MATCH('Costs & Revenue'!AP$5,Inputs!$P$5:$BB$5,0)) -> 0 | AQ50: =INDEX(Inputs!$P$64:$BB$64,MATCH('Costs & Revenue'!AQ$5,Inputs!$P$5:$BB$5,0)) -> 0 | AR50: =INDEX(Inputs!$P$64:$BB$64,MATCH('Costs & Revenue'!AR$5,Inputs!$P$5:$BB$5,0)) -> 0 | AS50: =INDEX(Inputs!$P$64:$BB$64,MATCH('Costs & Revenue'!AS$5,Inputs!$P$5:$BB$5,0)) -> 0 | AT50: =INDEX(Inputs!$P$64:$BB$64,MATCH('Costs & Revenue'!AT$5,Inputs!$P$5:$BB$5,0)) -> 0 | AU50: =INDEX(Inputs!$P$64:$BB$64,MATCH('Costs & Revenue'!AU$5,Inputs!$P$5:$BB$5,0)) -> 0 | AV50: =INDEX(Inputs!$P$64:$BB$64,MATCH('Costs & Revenue'!AV$5,Inputs!$P$5:$BB$5,0)) -> 0 | AW50: =INDEX(Inputs!$P$64:$BB$64,MATCH('Costs & Revenue'!AW$5,Inputs!$P$5:$BB$5,0)) -> 0 | AX50: =INDEX(Inputs!$P$64:$BB$64,MATCH('Costs & Revenue'!AX$5,Inputs!$P$5:$BB$5,0)) -> 0 | AY50: =INDEX(Inputs!$P$64:$BB$64,MATCH('Costs & Revenue'!AY$5,Inputs!$P$5:$BB$5,0)) -> 0 | AZ50: =INDEX(Inputs!$P$64:$BB$64,MATCH('Costs & Revenue'!AZ$5,Inputs!$P$5:$BB$5,0)) -> 0 | BA50: =INDEX(Inputs!$P$64:$BB$64,MATCH('Costs & Revenue'!BA$5,Inputs!$P$5:$BB$5,0)) -> 0 | BB50: =INDEX(Inputs!$P$64:$BB$64,MATCH('Costs & Revenue'!BB$5,Inputs!$P$5:$BB$5,0)) -> 0
E51: Partial year Floor adjustment factor | G51: flag | H51: PYFt | P51: =INDEX(Inputs!$P$72:$BB$72,MATCH('Costs & Revenue'!P$5,Inputs!$P$5:$BB$5,0)) -> 0.9171800137 | Q51: =INDEX(Inputs!$P$72:$BB$72,MATCH('Costs & Revenue'!Q$5,Inputs!$P$5:$BB$5,0)) -> 1 | R51: =INDEX(Inputs!$P$72:$BB$72,MATCH('Costs & Revenue'!R$5,Inputs!$P$5:$BB$5,0)) -> 1 | S51: =INDEX(Inputs!$P$72:$BB$72,MATCH('Costs & Revenue'!S$5,Inputs!$P$5:$BB$5,0)) -> 1 | T51: =INDEX(Inputs!$P$72:$BB$72,MATCH('Costs & Revenue'!T$5,Inputs!$P$5:$BB$5,0)) -> 1 | U51: =INDEX(Inputs!$P$72:$BB$72,MATCH('Costs & Revenue'!U$5,Inputs!$P$5:$BB$5,0)) -> 1 | V51: =INDEX(Inputs!$P$72:$BB$72,MATCH('Costs & Revenue'!V$5,Inputs!$P$5:$BB$5,0)) -> 1 | W51: =INDEX(Inputs!$P$72:$BB$72,MATCH('Costs & Revenue'!W$5,Inputs!$P$5:$BB$5,0)) -> 1 | X51: =INDEX(Inputs!$P$72:$BB$72,MATCH('Costs & Revenue'!X$5,Inputs!$P$5:$BB$5,0)) -> 1 | Y51: =INDEX(Inputs!$P$72:$BB$72,MATCH('Costs & Revenue'!Y$5,Inputs!$P$5:$BB$5,0)) -> 1 | Z51: =INDEX(Inputs!$P$72:$BB$72,MATCH('Costs & Revenue'!Z$5,Inputs!$P$5:$BB$5,0)) -> 1 | AA51: =INDEX(Inputs!$P$72:$BB$72,MATCH('Costs & Revenue'!AA$5,Inputs!$P$5:$BB$5,0)) -> 1 | AB51: =INDEX(Inputs!$P$72:$BB$72,MATCH('Costs & Revenue'!AB$5,Inputs!$P$5:$BB$5,0)) -> 1 | AC51: =INDEX(Inputs!$P$72:$BB$72,MATCH('Costs & Revenue'!AC$5,Inputs!$P$5:$BB$5,0)) -> 1 | AD51: =INDEX(Inputs!$P$72:$BB$72,MATCH('Costs & Revenue'!AD$5,Inputs!$P$5:$BB$5,0)) -> 1 | AE51: =INDEX(Inputs!$P$72:$BB$72,MATCH('Costs & Revenue'!AE$5,Inputs!$P$5:$BB$5,0)) -> 1 | AF51: =INDEX(Inputs!$P$72:$BB$72,MATCH('Costs & Revenue'!AF$5,Inputs!$P$5:$BB$5,0)) -> 1 | AG51: =INDEX(Inputs!$P$72:$BB$72,MATCH('Costs & Revenue'!AG$5,Inputs!$P$5:$BB$5,0)) -> 1 | AH51: =INDEX(Inputs!$P$72:$BB$72,MATCH('Costs & Revenue'!AH$5,Inputs!$P$5:$BB$5,0)) -> 1 | AI51: =INDEX(Inputs!$P$72:$BB$72,MATCH('Costs & Revenue'!AI$5,Inputs!$P$5:$BB$5,0)) -> 1 | AJ51: =INDEX(Inputs!$P$72:$BB$72,MATCH('Costs & Revenue'!AJ$5,Inputs!$P$5:$BB$5,0)) -> 1 | AK51: =INDEX(Inputs!$P$72:$BB$72,MATCH('Costs & Revenue'!AK$5,Inputs!$P$5:$BB$5,0)) -> 1 | AL51: =INDEX(Inputs!$P$72:$BB$72,MATCH('Costs & Revenue'!AL$5,Inputs!$P$5:$BB$5,0)) -> 1 | AM51: =INDEX(Inputs!$P$72:$BB$72,MATCH('Costs & Revenue'!AM$5,Inputs!$P$5:$BB$5,0)) -> 1 | AN51: =INDEX(Inputs!$P$72:$BB$72,MATCH('Costs & Revenue'!AN$5,Inputs!$P$5:$BB$5,0)) -> 1.082819986 | AO51: =INDEX(Inputs!$P$72:$BB$72,MATCH('Costs & Revenue'!AO$5,Inputs!$P$5:$BB$5,0)) -> 0 | AP51: =INDEX(Inputs!$P$72:$BB$72,MATCH('Costs & Revenue'!AP$5,Inputs!$P$5:$BB$5,0)) -> 0 | AQ51: =INDEX(Inputs!$P$72:$BB$72,MATCH('Costs & Revenue'!AQ$5,Inputs!$P$5:$BB$5,0)) -> 0 | AR51: =INDEX(Inputs!$P$72:$BB$72,MATCH('Costs & Revenue'!AR$5,Inputs!$P$5:$BB$5,0)) -> 0 | AS51: =INDEX(Inputs!$P$72:$BB$72,MATCH('Costs & Revenue'!AS$5,Inputs!$P$5:$BB$5,0)) -> 0 | AT51: =INDEX(Inputs!$P$72:$BB$72,MATCH('Costs & Revenue'!AT$5,Inputs!$P$5:$BB$5,0)) -> 0 | AU51: =INDEX(Inputs!$P$72:$BB$72,MATCH('Costs & Revenue'!AU$5,Inputs!$P$5:$BB$5,0)) -> 0 | AV51: =INDEX(Inputs!$P$72:$BB$72,MATCH('Costs & Revenue'!AV$5,Inputs!$P$5:$BB$5,0)) -> 0 | AW51: =INDEX(Inputs!$P$72:$BB$72,MATCH('Costs & Revenue'!AW$5,Inputs!$P$5:$BB$5,0)) -> 0 | AX51: =INDEX(Inputs!$P$72:$BB$72,MATCH('Costs & Revenue'!AX$5,Inputs!$P$5:$BB$5,0)) -> 0 | AY51: =INDEX(Inputs!$P$72:$BB$72,MATCH('Costs & Revenue'!AY$5,Inputs!$P$5:$BB$5,0)) -> 0 | AZ51: =INDEX(Inputs!$P$72:$BB$72,MATCH('Costs & Revenue'!AZ$5,Inputs!$P$5:$BB$5,0)) -> 0 | BA51: =INDEX(Inputs!$P$72:$BB$72,MATCH('Costs & Revenue'!BA$5,Inputs!$P$5:$BB$5,0)) -> 0 | BB51: =INDEX(Inputs!$P$72:$BB$72,MATCH('Costs & Revenue'!BB$5,Inputs!$P$5:$BB$5,0)) -> 0
E53: Cap (pre-availability incentive) | G53: £m nominal prices | P53: =P32*P50+($I17*P36*$I$35+$I19*P40*$I$39+$I21*P$44*$I$43+$I23*P$45*$I$43+$I25*P$46*$I$43+$I27*P$47*$I$43+$I29*P$48*$I$43)*P$11 -> 80.62199227 | Q53: =Q32*Q50+($I17*Q36*$I$35+$I19*Q40*$I$39+$I21*Q$44*$I$43+$I23*Q$45*$I$43+$I25*Q$46*$I$43+$I27*Q$47*$I$43+$I29*Q$48*$I$43)*Q$11 -> 91.26001316 | R53: 93.54095421 | S53: 95.88118631 | T53: 98.28230544 | U53: 100.7459518 | V53: 103.2738111 | W53: 105.8676158 | X53: 108.5291465 | Y53: 111.2602331 | Z53: 114.0627565 | AA53: 115.1056705 | AB53: 118.0093739 | AC53: 120.990518 | AD53: 124.0499137 | AE53: 127.1896849 | AF53: 130.4120147 | AG53: 133.7191471 | AH53: 137.113389 | AI53: 141.9772492 | AJ53: 146.5882444 | AK53: 150.3197975 | AL53: 152.0953418 | AM53: 154.488276 | AN53: 171.5534734 | AO53: 0 | AP53: 0 | AQ53: 0 | AR53: 0 | AS53: 0 | AT53: 0 | AU53: 0 | AV53: 0 | AW53: 0 | AX53: 0 | AY53: 0 | AZ53: 0 | BA53: 0 | BB53: 0
E54: Notional Floor (pre-availability incentive) | G54: £m nominal prices | H54: NFLt | P54: =P33*P51+($I18*P37*$I$35+$I20*P41*$I$39+$I22*P$44*$I$43+$I24*P$45*$I$43+$I26*P$46*$I$43+$I28*P$47*$I$43+$I30*P$48*$I$43)*P$11 -> 45.9340051 | Q54: =Q33*Q51+($I18*Q37*$I$35+$I20*Q41*$I$39+$I22*Q$44*$I$43+$I24*Q$45*$I$43+$I26*Q$46*$I$43+$I28*Q$47*$I$43+$I30*Q$48*$I$43)*Q$11 -> 51.99496803 | R54: 53.29452358 | S54: 54.62785993 | T54: 55.99588639 | U54: 57.39953745 | V54: 58.83977353 | W54: 60.3175817 | X54: 61.83397641 | Y54: 63.3900003 | Z54: 64.98672501 | AA54: 64.70833202 | AB54: 66.34006873 | AC54: 68.01594666 | AD54: 69.73581445 | AE54: 71.50086606 | AF54: 73.31232877 | AG54: 75.17146409 | AH54: 77.07956877 | AI54: 80.64032199 | AJ54: 83.85245309 | AK54: 85.98700274 | AL54: 86.00526219 | AM54: 86.62752267 | AN54: 96.19663572 | AO54: 0 | AP54: 0 | AQ54: 0 | AR54: 0 | AS54: 0 | AT54: 0 | AU54: 0 | AV54: 0 | AW54: 0 | AX54: 0 | AY54: 0 | AZ54: 0 | BA54: 0 | BB54: 0
B56: End of sheet

Sheet Availability
A1: Availability | H1: Licence
E2: Parameter | G2: Units | H2: Terminology | I2: Constant | O2: Annual values
E3: Year commencing | O3: =INDEX(Inputs!$O3:$BB3,MATCH('Costs & Revenue'!O$5,Inputs!$O$5:$BB$5,0)) -> 2018-01-01 | P3: =INDEX(Inputs!$O3:$BB3,MATCH('Costs & Revenue'!P$5,Inputs!$O$5:$BB$5,0)) -> 2019-01-01 | Q3: =INDEX(Inputs!$O3:$BB3,MATCH('Costs & Revenue'!Q$5,Inputs!$O$5:$BB$5,0)) -> 2020-01-01 | R3: =INDEX(Inputs!$O3:$BB3,MATCH('Costs & Revenue'!R$5,Inputs!$O$5:$BB$5,0)) -> 2021-01-01 | S3: =INDEX(Inputs!$O3:$BB3,MATCH('Costs & Revenue'!S$5,Inputs!$O$5:$BB$5,0)) -> 2022-01-01 | T3: =INDEX(Inputs!$O3:$BB3,MATCH('Costs & Revenue'!T$5,Inputs!$O$5:$BB$5,0)) -> 2023-01-01 | U3: =INDEX(Inputs!$O3:$BB3,MATCH('Costs & Revenue'!U$5,Inputs!$O$5:$BB$5,0)) -> 2024-01-01 | V3: =INDEX(Inputs!$O3:$BB3,MATCH('Costs & Revenue'!V$5,Inputs!$O$5:$BB$5,0)) -> 2025-01-01 | W3: =INDEX(Inputs!$O3:$BB3,MATCH('Costs & Revenue'!W$5,Inputs!$O$5:$BB$5,0)) -> 2026-01-01 | X3: =INDEX(Inputs!$O3:$BB3,MATCH('Costs & Revenue'!X$5,Inputs!$O$5:$BB$5,0)) -> 2027-01-01 | Y3: =INDEX(Inputs!$O3:$BB3,MATCH('Costs & Revenue'!Y$5,Inputs!$O$5:$BB$5,0)) -> 2028-01-01 | Z3: =INDEX(Inputs!$O3:$BB3,MATCH('Costs & Revenue'!Z$5,Inputs!$O$5:$BB$5,0)) -> 2029-01-01 | AA3: =INDEX(Inputs!$O3:$BB3,MATCH('Costs & Revenue'!AA$5,Inputs!$O$5:$BB$5,0)) -> 2030-01-01 | AB3: =INDEX(Inputs!$O3:$BB3,MATCH('Costs & Revenue'!AB$5,Inputs!$O$5:$BB$5,0)) -> 2031-01-01 | AC3: =INDEX(Inputs!$O3:$BB3,MATCH('Costs & Revenue'!AC$5,Inputs!$O$5:$BB$5,0)) -> 2032-01-01 | AD3: =INDEX(Inputs!$O3:$BB3,MATCH('Costs & Revenue'!AD$5,Inputs!$O$5:$BB$5,0)) -> 2033-01-01 | AE3: =INDEX(Inputs!$O3:$BB3,MATCH('Costs & Revenue'!AE$5,Inputs!$O$5:$BB$5,0)) -> 2034-01-01 | AF3: =INDEX(Inputs!$O3:$BB3,MATCH('Costs & Revenue'!AF$5,Inputs!$O$5:$BB$5,0)) -> 2035-01-01 | AG3: =INDEX(Inputs!$O3:$BB3,MATCH('Costs & Revenue'!AG$5,Inputs!$O$5:$BB$5,0)) -> 2036-01-01 | AH3: =INDEX(Inputs!$O3:$BB3,MATCH('Costs & Revenue'!AH$5,Inputs!$O$5:$BB$5,0)) -> 2037-01-01 | AI3: =INDEX(Inputs!$O3:$BB3,MATCH('Costs & Revenue'!AI$5,Inputs!$O$5:$BB$5,0)) -> 2038-01-01 | AJ3: =INDEX(Inputs!$O3:$BB3,MATCH('Costs & Revenue'!AJ$5,Inputs!$O$5:$BB$5,0)) -> 2039-01-01 | AK3: =INDEX(Inputs!$O3:$BB3,MATCH('Costs & Revenue'!AK$5,Inputs!$O$5:$BB$5,0)) -> 2040-01-01 | AL3: =INDEX(Inputs!$O3:$BB3,MATCH('Costs & Revenue'!AL$5,Inputs!$O$5:$BB$5,0)) -> 2041-01-01 | AM3: =INDEX(Inputs!$O3:$BB3,MATCH('Costs & Revenue'!AM$5,Inputs!$O$5:$BB$5,0)) -> 2042-01-01 | AN3: =INDEX(Inputs!$O3:$BB3,MATCH('Costs & Revenue'!AN$5,Inputs!$O$5:$BB$5,0)) -> 2043-01-01 | AO3: =INDEX(Inputs!$O3:$BB3,MATCH('Costs & Revenue'!AO$5,Inputs!$O$5:$BB$5,0)) -> 2044-01-01 | AP3: =INDEX(Inputs!$O3:$BB3,MATCH('Costs & Revenue'!AP$5,Inputs!$O$5:$BB$5,0)) -> 2045-01-01 | AQ3: =INDEX(Inputs!$O3:$BB3,MATCH('Costs & Revenue'!AQ$5,Inputs!$O$5:$BB$5,0)) -> 2046-01-01 | AR3: =INDEX(Inputs!$O3:$BB3,MATCH('Costs & Revenue'!AR$5,Inputs!$O$5:$BB$5,0)) -> 2047-01-01 | AS3: =INDEX(Inputs!$O3:$BB3,MATCH('Costs & Revenue'!AS$5,Inputs!$O$5:$BB$5,0)) -> 2048-01-01 | AT3: =INDEX(Inputs!$O3:$BB3,MATCH('Costs & Revenue'!AT$5,Inputs!$O$5:$BB$5,0)) -> 2049-01-01 | AU3: =INDEX(Inputs!$O3:$BB3,MATCH('Costs & Revenue'!AU$5,Inputs!$O$5:$BB$5,0)) -> 2050-01-01 | AV3: =INDEX(Inputs!$O3:$BB3,MATCH('Costs & Revenue'!AV$5,Inputs!$O$5:$BB$5,0)) -> 2051-01-01 | AW3: =INDEX(Inputs!$O3:$BB3,MATCH('Costs & Revenue'!AW$5,Inputs!$O$5:$BB$5,0)) -> 2052-01-01 | AX3: =INDEX(Inputs!$O3:$BB3,MATCH('Costs & Revenue'!AX$5,Inputs!$O$5:$BB$5,0)) -> 2053-01-01 | AY3: =INDEX(Inputs!$O3:$BB3,MATCH('Costs & Revenue'!AY$5,Inputs!$O$5:$BB$5,0)) -> 2054-01-01 | AZ3: =INDEX(Inputs!$O3:$BB3,MATCH('Costs & Revenue'!AZ$5,Inputs!$O$5:$BB$5,0)) -> 2055-01-01 | BA3: =INDEX(Inputs!$O3:$BB3,MATCH('Costs & Revenue'!BA$5,Inputs!$O$5:$BB$5,0)) -> 2056-01-01 | BB3: =INDEX(Inputs!$O3:$BB3,MATCH('Costs & Revenue'!BB$5,Inputs!$O$5:$BB$5,0)) -> 2057-01-01
E4: Year ending | O4: =INDEX(Inputs!$O4:$BB4,MATCH('Costs & Revenue'!O$5,Inputs!$O$5:$BB$5,0)) -> 2018-12-31 | P4: =INDEX(Inputs!$O4:$BB4,MATCH('Costs & Revenue'!P$5,Inputs!$O$5:$BB$5,0)) -> 2019-12-31 | Q4: =INDEX(Inputs!$O4:$BB4,MATCH('Costs & Revenue'!Q$5,Inputs!$O$5:$BB$5,0)) -> 2020-12-31 | R4: =INDEX(Inputs!$O4:$BB4,MATCH('Costs & Revenue'!R$5,Inputs!$O$5:$BB$5,0)) -> 2021-12-31 | S4: =INDEX(Inputs!$O4:$BB4,MATCH('Costs & Revenue'!S$5,Inputs!$O$5:$BB$5,0)) -> 2022-12-31 | T4: =INDEX(Inputs!$O4:$BB4,MATCH('Costs & Revenue'!T$5,Inputs!$O$5:$BB$5,0)) -> 2023-12-31 | U4: =INDEX(Inputs!$O4:$BB4,MATCH('Costs & Revenue'!U$5,Inputs!$O$5:$BB$5,0)) -> 2024-12-31 | V4: =INDEX(Inputs!$O4:$BB4,MATCH('Costs & Revenue'!V$5,Inputs!$O$5:$BB$5,0)) -> 2025-12-31 | W4: =INDEX(Inputs!$O4:$BB4,MATCH('Costs & Revenue'!W$5,Inputs!$O$5:$BB$5,0)) -> 2026-12-31 | X4: =INDEX(Inputs!$O4:$BB4,MATCH('Costs & Revenue'!X$5,Inputs!$O$5:$BB$5,0)) -> 2027-12-31 | Y4: =INDEX(Inputs!$O4:$BB4,MATCH('Costs & Revenue'!Y$5,Inputs!$O$5:$BB$5,0)) -> 2028-12-31 | Z4: =INDEX(Inputs!$O4:$BB4,MATCH('Costs & Revenue'!Z$5,Inputs!$O$5:$BB$5,0)) -> 2029-12-31 | AA4: =INDEX(Inputs!$O4:$BB4,MATCH('Costs & Revenue'!AA$5,Inputs!$O$5:$BB$5,0)) -> 2030-12-31 | AB4: =INDEX(Inputs!$O4:$BB4,MATCH('Costs & Revenue'!AB$5,Inputs!$O$5:$BB$5,0)) -> 2031-12-31 | AC4: =INDEX(Inputs!$O4:$BB4,MATCH('Costs & Revenue'!AC$5,Inputs!$O$5:$BB$5,0)) -> 2032-12-31 | AD4: =INDEX(Inputs!$O4:$BB4,MATCH('Costs & Revenue'!AD$5,Inputs!$O$5:$BB$5,0)) -> 2033-12-31 | AE4: =INDEX(Inputs!$O4:$BB4,MATCH('Costs & Revenue'!AE$5,Inputs!$O$5:$BB$5,0)) -> 2034-12-31 | AF4: =INDEX(Inputs!$O4:$BB4,MATCH('Costs & Revenue'!AF$5,Inputs!$O$5:$BB$5,0)) -> 2035-12-31 | AG4: =INDEX(Inputs!$O4:$BB4,MATCH('Costs & Revenue'!AG$5,Inputs!$O$5:$BB$5,0)) -> 2036-12-31 | AH4: =INDEX(Inputs!$O4:$BB4,MATCH('Costs & Revenue'!AH$5,Inputs!$O$5:$BB$5,0)) -> 2037-12-31 | AI4: =INDEX(Inputs!$O4:$BB4,MATCH('Costs & Revenue'!AI$5,Inputs!$O$5:$BB$5,0)) -> 2038-12-31 | AJ4: =INDEX(Inputs!$O4:$BB4,MATCH('Costs & Revenue'!AJ$5,Inputs!$O$5:$BB$5,0)) -> 2039-12-31 | AK4: =INDEX(Inputs!$O4:$BB4,MATCH('Costs & Revenue'!AK$5,Inputs!$O$5:$BB$5,0)) -> 2040-12-31 | AL4: =INDEX(Inputs!$O4:$BB4,MATCH('Costs & Revenue'!AL$5,Inputs!$O$5:$BB$5,0)) -> 2041-12-31 | AM4: =INDEX(Inputs!$O4:$BB4,MATCH('Costs & Revenue'!AM$5,Inputs!$O$5:$BB$5,0)) -> 2042-12-31 | AN4: =INDEX(Inputs!$O4:$BB4,MATCH('Costs & Revenue'!AN$5,Inputs!$O$5:$BB$5,0)) -> 2043-12-31 | AO4: =INDEX(Inputs!$O4:$BB4,MATCH('Costs & Revenue'!AO$5,Inputs!$O$5:$BB$5,0)) -> 2044-12-31 | AP4: =INDEX(Inputs!$O4:$BB4,MATCH('Costs & Revenue'!AP$5,Inputs!$O$5:$BB$5,0)) -> 2045-12-31 | AQ4: =INDEX(Inputs!$O4:$BB4,MATCH('Costs & Revenue'!AQ$5,Inputs!$O$5:$BB$5,0)) -> 2046-12-31 | AR4: =INDEX(Inputs!$O4:$BB4,MATCH('Costs & Revenue'!AR$5,Inputs!$O$5:$BB$5,0)) -> 2047-12-31 | AS4: =INDEX(Inputs!$O4:$BB4,MATCH('Costs & Revenue'!AS$5,Inputs!$O$5:$BB$5,0)) -> 2048-12-31 | AT4: =INDEX(Inputs!$O4:$BB4,MATCH('Costs & Revenue'!AT$5,Inputs!$O$5:$BB$5,0)) -> 2049-12-31 | AU4: =INDEX(Inputs!$O4:$BB4,MATCH('Costs & Revenue'!AU$5,Inputs!$O$5:$BB$5,0)) -> 2050-12-31 | AV4: =INDEX(Inputs!$O4:$BB4,MATCH('Costs & Revenue'!AV$5,Inputs!$O$5:$BB$5,0)) -> 2051-12-31 | AW4: =INDEX(Inputs!$O4:$BB4,MATCH('Costs & Revenue'!AW$5,Inputs!$O$5:$BB$5,0)) -> 2052-12-31 | AX4: =INDEX(Inputs!$O4:$BB4,MATCH('Costs & Revenue'!AX$5,Inputs!$O$5:$BB$5,0)) -> 2053-12-31 | AY4: =INDEX(Inputs!$O4:$BB4,MATCH('Costs & Revenue'!AY$5,Inputs!$O$5:$BB$5,0)) -> 2054-12-31 | AZ4: =INDEX(Inputs!$O4:$BB4,MATCH('Costs & Revenue'!AZ$5,Inputs!$O$5:$BB$5,0)) -> 2055-12-31 | BA4: =INDEX(Inputs!$O4:$BB4,MATCH('Costs & Revenue'!BA$5,Inputs!$O$5:$BB$5,0)) -> 2056-12-31 | BB4: =INDEX(Inputs!$O4:$BB4,MATCH('Costs & Revenue'!BB$5,Inputs!$O$5:$BB$5,0)) -> 2057-12-31
E5: Operational year | O5: =Inputs!O5 -> 0 | P5: =Inputs!P5 -> 1 | Q5: =Inputs!Q5 -> 2 | R5: =Inputs!R5 -> 3 | S5: =Inputs!S5 -> 4 | T5: =Inputs!T5 -> 5 | U5: =Inputs!U5 -> 6 | V5: =Inputs!V5 -> 7 | W5: =Inputs!W5 -> 8 | X5: =Inputs!X5 -> 9 | Y5: =Inputs!Y5 -> 10 | Z5: =Inputs!Z5 -> 11 | AA5: =Inputs!AA5 -> 12 | AB5: =Inputs!AB5 -> 13 | AC5: =Inputs!AC5 -> 14 | AD5: =Inputs!AD5 -> 15 | AE5: =Inputs!AE5 -> 16 | AF5: =Inputs!AF5 -> 17 | AG5: =Inputs!AG5 -> 18 | AH5: =Inputs!AH5 -> 19 | AI5: =Inputs!AI5 -> 20 | AJ5: =Inputs!AJ5 -> 21 | AK5: =Inputs!AK5 -> 22 | AL5: =Inputs!AL5 -> 23 | AM5: =Inputs!AM5 -> 24 | AN5: =Inputs!AN5 -> 25 | AO5: =Inputs!AO5 -> 26 | AP5: =Inputs!AP5 -> 27 | AQ5: =Inputs!AQ5 -> 28 | AR5: =Inputs!AR5 -> 29 | AS5: =Inputs!AS5 -> 30 | AT5: =Inputs!AT5 -> 31 | AU5: =Inputs!AU5 -> 32 | AV5: =Inputs!AV5 -> 33 | AW5: =Inputs!AW5 -> 34 | AX5: =Inputs!AX5 -> 35 | AY5: =Inputs!AY5 -> 36 | AZ5: =Inputs!AZ5 -> 37 | BA5: =Inputs!BA5 -> 38 | BB5: =Inputs!BB5 -> 39
B7: Availability incentives
C9: Cap and Floor (pre-availability incentive)
E11: =Indexation!E53 -> Cap (pre-availability incentive) | G11: £m nominal prices | P11: =Indexation!P53 -> 80.62199227 | Q11: =Indexation!Q53 -> 91.26001316 | R11: =Indexation!R53 -> 93.54095421 | S11: =Indexation!S53 -> 95.88118631 | T11: =Indexation!T53 -> 98.28230544 | U11: =Indexation!U53 -> 100.7459518 | V11: =Indexation!V53 -> 103.2738111 | W11: =Indexation!W53 -> 105.8676158 | X11: =Indexation!X53 -> 108.5291465 | Y11: =Indexation!Y53 -> 111.2602331 | Z11: =Indexation!Z53 -> 114.0627565 | AA11: =Indexation!AA53 -> 115.1056705 | AB11: =Indexation!AB53 -> 118.0093739 | AC11: =Indexation!AC53 -> 120.990518 | AD11: =Indexation!AD53 -> 124.0499137 | AE11: =Indexation!AE53 -> 127.1896849 | AF11: =Indexation!AF53 -> 130.4120147 | AG11: =Indexation!AG53 -> 133.7191471 | AH11: =Indexation!AH53 -> 137.113389 | AI11: =Indexation!AI53 -> 141.9772492 | AJ11: =Indexation!AJ53 -> 146.5882444 | AK11: =Indexation!AK53 -> 150.3197975 | AL11: =Indexation!AL53 -> 152.0953418 | AM11: =Indexation!AM53 -> 154.488276 | AN11: =Indexation!AN53 -> 171.5534734 | AO11: =Indexation!AO53 -> 0 | AP11: =Indexation!AP53 -> 0 | AQ11: =Indexation!AQ53 -> 0 | AR11: =Indexation!AR53 -> 0 | AS11: =Indexation!AS53 -> 0 | AT11: =Indexation!AT53 -> 0 | AU11: =Indexation!AU53 -> 0 | AV11: =Indexation!AV53 -> 0 | AW11: =Indexation!AW53 -> 0 | AX11: =Indexation!AX53 -> 0 | AY11: =Indexation!AY53 -> 0 | AZ11: =Indexation!AZ53 -> 0 | BA11: =Indexation!BA53 -> 0 | BB11: =Indexation!BB53 -> 0
E12: =Indexation!E54 -> Notional Floor (pre-availability incentive) | G12: £m nominal prices | H12: NFLt | P12: =Indexation!P54 -> 45.9340051 | Q12: =Indexation!Q54 -> 51.99496803 | R12: =Indexation!R54 -> 53.29452358 | S12: =Indexation!S54 -> 54.62785993 | T12: =Indexation!T54 -> 55.99588639 | U12: =Indexation!U54 -> 57.39953745 | V12: =Indexation!V54 -> 58.83977353 | W12: =Indexation!W54 -> 60.3175817 | X12: =Indexation!X54 -> 61.83397641 | Y12: =Indexation!Y54 -> 63.3900003 | Z12: =Indexation!Z54 -> 64.98672501 | AA12: =Indexation!AA54 -> 64.70833202 | AB12: =Indexation!AB54 -> 66.34006873 | AC12: =Indexation!AC54 -> 68.01594666 | AD12: =Indexation!AD54 -> 69.73581445 | AE12: =Indexation!AE54 -> 71.50086606 | AF12: =Indexation!AF54 -> 73.31232877 | AG12: =Indexation!AG54 -> 75.17146409 | AH12: =Indexation!AH54 -> 77.07956877 | AI12: =Indexation!AI54 -> 80.64032199 | AJ12: =Indexation!AJ54 -> 83.85245309 | AK12: =Indexation!AK54 -> 85.98700274 | AL12: =Indexation!AL54 -> 86.00526219 | AM12: =Indexation!AM54 -> 86.62752267 | AN12: =Indexation!AN54 -> 96.19663572 | AO12: =Indexation!AO54 -> 0 | AP12: =Indexation!AP54 -> 0 | AQ12: =Indexation!AQ54 -> 0 | AR12: =Indexation!AR54 -> 0 | AS12: =Indexation!AS54 -> 0 | AT12: =Indexation!AT54 -> 0 | AU12: =Indexation!AU54 -> 0 | AV12: =Indexation!AV54 -> 0 | AW12: =Indexation!AW54 -> 0 | AX12: =Indexation!AX54 -> 0 | AY12: =Indexation!AY54 -> 0 | AZ12: =Indexation!AZ54 -> 0 | BA12: =Indexation!BA54 -> 0 | BB12: =Indexation!BB54 -> 0
C14: Availability parameters
E16: =Inputs!E75 -> Number of operational years | G16: =Inputs!G75 -> full years | I16: =op_years -> 25
E17: Year is within operational period | G17: flag | P17: =AND(P$5> 0,P$5<= $I16) -> TRUE | Q17: =AND(Q$5> 0,Q$5<= $I16) -> TRUE | R17: TRUE | S17: TRUE | T17: TRUE | U17: TRUE | V17: TRUE | W17: TRUE | X17: TRUE | Y17: TRUE | Z17: =AND(Z$5> 0,Z$5<= $I16) -> TRUE | AA17: =AND(AA$5> 0,AA$5<= $I16) -> TRUE | AB17: TRUE | AC17: TRUE | AD17: TRUE | AE17: TRUE | AF17: TRUE | AG17: TRUE | AH17: TRUE | AI17: TRUE | AJ17: TRUE | AK17: TRUE | AL17: TRUE | AM17: TRUE | AN17: TRUE | AO17: FALSE | AP17: FALSE | AQ17: FALSE | AR17: FALSE | AS17: FALSE | AT17: FALSE | AU17: FALSE | AV17: FALSE | AW17: FALSE | AX17: FALSE | AY17: FALSE | AZ17: FALSE | BA17: FALSE | BB17: FALSE
E19: Interconnector rated capacity | G19: MW | H19: RC | I19: =Inputs!I121 -> 1000
E20: Number of hours in relevant year | G20: hours pa | I20: =Inputs!I122 -> 8766
C22: Cap incentive rate
E24: =Inputs!E117 -> Cap availability incentive target | G24: =Inputs!G117 -> % | I24: =Inputs!I117 -> 0.9705
E25: Partial year Cap adjustment factor | G25: scalar | H25: PYCt | P25: =Indexation!P50 -> 0.9171800137 | Q25: =Indexation!Q50 -> 1 | R25: =Indexation!R50 -> 1 | S25: =Indexation!S50 -> 1 | T25: =Indexation!T50 -> 1 | U25: =Indexation!U50 -> 1 | V25: =Indexation!V50 -> 1 | W25: =Indexation!W50 -> 1 | X25: =Indexation!X50 -> 1 | Y25: =Indexation!Y50 -> 1 | Z25: =Indexation!Z50 -> 1 | AA25: =Indexation!AA50 -> 1 | AB25: =Indexation!AB50 -> 1 | AC25: =Indexation!AC50 -> 1 | AD25: =Indexation!AD50 -> 1 | AE25: =Indexation!AE50 -> 1 | AF25: =Indexation!AF50 -> 1 | AG25: =Indexation!AG50 -> 1 | AH25: =Indexation!AH50 -> 1 | AI25: =Indexation!AI50 -> 1 | AJ25: =Indexation!AJ50 -> 1 | AK25: =Indexation!AK50 -> 1 | AL25: =Indexation!AL50 -> 1 | AM25: =Indexation!AM50 -> 1 | AN25: =Indexation!AN50 -> 1.082819986 | AO25: =Indexation!AO50 -> 0 | AP25: =Indexation!AP50 -> 0 | AQ25: =Indexation!AQ50 -> 0 | AR25: =Indexation!AR50 -> 0 | AS25: =Indexation!AS50 -> 0 | AT25: =Indexation!AT50 -> 0 | AU25: =Indexation!AU50 -> 0 | AV25: =Indexation!AV50 -> 0 | AW25: =Indexation!AW50 -> 0 | AX25: =Indexation!AX50 -> 0 | AY25: =Indexation!AY50 -> 0 | AZ25: =Indexation!AZ50 -> 0 | BA25: =Indexation!BA50 -> 0 | BB25: =Indexation!BB50 -> 0
E26: Maximum possible availability | G26: MWh | H26: MPA | P26: =$I$19*$I$20*P25 -> 8040000 | Q26: 8766000 | R26: 8766000 | S26: 8766000 | T26: 8766000 | U26: 8766000 | V26: 8766000 | W26: 8766000 | X26: 8766000 | Y26: 8766000 | Z26: 8766000 | AA26: =$I$19*$I$20*AA25 -> 8766000 | AB26: =$I$19*$I$20*AB25 -> 8766000 | AC26: 8766000 | AD26: 8766000 | AE26: 8766000 | AF26: 8766000 | AG26: 8766000 | AH26: 8766000 | AI26: 8766000 | AJ26: 8766000 | AK26: 8766000 | AL26: 8766000 | AM26: 8766000 | AN26: 9492000 | AO26: 0 | AP26: 0 | AQ26: 0 | AR26: 0 | AS26: 0 | AT26: 0 | AU26: 0 | AV26: 0 | AW26: 0 | AX26: 0 | AY26: 0 | AZ26: 0 | BA26: 0 | BB26: 0
E27: Total interconnector outages less allowed outages during active Cap period | G27: MWh | H27: IOt | P27: =INDEX(Inputs!$P$126:$BB$126,MATCH('Costs & Revenue'!P$5,Inputs!$P$5:$BB$5,0)) -> 0 | Q27: =INDEX(Inputs!$P$126:$BB$126,MATCH('Costs & Revenue'!Q$5,Inputs!$P$5:$BB$5,0)) -> 0 | R27: =INDEX(Inputs!$P$126:$BB$126,MATCH('Costs & Revenue'!R$5,Inputs!$P$5:$BB$5,0)) -> 0 | S27: =INDEX(Inputs!$P$126:$BB$126,MATCH('Costs & Revenue'!S$5,Inputs!$P$5:$BB$5,0)) -> 0 | T27: =INDEX(Inputs!$P$126:$BB$126,MATCH('Costs & Revenue'!T$5,Inputs!$P$5:$BB$5,0)) -> 0 | U27: =INDEX(Inputs!$P$126:$BB$126,MATCH('Costs & Revenue'!U$5,Inputs!$P$5:$BB$5,0)) -> 0 | V27: =INDEX(Inputs!$P$126:$BB$126,MATCH('Costs & Revenue'!V$5,Inputs!$P$5:$BB$5,0)) -> 0 | W27: =INDEX(Inputs!$P$126:$BB$126,MATCH('Costs & Revenue'!W$5,Inputs!$P$5:$BB$5,0)) -> 0 | X27: =INDEX(Inputs!$P$126:$BB$126,MATCH('Costs & Revenue'!X$5,Inputs!$P$5:$BB$5,0)) -> 0 | Y27: =INDEX(Inputs!$P$126:$BB$126,MATCH('Costs & Revenue'!Y$5,Inputs!$P$5:$BB$5,0)) -> 0 | Z27: =INDEX(Inputs!$P$126:$BB$126,MATCH('Costs & Revenue'!Z$5,Inputs!$P$5:$BB$5,0)) -> 0 | AA27: =INDEX(Inputs!$P$126:$BB$126,MATCH('Costs & Revenue'!AA$5,Inputs!$P$5:$BB$5,0)) -> 0 | AB27: =INDEX(Inputs!$P$126:$BB$126,MATCH('Costs & Revenue'!AB$5,Inputs!$P$5:$BB$5,0)) -> 0 | AC27: =INDEX(Inputs!$P$126:$BB$126,MATCH('Costs & Revenue'!AC$5,Inputs!$P$5:$BB$5,0)) -> 0 | AD27: =INDEX(Inputs!$P$126:$BB$126,MATCH('Costs & Revenue'!AD$5,Inputs!$P$5:$BB$5,0)) -> 0 | AE27: =INDEX(Inputs!$P$126:$BB$126,MATCH('Costs & Revenue'!AE$5,Inputs!$P$5:$BB$5,0)) -> 0 | AF27: =INDEX(Inputs!$P$126:$BB$126,MATCH('Costs & Revenue'!AF$5,Inputs!$P$5:$BB$5,0)) -> 0 | AG27: =INDEX(Inputs!$P$126:$BB$126,MATCH('Costs & Revenue'!AG$5,Inputs!$P$5:$BB$5,0)) -> 0 | AH27: =INDEX(Inputs!$P$126:$BB$126,MATCH('Costs & Revenue'!AH$5,Inputs!$P$5:$BB$5,0)) -> 0 | AI27: =INDEX(Inputs!$P$126:$BB$126,MATCH('Costs & Revenue'!AI$5,Inputs!$P$5:$BB$5,0)) -> 0 | AJ27: =INDEX(Inputs!$P$126:$BB$126,MATCH('Costs & Revenue'!AJ$5,Inputs!$P$5:$BB$5,0)) -> 0 | AK27: =INDEX(Inputs!$P$126:$BB$126,MATCH('Costs & Revenue'!AK$5,Inputs!$P$5:$BB$5,0)) -> 0 | AL27: =INDEX(Inputs!$P$126:$BB$126,MATCH('Costs & Revenue'!AL$5,Inputs!$P$5:$BB$5,0)) -> 0 | AM27: =INDEX(Inputs!$P$126:$BB$126,MATCH('Costs & Revenue'!AM$5,Inputs!$P$5:$BB$5,0)) -> 0 | AN27: =INDEX(Inputs!$P$126:$BB$126,MATCH('Costs & Revenue'!AN$5,Inputs!$P$5:$BB$5,0)) -> 0 | AO27: =INDEX(Inputs!$P$126:$BB$126,MATCH('Costs & Revenue'!AO$5,Inputs!$P$5:$BB$5,0)) -> 0 | AP27: =INDEX(Inputs!$P$126:$BB$126,MATCH('Costs & Revenue'!AP$5,Inputs!$P$5:$BB$5,0)) -> 0 | AQ27: =INDEX(Inputs!$P$126:$BB$126,MATCH('Costs & Revenue'!AQ$5,Inputs!$P$5:$BB$5,0)) -> 0 | AR27: =INDEX(Inputs!$P$126:$BB$126,MATCH('Costs & Revenue'!AR$5,Inputs!$P$5:$BB$5,0)) -> 0 | AS27: =INDEX(Inputs!$P$126:$BB$126,MATCH('Costs & Revenue'!AS$5,Inputs!$P$5:$BB$5,0)) -> 0 | AT27: =INDEX(Inputs!$P$126:$BB$126,MATCH('Costs & Revenue'!AT$5,Inputs!$P$5:$BB$5,0)) -> 0 | AU27: =INDEX(Inputs!$P$126:$BB$126,MATCH('Costs & Revenue'!AU$5,Inputs!$P$5:$BB$5,0)) -> 0 | AV27: =INDEX(Inputs!$P$126:$BB$126,MATCH('Costs & Revenue'!AV$5,Inputs!$P$5:$BB$5,0)) -> 0 | AW27: =INDEX(Inputs!$P$126:$BB$126,MATCH('Costs & Revenue'!AW$5,Inputs!$P$5:$BB$5,0)) -> 0 | AX27: =INDEX(Inputs!$P$126:$BB$126,MATCH('Costs & Revenue'!AX$5,Inputs!$P$5:$BB$5,0)) -> 0 | AY27: =INDEX(Inputs!$P$126:$BB$126,MATCH('Costs & Revenue'!AY$5,Inputs!$P$5:$BB$5,0)) -> 0 | AZ27: =INDEX(Inputs!$P$126:$BB$126,MATCH('Costs & Revenue'!AZ$5,Inputs!$P$5:$BB$5,0)) -> 0 | BA27: =INDEX(Inputs!$P$126:$BB$126,MATCH('Costs & Revenue'!BA$5,Inputs!$P$5:$BB$5,0)) -> 0 | BB27: =INDEX(Inputs!$P$126:$BB$126,MATCH('Costs & Revenue'!BB$5,Inputs!$P$5:$BB$5,0)) -> 0
E28: Actual availability for Cap | G28: MWh | H28: AACt (AAt) | P28: =P26-P27 -> 8040000 | Q28: 8766000 | R28: 8766000 | S28: 8766000 | T28: 8766000 | U28: 8766000 | V28: 8766000 | W28: 8766000 | X28: 8766000 | Y28: 8766000 | Z28: 8766000 | AA28: =AA26-AA27 -> 8766000 | AB28: =AB26-AB27 -> 8766000 | AC28: 8766000 | AD28: 8766000 | AE28: 8766000 | AF28: 8766000 | AG28: 8766000 | AH28: 8766000 | AI28: 8766000 | AJ28: 8766000 | AK28: 8766000 | AL28: 8766000 | AM28: 8766000 | AN28: 9492000 | AO28: 0 | AP28: 0 | AQ28: 0 | AR28: 0 | AS28: 0 | AT28: 0 | AU28: 0 | AV28: 0 | AW28: 0 | AX28: 0 | AY28: 0 | AZ28: 0 | BA28: 0 | BB28: 0
E29: Availability target | G29: MWh | H29: AT | P29: =P26*$I24 -> 7802820 | Q29: =Q26*$I24 -> 8507403 | R29: 8507403 | S29: 8507403 | T29: 8507403 | U29: 8507403 | V29: 8507403 | W29: 8507403 | X29: 8507403 | Y29: 8507403 | Z29: 8507403 | AA29: 8507403 | AB29: 8507403 | AC29: 8507403 | AD29: 8507403 | AE29: 8507403 | AF29: 8507403 | AG29: 8507403 | AH29: 8507403 | AI29: 8507403 | AJ29: 8507403 | AK29: 8507403 | AL29: 8507403 | AM29: 8507403 | AN29: 9211986 | AO29: 0 | AP29: 0 | AQ29: 0 | AR29: 0 | AS29: 0 | AT29: 0 | AU29: 0 | AV29: 0 | AW29: 0 | AX29: 0 | AY29: 0 | AZ29: 0 | BA29: 0 | BB29: 0
E30: Availability performance at Cap | G30: scalar | H30: APCt | P30: =IF(P29=0,0,P28/P29) -> 1.030396703 | Q30: =IF(Q29=0,0,Q28/Q29) -> 1.030396703 | R30: 1.030396703 | S30: 1.030396703 | T30: 1.030396703 | U30: 1.030396703 | V30: 1.030396703 | W30: 1.030396703 | X30: 1.030396703 | Y30: 1.030396703 | Z30: 1.030396703 | AA30: =IF(AA29=0,0,AA28/AA29) -> 1.030396703 | AB30: =IF(AB29=0,0,AB28/AB29) -> 1.030396703 | AC30: 1.030396703 | AD30: 1.030396703 | AE30: 1.030396703 | AF30: 1.030396703 | AG30: 1.030396703 | AH30: 1.030396703 | AI30: 1.030396703 | AJ30: 1.030396703 | AK30: 1.030396703 | AL30: 1.030396703 | AM30: 1.030396703 | AN30: 1.030396703 | AO30: 0 | AP30: 0 | AQ30: 0 | AR30: 0 | AS30: 0 | AT30: 0 | AU30: 0 | AV30: 0 | AW30: 0 | AX30: 0 | AY30: 0 | AZ30: 0 | BA30: 0 | BB30: 0
E32: =Inputs!E118 -> Cap availability incentive upper limit | G32: scalar | I32: =Inputs!I118 -> 1.02
E33: =Inputs!E119 -> Cap availability incentive lower limit | G33: scalar | I33: =Inputs!I119 -> 0.98
E35: Cap availability incentive rate | G35: scalar | H35: AICt | P35: =IF(P30>$I32,$I32,IF(P30<$I33,$I33,P30))*P17 -> 1.02 | Q35: =IF(Q30>$I32,$I32,IF(Q30<$I33,$I33,Q30))*Q17 -> 1.02 | R35: 1.02 | S35: 1.02 | T35: 1.02 | U35: 1.02 | V35: 1.02 | W35: 1.02 | X35: 1.02 | Y35: 1.02 | Z35: 1.02 | AA35: 1.02 | AB35: 1.02 | AC35: 1.02 | AD35: 1.02 | AE35: 1.02 | AF35: 1.02 | AG35: 1.02 | AH35: 1.02 | AI35: 1.02 | AJ35: 1.02 | AK35: 1.02 | AL35: 1.02 | AM35: 1.02 | AN35: 1.02 | AO35: 0 | AP35: 0 | AQ35: 0 | AR35: 0 | AS35: 0 | AT35: 0 | AU35: 0 | AV35: 0 | AW35: 0 | AX35: 0 | AY35: 0 | AZ35: 0 | BA35: 0 | BB35: 0
C37: Floor incentive rate
E39: Floor availability incentive target | G39: % | I39: =Inputs!I132 -> 0.8
E40: Partial year Floor adjustment factor | G40: scalar | H40: PYFt | P40: =Indexation!P51 -> 0.9171800137 | Q40: =Indexation!Q51 -> 1 | R40: =Indexation!R51 -> 1 | S40: =Indexation!S51 -> 1 | T40: =Indexation!T51 -> 1 | U40: =Indexation!U51 -> 1 | V40: =Indexation!V51 -> 1 | W40: =Indexation!W51 -> 1 | X40: =Indexation!X51 -> 1 | Y40: =Indexation!Y51 -> 1 | Z40: =Indexation!Z51 -> 1 | AA40: =Indexation!AA51 -> 1 | AB40: =Indexation!AB51 -> 1 | AC40: =Indexation!AC51 -> 1 | AD40: =Indexation!AD51 -> 1 | AE40: =Indexation!AE51 -> 1 | AF40: =Indexation!AF51 -> 1 | AG40: =Indexation!AG51 -> 1 | AH40: =Indexation!AH51 -> 1 | AI40: =Indexation!AI51 -> 1 | AJ40: =Indexation!AJ51 -> 1 | AK40: =Indexation!AK51 -> 1 | AL40: =Indexation!AL51 -> 1 | AM40: =Indexation!AM51 -> 1 | AN40: =Indexation!AN51 -> 1.082819986 | AO40: =Indexation!AO51 -> 0 | AP40: =Indexation!AP51 -> 0 | AQ40: =Indexation!AQ51 -> 0 | AR40: =Indexation!AR51 -> 0 | AS40: =Indexation!AS51 -> 0 | AT40: =Indexation!AT51 -> 0 | AU40: =Indexation!AU51 -> 0 | AV40: =Indexation!AV51 -> 0 | AW40: =Indexation!AW51 -> 0 | AX40: =Indexation!AX51 -> 0 | AY40: =Indexation!AY51 -> 0 | AZ40: =Indexation!AZ51 -> 0 | BA40: =Indexation!BA51 -> 0 | BB40: =Indexation!BB51 -> 0
E41: Maximum possible availability | G41: MWh | H41: MPA | P41: =$I$19*$I$20*P40 -> 8040000 | Q41: 8766000 | R41: 8766000 | S41: 8766000 | T41: 8766000 | U41: 8766000 | V41: 8766000 | W41: 8766000 | X41: 8766000 | Y41: 8766000 | Z41: 8766000 | AA41: 8766000 | AB41: 8766000 | AC41: 8766000 | AD41: 8766000 | AE41: 8766000 | AF41: 8766000 | AG41: 8766000 | AH41: 8766000 | AI41: 8766000 | AJ41: 8766000 | AK41: 8766000 | AL41: 8766000 | AM41: 8766000 | AN41: 9492000 | AO41: 0 | AP41: 0 | AQ41: 0 | AR41: 0 | AS41: 0 | AT41: 0 | AU41: 0 | AV41: 0 | AW41: 0 | AX41: 0 | AY41: 0 | AZ41: 0 | BA41: 0 | BB41: 0
E42: Total interconnector outages less allowed outages during active Floor period | G42: MWh | H42: IOt | P42: =INDEX(Inputs!$P$129:$BB$129,MATCH('Costs & Revenue'!P$5,Inputs!$P$5:$BB$5,0)) -> 0 | Q42: =INDEX(Inputs!$P$129:$BB$129,MATCH('Costs & Revenue'!Q$5,Inputs!$P$5:$BB$5,0)) -> 0 | R42: =INDEX(Inputs!$P$129:$BB$129,MATCH('Costs & Revenue'!R$5,Inputs!$P$5:$BB$5,0)) -> 0 | S42: =INDEX(Inputs!$P$129:$BB$129,MATCH('Costs & Revenue'!S$5,Inputs!$P$5:$BB$5,0)) -> 0 | T42: =INDEX(Inputs!$P$129:$BB$129,MATCH('Costs & Revenue'!T$5,Inputs!$P$5:$BB$5,0)) -> 0 | U42: =INDEX(Inputs!$P$129:$BB$129,MATCH('Costs & Revenue'!U$5,Inputs!$P$5:$BB$5,0)) -> 0 | V42: =INDEX(Inputs!$P$129:$BB$129,MATCH('Costs & Revenue'!V$5,Inputs!$P$5:$BB$5,0)) -> 0 | W42: =INDEX(Inputs!$P$129:$BB$129,MATCH('Costs & Revenue'!W$5,Inputs!$P$5:$BB$5,0)) -> 0 | X42: =INDEX(Inputs!$P$129:$BB$129,MATCH('Costs & Revenue'!X$5,Inputs!$P$5:$BB$5,0)) -> 0 | Y42: =INDEX(Inputs!$P$129:$BB$129,MATCH('Costs & Revenue'!Y$5,Inputs!$P$5:$BB$5,0)) -> 0 | Z42: =INDEX(Inputs!$P$129:$BB$129,MATCH('Costs & Revenue'!Z$5,Inputs!$P$5:$BB$5,0)) -> 0 | AA42: =INDEX(Inputs!$P$129:$BB$129,MATCH('Costs & Revenue'!AA$5,Inputs!$P$5:$BB$5,0)) -> 0 | AB42: =INDEX(Inputs!$P$129:$BB$129,MATCH('Costs & Revenue'!AB$5,Inputs!$P$5:$BB$5,0)) -> 0 | AC42: =INDEX(Inputs!$P$129:$BB$129,MATCH('Costs & Revenue'!AC$5,Inputs!$P$5:$BB$5,0)) -> 0 | AD42: =INDEX(Inputs!$P$129:$BB$129,MATCH('Costs & Revenue'!AD$5,Inputs!$P$5:$BB$5,0)) -> 0 | AE42: =INDEX(Inputs!$P$129:$BB$129,MATCH('Costs & Revenue'!AE$5,Inputs!$P$5:$BB$5,0)) -> 0 | AF42: =INDEX(Inputs!$P$129:$BB$129,MATCH('Costs & Revenue'!AF$5,Inputs!$P$5:$BB$5,0)) -> 0 | AG42: =INDEX(Inputs!$P$129:$BB$129,MATCH('Costs & Revenue'!AG$5,Inputs!$P$5:$BB$5,0)) -> 0 | AH42: =INDEX(Inputs!$P$129:$BB$129,MATCH('Costs & Revenue'!AH$5,Inputs!$P$5:$BB$5,0)) -> 0 | AI42: =INDEX(Inputs!$P$129:$BB$129,MATCH('Costs & Revenue'!AI$5,Inputs!$P$5:$BB$5,0)) -> 0 | AJ42: =INDEX(Inputs!$P$129:$BB$129,MATCH('Costs & Revenue'!AJ$5,Inputs!$P$5:$BB$5,0)) -> 0 | AK42: =INDEX(Inputs!$P$129:$BB$129,MATCH('Costs & Revenue'!AK$5,Inputs!$P$5:$BB$5,0)) -> 0 | AL42: =INDEX(Inputs!$P$129:$BB$129,MATCH('Costs & Revenue'!AL$5,Inputs!$P$5:$BB$5,0)) -> 0 | AM42: =INDEX(Inputs!$P$129:$BB$129,MATCH('Costs & Revenue'!AM$5,Inputs!$P$5:$BB$5,0)) -> 0 | AN42: =INDEX(Inputs!$P$129:$BB$129,MATCH('Costs & Revenue'!AN$5,Inputs!$P$5:$BB$5,0)) -> 0 | AO42: =INDEX(Inputs!$P$129:$BB$129,MATCH('Costs & Revenue'!AO$5,Inputs!$P$5:$BB$5,0)) -> 0 | AP42: =INDEX(Inputs!$P$129:$BB$129,MATCH('Costs & Revenue'!AP$5,Inputs!$P$5:$BB$5,0)) -> 0 | AQ42: =INDEX(Inputs!$P$129:$BB$129,MATCH('Costs & Revenue'!AQ$5,Inputs!$P$5:$BB$5,0)) -> 0 | AR42: =INDEX(Inputs!$P$129:$BB$129,MATCH('Costs & Revenue'!AR$5,Inputs!$P$5:$BB$5,0)) -> 0 | AS42: =INDEX(Inputs!$P$129:$BB$129,MATCH('Costs & Revenue'!AS$5,Inputs!$P$5:$BB$5,0)) -> 0 | AT42: =INDEX(Inputs!$P$129:$BB$129,MATCH('Costs & Revenue'!AT$5,Inputs!$P$5:$BB$5,0)) -> 0 | AU42: =INDEX(Inputs!$P$129:$BB$129,MATCH('Costs & Revenue'!AU$5,Inputs!$P$5:$BB$5,0)) -> 0 | AV42: =INDEX(Inputs!$P$129:$BB$129,MATCH('Costs & Revenue'!AV$5,Inputs!$P$5:$BB$5,0)) -> 0 | AW42: =INDEX(Inputs!$P$129:$BB$129,MATCH('Costs & Revenue'!AW$5,Inputs!$P$5:$BB$5,0)) -> 0 | AX42: =INDEX(Inputs!$P$129:$BB$129,MATCH('Costs & Revenue'!AX$5,Inputs!$P$5:$BB$5,0)) -> 0 | AY42: =INDEX(Inputs!$P$129:$BB$129,MATCH('Costs & Revenue'!AY$5,Inputs!$P$5:$BB$5,0)) -> 0 | AZ42: =INDEX(Inputs!$P$129:$BB$129,MATCH('Costs & Revenue'!AZ$5,Inputs!$P$5:$BB$5,0)) -> 0 | BA42: =INDEX(Inputs!$P$129:$BB$129,MATCH('Costs & Revenue'!BA$5,Inputs!$P$5:$BB$5,0)) -> 0 | BB42: =INDEX(Inputs!$P$129:$BB$129,MATCH('Costs & Revenue'!BB$5,Inputs!$P$5:$BB$5,0)) -> 0
E43: Outages associated with exceptional events | G43: MWh | P43: =INDEX(Inputs!$P$130:$BB$130,MATCH('Costs & Revenue'!P$5,Inputs!$P$5:$BB$5,0)) -> 0 | Q43: =INDEX(Inputs!$P$130:$BB$130,MATCH('Costs & Revenue'!Q$5,Inputs!$P$5:$BB$5,0)) -> 0 | R43: =INDEX(Inputs!$P$130:$BB$130,MATCH('Costs & Revenue'!R$5,Inputs!$P$5:$BB$5,0)) -> 0 | S43: =INDEX(Inputs!$P$130:$BB$130,MATCH('Costs & Revenue'!S$5,Inputs!$P$5:$BB$5,0)) -> 0 | T43: =INDEX(Inputs!$P$130:$BB$130,MATCH('Costs & Revenue'!T$5,Inputs!$P$5:$BB$5,0)) -> 0 | U43: =INDEX(Inputs!$P$130:$BB$130,MATCH('Costs & Revenue'!U$5,Inputs!$P$5:$BB$5,0)) -> 0 | V43: =INDEX(Inputs!$P$130:$BB$130,MATCH('Costs & Revenue'!V$5,Inputs!$P$5:$BB$5,0)) -> 0 | W43: =INDEX(Inputs!$P$130:$BB$130,MATCH('Costs & Revenue'!W$5,Inputs!$P$5:$BB$5,0)) -> 0 | X43: =INDEX(Inputs!$P$130:$BB$130,MATCH('Costs & Revenue'!X$5,Inputs!$P$5:$BB$5,0)) -> 0 | Y43: =INDEX(Inputs!$P$130:$BB$130,MATCH('Costs & Revenue'!Y$5,Inputs!$P$5:$BB$5,0)) -> 0 | Z43: =INDEX(Inputs!$P$130:$BB$130,MATCH('Costs & Revenue'!Z$5,Inputs!$P$5:$BB$5,0)) -> 0 | AA43: =INDEX(Inputs!$P$130:$BB$130,MATCH('Costs & Revenue'!AA$5,Inputs!$P$5:$BB$5,0)) -> 0 | AB43: =INDEX(Inputs!$P$130:$BB$130,MATCH('Costs & Revenue'!AB$5,Inputs!$P$5:$BB$5,0)) -> 0 | AC43: =INDEX(Inputs!$P$130:$BB$130,MATCH('Costs & Revenue'!AC$5,Inputs!$P$5:$BB$5,0)) -> 0 | AD43: =INDEX(Inputs!$P$130:$BB$130,MATCH('Costs & Revenue'!AD$5,Inputs!$P$5:$BB$5,0)) -> 0 | AE43: =INDEX(Inputs!$P$130:$BB$130,MATCH('Costs & Revenue'!AE$5,Inputs!$P$5:$BB$5,0)) -> 0 | AF43: =INDEX(Inputs!$P$130:$BB$130,MATCH('Costs & Revenue'!AF$5,Inputs!$P$5:$BB$5,0)) -> 0 | AG43: =INDEX(Inputs!$P$130:$BB$130,MATCH('Costs & Revenue'!AG$5,Inputs!$P$5:$BB$5,0)) -> 0 | AH43: =INDEX(Inputs!$P$130:$BB$130,MATCH('Costs & Revenue'!AH$5,Inputs!$P$5:$BB$5,0)) -> 0 | AI43: =INDEX(Inputs!$P$130:$BB$130,MATCH('Costs & Revenue'!AI$5,Inputs!$P$5:$BB$5,0)) -> 0 | AJ43: =INDEX(Inputs!$P$130:$BB$130,MATCH('Costs & Revenue'!AJ$5,Inputs!$P$5:$BB$5,0)) -> 0 | AK43: =INDEX(Inputs!$P$130:$BB$130,MATCH('Costs & Revenue'!AK$5,Inputs!$P$5:$BB$5,0)) -> 0 | AL43: =INDEX(Inputs!$P$130:$BB$130,MATCH('Costs & Revenue'!AL$5,Inputs!$P$5:$BB$5,0)) -> 0 | AM43: =INDEX(Inputs!$P$130:$BB$130,MATCH('Costs & Revenue'!AM$5,Inputs!$P$5:$BB$5,0)) -> 0 | AN43: =INDEX(Inputs!$P$130:$BB$130,MATCH('Costs & Revenue'!AN$5,Inputs!$P$5:$BB$5,0)) -> 0 | AO43: =INDEX(Inputs!$P$130:$BB$130,MATCH('Costs & Revenue'!AO$5,Inputs!$P$5:$BB$5,0)) -> 0 | AP43: =INDEX(Inputs!$P$130:$BB$130,MATCH('Costs & Revenue'!AP$5,Inputs!$P$5:$BB$5,0)) -> 0 | AQ43: =INDEX(Inputs!$P$130:$BB$130,MATCH('Costs & Revenue'!AQ$5,Inputs!$P$5:$BB$5,0)) -> 0 | AR43: =INDEX(Inputs!$P$130:$BB$130,MATCH('Costs & Revenue'!AR$5,Inputs!$P$5:$BB$5,0)) -> 0 | AS43: =INDEX(Inputs!$P$130:$BB$130,MATCH('Costs & Revenue'!AS$5,Inputs!$P$5:$BB$5,0)) -> 0 | AT43: =INDEX(Inputs!$P$130:$BB$130,MATCH('Costs & Revenue'!AT$5,Inputs!$P$5:$BB$5,0)) -> 0 | AU43: =INDEX(Inputs!$P$130:$BB$130,MATCH('Costs & Revenue'!AU$5,Inputs!$P$5:$BB$5,0)) -> 0 | AV43: =INDEX(Inputs!$P$130:$BB$130,MATCH('Costs & Revenue'!AV$5,Inputs!$P$5:$BB$5,0)) -> 0 | AW43: =INDEX(Inputs!$P$130:$BB$130,MATCH('Costs & Revenue'!AW$5,Inputs!$P$5:$BB$5,0)) -> 0 | AX43: =INDEX(Inputs!$P$130:$BB$130,MATCH('Costs & Revenue'!AX$5,Inputs!$P$5:$BB$5,0)) -> 0 | AY43: =INDEX(Inputs!$P$130:$BB$130,MATCH('Costs & Revenue'!AY$5,Inputs!$P$5:$BB$5,0)) -> 0 | AZ43: =INDEX(Inputs!$P$130:$BB$130,MATCH('Costs & Revenue'!AZ$5,Inputs!$P$5:$BB$5,0)) -> 0 | BA43: =INDEX(Inputs!$P$130:$BB$130,MATCH('Costs & Revenue'!BA$5,Inputs!$P$5:$BB$5,0)) -> 0 | BB43: =INDEX(Inputs!$P$130:$BB$130,MATCH('Costs & Revenue'!BB$5,Inputs!$P$5:$BB$5,0)) -> 0
E44: Actual availability for Floor | G44: MWh | H44: AAFt (AAt) | P44: =P41-P42+P43 -> 8040000 | Q44: 8766000 | R44: 8766000 | S44: 8766000 | T44: 8766000 | U44: 8766000 | V44: 8766000 | W44: 8766000 | X44: 8766000 | Y44: 8766000 | Z44: =Z41-Z42+Z43 -> 8766000 | AA44: 8766000 | AB44: =AB41-AB42+AB43 -> 8766000 | AC44: 8766000 | AD44: 8766000 | AE44: 8766000 | AF44: 8766000 | AG44: 8766000 | AH44: 8766000 | AI44: 8766000 | AJ44: 8766000 | AK44: 8766000 | AL44: 8766000 | AM44: 8766000 | AN44: 9492000 | AO44: 0 | AP44: 0 | AQ44: 0 | AR44: 0 | AS44: 0 | AT44: 0 | AU44: 0 | AV44: 0 | AW44: 0 | AX44: 0 | AY44: 0 | AZ44: 0 | BA44: 0 | BB44: 0
E45: Minimum availability target | G45: MWh | H45: MAT | P45: =$I$39*P41 -> 6432000 | Q45: =$I$39*Q41 -> 7012800 | R45: 7012800 | S45: 7012800 | T45: 7012800 | U45: 7012800 | V45: 7012800 | W45: 7012800 | X45: 7012800 | Y45: 7012800 | Z45: 7012800 | AA45: 7012800 | AB45: 7012800 | AC45: 7012800 | AD45: 7012800 | AE45: 7012800 | AF45: 7012800 | AG45: 7012800 | AH45: 7012800 | AI45: 7012800 | AJ45: 7012800 | AK45: 7012800 | AL45: 7012800 | AM45: 7012800 | AN45: 7593600 | AO45: 0 | AP45: 0 | AQ45: 0 | AR45: 0 | AS45: 0 | AT45: 0 | AU45: 0 | AV45: 0 | AW45: 0 | AX45: 0 | AY45: 0 | AZ45: 0 | BA45: 0 | BB45: 0
E46: Availability performance at Floor | G46: scalar | H46: APFt | P46: =IF(P45=0,0,P44/P45) -> 1.25 | Q46: =IF(Q45=0,0,Q44/Q45) -> 1.25 | R46: 1.25 | S46: 1.25 | T46: 1.25 | U46: 1.25 | V46: 1.25 | W46: 1.25 | X46: 1.25 | Y46: 1.25 | Z46: =IF(Z45=0,0,Z44/Z45) -> 1.25 | AA46: 1.25 | AB46: 1.25 | AC46: =IF(AC45=0,0,AC44/AC45) -> 1.25 | AD46: =IF(AD45=0,0,AD44/AD45) -> 1.25 | AE46: =IF(AE45=0,0,AE44/AE45) -> 1.25 | AF46: =IF(AF45=0,0,AF44/AF45) -> 1.25 | AG46: =IF(AG45=0,0,AG44/AG45) -> 1.25 | AH46: =IF(AH45=0,0,AH44/AH45) -> 1.25 | AI46: =IF(AI45=0,0,AI44/AI45) -> 1.25 | AJ46: =IF(AJ45=0,0,AJ44/AJ45) -> 1.25 | AK46: =IF(AK45=0,0,AK44/AK45) -> 1.25 | AL46: =IF(AL45=0,0,AL44/AL45) -> 1.25 | AM46: =IF(AM45=0,0,AM44/AM45) -> 1.25 | AN46: =IF(AN45=0,0,AN44/AN45) -> 1.25 | AO46: =IF(AO45=0,0,AO44/AO45) -> 0 | AP46: =IF(AP45=0,0,AP44/AP45) -> 0 | AQ46: =IF(AQ45=0,0,AQ44/AQ45) -> 0 | AR46: =IF(AR45=0,0,AR44/AR45) -> 0 | AS46: =IF(AS45=0,0,AS44/AS45) -> 0 | AT46: =IF(AT45=0,0,AT44/AT45) -> 0 | AU46: =IF(AU45=0,0,AU44/AU45) -> 0 | AV46: =IF(AV45=0,0,AV44/AV45) -> 0 | AW46: =IF(AW45=0,0,AW44/AW45) -> 0 | AX46: =IF(AX45=0,0,AX44/AX45) -> 0 | AY46: =IF(AY45=0,0,AY44/AY45) -> 0 | AZ46: =IF(AZ45=0,0,AZ44/AZ45) -> 0 | BA46: =IF(BA45=0,0,BA44/BA45) -> 0 | BB46: =IF(BB45=0,0,BB44/BB45) -> 0
E48: Floor availability incentive rate | G48: =G46 -> scalar | H48: AIFt | P48: =IF(P46<1,0,1)*P17 -> 1 | Q48: =IF(Q46<1,0,1)*Q17 -> 1 | R48: 1 | S48: 1 | T48: 1 | U48: 1 | V48: 1 | W48: 1 | X48: 1 | Y48: 1 | Z48: 1 | AA48: 1 | AB48: 1 | AC48: 1 | AD48: 1 | AE48: 1 | AF48: 1 | AG48: 1 | AH48: 1 | AI48: 1 | AJ48: 1 | AK48: 1 | AL48: 1 | AM48: 1 | AN48: 1 | AO48: 0 | AP48: 0 | AQ48: 0 | AR48: 0 | AS48: 0 | AT48: 0 | AU48: 0 | AV48: 0 | AW48: 0 | AX48: 0 | AY48: 0 | AZ48: 0 | BA48: 0 | BB48: 0
C50: Cap and Floor (post-availability incentive)
E52: Cap (post-availability incentive) | G52: £m nominal prices | H52: CLt | P52: =P11 * P35 -> 82.23443211 | Q52: =Q11 * Q35 -> 93.08521343 | R52: 95.4117733 | S52: 97.79881004 | T52: 100.2479515 | U52: 102.7608708 | V52: 105.3392873 | W52: 107.9849681 | X52: 110.6997294 | Y52: 113.4854377 | Z52: 116.3440117 | AA52: 117.4077839 | AB52: 120.3695614 | AC52: 123.4103284 | AD52: 126.530912 | AE52: 129.7334786 | AF52: 133.020255 | AG52: 136.3935301 | AH52: 139.8556568 | AI52: 144.8167942 | AJ52: 149.5200093 | AK52: 153.3261935 | AL52: 155.1372486 | AM52: 157.5780415 | AN52: 174.9845429 | AO52: 0 | AP52: 0 | AQ52: 0 | AR52: 0 | AS52: 0 | AT52: 0 | AU52: 0 | AV52: 0 | AW52: 0 | AX52: 0 | AY52: 0 | AZ52: 0 | BA52: 0 | BB52: 0
E53: Floor (post-availability incentive) | G53: £m nominal prices | H53: FLt | P53: =P12 * P48 -> 45.9340051 | Q53: =Q12 * Q48 -> 51.99496803 | R53: 53.29452358 | S53: 54.62785993 | T53: 55.99588639 | U53: 57.39953745 | V53: 58.83977353 | W53: 60.3175817 | X53: 61.83397641 | Y53: 63.3900003 | Z53: 64.98672501 | AA53: 64.70833202 | AB53: 66.34006873 | AC53: 68.01594666 | AD53: 69.73581445 | AE53: 71.50086606 | AF53: 73.31232877 | AG53: 75.17146409 | AH53: 77.07956877 | AI53: 80.64032199 | AJ53: 83.85245309 | AK53: 85.98700274 | AL53: 86.00526219 | AM53: 86.62752267 | AN53: 96.19663572 | AO53: 0 | AP53: 0 | AQ53: 0 | AR53: 0 | AS53: 0 | AT53: 0 | AU53: 0 | AV53: 0 | AW53: 0 | AX53: 0 | AY53: 0 | AZ53: 0 | BA53: 0 | BB53: 0
B55: End of sheet
G117: scalar
G118: scalar

Sheet Assessment
A1: Assessment | H1: Licence
E2: Parameter | G2: Units | H2: Terminology | I2: Constant | O2: Annual values
E3: Year commencing | O3: =INDEX(Inputs!$O3:$BB3,MATCH('Costs & Revenue'!O$5,Inputs!$O$5:$BB$5,0)) -> 2018-01-01 | P3: =INDEX(Inputs!$O3:$BB3,MATCH('Costs & Revenue'!P$5,Inputs!$O$5:$BB$5,0)) -> 2019-01-01 | Q3: =INDEX(Inputs!$O3:$BB3,MATCH('Costs & Revenue'!Q$5,Inputs!$O$5:$BB$5,0)) -> 2020-01-01 | R3: =INDEX(Inputs!$O3:$BB3,MATCH('Costs & Revenue'!R$5,Inputs!$O$5:$BB$5,0)) -> 2021-01-01 | S3: =INDEX(Inputs!$O3:$BB3,MATCH('Costs & Revenue'!S$5,Inputs!$O$5:$BB$5,0)) -> 2022-01-01 | T3: =INDEX(Inputs!$O3:$BB3,MATCH('Costs & Revenue'!T$5,Inputs!$O$5:$BB$5,0)) -> 2023-01-01 | U3: =INDEX(Inputs!$O3:$BB3,MATCH('Costs & Revenue'!U$5,Inputs!$O$5:$BB$5,0)) -> 2024-01-01 | V3: =INDEX(Inputs!$O3:$BB3,MATCH('Costs & Revenue'!V$5,Inputs!$O$5:$BB$5,0)) -> 2025-01-01 | W3: =INDEX(Inputs!$O3:$BB3,MATCH('Costs & Revenue'!W$5,Inputs!$O$5:$BB$5,0)) -> 2026-01-01 | X3: =INDEX(Inputs!$O3:$BB3,MATCH('Costs & Revenue'!X$5,Inputs!$O$5:$BB$5,0)) -> 2027-01-01 | Y3: =INDEX(Inputs!$O3:$BB3,MATCH('Costs & Revenue'!Y$5,Inputs!$O$5:$BB$5,0)) -> 2028-01-01 | Z3: =INDEX(Inputs!$O3:$BB3,MATCH('Costs & Revenue'!Z$5,Inputs!$O$5:$BB$5,0)) -> 2029-01-01 | AA3: =INDEX(Inputs!$O3:$BB3,MATCH('Costs & Revenue'!AA$5,Inputs!$O$5:$BB$5,0)) -> 2030-01-01 | AB3: =INDEX(Inputs!$O3:$BB3,MATCH('Costs & Revenue'!AB$5,Inputs!$O$5:$BB$5,0)) -> 2031-01-01 | AC3: =INDEX(Inputs!$O3:$BB3,MATCH('Costs & Revenue'!AC$5,Inputs!$O$5:$BB$5,0)) -> 2032-01-01 | AD3: =INDEX(Inputs!$O3:$BB3,MATCH('Costs & Revenue'!AD$5,Inputs!$O$5:$BB$5,0)) -> 2033-01-01 | AE3: =INDEX(Inputs!$O3:$BB3,MATCH('Costs & Revenue'!AE$5,Inputs!$O$5:$BB$5,0)) -> 2034-01-01 | AF3: =INDEX(Inputs!$O3:$BB3,MATCH('Costs & Revenue'!AF$5,Inputs!$O$5:$BB$5,0)) -> 2035-01-01 | AG3: =INDEX(Inputs!$O3:$BB3,MATCH('Costs & Revenue'!AG$5,Inputs!$O$5:$BB$5,0)) -> 2036-01-01 | AH3: =INDEX(Inputs!$O3:$BB3,MATCH('Costs & Revenue'!AH$5,Inputs!$O$5:$BB$5,0)) -> 2037-01-01 | AI3: =INDEX(Inputs!$O3:$BB3,MATCH('Costs & Revenue'!AI$5,Inputs!$O$5:$BB$5,0)) -> 2038-01-01 | AJ3: =INDEX(Inputs!$O3:$BB3,MATCH('Costs & Revenue'!AJ$5,Inputs!$O$5:$BB$5,0)) -> 2039-01-01 | AK3: =INDEX(Inputs!$O3:$BB3,MATCH('Costs & Revenue'!AK$5,Inputs!$O$5:$BB$5,0)) -> 2040-01-01 | AL3: =INDEX(Inputs!$O3:$BB3,MATCH('Costs & Revenue'!AL$5,Inputs!$O$5:$BB$5,0)) -> 2041-01-01 | AM3: =INDEX(Inputs!$O3:$BB3,MATCH('Costs & Revenue'!AM$5,Inputs!$O$5:$BB$5,0)) -> 2042-01-01 | AN3: =INDEX(Inputs!$O3:$BB3,MATCH('Costs & Revenue'!AN$5,Inputs!$O$5:$BB$5,0)) -> 2043-01-01 | AO3: =INDEX(Inputs!$O3:$BB3,MATCH('Costs & Revenue'!AO$5,Inputs!$O$5:$BB$5,0)) -> 2044-01-01 | AP3: =INDEX(Inputs!$O3:$BB3,MATCH('Costs & Revenue'!AP$5,Inputs!$O$5:$BB$5,0)) -> 2045-01-01 | AQ3: =INDEX(Inputs!$O3:$BB3,MATCH('Costs & Revenue'!AQ$5,Inputs!$O$5:$BB$5,0)) -> 2046-01-01 | AR3: =INDEX(Inputs!$O3:$BB3,MATCH('Costs & Revenue'!AR$5,Inputs!$O$5:$BB$5,0)) -> 2047-01-01 | AS3: =INDEX(Inputs!$O3:$BB3,MATCH('Costs & Revenue'!AS$5,Inputs!$O$5:$BB$5,0)) -> 2048-01-01 | AT3: =INDEX(Inputs!$O3:$BB3,MATCH('Costs & Revenue'!AT$5,Inputs!$O$5:$BB$5,0)) -> 2049-01-01 | AU3: =INDEX(Inputs!$O3:$BB3,MATCH('Costs & Revenue'!AU$5,Inputs!$O$5:$BB$5,0)) -> 2050-01-01 | AV3: =INDEX(Inputs!$O3:$BB3,MATCH('Costs & Revenue'!AV$5,Inputs!$O$5:$BB$5,0)) -> 2051-01-01 | AW3: =INDEX(Inputs!$O3:$BB3,MATCH('Costs & Revenue'!AW$5,Inputs!$O$5:$BB$5,0)) -> 2052-01-01 | AX3: =INDEX(Inputs!$O3:$BB3,MATCH('Costs & Revenue'!AX$5,Inputs!$O$5:$BB$5,0)) -> 2053-01-01 | AY3: =INDEX(Inputs!$O3:$BB3,MATCH('Costs & Revenue'!AY$5,Inputs!$O$5:$BB$5,0)) -> 2054-01-01 | AZ3: =INDEX(Inputs!$O3:$BB3,MATCH('Costs & Revenue'!AZ$5,Inputs!$O$5:$BB$5,0)) -> 2055-01-01 | BA3: =INDEX(Inputs!$O3:$BB3,MATCH('Costs & Revenue'!BA$5,Inputs!$O$5:$BB$5,0)) -> 2056-01-01 | BB3: =INDEX(Inputs!$O3:$BB3,MATCH('Costs & Revenue'!BB$5,Inputs!$O$5:$BB$5,0)) -> 2057-01-01
E4: Year ending | O4: =INDEX(Inputs!$O4:$BB4,MATCH('Costs & Revenue'!O$5,Inputs!$O$5:$BB$5,0)) -> 2018-12-31 | P4: =INDEX(Inputs!$O4:$BB4,MATCH('Costs & Revenue'!P$5,Inputs!$O$5:$BB$5,0)) -> 2019-12-31 | Q4: =INDEX(Inputs!$O4:$BB4,MATCH('Costs & Revenue'!Q$5,Inputs!$O$5:$BB$5,0)) -> 2020-12-31 | R4: =INDEX(Inputs!$O4:$BB4,MATCH('Costs & Revenue'!R$5,Inputs!$O$5:$BB$5,0)) -> 2021-12-31 | S4: =INDEX(Inputs!$O4:$BB4,MATCH('Costs & Revenue'!S$5,Inputs!$O$5:$BB$5,0)) -> 2022-12-31 | T4: =INDEX(Inputs!$O4:$BB4,MATCH('Costs & Revenue'!T$5,Inputs!$O$5:$BB$5,0)) -> 2023-12-31 | U4: =INDEX(Inputs!$O4:$BB4,MATCH('Costs & Revenue'!U$5,Inputs!$O$5:$BB$5,0)) -> 2024-12-31 | V4: =INDEX(Inputs!$O4:$BB4,MATCH('Costs & Revenue'!V$5,Inputs!$O$5:$BB$5,0)) -> 2025-12-31 | W4: =INDEX(Inputs!$O4:$BB4,MATCH('Costs & Revenue'!W$5,Inputs!$O$5:$BB$5,0)) -> 2026-12-31 | X4: =INDEX(Inputs!$O4:$BB4,MATCH('Costs & Revenue'!X$5,Inputs!$O$5:$BB$5,0)) -> 2027-12-31 | Y4: =INDEX(Inputs!$O4:$BB4,MATCH('Costs & Revenue'!Y$5,Inputs!$O$5:$BB$5,0)) -> 2028-12-31 | Z4: =INDEX(Inputs!$O4:$BB4,MATCH('Costs & Revenue'!Z$5,Inputs!$O$5:$BB$5,0)) -> 2029-12-31 | AA4: =INDEX(Inputs!$O4:$BB4,MATCH('Costs & Revenue'!AA$5,Inputs!$O$5:$BB$5,0)) -> 2030-12-31 | AB4: =INDEX(Inputs!$O4:$BB4,MATCH('Costs & Revenue'!AB$5,Inputs!$O$5:$BB$5,0)) -> 2031-12-31 | AC4: =INDEX(Inputs!$O4:$BB4,MATCH('Costs & Revenue'!AC$5,Inputs!$O$5:$BB$5,0)) -> 2032-12-31 | AD4: =INDEX(Inputs!$O4:$BB4,MATCH('Costs & Revenue'!AD$5,Inputs!$O$5:$BB$5,0)) -> 2033-12-31 | AE4: =INDEX(Inputs!$O4:$BB4,MATCH('Costs & Revenue'!AE$5,Inputs!$O$5:$BB$5,0)) -> 2034-12-31 | AF4: =INDEX(Inputs!$O4:$BB4,MATCH('Costs & Revenue'!AF$5,Inputs!$O$5:$BB$5,0)) -> 2035-12-31 | AG4: =INDEX(Inputs!$O4:$BB4,MATCH('Costs & Revenue'!AG$5,Inputs!$O$5:$BB$5,0)) -> 2036-12-31 | AH4: =INDEX(Inputs!$O4:$BB4,MATCH('Costs & Revenue'!AH$5,Inputs!$O$5:$BB$5,0)) -> 2037-12-31 | AI4: =INDEX(Inputs!$O4:$BB4,MATCH('Costs & Revenue'!AI$5,Inputs!$O$5:$BB$5,0)) -> 2038-12-31 | AJ4: =INDEX(Inputs!$O4:$BB4,MATCH('Costs & Revenue'!AJ$5,Inputs!$O$5:$BB$5,0)) -> 2039-12-31 | AK4: =INDEX(Inputs!$O4:$BB4,MATCH('Costs & Revenue'!AK$5,Inputs!$O$5:$BB$5,0)) -> 2040-12-31 | AL4: =INDEX(Inputs!$O4:$BB4,MATCH('Costs & Revenue'!AL$5,Inputs!$O$5:$BB$5,0)) -> 2041-12-31 | AM4: =INDEX(Inputs!$O4:$BB4,MATCH('Costs & Revenue'!AM$5,Inputs!$O$5:$BB$5,0)) -> 2042-12-31 | AN4: =INDEX(Inputs!$O4:$BB4,MATCH('Costs & Revenue'!AN$5,Inputs!$O$5:$BB$5,0)) -> 2043-12-31 | AO4: =INDEX(Inputs!$O4:$BB4,MATCH('Costs & Revenue'!AO$5,Inputs!$O$5:$BB$5,0)) -> 2044-12-31 | AP4: =INDEX(Inputs!$O4:$BB4,MATCH('Costs & Revenue'!AP$5,Inputs!$O$5:$BB$5,0)) -> 2045-12-31 | AQ4: =INDEX(Inputs!$O4:$BB4,MATCH('Costs & Revenue'!AQ$5,Inputs!$O$5:$BB$5,0)) -> 2046-12-31 | AR4: =INDEX(Inputs!$O4:$BB4,MATCH('Costs & Revenue'!AR$5,Inputs!$O$5:$BB$5,0)) -> 2047-12-31 | AS4: =INDEX(Inputs!$O4:$BB4,MATCH('Costs & Revenue'!AS$5,Inputs!$O$5:$BB$5,0)) -> 2048-12-31 | AT4: =INDEX(Inputs!$O4:$BB4,MATCH('Costs & Revenue'!AT$5,Inputs!$O$5:$BB$5,0)) -> 2049-12-31 | AU4: =INDEX(Inputs!$O4:$BB4,MATCH('Costs & Revenue'!AU$5,Inputs!$O$5:$BB$5,0)) -> 2050-12-31 | AV4: =INDEX(Inputs!$O4:$BB4,MATCH('Costs & Revenue'!AV$5,Inputs!$O$5:$BB$5,0)) -> 2051-12-31 | AW4: =INDEX(Inputs!$O4:$BB4,MATCH('Costs & Revenue'!AW$5,Inputs!$O$5:$BB$5,0)) -> 2052-12-31 | AX4: =INDEX(Inputs!$O4:$BB4,MATCH('Costs & Revenue'!AX$5,Inputs!$O$5:$BB$5,0)) -> 2053-12-31 | AY4: =INDEX(Inputs!$O4:$BB4,MATCH('Costs & Revenue'!AY$5,Inputs!$O$5:$BB$5,0)) -> 2054-12-31 | AZ4: =INDEX(Inputs!$O4:$BB4,MATCH('Costs & Revenue'!AZ$5,Inputs!$O$5:$BB$5,0)) -> 2055-12-31 | BA4: =INDEX(Inputs!$O4:$BB4,MATCH('Costs & Revenue'!BA$5,Inputs!$O$5:$BB$5,0)) -> 2056-12-31 | BB4: =INDEX(Inputs!$O4:$BB4,MATCH('Costs & Revenue'!BB$5,Inputs!$O$5:$BB$5,0)) -> 2057-12-31
E5: Operational year | O5: =Inputs!O5 -> 0 | P5: =Inputs!P5 -> 1 | Q5: =Inputs!Q5 -> 2 | R5: =Inputs!R5 -> 3 | S5: =Inputs!S5 -> 4 | T5: =Inputs!T5 -> 5 | U5: =Inputs!U5 -> 6 | V5: =Inputs!V5 -> 7 | W5: =Inputs!W5 -> 8 | X5: =Inputs!X5 -> 9 | Y5: =Inputs!Y5 -> 10 | Z5: =Inputs!Z5 -> 11 | AA5: =Inputs!AA5 -> 12 | AB5: =Inputs!AB5 -> 13 | AC5: =Inputs!AC5 -> 14 | AD5: =Inputs!AD5 -> 15 | AE5: =Inputs!AE5 -> 16 | AF5: =Inputs!AF5 -> 17 | AG5: =Inputs!AG5 -> 18 | AH5: =Inputs!AH5 -> 19 | AI5: =Inputs!AI5 -> 20 | AJ5: =Inputs!AJ5 -> 21 | AK5: =Inputs!AK5 -> 22 | AL5: =Inputs!AL5 -> 23 | AM5: =Inputs!AM5 -> 24 | AN5: =Inputs!AN5 -> 25 | AO5: =Inputs!AO5 -> 26 | AP5: =Inputs!AP5 -> 27 | AQ5: =Inputs!AQ5 -> 28 | AR5: =Inputs!AR5 -> 29 | AS5: =Inputs!AS5 -> 30 | AT5: =Inputs!AT5 -> 31 | AU5: =Inputs!AU5 -> 32 | AV5: =Inputs!AV5 -> 33 | AW5: =Inputs!AW5 -> 34 | AX5: =Inputs!AX5 -> 35 | AY5: =Inputs!AY5 -> 36 | AZ5: =Inputs!AZ5 -> 37 | BA5: =Inputs!BA5 -> 38 | BB5: =Inputs!BB5 -> 39
B7: Revenue assessment
C9: NPV uplift factors
E11: PPPI index | G11: scalar | H11: =Indexation!H11 -> PPPIt | O11: =INDEX(Inputs!$O$145:$BB$145,MATCH(O5,Inputs!$O$5:$BB$5,0)) -> 1.12045872 | P11: =INDEX(Inputs!$O$145:$BB$145,MATCH(P5,Inputs!$O$5:$BB$5,0)) -> 1.141550857 | Q11: =INDEX(Inputs!$O$145:$BB$145,MATCH(Q5,Inputs!$O$5:$BB$5,0)) -> 1.185159625 | R11: =INDEX(Inputs!$O$145:$BB$145,MATCH(R5,Inputs!$O$5:$BB$5,0)) -> 1.214781353 | S11: =INDEX(Inputs!$O$145:$BB$145,MATCH(S5,Inputs!$O$5:$BB$5,0)) -> 1.245173071 | T11: =INDEX(Inputs!$O$145:$BB$145,MATCH(T5,Inputs!$O$5:$BB$5,0)) -> 1.276355506 | U11: =INDEX(Inputs!$O$145:$BB$145,MATCH(U5,Inputs!$O$5:$BB$5,0)) -> 1.308349959 | V11: =INDEX(Inputs!$O$145:$BB$145,MATCH(V5,Inputs!$O$5:$BB$5,0)) -> 1.341178322 | W11: =INDEX(Inputs!$O$145:$BB$145,MATCH(W5,Inputs!$O$5:$BB$5,0)) -> 1.374863092 | X11: =INDEX(Inputs!$O$145:$BB$145,MATCH(X5,Inputs!$O$5:$BB$5,0)) -> 1.409427394 | Y11: =INDEX(Inputs!$O$145:$BB$145,MATCH(Y5,Inputs!$O$5:$BB$5,0)) -> 1.444894994 | Z11: =INDEX(Inputs!$O$145:$BB$145,MATCH(Z5,Inputs!$O$5:$BB$5,0)) -> 1.481290317 | AA11: =INDEX(Inputs!$O$145:$BB$145,MATCH(AA5,Inputs!$O$5:$BB$5,0)) -> 1.518638469 | AB11: =INDEX(Inputs!$O$145:$BB$145,MATCH(AB5,Inputs!$O$5:$BB$5,0)) -> 1.556965254 | AC11: =INDEX(Inputs!$O$145:$BB$145,MATCH(AC5,Inputs!$O$5:$BB$5,0)) -> 1.596297196 | AD11: =INDEX(Inputs!$O$145:$BB$145,MATCH(AD5,Inputs!$O$5:$BB$5,0)) -> 1.636661556 | AE11: =INDEX(Inputs!$O$145:$BB$145,MATCH(AE5,Inputs!$O$5:$BB$5,0)) -> 1.678086355 | AF11: =INDEX(Inputs!$O$145:$BB$145,MATCH(AF5,Inputs!$O$5:$BB$5,0)) -> 1.720600397 | AG11: =INDEX(Inputs!$O$145:$BB$145,MATCH(AG5,Inputs!$O$5:$BB$5,0)) -> 1.76423329 | AH11: =INDEX(Inputs!$O$145:$BB$145,MATCH(AH5,Inputs!$O$5:$BB$5,0)) -> 1.809015467 | AI11: =INDEX(Inputs!$O$145:$BB$145,MATCH(AI5,Inputs!$O$5:$BB$5,0)) -> 1.854978213 | AJ11: =INDEX(Inputs!$O$145:$BB$145,MATCH(AJ5,Inputs!$O$5:$BB$5,0)) -> 1.902153687 | AK11: =INDEX(Inputs!$O$145:$BB$145,MATCH(AK5,Inputs!$O$5:$BB$5,0)) -> 1.950574947 | AL11: =INDEX(Inputs!$O$145:$BB$145,MATCH(AL5,Inputs!$O$5:$BB$5,0)) -> 2.000275979 | AM11: =INDEX(Inputs!$O$145:$BB$145,MATCH(AM5,Inputs!$O$5:$BB$5,0)) -> 2.051291717 | AN11: =INDEX(Inputs!$O$145:$BB$145,MATCH(AN5,Inputs!$O$5:$BB$5,0)) -> 2.103658076 | AO11: =INDEX(Inputs!$O$145:$BB$145,MATCH(AO5,Inputs!$O$5:$BB$5,0)) -> 2.157411979 | AP11: =INDEX(Inputs!$O$145:$BB$145,MATCH(AP5,Inputs!$O$5:$BB$5,0)) -> 2.212591381 | AQ11: =INDEX(Inputs!$O$145:$BB$145,MATCH(AQ5,Inputs!$O$5:$BB$5,0)) -> 2.269235307 | AR11: =INDEX(Inputs!$O$145:$BB$145,MATCH(AR5,Inputs!$O$5:$BB$5,0)) -> 2.327383874 | AS11: =INDEX(Inputs!$O$145:$BB$145,MATCH(AS5,Inputs!$O$5:$BB$5,0)) -> 2.387078328 | AT11: =INDEX(Inputs!$O$145:$BB$145,MATCH(AT5,Inputs!$O$5:$BB$5,0)) -> 2.448361075 | AU11: =INDEX(Inputs!$O$145:$BB$145,MATCH(AU5,Inputs!$O$5:$BB$5,0)) -> 2.511275712 | AV11: =INDEX(Inputs!$O$145:$BB$145,MATCH(AV5,Inputs!$O$5:$BB$5,0)) -> 2.575867064 | AW11: =INDEX(Inputs!$O$145:$BB$145,MATCH(AW5,Inputs!$O$5:$BB$5,0)) -> 2.642181218 | AX11: =INDEX(Inputs!$O$145:$BB$145,MATCH(AX5,Inputs!$O$5:$BB$5,0)) -> 2.71026556 | AY11: =INDEX(Inputs!$O$145:$BB$145,MATCH(AY5,Inputs!$O$5:$BB$5,0)) -> 2.78016881 | AZ11: =INDEX(Inputs!$O$145:$BB$145,MATCH(AZ5,Inputs!$O$5:$BB$5,0)) -> 2.851941063 | BA11: =INDEX(Inputs!$O$145:$BB$145,MATCH(BA5,Inputs!$O$5:$BB$5,0)) -> 2.925633828 | BB11: =INDEX(Inputs!$O$145:$BB$145,MATCH(BB5,Inputs!$O$5:$BB$5,0)) -> 3.001300066
E12: PPPI index change | G12: annual % | H12: CPPPIt | P12: =P11/O11-1 -> 0.01882455465 | Q12: =Q11/P11-1 -> 0.03820133651 | R12: 0.0249938716 | S12: 0.02501826195 | T12: 0.02504265144 | U12: 0.02506703889 | V12: 0.02509142316 | W12: 0.02511580307 | X12: 0.02514017748 | Y12: 0.02516454522 | Z12: =Z11/Y11-1 -> 0.02518890514 | AA12: =AA11/Z11-1 -> 0.02521325608 | AB12: 0.02523759689 | AC12: 0.02526192642 | AD12: 0.02528624352 | AE12: 0.02531054704 | AF12: 0.02533483583 | AG12: 0.02535910877 | AH12: 0.0253833647 | AI12: 0.02540760249 | AJ12: 0.02543182102 | AK12: 0.02545601915 | AL12: 0.02548019575 | AM12: 0.02550434972 | AN12: 0.02552847993 | AO12: 0.02555258526 | AP12: 0.02557666462 | AQ12: 0.0256007169 | AR12: 0.02562474101 | AS12: 0.02564873584 | AT12: 0.02567270033 | AU12: 0.02569663338 | AV12: 0.02572053391 | AW12: 0.02574440087 | AX12: 0.02576823319 | AY12: 0.02579202981 | AZ12: 0.02581578969 | BA12: 0.02583951177 | BB12: 0.02586319503
E13: =Inputs!E42 -> Operational discount rate | G13: =Inputs!G42 -> real annual % | H13: ODR | I13: =Inputs!I42 -> 0.0388
E14: Operational discount rate | G14: nominal % | H14: NODRt | L14: 0 | M14: 0 | N14: 0 | O14: 0 | P14: =(1+$I13)*(1+P12)-1 -> 0.05835494738 | Q14: 0.07848354836 | R14: 0.06476363382 | S14: 0.06478897052 | T14: 0.06481430631 | U14: 0.06483964 | V14: 0.06486497037 | W14: 0.06489029623 | X14: 0.06491561636 | Y14: 0.06494092957 | Z14: =(1+$I13)*(1+Z12)-1 -> 0.06496623466 | AA14: =(1+$I13)*(1+AA12)-1 -> 0.06499153041 | AB14: 0.06501681565 | AC14: 0.06504208916 | AD14: 0.06506734976 | AE14: 0.06509259626 | AF14: 0.06511782746 | AG14: 0.06514304219 | AH14: 0.06516823925 | AI14: 0.06519341747 | AJ14: 0.06521857568 | AK14: 0.06524371269 | AL14: 0.06526882735 | AM14: 0.06529391849 | AN14: 0.06531898495 | AO14: 0.06534402557 | AP14: 0.06536903921 | AQ14: 0.06539402472 | AR14: 0.06541898096 | AS14: 0.06544390679 | AT14: 0.0654688011 | AU14: 0.06549366275 | AV14: 0.06551849063 | AW14: 0.06554328363 | AX14: 0.06556804064 | AY14: 0.06559276057 | AZ14: 0.06561744233 | BA14: 0.06564208483 | BB14: 0.06566668699
E16: Five-year uplift factor | G16: scalar | H16: UFt1 | P16: =IF($I$47<5,0,IF(OR(P$5<1,P$5>Inputs!$I$75),0,IF(OR(MOD(P$5,$I$47)=1,MOD(P$5,$I$47)=2,MOD(P$5,$I$47)=3,MOD(P$5,$I$47)=4),0,(1+P$14)*(1+O$14)*(1+N$14)*(1+M$14)))) -> 0 | Q16: =IF($I$47<5,0,IF(OR(Q$5<1,Q$5>Inputs!$I$75),0,IF(OR(MOD(Q$5,$I$47)=1,MOD(Q$5,$I$47)=2,MOD(Q$5,$I$47)=3,MOD(Q$5,$I$47)=4),0,(1+Q$14)*(1+P$14)*(1+O$14)*(1+N$14)))) -> 0 | R16: =IF($I$47<5,0,IF(OR(R$5<1,R$5>Inputs!$I$75),0,IF(OR(MOD(R$5,$I$47)=1,MOD(R$5,$I$47)=2,MOD(R$5,$I$47)=3,MOD(R$5,$I$47)=4),0,(1+R$14)*(1+Q$14)*(1+P$14)*(1+O$14)))) -> 0 | S16: =IF($I$47<5,0,IF(OR(S$5<1,S$5>Inputs!$I$75),0,IF(OR(MOD(S$5,$I$47)=1,MOD(S$5,$I$47)=2,MOD(S$5,$I$47)=3,MOD(S$5,$I$47)=4),0,(1+S$14)*(1+R$14)*(1+Q$14)*(1+P$14)))) -> 0 | T16: =IF($I$47<5,0,IF(OR(T$5<1,T$5>Inputs!$I$75),0,IF(OR(MOD(T$5,$I$47)=1,MOD(T$5,$I$47)=2,MOD(T$5,$I$47)=3,MOD(T$5,$I$47)=4),0,(1+T$14)*(1+S$14)*(1+R$14)*(1+Q$14)))) -> 1.301979528 | U16: =IF($I$47<5,0,IF(OR(U$5<1,U$5>Inputs!$I$75),0,IF(OR(MOD(U$5,$I$47)=1,MOD(U$5,$I$47)=2,MOD(U$5,$I$47)=3,MOD(U$5,$I$47)=4),0,(1+U$14)*(1+T$14)*(1+S$14)*(1+R$14)))) -> 0 | V16: =IF($I$47<5,0,IF(OR(V$5<1,V$5>Inputs!$I$75),0,IF(OR(MOD(V$5,$I$47)=1,MOD(V$5,$I$47)=2,MOD(V$5,$I$47)=3,MOD(V$5,$I$47)=4),0,(1+V$14)*(1+U$14)*(1+T$14)*(1+S$14)))) -> 0 | W16: =IF($I$47<5,0,IF(OR(W$5<1,W$5>Inputs!$I$75),0,IF(OR(MOD(W$5,$I$47)=1,MOD(W$5,$I$47)=2,MOD(W$5,$I$47)=3,MOD(W$5,$I$47)=4),0,(1+W$14)*(1+V$14)*(1+U$14)*(1+T$14)))) -> 0 | X16: =IF($I$47<5,0,IF(OR(X$5<1,X$5>Inputs!$I$75),0,IF(OR(MOD(X$5,$I$47)=1,MOD(X$5,$I$47)=2,MOD(X$5,$I$47)=3,MOD(X$5,$I$47)=4),0,(1+X$14)*(1+W$14)*(1+V$14)*(1+U$14)))) -> 0 | Y16: =IF($I$47<5,0,IF(OR(Y$5<1,Y$5>Inputs!$I$75),0,IF(OR(MOD(Y$5,$I$47)=1,MOD(Y$5,$I$47)=2,MOD(Y$5,$I$47)=3,MOD(Y$5,$I$47)=4),0,(1+Y$14)*(1+X$14)*(1+W$14)*(1+V$14)))) -> 1.285997502 | Z16: =IF($I$47<5,0,IF(OR(Z$5<1,Z$5>Inputs!$I$75),0,IF(OR(MOD(Z$5,$I$47)=1,MOD(Z$5,$I$47)=2,MOD(Z$5,$I$47)=3,MOD(Z$5,$I$47)=4),0,(1+Z$14)*(1+Y$14)*(1+X$14)*(1+W$14)))) -> 0 | AA16: =IF($I$47<5,0,IF(OR(AA$5<1,AA$5>Inputs!$I$75),0,IF(OR(MOD(AA$5,$I$47)=1,MOD(AA$5,$I$47)=2,MOD(AA$5,$I$47)=3,MOD(AA$5,$I$47)=4),0,(1+AA$14)*(1+Z$14)*(1+Y$14)*(1+X$14)))) -> 0 | AB16: =IF($I$47<5,0,IF(OR(AB$5<1,AB$5>Inputs!$I$75),0,IF(OR(MOD(AB$5,$I$47)=1,MOD(AB$5,$I$47)=2,MOD(AB$5,$I$47)=3,MOD(AB$5,$I$47)=4),0,(1+AB$14)*(1+AA$14)*(1+Z$14)*(1+Y$14)))) -> 0 | AC16: =IF($I$47<5,0,IF(OR(AC$5<1,AC$5>Inputs!$I$75),0,IF(OR(MOD(AC$5,$I$47)=1,MOD(AC$5,$I$47)=2,MOD(AC$5,$I$47)=3,MOD(AC$5,$I$47)=4),0,(1+AC$14)*(1+AB$14)*(1+AA$14)*(1+Z$14)))) -> 0 | AD16: =IF($I$47<5,0,IF(OR(AD$5<1,AD$5>Inputs!$I$75),0,IF(OR(MOD(AD$5,$I$47)=1,MOD(AD$5,$I$47)=2,MOD(AD$5,$I$47)=3,MOD(AD$5,$I$47)=4),0,(1+AD$14)*(1+AC$14)*(1+AB$14)*(1+AA$14)))) -> 1.286608633 | AE16: =IF($I$47<5,0,IF(OR(AE$5<1,AE$5>Inputs!$I$75),0,IF(OR(MOD(AE$5,$I$47)=1,MOD(AE$5,$I$47)=2,MOD(AE$5,$I$47)=3,MOD(AE$5,$I$47)=4),0,(1+AE$14)*(1+AD$14)*(1+AC$14)*(1+AB$14)))) -> 0 | AF16: =IF($I$47<5,0,IF(OR(AF$5<1,AF$5>Inputs!$I$75),0,IF(OR(MOD(AF$5,$I$47)=1,MOD(AF$5,$I$47)=2,MOD(AF$5,$I$47)=3,MOD(AF$5,$I$47)=4),0,(1+AF$14)*(1+AE$14)*(1+AD$14)*(1+AC$14)))) -> 0 | AG16: =IF($I$47<5,0,IF(OR(AG$5<1,AG$5>Inputs!$I$75),0,IF(OR(MOD(AG$5,$I$47)=1,MOD(AG$5,$I$47)=2,MOD(AG$5,$I$47)=3,MOD(AG$5,$I$47)=4),0,(1+AG$14)*(1+AF$14)*(1+AE$14)*(1+AD$14)))) -> 0 | AH16: =IF($I$47<5,0,IF(OR(AH$5<1,AH$5>Inputs!$I$75),0,IF(OR(MOD(AH$5,$I$47)=1,MOD(AH$5,$I$47)=2,MOD(AH$5,$I$47)=3,MOD(AH$5,$I$47)=4),0,(1+AH$14)*(1+AG$14)*(1+AF$14)*(1+AE$14)))) -> 0 | AI16: =IF($I$47<5,0,IF(OR(AI$5<1,AI$5>Inputs!$I$75),0,IF(OR(MOD(AI$5,$I$47)=1,MOD(AI$5,$I$47)=2,MOD(AI$5,$I$47)=3,MOD(AI$5,$I$47)=4),0,(1+AI$14)*(1+AH$14)*(1+AG$14)*(1+AF$14)))) -> 1.287218494 | AJ16: =IF($I$47<5,0,IF(OR(AJ$5<1,AJ$5>Inputs!$I$75),0,IF(OR(MOD(AJ$5,$I$47)=1,MOD(AJ$5,$I$47)=2,MOD(AJ$5,$I$47)=3,MOD(AJ$5,$I$47)=4),0,(1+AJ$14)*(1+AI$14)*(1+AH$14)*(1+AG$14)))) -> 0 | AK16: =IF($I$47<5,0,IF(OR(AK$5<1,AK$5>Inputs!$I$75),0,IF(OR(MOD(AK$5,$I$47)=1,MOD(AK$5,$I$47)=2,MOD(AK$5,$I$47)=3,MOD(AK$5,$I$47)=4),0,(1+AK$14)*(1+AJ$14)*(1+AI$14)*(1+AH$14)))) -> 0 | AL16: =IF($I$47<5,0,IF(OR(AL$5<1,AL$5>Inputs!$I$75),0,IF(OR(MOD(AL$5,$I$47)=1,MOD(AL$5,$I$47)=2,MOD(AL$5,$I$47)=3,MOD(AL$5,$I$47)=4),0,(1+AL$14)*(1+AK$14)*(1+AJ$14)*(1+AI$14)))) -> 0 | AM16: =IF($I$47<5,0,IF(OR(AM$5<1,AM$5>Inputs!$I$75),0,IF(OR(MOD(AM$5,$I$47)=1,MOD(AM$5,$I$47)=2,MOD(AM$5,$I$47)=3,MOD(AM$5,$I$47)=4),0,(1+AM$14)*(1+AL$14)*(1+AK$14)*(1+AJ$14)))) -> 0 | AN16: =IF($I$47<5,0,IF(OR(AN$5<1,AN$5>Inputs!$I$75),0,IF(OR(MOD(AN$5,$I$47)=1,MOD(AN$5,$I$47)=2,MOD(AN$5,$I$47)=3,MOD(AN$5,$I$47)=4),0,(1+AN$14)*(1+AM$14)*(1+AL$14)*(1+AK$14)))) -> 1.287826367 | AO16: =IF($I$47<5,0,IF(OR(AO$5<1,AO$5>Inputs!$I$75),0,IF(OR(MOD(AO$5,$I$47)=1,MOD(AO$5,$I$47)=2,MOD(AO$5,$I$47)=3,MOD(AO$5,$I$47)=4),0,(1+AO$14)*(1+AN$14)*(1+AM$14)*(1+AL$14)))) -> 0 | AP16: =IF($I$47<5,0,IF(OR(AP$5<1,AP$5>Inputs!$I$75),0,IF(OR(MOD(AP$5,$I$47)=1,MOD(AP$5,$I$47)=2,MOD(AP$5,$I$47)=3,MOD(AP$5,$I$47)=4),0,(1+AP$14)*(1+AO$14)*(1+AN$14)*(1+AM$14)))) -> 0 | AQ16: =IF($I$47<5,0,IF(OR(AQ$5<1,AQ$5>Inputs!$I$75),0,IF(OR(MOD(AQ$5,$I$47)=1,MOD(AQ$5,$I$47)=2,MOD(AQ$5,$I$47)=3,MOD(AQ$5,$I$47)=4),0,(1+AQ$14)*(1+AP$14)*(1+AO$14)*(1+AN$14)))) -> 0 | AR16: =IF($I$47<5,0,IF(OR(AR$5<1,AR$5>Inputs!$I$75),0,IF(OR(MOD(AR$5,$I$47)=1,MOD(AR$5,$I$47)=2,MOD(AR$5,$I$47)=3,MOD(AR$5,$I$47)=4),0,(1+AR$14)*(1+AQ$14)*(1+AP$14)*(1+AO$14)))) -> 0 | AS16: =IF($I$47<5,0,IF(OR(AS$5<1,AS$5>Inputs!$I$75),0,IF(OR(MOD(AS$5,$I$47)=1,MOD(AS$5,$I$47)=2,MOD(AS$5,$I$47)=3,MOD(AS$5,$I$47)=4),0,(1+AS$14)*(1+AR$14)*(1+AQ$14)*(1+AP$14)))) -> 0 | AT16: =IF($I$47<5,0,IF(OR(AT$5<1,AT$5>Inputs!$I$75),0,IF(OR(MOD(AT$5,$I$47)=1,MOD(AT$5,$I$47)=2,MOD(AT$5,$I$47)=3,MOD(AT$5,$I$47)=4),0,(1+AT$14)*(1+AS$14)*(1+AR$14)*(1+AQ$14)))) -> 0 | AU16: =IF($I$47<5,0,IF(OR(AU$5<1,AU$5>Inputs!$I$75),0,IF(OR(MOD(AU$5,$I$47)=1,MOD(AU$5,$I$47)=2,MOD(AU$5,$I$47)=3,MOD(AU$5,$I$47)=4),0,(1+AU$14)*(1+AT$14)*(1+AS$14)*(1+AR$14)))) -> 0 | AV16: =IF($I$47<5,0,IF(OR(AV$5<1,AV$5>Inputs!$I$75),0,IF(OR(MOD(AV$5,$I$47)=1,MOD(AV$5,$I$47)=2,MOD(AV$5,$I$47)=3,MOD(AV$5,$I$47)=4),0,(1+AV$14)*(1+AU$14)*(1+AT$14)*(1+AS$14)))) -> 0 | AW16: =IF($I$47<5,0,IF(OR(AW$5<1,AW$5>Inputs!$I$75),0,IF(OR(MOD(AW$5,$I$47)=1,MOD(AW$5,$I$47)=2,MOD(AW$5,$I$47)=3,MOD(AW$5,$I$47)=4),0,(1+AW$14)*(1+AV$14)*(1+AU$14)*(1+AT$14)))) -> 0 | AX16: =IF($I$47<5,0,IF(OR(AX$5<1,AX$5>Inputs!$I$75),0,IF(OR(MOD(AX$5,$I$47)=1,MOD(AX$5,$I$47)=2,MOD(AX$5,$I$47)=3,MOD(AX$5,$I$47)=4),0,(1+AX$14)*(1+AW$14)*(1+AV$14)*(1+AU$14)))) -> 0 | AY16: =IF($I$47<5,0,IF(OR(AY$5<1,AY$5>Inputs!$I$75),0,IF(OR(MOD(AY$5,$I$47)=1,MOD(AY$5,$I$47)=2,MOD(AY$5,$I$47)=3,MOD(AY$5,$I$47)=4),0,(1+AY$14)*(1+AX$14)*(1+AW$14)*(1+AV$14)))) -> 0 | AZ16: =IF($I$47<5,0,IF(OR(AZ$5<1,AZ$5>Inputs!$I$75),0,IF(OR(MOD(AZ$5,$I$47)=1,MOD(AZ$5,$I$47)=2,MOD(AZ$5,$I$47)=3,MOD(AZ$5,$I$47)=4),0,(1+AZ$14)*(1+AY$14)*(1+AX$14)*(1+AW$14)))) -> 0 | BA16: =IF($I$47<5,0,IF(OR(BA$5<1,BA$5>Inputs!$I$75),0,IF(OR(MOD(BA$5,$I$47)=1,MOD(BA$5,$I$47)=2,MOD(BA$5,$I$47)=3,MOD(BA$5,$I$47)=4),0,(1+BA$14)*(1+AZ$14)*(1+AY$14)*(1+AX$14)))) -> 0 | BB16: =IF($I$47<5,0,IF(OR(BB$5<1,BB$5>Inputs!$I$75),0,IF(OR(MOD(BB$5,$I$47)=1,MOD(BB$5,$I$47)=2,MOD(BB$5,$I$47)=3,MOD(BB$5,$I$47)=4),0,(1+BB$14)*(1+BA$14)*(1+AZ$14)*(1+AY$14)))) -> 0
